{"text_format":"1","workbook":"xlsx","n_sheets":5,"sheets":["بيانات المركز.","prof","حساب عدد الأيام","توزيع الحراس","أيام الحراسة"],"not_rendered":{"charts":0,"images":5,"macros":1,"external_links":15,"defined_names":86,"comments":0,"pivot_tables":0},"unopened":[],"bounds":{"document_bytes":16777216,"sheet_cells":100000,"rows_first":2000,"rows_last":500,"rows_between":2000,"halvings":0,"cell_chars":16384,"cell_head_chars":4096},"cells_cut":0,"cells_raw":0,"read":"whole","date_system":"1900"}

{"sheet":"بيانات المركز.","index":0,"n_rows":19,"n_cols":22,"rows_kept":19,"cut":false,"hidden":false,"merged":[[1,10,1,17],[4,0,4,7],[6,0,6,3],[6,4,6,9],[6,17,6,20],[4,9,4,10],[4,15,4,16],[6,21,6,25],[14,7,14,8],[14,9,14,17],[8,0,8,2],[8,3,8,9],[8,10,8,15],[8,16,8,25],[10,0,10,2],[10,3,10,9],[10,11,10,14],[10,15,10,20],[10,21,10,25],[0,10,0,17],[18,21,18,25],[3,9,3,20],[16,5,16,7],[16,9,16,14],[17,0,17,5],[18,0,18,2],[18,3,18,7],[18,17,18,20],[12,0,12,5],[12,6,12,13],[12,15,12,20],[12,21,12,25],[13,0,13,1],[14,0,14,1],[14,2,14,6]]}
[null,null,null,null,null,null,null,null,null,null,"الجمهوريــة الجزائريــة الديمقراطيــة الشعبيــة"]
[null,null,null,null,null,null,null,null,null,null,"وزارة التربية الوطنية"]
["الدّيوان الوطني للامتحانات و المسابقات "]
[null,null,null,null,null,null,null,null,null,"بطاقــة استعلامــات المركــز"]
[]
[]
["اختر نوع المركز",null,null,null,"الإجـــراء",null,null,null,null,null,null,null,null,null,null,null,null,"الرمـــــــز :",null,null,null,39044]
[]
["الولايـــة :",null,null,"الوادي",null,null,null,null,null,null,"مؤسسة الإجراء / الإغفال / التصحيح",null,null,null,null,null,"ثانوية المجتهد - الوادي"]
[]
["البلديـــة :",null,null,"الوادي",null,null,null,null,null,null,null,null,null,null,null,"رئيس(ة) مركز الإجراء :",null,null,null,null,null,"مصطفى مصطفى"]
[]
["اختـــر نوع امتحان شهادة   :",null,null,null,null,null,"إمتحــان شهـادة البكالـــوريا",null,null,null,null,null,null,null,null,"الإطـــــــــــــــــار :",null,null,null,null,null,"مدير ثانوية"]
[]
["فــرع  :",null,"غرداية",null,null,null,null,"العنوان :",null,".ص . ب رقم 1454 بلغـــنم غرداية "]
[]
[null,null,null,null,null,"رقم الهاتف :",null,null,null,"023.45.47.14"]
[]
["الـــــدّورة  :",null,null,"جــــوان 2021",null,null,null,null,null,null,null,null,null,null,null,null,null,"تاريخ الامتحان :",null,null,null,"2021-06-20"]

{"sheet":"prof","index":1,"n_rows":657,"n_cols":15,"rows_kept":657,"cut":false,"hidden":false,"merged":[]}
["الرقم الترتيبي","الرقم","اللقب والاسم","الرتبة","الطور","مادة التدريس","المؤسسة","المقاطعة","العنوان","بلدية الاقامة","نوع المركز","اسم مركز التصحيح","مركز اجراء بكالوريا","مركز اجراء ش ت م","المهمة"]
[1,10000254621,"محمد علي1","أستاذ تعليم ثانوي","ثا -","العلوم الاسلامية","سعد شعباني - الرقيبة","","النخلة","النخلة","مركز اجراء امتحان ش البكالوريا","","ثانوية الشهيد بن حمده علي  - النخلة","",""]
[2,10000254622,"محمد علي2","أستاذ رئيسي في التعليم الثانوي","ثا -","الفرنسية","مفدي زكرياء - البياضة","","حي 18 فبراير","البياضة","مركز اجراء امتحان ش البكالوريا","","ثانوية الشهيد بن حمده علي  - النخلة","",""]
[3,10000254623,"محمد علي3","أستاذ مكون في التعليم الثانوي","ثا -","الانجليزية","مفدي زكرياء - البياضة","","حي الكرامة ا","البياضة","مركز اجراء امتحان ش البكالوريا","","ثانوية الشهيد بن حمده علي  - النخلة","",""]
[4,10000254624,"محمد علي4","أستاذ رئيسي في التعليم الثانوي","ثا -","الانجليزية","مفدي زكرياء - البياضة","","حي 1 نوفمبر","البياضة","مركز اجراء امتحان ش البكالوريا","","ثانوية الشهيد بن حمده علي  - النخلة","",""]
[5,10000254625,"محمد علي5","أستاذ مكون في التعليم الثانوي","ثا -","هندسة الطرائق","مفدي زكرياء - البياضة","","حي الصومام","البياضة","مركز اجراء امتحان ش البكالوريا","","ثانوية الشهيد بن حمده علي  - النخلة","",""]
[6,10000254626,"محمد علي6","أستاذ تعليم ثانوي","ثا -","الرياضيات","مفدي زكرياء - البياضة","","حي القدس","البياضة","مركز اجراء امتحان ش البكالوريا","","ثانوية الشهيد بن حمده علي  - النخلة","",""]
[7,10000254627,"محمد علي7","أستاذ تعليم ثانوي","ثا -","الاقتصاد و المناجمنت","لقرع محمد الضيف - الرباح","","حي علي دربال","الرباح","مركز اجراء امتحان ش البكالوريا","","ثانوية الشهيد بن حمده علي  - النخلة","",""]
[8,10000254628,"محمد علي8","أستاذ تعليم ثانوي","ثا -","الاقتصاد و المناجمنت","لقرع محمد الضيف - الرباح","","حي علي دربال","الرباح","مركز اجراء امتحان ش البكالوريا","","ثانوية الشهيد بن حمده علي  - النخلة","",""]
[9,10000254629,"محمد علي9","أستاذ تعليم ثانوي","ثا -","الرياضيات","مفدي زكرياء - البياضة","","النخلة","النخلة","مركز اجراء امتحان ش البكالوريا","","ثانوية الشهيد بن حمده علي  - النخلة","",""]
[10,10000254630,"محمد علي10","أستاذ رئيسي في التعليم الثانوي","ثا -","الفلسفة","مفدي زكرياء - البياضة","","حي 81 سكن","البياضة","مركز اجراء امتحان ش البكالوريا","","ثانوية الشهيد بن حمده علي  - النخلة","",""]
[11,10000254631,"محمد علي11","أستاذ مكون في التعليم الثانوي","ثا -","الرياضيات","مفدي زكرياء - البياضة","","حي اولاد عياد","البياضة","مركز اجراء امتحان ش البكالوريا","","ثانوية الشهيد بن حمده علي  - النخلة","",""]
[12,10000254632,"محمد علي12","أستاذ رئيسي في التعليم الثانوي","ثا -","الفيزياء","مفدي زكرياء - البياضة","","حي محمد بوضياف","البياضة","مركز اجراء امتحان ش البكالوريا","","ثانوية الشهيد بن حمده علي  - النخلة","",""]
[13,10000254633,"محمد علي13","أستاذ رئيسي في التعليم الثانوي","ثا -","الفيزياء","مفدي زكرياء - البياضة","","النخلة","النخلة","مركز اجراء امتحان ش البكالوريا","","ثانوية الشهيد بن حمده علي  - النخلة","",""]
[14,10000254634,"محمد علي14","أستاذ رئيسي في التعليم الثانوي","ثا -","علوم طبيعية","مفدي زكرياء - البياضة","","حي الصوالح","البياضة","مركز اجراء امتحان ش البكالوريا","","ثانوية الشهيد بن حمده علي  - النخلة","",""]
[15,10000254635,"محمد علي15","أستاذ رئيسي في التعليم الثانوي","ثا -","علوم طبيعية","مفدي زكرياء - البياضة","","حي الكرامة ا","البياضة","مركز اجراء امتحان ش البكالوريا","","ثانوية الشهيد بن حمده علي  - النخلة","",""]
[16,10000254636,"محمد علي16","أستاذ رئيسي في التعليم الثانوي","ثا -","الفيزياء","مفدي زكرياء - البياضة","","حي القدس","البياضة","مركز اجراء امتحان ش البكالوريا","","ثانوية الشهيد بن حمده علي  - النخلة","",""]
[17,10000254637,"محمد علي17","أستاذ رئيسي في التعليم الثانوي","ثا -","علوم طبيعية","مفدي زكرياء - البياضة","","حي الإستقلال","البياضة","مركز اجراء امتحان ش البكالوريا","","ثانوية الشهيد بن حمده علي  - النخلة","",""]
[18,10000254638,"محمد علي18","أستاذ رئيسي في التعليم الثانوي","ثا -","علوم طبيعية","مفدي زكرياء - البياضة","","حي 81 سكن","البياضة","مركز اجراء امتحان ش البكالوريا","","ثانوية الشهيد بن حمده علي  - النخلة","",""]
[19,10000254639,"محمد علي19","أستاذ تعليم ثانوي","ثا -","الفيزياء","خوازم الطاهر - البياضة","","أول نوفمبر 1954 البياضة","البياضة","مركز اجراء امتحان ش البكالوريا","","ثانوية الشهيد بن حمده علي  - النخلة","",""]
[20,10000254640,"محمد علي20","أستاذ رئيسي في التعليم الثانوي","ثا -","الرياضيات","خوازم الطاهر - البياضة","","الخبنة -النخلة","النخلة","مركز اجراء امتحان ش البكالوريا","","ثانوية الشهيد بن حمده علي  - النخلة","",""]
[21,10000254641,"محمد علي21","أستاذ تعليم ثانوي","ثا -","الرياضيات","خوازم الطاهر - البياضة","","السلام -البياضة","البياضة","مركز اجراء امتحان ش البكالوريا","","ثانوية الشهيد بن حمده علي  - النخلة","",""]
[22,10000254642,"محمد علي22","أستاذ رئيسي في التعليم الثانوي","ثا -","الرياضيات","خوازم الطاهر - البياضة","","حي السلام","البياضة","مركز اجراء امتحان ش البكالوريا","","ثانوية الشهيد بن حمده علي  - النخلة","",""]
[23,10000254643,"محمد علي23","أستاذ رئيسي في التعليم الثانوي","ثا -","الرياضيات","خوازم الطاهر - البياضة","","أول نوفمبر 1954 البياضة","البياضة","مركز اجراء امتحان ش البكالوريا","","ثانوية الشهيد بن حمده علي  - النخلة","",""]
[24,10000254644,"محمد علي24","أستاذ رئيسي في التعليم الثانوي","ثا -","العلوم الاسلامية","خوازم الطاهر - البياضة","","أول نوفمبر 1954 البياضة","البياضة","مركز اجراء امتحان ش البكالوريا","","ثانوية الشهيد بن حمده علي  - النخلة","",""]
[25,10000254645,"محمد علي25","أستاذ تعليم ثانوي","ثا -","التاريخ والجغرافيا","خوازم الطاهر - البياضة","","أولاد مياسة -الرباح","الرباح","مركز اجراء امتحان ش البكالوريا","","ثانوية الشهيد بن حمده علي  - النخلة","",""]
[26,10000254646,"محمد علي26","أستاذ رئيسي في التعليم الثانوي","ثا -","الرياضيات","تجاني أمحمد - البياضة","","البياضة","البياضة","مركز اجراء امتحان ش البكالوريا","","ثانوية الشهيد بن حمده علي  - النخلة","",""]
[27,10000254647,"محمد علي27","أستاذ تعليم ثانوي","ثا -","الفرنسية","خوازم الطاهر - البياضة","","العواشير -الرباح","الرباح","مركز اجراء امتحان ش البكالوريا","","ثانوية الشهيد بن حمده علي  - النخلة","",""]
[28,10000254648,"محمد علي28","أستاذ مكون في التعليم الثانوي","ثا -","الهندسة الميكانيكية","كركوبية خليفة - الرباح","","حي النخلة الشرقية النخلة","النخلة","مركز اجراء امتحان ش البكالوريا","","ثانوية الشهيد بن حمده علي  - النخلة","",""]
[29,10000254649,"محمد علي29","أستاذ تعليم ثانوي","ثا -","هندسة الطرائق","كركوبية خليفة - الرباح","","حي النخلة الشرقية النخلة","النخلة","مركز اجراء امتحان ش البكالوريا","","ثانوية الشهيد بن حمده علي  - النخلة","",""]
[30,10000254650,"محمد علي30","أستاذ مكون في التعليم الثانوي","ثا -","علوم طبيعية","لقرع محمد الضيف - الرباح","","حي البغازلية","الرباح","مركز اجراء امتحان ش البكالوريا","","ثانوية الشهيد بن حمده علي  - النخلة","",""]
[31,10000254651,"محمد علي31","أستاذ مكون في التعليم الثانوي","ثا -","العلوم الاسلامية","لقرع محمد الضيف - الرباح","","حي علي دربال","الرباح","مركز اجراء امتحان ش البكالوريا","","ثانوية الشهيد بن حمده علي  - النخلة","",""]
[32,10000254652,"محمد علي32","أستاذ رئيسي في التعليم الثانوي","ثا -","الفيزياء","لقرع محمد الضيف - الرباح","","حي النخلة","النخلة","مركز اجراء امتحان ش البكالوريا","","ثانوية الشهيد بن حمده علي  - النخلة","",""]
[33,10000254653,"محمد علي33","أستاذ رئيسي في التعليم الثانوي","ثا -","العربية","لقرع محمد الضيف - الرباح","","حي البغازلية","الرباح","مركز اجراء امتحان ش البكالوريا","","ثانوية الشهيد بن حمده علي  - النخلة","",""]
[34,10000254654,"محمد علي34","أستاذ رئيسي في التعليم الثانوي","ثا -","علوم طبيعية","لقرع محمد الضيف - الرباح","","حي علي دربال","الرباح","مركز اجراء امتحان ش البكالوريا","","ثانوية الشهيد بن حمده علي  - النخلة","",""]
[35,10000254655,"محمد علي35","أستاذ تعليم ثانوي","ثا -","الانجليزية","لقرع محمد الضيف - الرباح","","النخلة","النخلة","مركز اجراء امتحان ش البكالوريا","","ثانوية الشهيد بن حمده علي  - النخلة","",""]
[36,10000254656,"محمد علي36","أستاذ مكون في التعليم الثانوي","ثا -","الرياضيات","لقرع محمد الضيف - الرباح","","حي البغازلية","الرباح","مركز اجراء امتحان ش البكالوريا","","ثانوية الشهيد بن حمده علي  - النخلة","",""]
[37,10000254657,"محمد علي37","أستاذ رئيسي في التعليم الثانوي","ثا -","العربية","خوازم الطاهر - البياضة","","أول نوفمبر 1954 البياضة","البياضة","مركز اجراء امتحان ش البكالوريا","","ثانوية الشهيد بن حمده علي  - النخلة","",""]
[38,10000254658,"محمد علي38","أستاذ رئيسي في التعليم الثانوي","ثا -","الانجليزية","تجاني أمحمد - البياضة","","البياضة","البياضة","مركز اجراء امتحان ش البكالوريا","","ثانوية الشهيد بن حمده علي  - النخلة","",""]
[39,10000254659,"محمد علي39","أستاذ تعليم ثانوي","ثا -","علوم طبيعية","تجاني أمحمد - البياضة","","البياضة","البياضة","مركز اجراء امتحان ش البكالوريا","","ثانوية الشهيد بن حمده علي  - النخلة","",""]
[40,10000254660,"محمد علي40","أستاذ تعليم ثانوي","ثا -","التاريخ والجغرافيا","تجاني أمحمد - البياضة","","الخبنة","النخلة","مركز اجراء امتحان ش البكالوريا","","ثانوية الشهيد بن حمده علي  - النخلة","",""]
[41,10000254661,"محمد علي41","أستاذ مكون في التعليم الثانوي","ثا -","التاريخ والجغرافيا","تجاني أمحمد - البياضة","","البياضة","البياضة","مركز اجراء امتحان ش البكالوريا","","ثانوية الشهيد بن حمده علي  - النخلة","",""]
[42,10000254662,"محمد علي42","أستاذ مكون في التعليم الثانوي","ثا -","علوم طبيعية","تجاني أمحمد - البياضة","","البياضة","البياضة","مركز اجراء امتحان ش البكالوريا","","ثانوية الشهيد بن حمده علي  - النخلة","",""]
[43,10000254663,"محمد علي43","أستاذ تعليم ثانوي","ثا -","التربية البدنية","خوازم الطاهر - البياضة","","العواشير -الرباح","الرباح","مركز اجراء امتحان ش البكالوريا","","ثانوية الشهيد بن حمده علي  - النخلة","",""]
[44,10000254664,"محمد علي44","أستاذ تعليم ثانوي","ثا -","الفلسفة","خوازم الطاهر - البياضة","","علي دربال -الرباح","الرباح","مركز اجراء امتحان ش البكالوريا","","ثانوية الشهيد بن حمده علي  - النخلة","",""]
[45,10000254665,"محمد علي45","أستاذ تعليم ثانوي","ثا -","الاقتصاد و المناجمنت","خوازم الطاهر - البياضة","","5جويلية 1962 البياضة","البياضة","مركز اجراء امتحان ش البكالوريا","","ثانوية الشهيد بن حمده علي  - النخلة","",""]
[46,10000254666,"محمد علي46","أستاذ تعليم ثانوي","ثا -","الرياضيات","تجاني أمحمد - البياضة","","البياضة","البياضة","مركز اجراء امتحان ش البكالوريا","","ثانوية الشهيد بن حمده علي  - النخلة","",""]
[47,10000254667,"محمد علي47","أستاذ تعليم ثانوي","ثا -","الفلسفة","تجاني أمحمد - البياضة","","الرباح","الرباح","مركز اجراء امتحان ش البكالوريا","","ثانوية الشهيد بن حمده علي  - النخلة","",""]
[48,10000254668,"محمد علي48","أستاذ تعليم ثانوي","ثا -","الاقتصاد و المناجمنت","تجاني أمحمد - البياضة","","البياضة","البياضة","مركز اجراء امتحان ش البكالوريا","","ثانوية الشهيد بن حمده علي  - النخلة","",""]
[49,10000254669,"محمد علي49","أستاذ مكون في التعليم الثانوي","ثا -","هندسة الطرائق","تجاني أمحمد - البياضة","","البياضة","البياضة","مركز اجراء امتحان ش البكالوريا","","ثانوية الشهيد بن حمده علي  - النخلة","",""]
[50,10000254670,"محمد علي50","أستاذ مكون في التعليم الثانوي","ثا -","العربية","خوازم الطاهر - البياضة","","أول نوفمبر 1954 البياضة","البياضة","مركز اجراء امتحان ش البكالوريا","","ثانوية الشهيد بن حمده علي  - النخلة","",""]
[51,10000254671,"محمد علي51","أستاذ رئيسي في التعليم الثانوي","ثا -","التربية البدنية","تجاني أمحمد - البياضة","","النخلة","النخلة","مركز اجراء امتحان ش البكالوريا","","ثانوية الشهيد بن حمده علي  - النخلة","",""]
[52,10000254672,"محمد علي52","أستاذ رئيسي في التعليم الثانوي","ثا -","الفرنسية","تجاني أمحمد - البياضة","","البياضة","البياضة","مركز اجراء امتحان ش البكالوريا","","ثانوية الشهيد بن حمده علي  - النخلة","",""]
[53,10000254673,"محمد علي53","أستاذ تعليم ثانوي","ثا -","الرياضيات","تجاني أمحمد - البياضة","","البياضة","البياضة","مركز اجراء امتحان ش البكالوريا","","ثانوية الشهيد بن حمده علي  - النخلة","",""]
[54,10000254674,"محمد علي54","أستاذ رئيسي في التعليم الثانوي","ثا -","الفيزياء","خوازم الطاهر - البياضة","","الصوالح -البياضة","البياضة","مركز اجراء امتحان ش البكالوريا","","ثانوية الشهيد بن حمده علي  - النخلة","",""]
[55,10000254675,"محمد علي55","أستاذ رئيسي في التعليم الثانوي","ثا -","العربية","تجاني أمحمد - البياضة","","البياضة","البياضة","مركز اجراء امتحان ش البكالوريا","","ثانوية الشهيد بن حمده علي  - النخلة","",""]
[56,10000254676,"محمد علي56","أستاذ تعليم ثانوي","ثا -","الاقتصاد و المناجمنت","مفدي زكرياء - البياضة","","حي أولاد مياسة","الرباح","مركز اجراء امتحان ش البكالوريا","","ثانوية الشهيد بن حمده علي  - النخلة","",""]
[57,10000254677,"محمد علي57","أستاذ رئيسي في التعليم الثانوي","ثا -","الفيزياء","كركوبية خليفة - الرباح","","حي الخبنة النخلة","النخلة","مركز اجراء امتحان ش البكالوريا","","ثانوية الشهيد بن حمده علي  - النخلة","",""]
[58,10000254678,"محمد علي58","أستاذ رئيسي في التعليم الثانوي","ثا -","الفيزياء","كركوبية خليفة - الرباح","","حي العقيلة العقلة","العقلة","مركز اجراء امتحان ش البكالوريا","","ثانوية الشهيد بن حمده علي  - النخلة","",""]
[59,10000254679,"محمد علي59","أستاذ رئيسي في التعليم الابتدائي","إ -","العربية","بوغزالة حمد عبد الكامل- النخلة","الرباح","حي العقيلة","العقلة","مركز اجراء امتحان ش البكالوريا","","ثانوية الشهيد بن حمده علي  - النخلة","",""]
[60,10000254680,"محمد علي60","استاذ تعليم ابتدائي","إ -","العربية","قطوطة عمارة- العقلة","الرباح","حي محمد بوضياف","العقلة","مركز اجراء امتحان ش البكالوريا","","ثانوية الشهيد بن حمده علي  - النخلة","",""]
[61,10000254681,"محمد علي61","استاذ تعليم ابتدائي","إ -","العربية","قطوطة عمارة- العقلة","الرباح","حي بن عمر الجيلاني","العقلة","مركز اجراء امتحان ش البكالوريا","","ثانوية الشهيد بن حمده علي  - النخلة","",""]
[62,10000254682,"محمد علي62","أستاذ رئيسي في التعليم الابتدائي","إ -","العربية","قطوطة عمارة- العقلة","الرباح","حي محمد بوضياف","العقلة","مركز اجراء امتحان ش البكالوريا","","ثانوية الشهيد بن حمده علي  - النخلة","",""]
[63,10000254683,"محمد علي63","أستاذ رئيسي في التعليم الابتدائي","إ -","العربية","قطوطة عمارة- العقلة","الرباح","حي محمد بوضياف","العقلة","مركز اجراء امتحان ش البكالوريا","","ثانوية الشهيد بن حمده علي  - النخلة","",""]
[64,10000254684,"محمد علي64","استاذ تعليم ابتدائي","إ -","الفرنسية","قطوطة عمارة- العقلة","الرباح","حي بن عمر الجيلاني","العقلة","مركز اجراء امتحان ش البكالوريا","","ثانوية الشهيد بن حمده علي  - النخلة","",""]
[65,10000254685,"محمد علي65","استاذ تعليم ابتدائي","إ -","العربية","قطوطة عمارة- العقلة","الرباح","حي بن عمر الجيلاني","العقلة","مركز اجراء امتحان ش البكالوريا","","ثانوية الشهيد بن حمده علي  - النخلة","",""]
[66,10000254686,"محمد علي66","استاذ تعليم ابتدائي","إ -","العربية","قطوطة عمارة- العقلة","الرباح","حي بن عمر الجيلاني","العقلة","مركز اجراء امتحان ش البكالوريا","","ثانوية الشهيد بن حمده علي  - النخلة","",""]
[67,10000254687,"محمد علي67","استاذ تعليم ابتدائي","إ -","العربية","قطوطة عمارة- العقلة","الرباح","النخلة الشرقية","العقلة","مركز اجراء امتحان ش البكالوريا","","ثانوية الشهيد بن حمده علي  - النخلة","",""]
[68,10000254688,"محمد علي68","أستاذ رئيسي في التعليم الابتدائي","إ -","العربية","عمر بن الخطاب- العقلة","الرباح","حي عقيب نصر","العقلة","مركز اجراء امتحان ش البكالوريا","","ثانوية الشهيد بن حمده علي  - النخلة","",""]
[69,10000254689,"محمد علي69","استاذ تعليم ابتدائي","إ -","الفرنسية","عمر بن الخطاب- العقلة","الرباح","حي العقيلة","العقلة","مركز اجراء امتحان ش البكالوريا","","ثانوية الشهيد بن حمده علي  - النخلة","",""]
[70,10000254690,"محمد علي70","استاذ تعليم ابتدائي","إ -","العربية","عمر بن الخطاب- العقلة","الرباح","حي عقيب نصر","العقلة","مركز اجراء امتحان ش البكالوريا","","ثانوية الشهيد بن حمده علي  - النخلة","",""]
[71,10000254691,"محمد علي71","استاذ تعليم ابتدائي","إ -","العربية","عمر بن الخطاب- العقلة","الرباح","حي العقيلة","العقلة","مركز اجراء امتحان ش البكالوريا","","ثانوية الشهيد بن حمده علي  - النخلة","",""]
[72,10000254692,"محمد علي72","استاذ تعليم ابتدائي","إ -","العربية","عمر بن الخطاب- العقلة","الرباح","حي عقيب نصر","العقلة","مركز اجراء امتحان ش البكالوريا","","ثانوية الشهيد بن حمده علي  - النخلة","",""]
[73,10000254693,"محمد علي73","استاذ تعليم ابتدائي","إ -","العربية","عمر بن الخطاب- العقلة","الرباح","حي عقيب نصر العقلة","العقلة","مركز اجراء امتحان ش البكالوريا","","ثانوية الشهيد بن حمده علي  - النخلة","",""]
[74,10000254694,"محمد علي74","استاذ تعليم ابتدائي","إ -","العربية","عمر بن الخطاب- العقلة","الرباح","حي بن عمر الجيلاني","العقلة","مركز اجراء امتحان ش البكالوريا","","ثانوية الشهيد بن حمده علي  - النخلة","",""]
[75,10000254695,"محمد علي75","استاذ تعليم ابتدائي","إ -","العربية","عمر بن الخطاب- العقلة","الرباح","حي عقيب نصر العقلة","العقلة","مركز اجراء امتحان ش البكالوريا","","ثانوية الشهيد بن حمده علي  - النخلة","",""]
[76,10000254696,"محمد علي76","استاذ تعليم ابتدائي","إ -","العربية","عمر بن الخطاب- العقلة","الرباح","حي خالدي الطاهر","العقلة","مركز اجراء امتحان ش البكالوريا","","ثانوية الشهيد بن حمده علي  - النخلة","",""]
[77,10000254697,"محمد علي77","أستاذ مكون في التعليم الابتدائي","إ -","العربية","عمر بن الخطاب- العقلة","الرباح","حي عقيب نصر العقلة","العقلة","مركز اجراء امتحان ش البكالوريا","","ثانوية الشهيد بن حمده علي  - النخلة","",""]
[78,10000254698,"محمد علي78","استاذ تعليم ابتدائي","إ -","العربية","عمر بن الخطاب- العقلة","الرباح","حي عقيب نصر العقلة","العقلة","مركز اجراء امتحان ش البكالوريا","","ثانوية الشهيد بن حمده علي  - النخلة","",""]
[79,10000254699,"محمد علي79","أستاذ رئيسي في التعليم الابتدائي","إ -","العربية","ابن باديس- النخلة","الرباح","النخلة الغربية","النخلة","مركز اجراء امتحان ش البكالوريا","","ثانوية الشهيد بن حمده علي  - النخلة","",""]
[80,10000254700,"محمد علي80","استاذ تعليم ابتدائي","إ -","العربية","ابن باديس- النخلة","الرباح","النخلة الغربية","النخلة","مركز اجراء امتحان ش البكالوريا","","ثانوية الشهيد بن حمده علي  - النخلة","",""]
[81,10000254701,"محمد علي81","استاذ تعليم ابتدائي","إ -","العربية","ابن باديس- النخلة","الرباح","النخلة الغربية","النخلة","مركز اجراء امتحان ش البكالوريا","","ثانوية الشهيد بن حمده علي  - النخلة","",""]
[82,10000254702,"محمد علي82","أستاذ مكون في التعليم الابتدائي","إ -","العربية","ابن باديس- النخلة","الرباح","النخلة الشرقية","النخلة","مركز اجراء امتحان ش البكالوريا","","ثانوية الشهيد بن حمده علي  - النخلة","",""]
[83,10000254703,"محمد علي83","أستاذ رئيسي في التعليم الابتدائي","إ -","العربية","ابن باديس- النخلة","الرباح","النخلة الغربية","النخلة","مركز اجراء امتحان ش البكالوريا","","ثانوية الشهيد بن حمده علي  - النخلة","",""]
[84,10000254704,"محمد علي84","أستاذ رئيسي في التعليم الابتدائي","إ -","العربية","ابن باديس- النخلة","الرباح","النخلة الغربية","النخلة","مركز اجراء امتحان ش البكالوريا","","ثانوية الشهيد بن حمده علي  - النخلة","",""]
[85,10000254705,"محمد علي85","أستاذ رئيسي في التعليم الابتدائي","إ -","العربية","ابن باديس- النخلة","الرباح","النخلة الغربية","النخلة","مركز اجراء امتحان ش البكالوريا","","ثانوية الشهيد بن حمده علي  - النخلة","",""]
[86,10000254706,"محمد علي86","أستاذ رئيسي في التعليم الابتدائي","إ -","العربية","بوغزالة حمد عبد الكامل- النخلة","الرباح","حي النصر النخلة","النخلة","مركز اجراء امتحان ش البكالوريا","","ثانوية الشهيد بن حمده علي  - النخلة","",""]
[87,10000254707,"محمد علي87","استاذ تعليم ابتدائي","إ -","الفرنسية","بوغزالة حمد عبد الكامل- النخلة","الرباح","حي النخلة الشمالية","النخلة","مركز اجراء امتحان ش البكالوريا","","ثانوية الشهيد بن حمده علي  - النخلة","",""]
[88,10000254708,"محمد علي88","أستاذ رئيسي في التعليم الابتدائي","إ -","العربية","بوغزالة حمد عبد الكامل- النخلة","الرباح","حي النصر النخلة","النخلة","مركز اجراء امتحان ش البكالوريا","","ثانوية الشهيد بن حمده علي  - النخلة","",""]
[89,10000254709,"محمد علي89","أستاذ مكون في التعليم الابتدائي","إ -","العربية","بوغزالة حمد عبد الكامل- النخلة","الرباح","حي النصر النخلة","النخلة","مركز اجراء امتحان ش البكالوريا","","ثانوية الشهيد بن حمده علي  - النخلة","",""]
[90,10000254710,"محمد علي90","استاذ تعليم ابتدائي","إ -","العربية","قطوطة عمارة- العقلة","الرباح","النخلة الشرقية","النخلة","مركز اجراء امتحان ش البكالوريا","","ثانوية الشهيد بن حمده علي  - النخلة","",""]
[91,10000254711,"محمد علي91","استاذ تعليم ابتدائي","إ -","العربية","قطوطة عمارة- العقلة","الرباح","النخلة الغربية","النخلة","مركز اجراء امتحان ش البكالوريا","","ثانوية الشهيد بن حمده علي  - النخلة","",""]
[92,10000254712,"محمد علي92","استاذ تعليم ابتدائي","إ -","العربية","عمر بن الخطاب- العقلة","الرباح","حي البدر النخلة","النخلة","مركز اجراء امتحان ش البكالوريا","","ثانوية الشهيد بن حمده علي  - النخلة","",""]
[93,10000254713,"محمد علي93","استاذ تعليم ابتدائي","إ -","العربية","نغموش علي علي- النخلة","الرباح","النخلة الشرقية","النخلة","مركز اجراء امتحان ش البكالوريا","","ثانوية الشهيد بن حمده علي  - النخلة","",""]
[94,10000254714,"محمد علي94","استاذ تعليم ابتدائي","إ -","العربية","مجمع حي النور- النخلة","الرباح","حي النخلة الشرقية","النخلة","مركز اجراء امتحان ش البكالوريا","","ثانوية الشهيد بن حمده علي  - النخلة","",""]
[95,10000254715,"محمد علي95","أستاذ مكون في التعليم الابتدائي","إ -","العربية","فرجاني العربي- النخلة","الرباح","حي الخبنة","النخلة","مركز اجراء امتحان ش البكالوريا","","ثانوية الشهيد بن حمده علي  - النخلة","",""]
[96,10000254716,"محمد علي96","استاذ تعليم ابتدائي","إ -","العربية","نغموش علي علي- النخلة","الرباح","النخلة الغربية","النخلة","مركز اجراء امتحان ش البكالوريا","","ثانوية الشهيد بن حمده علي  - النخلة","",""]
[97,10000254717,"محمد علي97","استاذ تعليم ابتدائي","إ -","العربية","بن علي الطاهر- النخلة","الرباح","حي البدر والنصر النخلة.","النخلة","مركز اجراء امتحان ش البكالوريا","","ثانوية الشهيد بن حمده علي  - النخلة","",""]
[98,10000254718,"محمد علي98","أستاذ مكون في التعليم الابتدائي","إ -","العربية","ابتدائية  الشهيد جاب الله امحمد","الرباح","حي النخلة الشرقية","النخلة","مركز اجراء امتحان ش البكالوريا","","ثانوية الشهيد بن حمده علي  - النخلة","",""]
[99,10000254719,"محمد علي99","استاذ تعليم ابتدائي","إ -","العربية","نغموش علي علي- النخلة","الرباح","النخلة الشرقية","النخلة","مركز اجراء امتحان ش البكالوريا","","ثانوية الشهيد بن حمده علي  - النخلة","",""]
[100,10000254720,"محمد علي100","استاذ تعليم ابتدائي","إ -","العربية","بن علي الطاهر- النخلة","الرباح","النخلة الشرقية","النخلة","مركز اجراء امتحان ش البكالوريا","","ثانوية الشهيد بن حمده علي  - النخلة","",""]
[101,10000254721,"محمد علي101","استاذ تعليم ابتدائي","إ -","العربية","بن عبد الله عمار- النخلة","الرباح","النخلة","النخلة","مركز اجراء امتحان ش البكالوريا","","ثانوية الشهيد بن حمده علي  - النخلة","",""]
[102,10000254722,"محمد علي102","أستاذ رئيسي في التعليم الابتدائي","إ -","العربية","فرجاني العربي- النخلة","الرباح","حي الخبنة","النخلة","مركز اجراء امتحان ش البكالوريا","","ثانوية الشهيد بن حمده علي  - النخلة","",""]
[103,10000254723,"محمد علي103","أستاذ مكون في التعليم الابتدائي","إ -","العربية","فرجاني العربي- النخلة","الرباح","حي الخبنة","النخلة","مركز اجراء امتحان ش البكالوريا","","ثانوية الشهيد بن حمده علي  - النخلة","",""]
[104,10000254724,"محمد علي104","استاذ تعليم ابتدائي","إ -","العربية","حماتي علي- النخلة","الرباح","حي النخلة الشرقية","النخلة","مركز اجراء امتحان ش البكالوريا","","ثانوية الشهيد بن حمده علي  - النخلة","",""]
[105,10000254725,"محمد علي105","أستاذ رئيسي في التعليم الابتدائي","إ -","العربية","مرزوقي مرزوقي- النخلة","الرباح","النخلة الشمالية","النخلة","مركز اجراء امتحان ش البكالوريا","","ثانوية الشهيد بن حمده علي  - النخلة","",""]
[106,10000254726,"محمد علي106","أستاذ مكون في التعليم الابتدائي","إ -","العربية","مرزوقي مرزوقي- النخلة","الرباح","النخلة الشمالية","النخلة","مركز اجراء امتحان ش البكالوريا","","ثانوية الشهيد بن حمده علي  - النخلة","",""]
[107,10000254727,"محمد علي107","أستاذ رئيسي في التعليم الابتدائي","إ -","العربية","مرزوقي مرزوقي- النخلة","الرباح","النخلة الشمالية","النخلة","مركز اجراء امتحان ش البكالوريا","","ثانوية الشهيد بن حمده علي  - النخلة","",""]
[108,10000254728,"محمد علي108","استاذ تعليم ابتدائي","إ -","العربية","جويدة الجموعي- النخلة","الرباح","حي النور","النخلة","مركز اجراء امتحان ش البكالوريا","","ثانوية الشهيد بن حمده علي  - النخلة","",""]
[109,10000254729,"محمد علي109","استاذ تعليم ابتدائي","إ -","العربية","جويدة الجموعي- النخلة","الرباح","حي النور","النخلة","مركز اجراء امتحان ش البكالوريا","","ثانوية الشهيد بن حمده علي  - النخلة"]
[110,10000254730,"محمد علي110","استاذ تعليم ابتدائي","إ -","العربية","جويدة الجموعي- النخلة","الرباح","حي النور","النخلة","مركز اجراء امتحان ش البكالوريا","","ثانوية الشهيد بن حمده علي  - النخلة"]
[111,10000254731,"محمد علي111","استاذ تعليم ابتدائي","إ -","العربية","جويدة الجموعي- النخلة","الرباح","حي النور","النخلة","مركز اجراء امتحان ش البكالوريا","","ثانوية الشهيد بن حمده علي  - النخلة"]
[112,10000254732,"محمد علي112","استاذ تعليم ابتدائي","إ -","العربية","جويدة الجموعي- النخلة","الرباح","حي النور","النخلة","مركز اجراء امتحان ش البكالوريا","","ثانوية الشهيد بن حمده علي  - النخلة"]
[113,10000254733,"محمد علي113","استاذ تعليم ابتدائي","إ -","العربية","جويدة الجموعي- النخلة","الرباح","حي النور","النخلة","مركز اجراء امتحان ش البكالوريا","","ثانوية الشهيد بن حمده علي  - النخلة"]
[114,10000254734,"محمد علي114","استاذ تعليم ابتدائي","إ -","العربية","جويدة الجموعي- النخلة","الرباح","حي النور","النخلة","مركز اجراء امتحان ش البكالوريا","","ثانوية الشهيد بن حمده علي  - النخلة"]
[115,10000254735,"محمد علي115","استاذ تعليم ابتدائي","إ -","العربية","جويدة الجموعي- النخلة","الرباح","حي النور","النخلة","مركز اجراء امتحان ش البكالوريا","","ثانوية الشهيد بن حمده علي  - النخلة"]
[116,10000254736,"محمد علي116","استاذ تعليم ابتدائي","إ -","العربية","جويدة الجموعي- النخلة","الرباح","حي النور","النخلة","مركز اجراء امتحان ش البكالوريا","","ثانوية الشهيد بن حمده علي  - النخلة"]
[117,10000254737,"محمد علي117","استاذ تعليم ابتدائي","إ -","العربية","جويدة الجموعي- النخلة","الرباح","حي النور","النخلة","مركز اجراء امتحان ش البكالوريا","","ثانوية الشهيد بن حمده علي  - النخلة"]
[118,10000254738,"محمد علي118","استاذ تعليم ابتدائي","إ -","العربية","جويدة الجموعي- النخلة","الرباح","حي النور","النخلة","مركز اجراء امتحان ش البكالوريا","","ثانوية الشهيد بن حمده علي  - النخلة"]
[119,10000254739,"محمد علي119","استاذ تعليم ابتدائي","إ -","العربية","جويدة الجموعي- النخلة","الرباح","حي النور","النخلة","مركز اجراء امتحان ش البكالوريا","","ثانوية الشهيد بن حمده علي  - النخلة"]
[120,10000254740,"محمد علي120","استاذ تعليم ابتدائي","إ -","العربية","جويدة الجموعي- النخلة","الرباح","حي النور","النخلة","مركز اجراء امتحان ش البكالوريا","","ثانوية الشهيد بن حمده علي  - النخلة"]
[121,10000254741,"محمد علي121","استاذ تعليم ابتدائي","إ -","العربية","جويدة الجموعي- النخلة","الرباح","حي النور","النخلة","مركز اجراء امتحان ش البكالوريا","","ثانوية الشهيد بن حمده علي  - النخلة"]
[122,10000254742,"محمد علي122","استاذ تعليم ابتدائي","إ -","العربية","جويدة الجموعي- النخلة","الرباح","حي النور","النخلة","مركز اجراء امتحان ش البكالوريا","","ثانوية الشهيد بن حمده علي  - النخلة"]
[123,10000254743,"محمد علي123","استاذ تعليم ابتدائي","إ -","العربية","جويدة الجموعي- النخلة","الرباح","حي النور","النخلة","مركز اجراء امتحان ش البكالوريا","","ثانوية الشهيد بن حمده علي  - النخلة"]
[124,10000254744,"محمد علي124","استاذ تعليم ابتدائي","إ -","العربية","جويدة الجموعي- النخلة","الرباح","حي النور","النخلة","مركز اجراء امتحان ش البكالوريا","","ثانوية الشهيد بن حمده علي  - النخلة"]
[125,10000254745,"محمد علي125","استاذ تعليم ابتدائي","إ -","العربية","جويدة الجموعي- النخلة","الرباح","حي النور","النخلة","مركز اجراء امتحان ش البكالوريا","","ثانوية الشهيد بن حمده علي  - النخلة"]
[126,10000254746,"محمد علي126","استاذ تعليم ابتدائي","إ -","العربية","جويدة الجموعي- النخلة","الرباح","حي النور","النخلة","مركز اجراء امتحان ش البكالوريا","","ثانوية الشهيد بن حمده علي  - النخلة"]
[127,10000254747,"محمد علي127","استاذ تعليم ابتدائي","إ -","العربية","جويدة الجموعي- النخلة","الرباح","حي النور","النخلة","مركز اجراء امتحان ش البكالوريا","","ثانوية الشهيد بن حمده علي  - النخلة"]
[128,10000254748,"محمد علي128","استاذ تعليم ابتدائي","إ -","العربية","جويدة الجموعي- النخلة","الرباح","حي النور","النخلة","مركز اجراء امتحان ش البكالوريا","","ثانوية الشهيد بن حمده علي  - النخلة"]
[129,10000254749,"محمد علي129","استاذ تعليم ابتدائي","إ -","العربية","جويدة الجموعي- النخلة","الرباح","حي النور","النخلة","مركز اجراء امتحان ش البكالوريا","","ثانوية الشهيد بن حمده علي  - النخلة"]
[130,10000254750,"محمد علي130","استاذ تعليم ابتدائي","إ -","العربية","جويدة الجموعي- النخلة","الرباح","حي النور","النخلة","مركز اجراء امتحان ش البكالوريا","","ثانوية الشهيد بن حمده علي  - النخلة"]
[131,10000254751,"محمد علي131","استاذ تعليم ابتدائي","إ -","العربية","جويدة الجموعي- النخلة","الرباح","حي النور","النخلة","مركز اجراء امتحان ش البكالوريا","","ثانوية الشهيد بن حمده علي  - النخلة"]
[132,10000254752,"محمد علي132","استاذ تعليم ابتدائي","إ -","العربية","جويدة الجموعي- النخلة","الرباح","حي النور","النخلة","مركز اجراء امتحان ش البكالوريا","","ثانوية الشهيد بن حمده علي  - النخلة"]
[133,10000254753,"محمد علي133","استاذ تعليم ابتدائي","إ -","العربية","جويدة الجموعي- النخلة","الرباح","حي النور","النخلة","مركز اجراء امتحان ش البكالوريا","","ثانوية الشهيد بن حمده علي  - النخلة"]
[134,10000254754,"محمد علي134","استاذ تعليم ابتدائي","إ -","العربية","جويدة الجموعي- النخلة","الرباح","حي النور","النخلة","مركز اجراء امتحان ش البكالوريا","","ثانوية الشهيد بن حمده علي  - النخلة"]
[135,10000254755,"محمد علي135","استاذ تعليم ابتدائي","إ -","العربية","جويدة الجموعي- النخلة","الرباح","حي النور","النخلة","مركز اجراء امتحان ش البكالوريا","","ثانوية الشهيد بن حمده علي  - النخلة"]
[136,10000254756,"محمد علي136","استاذ تعليم ابتدائي","إ -","العربية","جويدة الجموعي- النخلة","الرباح","حي النور","النخلة","مركز اجراء امتحان ش البكالوريا","","ثانوية الشهيد بن حمده علي  - النخلة"]
[137,10000254757,"محمد علي137","استاذ تعليم ابتدائي","إ -","العربية","جويدة الجموعي- النخلة","الرباح","حي النور","النخلة","مركز اجراء امتحان ش البكالوريا","","ثانوية الشهيد بن حمده علي  - النخلة"]
[138,10000254758,"محمد علي138","استاذ تعليم ابتدائي","إ -","العربية","جويدة الجموعي- النخلة","الرباح","حي النور","النخلة","مركز اجراء امتحان ش البكالوريا","","ثانوية الشهيد بن حمده علي  - النخلة"]
[139,10000254759,"محمد علي139","استاذ تعليم ابتدائي","إ -","العربية","جويدة الجموعي- النخلة","الرباح","حي النور","النخلة","مركز اجراء امتحان ش البكالوريا","","ثانوية الشهيد بن حمده علي  - النخلة"]
[140,10000254760,"محمد علي140","استاذ تعليم ابتدائي","إ -","العربية","جويدة الجموعي- النخلة","الرباح","حي النور","النخلة","مركز اجراء امتحان ش البكالوريا","","ثانوية الشهيد بن حمده علي  - النخلة"]
[141,10000254761,"محمد علي141","استاذ تعليم ابتدائي","إ -","العربية","جويدة الجموعي- النخلة","الرباح","حي النور","النخلة","مركز اجراء امتحان ش البكالوريا","","ثانوية الشهيد بن حمده علي  - النخلة"]
[142,10000254762,"محمد علي142","استاذ تعليم ابتدائي","إ -","العربية","جويدة الجموعي- النخلة","الرباح","حي النور","النخلة","مركز اجراء امتحان ش البكالوريا","","ثانوية الشهيد بن حمده علي  - النخلة"]
[143,10000254763,"محمد علي143","استاذ تعليم ابتدائي","إ -","العربية","جويدة الجموعي- النخلة","الرباح","حي النور","النخلة","مركز اجراء امتحان ش البكالوريا","","ثانوية الشهيد بن حمده علي  - النخلة"]
[144,10000254764,"محمد علي144","استاذ تعليم ابتدائي","إ -","العربية","جويدة الجموعي- النخلة","الرباح","حي النور","النخلة","مركز اجراء امتحان ش البكالوريا","","ثانوية الشهيد بن حمده علي  - النخلة"]
[145,10000254765,"محمد علي145","استاذ تعليم ابتدائي","إ -","العربية","جويدة الجموعي- النخلة","الرباح","حي النور","النخلة","مركز اجراء امتحان ش البكالوريا","","ثانوية الشهيد بن حمده علي  - النخلة"]
[146,10000254766,"محمد علي146","استاذ تعليم ابتدائي","إ -","العربية","جويدة الجموعي- النخلة","الرباح","حي النور","النخلة","مركز اجراء امتحان ش البكالوريا","","ثانوية الشهيد بن حمده علي  - النخلة"]
[147,10000254767,"محمد علي147","استاذ تعليم ابتدائي","إ -","العربية","جويدة الجموعي- النخلة","الرباح","حي النور","النخلة","مركز اجراء امتحان ش البكالوريا","","ثانوية الشهيد بن حمده علي  - النخلة"]
[148,10000254768,"محمد علي148","استاذ تعليم ابتدائي","إ -","العربية","جويدة الجموعي- النخلة","الرباح","حي النور","النخلة","مركز اجراء امتحان ش البكالوريا","","ثانوية الشهيد بن حمده علي  - النخلة"]
[149,10000254769,"محمد علي149","استاذ تعليم ابتدائي","إ -","العربية","جويدة الجموعي- النخلة","الرباح","حي النور","النخلة","مركز اجراء امتحان ش البكالوريا","","ثانوية الشهيد بن حمده علي  - النخلة"]
[150,10000254770,"محمد علي150","استاذ تعليم ابتدائي","إ -","العربية","جويدة الجموعي- النخلة","الرباح","حي النور","النخلة","مركز اجراء امتحان ش البكالوريا","","ثانوية الشهيد بن حمده علي  - النخلة"]
[151,10000254771,"محمد علي151","استاذ تعليم ابتدائي","إ -","العربية","جويدة الجموعي- النخلة","الرباح","حي النور","النخلة","مركز اجراء امتحان ش البكالوريا","","ثانوية الشهيد بن حمده علي  - النخلة"]
[152,10000254772,"محمد علي152","استاذ تعليم ابتدائي","إ -","العربية","جويدة الجموعي- النخلة","الرباح","حي النور","النخلة","مركز اجراء امتحان ش البكالوريا","","ثانوية الشهيد بن حمده علي  - النخلة"]
[153,10000254773,"محمد علي153","استاذ تعليم ابتدائي","إ -","العربية","جويدة الجموعي- النخلة","الرباح","حي النور","النخلة","مركز اجراء امتحان ش البكالوريا","","ثانوية الشهيد بن حمده علي  - النخلة"]
[154,10000254774,"محمد علي154","استاذ تعليم ابتدائي","إ -","العربية","جويدة الجموعي- النخلة","الرباح","حي النور","النخلة","مركز اجراء امتحان ش البكالوريا","","ثانوية الشهيد بن حمده علي  - النخلة"]
[155,10000254775,"محمد علي155","استاذ تعليم ابتدائي","إ -","العربية","جويدة الجموعي- النخلة","الرباح","حي النور","النخلة","مركز اجراء امتحان ش البكالوريا","","ثانوية الشهيد بن حمده علي  - النخلة"]
[156,10000254776,"محمد علي156","استاذ تعليم ابتدائي","إ -","العربية","جويدة الجموعي- النخلة","الرباح","حي النور","النخلة","مركز اجراء امتحان ش البكالوريا","","ثانوية الشهيد بن حمده علي  - النخلة"]
[157,10000254777,"محمد علي157","استاذ تعليم ابتدائي","إ -","العربية","جويدة الجموعي- النخلة","الرباح","حي النور","النخلة","مركز اجراء امتحان ش البكالوريا","","ثانوية الشهيد بن حمده علي  - النخلة"]
[158,10000254778,"محمد علي158","استاذ تعليم ابتدائي","إ -","العربية","جويدة الجموعي- النخلة","الرباح","حي النور","النخلة","مركز اجراء امتحان ش البكالوريا","","ثانوية الشهيد بن حمده علي  - النخلة"]
[159,10000254779,"محمد علي159","استاذ تعليم ابتدائي","إ -","العربية","جويدة الجموعي- النخلة","الرباح","حي النور","النخلة","مركز اجراء امتحان ش البكالوريا","","ثانوية الشهيد بن حمده علي  - النخلة"]
[160,10000254780,"محمد علي160","استاذ تعليم ابتدائي","إ -","العربية","جويدة الجموعي- النخلة","الرباح","حي النور","النخلة","مركز اجراء امتحان ش البكالوريا","","ثانوية الشهيد بن حمده علي  - النخلة"]
[161,10000254781,"محمد علي161","استاذ تعليم ابتدائي","إ -","العربية","جويدة الجموعي- النخلة","الرباح","حي النور","النخلة","مركز اجراء امتحان ش البكالوريا","","ثانوية الشهيد بن حمده علي  - النخلة"]
[162,10000254782,"محمد علي162","استاذ تعليم ابتدائي","إ -","العربية","جويدة الجموعي- النخلة","الرباح","حي النور","النخلة","مركز اجراء امتحان ش البكالوريا","","ثانوية الشهيد بن حمده علي  - النخلة"]
[163,10000254783,"محمد علي163","استاذ تعليم ابتدائي","إ -","العربية","جويدة الجموعي- النخلة","الرباح","حي النور","النخلة","مركز اجراء امتحان ش البكالوريا","","ثانوية الشهيد بن حمده علي  - النخلة"]
[164,10000254784,"محمد علي164","استاذ تعليم ابتدائي","إ -","العربية","جويدة الجموعي- النخلة","الرباح","حي النور","النخلة","مركز اجراء امتحان ش البكالوريا","","ثانوية الشهيد بن حمده علي  - النخلة"]
[165,10000254785,"محمد علي165","استاذ تعليم ابتدائي","إ -","العربية","جويدة الجموعي- النخلة","الرباح","حي النور","النخلة","مركز اجراء امتحان ش البكالوريا","","ثانوية الشهيد بن حمده علي  - النخلة"]
[166,10000254786,"محمد علي166","استاذ تعليم ابتدائي","إ -","العربية","جويدة الجموعي- النخلة","الرباح","حي النور","النخلة","مركز اجراء امتحان ش البكالوريا","","ثانوية الشهيد بن حمده علي  - النخلة"]
[167,10000254787,"محمد علي167","استاذ تعليم ابتدائي","إ -","العربية","جويدة الجموعي- النخلة","الرباح","حي النور","النخلة","مركز اجراء امتحان ش البكالوريا","","ثانوية الشهيد بن حمده علي  - النخلة"]
[168,10000254788,"محمد علي168","استاذ تعليم ابتدائي","إ -","العربية","جويدة الجموعي- النخلة","الرباح","حي النور","النخلة","مركز اجراء امتحان ش البكالوريا","","ثانوية الشهيد بن حمده علي  - النخلة"]
[169,10000254789,"محمد علي169","استاذ تعليم ابتدائي","إ -","العربية","جويدة الجموعي- النخلة","الرباح","حي النور","النخلة","مركز اجراء امتحان ش البكالوريا","","ثانوية الشهيد بن حمده علي  - النخلة"]
[170,10000254790,"محمد علي170","استاذ تعليم ابتدائي","إ -","العربية","جويدة الجموعي- النخلة","الرباح","حي النور","النخلة","مركز اجراء امتحان ش البكالوريا","","ثانوية الشهيد بن حمده علي  - النخلة"]
[171,10000254791,"محمد علي171","استاذ تعليم ابتدائي","إ -","العربية","جويدة الجموعي- النخلة","الرباح","حي النور","النخلة","مركز اجراء امتحان ش البكالوريا","","ثانوية الشهيد بن حمده علي  - النخلة"]
[172,10000254792,"محمد علي172","استاذ تعليم ابتدائي","إ -","العربية","جويدة الجموعي- النخلة","الرباح","حي النور","النخلة","مركز اجراء امتحان ش البكالوريا","","ثانوية الشهيد بن حمده علي  - النخلة"]
[173,10000254793,"محمد علي173","استاذ تعليم ابتدائي","إ -","العربية","جويدة الجموعي- النخلة","الرباح","حي النور","النخلة","مركز اجراء امتحان ش البكالوريا","","ثانوية الشهيد بن حمده علي  - النخلة"]
[174,10000254794,"محمد علي174","استاذ تعليم ابتدائي","إ -","العربية","جويدة الجموعي- النخلة","الرباح","حي النور","النخلة","مركز اجراء امتحان ش البكالوريا","","ثانوية الشهيد بن حمده علي  - النخلة"]
[175,10000254795,"محمد علي175","استاذ تعليم ابتدائي","إ -","العربية","جويدة الجموعي- النخلة","الرباح","حي النور","النخلة","مركز اجراء امتحان ش البكالوريا","","ثانوية الشهيد بن حمده علي  - النخلة"]
[176,10000254796,"محمد علي176","استاذ تعليم ابتدائي","إ -","العربية","جويدة الجموعي- النخلة","الرباح","حي النور","النخلة","مركز اجراء امتحان ش البكالوريا","","ثانوية الشهيد بن حمده علي  - النخلة"]
[177,10000254797,"محمد علي177","استاذ تعليم ابتدائي","إ -","العربية","جويدة الجموعي- النخلة","الرباح","حي النور","النخلة","مركز اجراء امتحان ش البكالوريا","","ثانوية الشهيد بن حمده علي  - النخلة"]
[178,10000254798,"محمد علي178","استاذ تعليم ابتدائي","إ -","العربية","جويدة الجموعي- النخلة","الرباح","حي النور","النخلة","مركز اجراء امتحان ش البكالوريا","","ثانوية الشهيد بن حمده علي  - النخلة"]
[179,10000254799,"محمد علي179","استاذ تعليم ابتدائي","إ -","العربية","جويدة الجموعي- النخلة","الرباح","حي النور","النخلة","مركز اجراء امتحان ش البكالوريا","","ثانوية الشهيد بن حمده علي  - النخلة"]
[180,10000254800,"محمد علي180","استاذ تعليم ابتدائي","إ -","العربية","جويدة الجموعي- النخلة","الرباح","حي النور","النخلة","مركز اجراء امتحان ش البكالوريا","","ثانوية الشهيد بن حمده علي  - النخلة"]
[181,10000254801,"محمد علي181","استاذ تعليم ابتدائي","إ -","العربية","جويدة الجموعي- النخلة","الرباح","حي النور","النخلة","مركز اجراء امتحان ش البكالوريا","","ثانوية الشهيد بن حمده علي  - النخلة"]
[182,10000254802,"محمد علي182","استاذ تعليم ابتدائي","إ -","العربية","جويدة الجموعي- النخلة","الرباح","حي النور","النخلة","مركز اجراء امتحان ش البكالوريا","","ثانوية الشهيد بن حمده علي  - النخلة"]
[183,10000254803,"محمد علي183","استاذ تعليم ابتدائي","إ -","العربية","جويدة الجموعي- النخلة","الرباح","حي النور","النخلة","مركز اجراء امتحان ش البكالوريا","","ثانوية الشهيد بن حمده علي  - النخلة"]
[184,10000254804,"محمد علي184","استاذ تعليم ابتدائي","إ -","العربية","جويدة الجموعي- النخلة","الرباح","حي النور","النخلة","مركز اجراء امتحان ش البكالوريا","","ثانوية الشهيد بن حمده علي  - النخلة"]
[185,10000254805,"محمد علي185","استاذ تعليم ابتدائي","إ -","العربية","جويدة الجموعي- النخلة","الرباح","حي النور","النخلة","مركز اجراء امتحان ش البكالوريا","","ثانوية الشهيد بن حمده علي  - النخلة"]
[186,10000254806,"محمد علي186","استاذ تعليم ابتدائي","إ -","العربية","جويدة الجموعي- النخلة","الرباح","حي النور","النخلة","مركز اجراء امتحان ش البكالوريا","","ثانوية الشهيد بن حمده علي  - النخلة"]
[187,10000254807,"محمد علي187","استاذ تعليم ابتدائي","إ -","العربية","جويدة الجموعي- النخلة","الرباح","حي النور","النخلة","مركز اجراء امتحان ش البكالوريا","","ثانوية الشهيد بن حمده علي  - النخلة"]
[188,10000254808,"محمد علي188","استاذ تعليم ابتدائي","إ -","العربية","جويدة الجموعي- النخلة","الرباح","حي النور","النخلة","مركز اجراء امتحان ش البكالوريا","","ثانوية الشهيد بن حمده علي  - النخلة"]
[189,10000254809,"محمد علي189","استاذ تعليم ابتدائي","إ -","العربية","جويدة الجموعي- النخلة","الرباح","حي النور","النخلة","مركز اجراء امتحان ش البكالوريا","","ثانوية الشهيد بن حمده علي  - النخلة"]
[190,10000254810,"محمد علي190","استاذ تعليم ابتدائي","إ -","العربية","جويدة الجموعي- النخلة","الرباح","حي النور","النخلة","مركز اجراء امتحان ش البكالوريا","","ثانوية الشهيد بن حمده علي  - النخلة"]
[191,10000254811,"محمد علي191","استاذ تعليم ابتدائي","إ -","العربية","جويدة الجموعي- النخلة","الرباح","حي النور","النخلة","مركز اجراء امتحان ش البكالوريا","","ثانوية الشهيد بن حمده علي  - النخلة"]
[192,10000254812,"محمد علي192","استاذ تعليم ابتدائي","إ -","العربية","جويدة الجموعي- النخلة","الرباح","حي النور","النخلة","مركز اجراء امتحان ش البكالوريا","","ثانوية الشهيد بن حمده علي  - النخلة"]
[193,10000254813,"محمد علي193","استاذ تعليم ابتدائي","إ -","العربية","جويدة الجموعي- النخلة","الرباح","حي النور","النخلة","مركز اجراء امتحان ش البكالوريا","","ثانوية الشهيد بن حمده علي  - النخلة"]
[194,10000254814,"محمد علي194","استاذ تعليم ابتدائي","إ -","العربية","جويدة الجموعي- النخلة","الرباح","حي النور","النخلة","مركز اجراء امتحان ش البكالوريا","","ثانوية الشهيد بن حمده علي  - النخلة"]
[195,10000254815,"محمد علي195","استاذ تعليم ابتدائي","إ -","العربية","جويدة الجموعي- النخلة","الرباح","حي النور","النخلة","مركز اجراء امتحان ش البكالوريا","","ثانوية الشهيد بن حمده علي  - النخلة"]
[196,10000254816,"محمد علي196","استاذ تعليم ابتدائي","إ -","العربية","جويدة الجموعي- النخلة","الرباح","حي النور","النخلة","مركز اجراء امتحان ش البكالوريا","","ثانوية الشهيد بن حمده علي  - النخلة"]
[197,10000254817,"محمد علي197","استاذ تعليم ابتدائي","إ -","العربية","جويدة الجموعي- النخلة","الرباح","حي النور","النخلة","مركز اجراء امتحان ش البكالوريا","","ثانوية الشهيد بن حمده علي  - النخلة"]
[198,10000254818,"محمد علي198","استاذ تعليم ابتدائي","إ -","العربية","جويدة الجموعي- النخلة","الرباح","حي النور","النخلة","مركز اجراء امتحان ش البكالوريا","","ثانوية الشهيد بن حمده علي  - النخلة"]
[199,10000254819,"محمد علي199","استاذ تعليم ابتدائي","إ -","العربية","جويدة الجموعي- النخلة","الرباح","حي النور","النخلة","مركز اجراء امتحان ش البكالوريا","","ثانوية الشهيد بن حمده علي  - النخلة"]
[200,10000254820,"محمد علي200","استاذ تعليم ابتدائي","إ -","العربية","جويدة الجموعي- النخلة","الرباح","حي النور","النخلة","مركز اجراء امتحان ش البكالوريا","","ثانوية الشهيد بن حمده علي  - النخلة"]
[201,10000254821,"محمد علي201","استاذ تعليم ابتدائي","إ -","العربية","جويدة الجموعي- النخلة","الرباح","حي النور","النخلة","مركز اجراء امتحان ش البكالوريا","","ثانوية الشهيد بن حمده علي  - النخلة"]
[202,10000254822,"محمد علي202","استاذ تعليم ابتدائي","إ -","العربية","جويدة الجموعي- النخلة","الرباح","حي النور","النخلة","مركز اجراء امتحان ش البكالوريا","","ثانوية الشهيد بن حمده علي  - النخلة"]
[203,10000254823,"محمد علي203","استاذ تعليم ابتدائي","إ -","العربية","جويدة الجموعي- النخلة","الرباح","حي النور","النخلة","مركز اجراء امتحان ش البكالوريا","","ثانوية الشهيد بن حمده علي  - النخلة"]
[204,10000254824,"محمد علي204","استاذ تعليم ابتدائي","إ -","العربية","جويدة الجموعي- النخلة","الرباح","حي النور","النخلة","مركز اجراء امتحان ش البكالوريا","","ثانوية الشهيد بن حمده علي  - النخلة"]
[205,10000254825,"محمد علي205","استاذ تعليم ابتدائي","إ -","العربية","جويدة الجموعي- النخلة","الرباح","حي النور","النخلة","مركز اجراء امتحان ش البكالوريا","","ثانوية الشهيد بن حمده علي  - النخلة"]
[206,10000254826,"محمد علي206","استاذ تعليم ابتدائي","إ -","العربية","جويدة الجموعي- النخلة","الرباح","حي النور","النخلة","مركز اجراء امتحان ش البكالوريا","","ثانوية الشهيد بن حمده علي  - النخلة"]
[207,10000254827,"محمد علي207","استاذ تعليم ابتدائي","إ -","العربية","جويدة الجموعي- النخلة","الرباح","حي النور","النخلة","مركز اجراء امتحان ش البكالوريا","","ثانوية الشهيد بن حمده علي  - النخلة"]
[208,10000254828,"محمد علي208","استاذ تعليم ابتدائي","إ -","العربية","جويدة الجموعي- النخلة","الرباح","حي النور","النخلة","مركز اجراء امتحان ش البكالوريا","","ثانوية الشهيد بن حمده علي  - النخلة"]
[209,10000254829,"محمد علي209","استاذ تعليم ابتدائي","إ -","العربية","جويدة الجموعي- النخلة","الرباح","حي النور","النخلة","مركز اجراء امتحان ش البكالوريا","","ثانوية الشهيد بن حمده علي  - النخلة"]
[210,10000254830,"محمد علي210","استاذ تعليم ابتدائي","إ -","العربية","جويدة الجموعي- النخلة","الرباح","حي النور","النخلة","مركز اجراء امتحان ش البكالوريا","","ثانوية الشهيد بن حمده علي  - النخلة"]
[211,10000254831,"محمد علي211","استاذ تعليم ابتدائي","إ -","العربية","جويدة الجموعي- النخلة","الرباح","حي النور","النخلة","مركز اجراء امتحان ش البكالوريا","","ثانوية الشهيد بن حمده علي  - النخلة"]
[212,10000254832,"محمد علي212","استاذ تعليم ابتدائي","إ -","العربية","جويدة الجموعي- النخلة","الرباح","حي النور","النخلة","مركز اجراء امتحان ش البكالوريا","","ثانوية الشهيد بن حمده علي  - النخلة"]
[213,10000254833,"محمد علي213","استاذ تعليم ابتدائي","إ -","العربية","جويدة الجموعي- النخلة","الرباح","حي النور","النخلة","مركز اجراء امتحان ش البكالوريا","","ثانوية الشهيد بن حمده علي  - النخلة"]
[214,10000254834,"محمد علي214","استاذ تعليم ابتدائي","إ -","العربية","جويدة الجموعي- النخلة","الرباح","حي النور","النخلة","مركز اجراء امتحان ش البكالوريا","","ثانوية الشهيد بن حمده علي  - النخلة"]
[215,10000254835,"محمد علي215","استاذ تعليم ابتدائي","إ -","العربية","جويدة الجموعي- النخلة","الرباح","حي النور","النخلة","مركز اجراء امتحان ش البكالوريا","","ثانوية الشهيد بن حمده علي  - النخلة"]
[216,10000254836,"محمد علي216","استاذ تعليم ابتدائي","إ -","العربية","جويدة الجموعي- النخلة","الرباح","حي النور","النخلة","مركز اجراء امتحان ش البكالوريا","","ثانوية الشهيد بن حمده علي  - النخلة"]
[217,10000254837,"محمد علي217","استاذ تعليم ابتدائي","إ -","العربية","جويدة الجموعي- النخلة","الرباح","حي النور","النخلة","مركز اجراء امتحان ش البكالوريا","","ثانوية الشهيد بن حمده علي  - النخلة"]
[218,10000254838,"محمد علي218","استاذ تعليم ابتدائي","إ -","العربية","جويدة الجموعي- النخلة","الرباح","حي النور","النخلة","مركز اجراء امتحان ش البكالوريا","","ثانوية الشهيد بن حمده علي  - النخلة"]
[219,10000254839,"محمد علي219","استاذ تعليم ابتدائي","إ -","العربية","جويدة الجموعي- النخلة","الرباح","حي النور","النخلة","مركز اجراء امتحان ش البكالوريا","","ثانوية الشهيد بن حمده علي  - النخلة"]
[220,10000254840,"محمد علي220","استاذ تعليم ابتدائي","إ -","العربية","جويدة الجموعي- النخلة","الرباح","حي النور","النخلة","مركز اجراء امتحان ش البكالوريا","","ثانوية الشهيد بن حمده علي  - النخلة"]
[221,10000254841,"محمد علي221","استاذ تعليم ابتدائي","إ -","العربية","جويدة الجموعي- النخلة","الرباح","حي النور","النخلة","مركز اجراء امتحان ش البكالوريا","","ثانوية الشهيد بن حمده علي  - النخلة"]
[222,10000254842,"محمد علي222","استاذ تعليم ابتدائي","إ -","العربية","جويدة الجموعي- النخلة","الرباح","حي النور","النخلة","مركز اجراء امتحان ش البكالوريا","","ثانوية الشهيد بن حمده علي  - النخلة"]
[223,10000254843,"محمد علي223","استاذ تعليم ابتدائي","إ -","العربية","جويدة الجموعي- النخلة","الرباح","حي النور","النخلة","مركز اجراء امتحان ش البكالوريا","","ثانوية الشهيد بن حمده علي  - النخلة"]
[224,10000254844,"محمد علي224","استاذ تعليم ابتدائي","إ -","العربية","جويدة الجموعي- النخلة","الرباح","حي النور","النخلة","مركز اجراء امتحان ش البكالوريا","","ثانوية الشهيد بن حمده علي  - النخلة"]
[225,10000254845,"محمد علي225","استاذ تعليم ابتدائي","إ -","العربية","جويدة الجموعي- النخلة","الرباح","حي النور","النخلة","مركز اجراء امتحان ش البكالوريا","","ثانوية الشهيد بن حمده علي  - النخلة"]
[226,10000254846,"محمد علي226","استاذ تعليم ابتدائي","إ -","العربية","جويدة الجموعي- النخلة","الرباح","حي النور","النخلة","مركز اجراء امتحان ش البكالوريا","","ثانوية الشهيد بن حمده علي  - النخلة"]
[227,10000254847,"محمد علي227","استاذ تعليم ابتدائي","إ -","العربية","جويدة الجموعي- النخلة","الرباح","حي النور","النخلة","مركز اجراء امتحان ش البكالوريا","","ثانوية الشهيد بن حمده علي  - النخلة"]
[228,10000254848,"محمد علي228","استاذ تعليم ابتدائي","إ -","العربية","جويدة الجموعي- النخلة","الرباح","حي النور","النخلة","مركز اجراء امتحان ش البكالوريا","","ثانوية الشهيد بن حمده علي  - النخلة"]
[229,10000254849,"محمد علي229","استاذ تعليم ابتدائي","إ -","العربية","جويدة الجموعي- النخلة","الرباح","حي النور","النخلة","مركز اجراء امتحان ش البكالوريا","","ثانوية الشهيد بن حمده علي  - النخلة"]
[230,10000254850,"محمد علي230","استاذ تعليم ابتدائي","إ -","العربية","جويدة الجموعي- النخلة","الرباح","حي النور","النخلة","مركز اجراء امتحان ش البكالوريا","","ثانوية الشهيد بن حمده علي  - النخلة"]
[231,10000254851,"محمد علي231","استاذ تعليم ابتدائي","إ -","العربية","جويدة الجموعي- النخلة","الرباح","حي النور","النخلة","مركز اجراء امتحان ش البكالوريا","","ثانوية الشهيد بن حمده علي  - النخلة"]
[232,10000254852,"محمد علي232","استاذ تعليم ابتدائي","إ -","العربية","جويدة الجموعي- النخلة","الرباح","حي النور","النخلة","مركز اجراء امتحان ش البكالوريا","","ثانوية الشهيد بن حمده علي  - النخلة"]
[233,10000254853,"محمد علي233","استاذ تعليم ابتدائي","إ -","العربية","جويدة الجموعي- النخلة","الرباح","حي النور","النخلة","مركز اجراء امتحان ش البكالوريا","","ثانوية الشهيد بن حمده علي  - النخلة"]
[234,10000254854,"محمد علي234","استاذ تعليم ابتدائي","إ -","العربية","جويدة الجموعي- النخلة","الرباح","حي النور","النخلة","مركز اجراء امتحان ش البكالوريا","","ثانوية الشهيد بن حمده علي  - النخلة"]
[235,10000254855,"محمد علي235","استاذ تعليم ابتدائي","إ -","العربية","جويدة الجموعي- النخلة","الرباح","حي النور","النخلة","مركز اجراء امتحان ش البكالوريا","","ثانوية الشهيد بن حمده علي  - النخلة"]
[236,10000254856,"محمد علي236","استاذ تعليم ابتدائي","إ -","العربية","جويدة الجموعي- النخلة","الرباح","حي النور","النخلة","مركز اجراء امتحان ش البكالوريا","","ثانوية الشهيد بن حمده علي  - النخلة"]
[237,10000254857,"محمد علي237","استاذ تعليم ابتدائي","إ -","العربية","جويدة الجموعي- النخلة","الرباح","حي النور","النخلة","مركز اجراء امتحان ش البكالوريا","","ثانوية الشهيد بن حمده علي  - النخلة"]
[238,10000254858,"محمد علي238","استاذ تعليم ابتدائي","إ -","العربية","جويدة الجموعي- النخلة","الرباح","حي النور","النخلة","مركز اجراء امتحان ش البكالوريا","","ثانوية الشهيد بن حمده علي  - النخلة"]
[239,10000254859,"محمد علي239","استاذ تعليم ابتدائي","إ -","العربية","جويدة الجموعي- النخلة","الرباح","حي النور","النخلة","مركز اجراء امتحان ش البكالوريا","","ثانوية الشهيد بن حمده علي  - النخلة"]
[240,10000254860,"محمد علي240","استاذ تعليم ابتدائي","إ -","العربية","جويدة الجموعي- النخلة","الرباح","حي النور","النخلة","مركز اجراء امتحان ش البكالوريا","","ثانوية الشهيد بن حمده علي  - النخلة"]
[241,10000254861,"محمد علي241","استاذ تعليم ابتدائي","إ -","العربية","جويدة الجموعي- النخلة","الرباح","حي النور","النخلة","مركز اجراء امتحان ش البكالوريا","","ثانوية الشهيد بن حمده علي  - النخلة"]
[242,10000254862,"محمد علي242","استاذ تعليم ابتدائي","إ -","العربية","جويدة الجموعي- النخلة","الرباح","حي النور","النخلة","مركز اجراء امتحان ش البكالوريا","","ثانوية الشهيد بن حمده علي  - النخلة"]
[243,10000254863,"محمد علي243","استاذ تعليم ابتدائي","إ -","العربية","جويدة الجموعي- النخلة","الرباح","حي النور","النخلة","مركز اجراء امتحان ش البكالوريا","","ثانوية الشهيد بن حمده علي  - النخلة"]
[244,10000254864,"محمد علي244","استاذ تعليم ابتدائي","إ -","العربية","جويدة الجموعي- النخلة","الرباح","حي النور","النخلة","مركز اجراء امتحان ش البكالوريا","","ثانوية الشهيد بن حمده علي  - النخلة"]
[245,10000254865,"محمد علي245","استاذ تعليم ابتدائي","إ -","العربية","جويدة الجموعي- النخلة","الرباح","حي النور","النخلة","مركز اجراء امتحان ش البكالوريا","","ثانوية الشهيد بن حمده علي  - النخلة"]
[246,10000254866,"محمد علي246","استاذ تعليم ابتدائي","إ -","العربية","جويدة الجموعي- النخلة","الرباح","حي النور","النخلة","مركز اجراء امتحان ش البكالوريا","","ثانوية الشهيد بن حمده علي  - النخلة"]
[247,10000254867,"محمد علي247","استاذ تعليم ابتدائي","إ -","العربية","جويدة الجموعي- النخلة","الرباح","حي النور","النخلة","مركز اجراء امتحان ش البكالوريا","","ثانوية الشهيد بن حمده علي  - النخلة"]
[248,10000254868,"محمد علي248","استاذ تعليم ابتدائي","إ -","العربية","جويدة الجموعي- النخلة","الرباح","حي النور","النخلة","مركز اجراء امتحان ش البكالوريا","","ثانوية الشهيد بن حمده علي  - النخلة"]
[249,10000254869,"محمد علي249","استاذ تعليم ابتدائي","إ -","العربية","جويدة الجموعي- النخلة","الرباح","حي النور","النخلة","مركز اجراء امتحان ش البكالوريا","","ثانوية الشهيد بن حمده علي  - النخلة"]
[250,10000254870,"محمد علي250","استاذ تعليم ابتدائي","إ -","العربية","جويدة الجموعي- النخلة","الرباح","حي النور","النخلة","مركز اجراء امتحان ش البكالوريا","","ثانوية الشهيد بن حمده علي  - النخلة"]
[251,10000254871,"محمد علي251","استاذ تعليم ابتدائي","إ -","العربية","جويدة الجموعي- النخلة","الرباح","حي النور","النخلة","مركز اجراء امتحان ش البكالوريا","","ثانوية الشهيد بن حمده علي  - النخلة"]
[252,10000254872,"محمد علي252","استاذ تعليم ابتدائي","إ -","العربية","جويدة الجموعي- النخلة","الرباح","حي النور","النخلة","مركز اجراء امتحان ش البكالوريا","","ثانوية الشهيد بن حمده علي  - النخلة"]
[253,10000254873,"محمد علي253","استاذ تعليم ابتدائي","إ -","العربية","جويدة الجموعي- النخلة","الرباح","حي النور","النخلة","مركز اجراء امتحان ش البكالوريا","","ثانوية الشهيد بن حمده علي  - النخلة"]
[254,10000254874,"محمد علي254","استاذ تعليم ابتدائي","إ -","العربية","جويدة الجموعي- النخلة","الرباح","حي النور","النخلة","مركز اجراء امتحان ش البكالوريا","","ثانوية الشهيد بن حمده علي  - النخلة"]
[255,10000254875,"محمد علي255","استاذ تعليم ابتدائي","إ -","العربية","جويدة الجموعي- النخلة","الرباح","حي النور","النخلة","مركز اجراء امتحان ش البكالوريا","","ثانوية الشهيد بن حمده علي  - النخلة"]
[256,10000254876,"محمد علي256","استاذ تعليم ابتدائي","إ -","العربية","جويدة الجموعي- النخلة","الرباح","حي النور","النخلة","مركز اجراء امتحان ش البكالوريا","","ثانوية الشهيد بن حمده علي  - النخلة"]
[257,10000254877,"محمد علي257","استاذ تعليم ابتدائي","إ -","العربية","جويدة الجموعي- النخلة","الرباح","حي النور","النخلة","مركز اجراء امتحان ش البكالوريا","","ثانوية الشهيد بن حمده علي  - النخلة"]
[258,10000254878,"محمد علي258","استاذ تعليم ابتدائي","إ -","العربية","جويدة الجموعي- النخلة","الرباح","حي النور","النخلة","مركز اجراء امتحان ش البكالوريا","","ثانوية الشهيد بن حمده علي  - النخلة"]
[259,10000254879,"محمد علي259","استاذ تعليم ابتدائي","إ -","العربية","جويدة الجموعي- النخلة","الرباح","حي النور","النخلة","مركز اجراء امتحان ش البكالوريا","","ثانوية الشهيد بن حمده علي  - النخلة"]
[260,10000254880,"محمد علي260","استاذ تعليم ابتدائي","إ -","العربية","جويدة الجموعي- النخلة","الرباح","حي النور","النخلة","مركز اجراء امتحان ش البكالوريا","","ثانوية الشهيد بن حمده علي  - النخلة"]
[261,10000254881,"محمد علي261","استاذ تعليم ابتدائي","إ -","العربية","جويدة الجموعي- النخلة","الرباح","حي النور","النخلة","مركز اجراء امتحان ش البكالوريا","","ثانوية الشهيد بن حمده علي  - النخلة"]
[262,10000254882,"محمد علي262","استاذ تعليم ابتدائي","إ -","العربية","جويدة الجموعي- النخلة","الرباح","حي النور","النخلة","مركز اجراء امتحان ش البكالوريا","","ثانوية الشهيد بن حمده علي  - النخلة"]
[263,10000254883,"محمد علي263","استاذ تعليم ابتدائي","إ -","العربية","جويدة الجموعي- النخلة","الرباح","حي النور","النخلة","مركز اجراء امتحان ش البكالوريا","","ثانوية الشهيد بن حمده علي  - النخلة"]
[264,10000254884,"محمد علي264","استاذ تعليم ابتدائي","إ -","العربية","جويدة الجموعي- النخلة","الرباح","حي النور","النخلة","مركز اجراء امتحان ش البكالوريا","","ثانوية الشهيد بن حمده علي  - النخلة"]
[265,10000254885,"محمد علي265","استاذ تعليم ابتدائي","إ -","العربية","جويدة الجموعي- النخلة","الرباح","حي النور","النخلة","مركز اجراء امتحان ش البكالوريا","","ثانوية الشهيد بن حمده علي  - النخلة"]
[266,10000254886,"محمد علي266","استاذ تعليم ابتدائي","إ -","العربية","جويدة الجموعي- النخلة","الرباح","حي النور","النخلة","مركز اجراء امتحان ش البكالوريا","","ثانوية الشهيد بن حمده علي  - النخلة"]
[267,10000254887,"محمد علي267","استاذ تعليم ابتدائي","إ -","العربية","جويدة الجموعي- النخلة","الرباح","حي النور","النخلة","مركز اجراء امتحان ش البكالوريا","","ثانوية الشهيد بن حمده علي  - النخلة"]
[268,10000254888,"محمد علي268","استاذ تعليم ابتدائي","إ -","العربية","جويدة الجموعي- النخلة","الرباح","حي النور","النخلة","مركز اجراء امتحان ش البكالوريا","","ثانوية الشهيد بن حمده علي  - النخلة"]
[269,10000254889,"محمد علي269","استاذ تعليم ابتدائي","إ -","العربية","جويدة الجموعي- النخلة","الرباح","حي النور","النخلة","مركز اجراء امتحان ش البكالوريا","","ثانوية الشهيد بن حمده علي  - النخلة"]
[270,10000254890,"محمد علي270","استاذ تعليم ابتدائي","إ -","العربية","جويدة الجموعي- النخلة","الرباح","حي النور","النخلة","مركز اجراء امتحان ش البكالوريا","","ثانوية الشهيد بن حمده علي  - النخلة"]
[271,10000254891,"محمد علي271","استاذ تعليم ابتدائي","إ -","العربية","جويدة الجموعي- النخلة","الرباح","حي النور","النخلة","مركز اجراء امتحان ش البكالوريا","","ثانوية الشهيد بن حمده علي  - النخلة"]
[272,10000254892,"محمد علي272","استاذ تعليم ابتدائي","إ -","العربية","جويدة الجموعي- النخلة","الرباح","حي النور","النخلة","مركز اجراء امتحان ش البكالوريا","","ثانوية الشهيد بن حمده علي  - النخلة"]
[273,10000254893,"محمد علي273","استاذ تعليم ابتدائي","إ -","العربية","جويدة الجموعي- النخلة","الرباح","حي النور","النخلة","مركز اجراء امتحان ش البكالوريا","","ثانوية الشهيد بن حمده علي  - النخلة"]
[274,10000254894,"محمد علي274","استاذ تعليم ابتدائي","إ -","العربية","جويدة الجموعي- النخلة","الرباح","حي النور","النخلة","مركز اجراء امتحان ش البكالوريا","","ثانوية الشهيد بن حمده علي  - النخلة"]
[275,10000254895,"محمد علي275","استاذ تعليم ابتدائي","إ -","العربية","جويدة الجموعي- النخلة","الرباح","حي النور","النخلة","مركز اجراء امتحان ش البكالوريا","","ثانوية الشهيد بن حمده علي  - النخلة"]
[276,10000254896,"محمد علي276","استاذ تعليم ابتدائي","إ -","العربية","جويدة الجموعي- النخلة","الرباح","حي النور","النخلة","مركز اجراء امتحان ش البكالوريا","","ثانوية الشهيد بن حمده علي  - النخلة"]
[277,10000254897,"محمد علي277","استاذ تعليم ابتدائي","إ -","العربية","جويدة الجموعي- النخلة","الرباح","حي النور","النخلة","مركز اجراء امتحان ش البكالوريا","","ثانوية الشهيد بن حمده علي  - النخلة"]
[278,10000254898,"محمد علي278","استاذ تعليم ابتدائي","إ -","العربية","جويدة الجموعي- النخلة","الرباح","حي النور","النخلة","مركز اجراء امتحان ش البكالوريا","","ثانوية الشهيد بن حمده علي  - النخلة"]
[279,10000254899,"محمد علي279","استاذ تعليم ابتدائي","إ -","العربية","جويدة الجموعي- النخلة","الرباح","حي النور","النخلة","مركز اجراء امتحان ش البكالوريا","","ثانوية الشهيد بن حمده علي  - النخلة"]
[280,10000254900,"محمد علي280","استاذ تعليم ابتدائي","إ -","العربية","جويدة الجموعي- النخلة","الرباح","حي النور","النخلة","مركز اجراء امتحان ش البكالوريا","","ثانوية الشهيد بن حمده علي  - النخلة"]
[281,10000254901,"محمد علي281","استاذ تعليم ابتدائي","إ -","العربية","جويدة الجموعي- النخلة","الرباح","حي النور","النخلة","مركز اجراء امتحان ش البكالوريا","","ثانوية الشهيد بن حمده علي  - النخلة"]
[282,10000254902,"محمد علي282","استاذ تعليم ابتدائي","إ -","العربية","جويدة الجموعي- النخلة","الرباح","حي النور","النخلة","مركز اجراء امتحان ش البكالوريا","","ثانوية الشهيد بن حمده علي  - النخلة"]
[283,10000254903,"محمد علي283","استاذ تعليم ابتدائي","إ -","العربية","جويدة الجموعي- النخلة","الرباح","حي النور","النخلة","مركز اجراء امتحان ش البكالوريا","","ثانوية الشهيد بن حمده علي  - النخلة"]
[284,10000254904,"محمد علي284","استاذ تعليم ابتدائي","إ -","العربية","جويدة الجموعي- النخلة","الرباح","حي النور","النخلة","مركز اجراء امتحان ش البكالوريا","","ثانوية الشهيد بن حمده علي  - النخلة"]
[285,10000254905,"محمد علي285","استاذ تعليم ابتدائي","إ -","العربية","جويدة الجموعي- النخلة","الرباح","حي النور","النخلة","مركز اجراء امتحان ش البكالوريا","","ثانوية الشهيد بن حمده علي  - النخلة"]
[286,10000254906,"محمد علي286","استاذ تعليم ابتدائي","إ -","العربية","جويدة الجموعي- النخلة","الرباح","حي النور","النخلة","مركز اجراء امتحان ش البكالوريا","","ثانوية الشهيد بن حمده علي  - النخلة"]
[287,10000254907,"محمد علي287","استاذ تعليم ابتدائي","إ -","العربية","جويدة الجموعي- النخلة","الرباح","حي النور","النخلة","مركز اجراء امتحان ش البكالوريا","","ثانوية الشهيد بن حمده علي  - النخلة"]
[288,10000254908,"محمد علي288","استاذ تعليم ابتدائي","إ -","العربية","جويدة الجموعي- النخلة","الرباح","حي النور","النخلة","مركز اجراء امتحان ش البكالوريا","","ثانوية الشهيد بن حمده علي  - النخلة"]
[289,10000254909,"محمد علي289","استاذ تعليم ابتدائي","إ -","العربية","جويدة الجموعي- النخلة","الرباح","حي النور","النخلة","مركز اجراء امتحان ش البكالوريا","","ثانوية الشهيد بن حمده علي  - النخلة"]
[290,10000254910,"محمد علي290","استاذ تعليم ابتدائي","إ -","العربية","جويدة الجموعي- النخلة","الرباح","حي النور","النخلة","مركز اجراء امتحان ش البكالوريا","","ثانوية الشهيد بن حمده علي  - النخلة"]
[291,10000254911,"محمد علي291","استاذ تعليم ابتدائي","إ -","العربية","جويدة الجموعي- النخلة","الرباح","حي النور","النخلة","مركز اجراء امتحان ش البكالوريا","","ثانوية الشهيد بن حمده علي  - النخلة"]
[292,10000254912,"محمد علي292","استاذ تعليم ابتدائي","إ -","العربية","جويدة الجموعي- النخلة","الرباح","حي النور","النخلة","مركز اجراء امتحان ش البكالوريا","","ثانوية الشهيد بن حمده علي  - النخلة"]
[293,10000254913,"محمد علي293","استاذ تعليم ابتدائي","إ -","العربية","جويدة الجموعي- النخلة","الرباح","حي النور","النخلة","مركز اجراء امتحان ش البكالوريا","","ثانوية الشهيد بن حمده علي  - النخلة"]
[294,10000254914,"محمد علي294","استاذ تعليم ابتدائي","إ -","العربية","جويدة الجموعي- النخلة","الرباح","حي النور","النخلة","مركز اجراء امتحان ش البكالوريا","","ثانوية الشهيد بن حمده علي  - النخلة"]
[295,10000254915,"محمد علي295","استاذ تعليم ابتدائي","إ -","العربية","جويدة الجموعي- النخلة","الرباح","حي النور","النخلة","مركز اجراء امتحان ش البكالوريا","","ثانوية الشهيد بن حمده علي  - النخلة"]
[296,10000254916,"محمد علي296","استاذ تعليم ابتدائي","إ -","العربية","جويدة الجموعي- النخلة","الرباح","حي النور","النخلة","مركز اجراء امتحان ش البكالوريا","","ثانوية الشهيد بن حمده علي  - النخلة"]
[297,10000254917,"محمد علي297","استاذ تعليم ابتدائي","إ -","العربية","جويدة الجموعي- النخلة","الرباح","حي النور","النخلة","مركز اجراء امتحان ش البكالوريا","","ثانوية الشهيد بن حمده علي  - النخلة"]
[298,10000254918,"محمد علي298","استاذ تعليم ابتدائي","إ -","العربية","جويدة الجموعي- النخلة","الرباح","حي النور","النخلة","مركز اجراء امتحان ش البكالوريا","","ثانوية الشهيد بن حمده علي  - النخلة"]
[299,10000254919,"محمد علي299","استاذ تعليم ابتدائي","إ -","العربية","جويدة الجموعي- النخلة","الرباح","حي النور","النخلة","مركز اجراء امتحان ش البكالوريا","","ثانوية الشهيد بن حمده علي  - النخلة"]
[300,10000254920,"محمد علي300","استاذ تعليم ابتدائي","إ -","العربية","جويدة الجموعي- النخلة","الرباح","حي النور","النخلة","مركز اجراء امتحان ش البكالوريا","","ثانوية الشهيد بن حمده علي  - النخلة"]
[301,10000254921,"محمد علي301","استاذ تعليم ابتدائي","إ -","العربية","جويدة الجموعي- النخلة","الرباح","حي النور","النخلة","مركز اجراء امتحان ش البكالوريا","","ثانوية الشهيد بن حمده علي  - النخلة"]
[302,10000254922,"محمد علي302","استاذ تعليم ابتدائي","إ -","العربية","جويدة الجموعي- النخلة","الرباح","حي النور","النخلة","مركز اجراء امتحان ش البكالوريا","","ثانوية الشهيد بن حمده علي  - النخلة"]
[303,10000254923,"محمد علي303","استاذ تعليم ابتدائي","إ -","العربية","جويدة الجموعي- النخلة","الرباح","حي النور","النخلة","مركز اجراء امتحان ش البكالوريا","","ثانوية الشهيد بن حمده علي  - النخلة"]
[304,10000254924,"محمد علي304","استاذ تعليم ابتدائي","إ -","العربية","جويدة الجموعي- النخلة","الرباح","حي النور","النخلة","مركز اجراء امتحان ش البكالوريا","","ثانوية الشهيد بن حمده علي  - النخلة"]
[305,10000254925,"محمد علي305","استاذ تعليم ابتدائي","إ -","العربية","جويدة الجموعي- النخلة","الرباح","حي النور","النخلة","مركز اجراء امتحان ش البكالوريا","","ثانوية الشهيد بن حمده علي  - النخلة"]
[306,10000254926,"محمد علي306","استاذ تعليم ابتدائي","إ -","العربية","جويدة الجموعي- النخلة","الرباح","حي النور","النخلة","مركز اجراء امتحان ش البكالوريا","","ثانوية الشهيد بن حمده علي  - النخلة"]
[307,10000254927,"محمد علي307","استاذ تعليم ابتدائي","إ -","العربية","جويدة الجموعي- النخلة","الرباح","حي النور","النخلة","مركز اجراء امتحان ش البكالوريا","","ثانوية الشهيد بن حمده علي  - النخلة"]
[308,10000254928,"محمد علي308","استاذ تعليم ابتدائي","إ -","العربية","جويدة الجموعي- النخلة","الرباح","حي النور","النخلة","مركز اجراء امتحان ش البكالوريا","","ثانوية الشهيد بن حمده علي  - النخلة"]
[309,10000254929,"محمد علي309","استاذ تعليم ابتدائي","إ -","العربية","جويدة الجموعي- النخلة","الرباح","حي النور","النخلة","مركز اجراء امتحان ش البكالوريا","","ثانوية الشهيد بن حمده علي  - النخلة"]
[310,10000254930,"محمد علي310","استاذ تعليم ابتدائي","إ -","العربية","جويدة الجموعي- النخلة","الرباح","حي النور","النخلة","مركز اجراء امتحان ش البكالوريا","","ثانوية الشهيد بن حمده علي  - النخلة"]
[311,10000254931,"محمد علي311","استاذ تعليم ابتدائي","إ -","العربية","جويدة الجموعي- النخلة","الرباح","حي النور","النخلة","مركز اجراء امتحان ش البكالوريا","","ثانوية الشهيد بن حمده علي  - النخلة"]
[312,10000254932,"محمد علي312","استاذ تعليم ابتدائي","إ -","العربية","جويدة الجموعي- النخلة","الرباح","حي النور","النخلة","مركز اجراء امتحان ش البكالوريا","","ثانوية الشهيد بن حمده علي  - النخلة"]
[313,10000254933,"محمد علي313","استاذ تعليم ابتدائي","إ -","العربية","جويدة الجموعي- النخلة","الرباح","حي النور","النخلة","مركز اجراء امتحان ش البكالوريا","","ثانوية الشهيد بن حمده علي  - النخلة"]
[314,10000254934,"محمد علي314","استاذ تعليم ابتدائي","إ -","العربية","جويدة الجموعي- النخلة","الرباح","حي النور","النخلة","مركز اجراء امتحان ش البكالوريا","","ثانوية الشهيد بن حمده علي  - النخلة"]
[315,10000254935,"محمد علي315","استاذ تعليم ابتدائي","إ -","العربية","جويدة الجموعي- النخلة","الرباح","حي النور","النخلة","مركز اجراء امتحان ش البكالوريا","","ثانوية الشهيد بن حمده علي  - النخلة"]
[316,10000254936,"محمد علي316","استاذ تعليم ابتدائي","إ -","العربية","جويدة الجموعي- النخلة","الرباح","حي النور","النخلة","مركز اجراء امتحان ش البكالوريا","","ثانوية الشهيد بن حمده علي  - النخلة"]
[317,10000254937,"محمد علي317","استاذ تعليم ابتدائي","إ -","العربية","جويدة الجموعي- النخلة","الرباح","حي النور","النخلة","مركز اجراء امتحان ش البكالوريا","","ثانوية الشهيد بن حمده علي  - النخلة"]
[318,10000254938,"محمد علي318","استاذ تعليم ابتدائي","إ -","العربية","جويدة الجموعي- النخلة","الرباح","حي النور","النخلة","مركز اجراء امتحان ش البكالوريا","","ثانوية الشهيد بن حمده علي  - النخلة"]
[319,10000254939,"محمد علي319","استاذ تعليم ابتدائي","إ -","العربية","جويدة الجموعي- النخلة","الرباح","حي النور","النخلة","مركز اجراء امتحان ش البكالوريا","","ثانوية الشهيد بن حمده علي  - النخلة"]
[320,10000254940,"محمد علي320","استاذ تعليم ابتدائي","إ -","العربية","جويدة الجموعي- النخلة","الرباح","حي النور","النخلة","مركز اجراء امتحان ش البكالوريا","","ثانوية الشهيد بن حمده علي  - النخلة"]
[321,10000254941,"محمد علي321","استاذ تعليم ابتدائي","إ -","العربية","جويدة الجموعي- النخلة","الرباح","حي النور","النخلة","مركز اجراء امتحان ش البكالوريا","","ثانوية الشهيد بن حمده علي  - النخلة"]
[322,10000254942,"محمد علي322","استاذ تعليم ابتدائي","إ -","العربية","جويدة الجموعي- النخلة","الرباح","حي النور","النخلة","مركز اجراء امتحان ش البكالوريا","","ثانوية الشهيد بن حمده علي  - النخلة"]
[323,10000254943,"محمد علي323","استاذ تعليم ابتدائي","إ -","العربية","جويدة الجموعي- النخلة","الرباح","حي النور","النخلة","مركز اجراء امتحان ش البكالوريا","","ثانوية الشهيد بن حمده علي  - النخلة"]
[324,10000254944,"محمد علي324","استاذ تعليم ابتدائي","إ -","العربية","جويدة الجموعي- النخلة","الرباح","حي النور","النخلة","مركز اجراء امتحان ش البكالوريا","","ثانوية الشهيد بن حمده علي  - النخلة"]
[325,10000254945,"محمد علي325","استاذ تعليم ابتدائي","إ -","العربية","جويدة الجموعي- النخلة","الرباح","حي النور","النخلة","مركز اجراء امتحان ش البكالوريا","","ثانوية الشهيد بن حمده علي  - النخلة"]
[326,10000254946,"محمد علي326","استاذ تعليم ابتدائي","إ -","العربية","جويدة الجموعي- النخلة","الرباح","حي النور","النخلة","مركز اجراء امتحان ش البكالوريا","","ثانوية الشهيد بن حمده علي  - النخلة"]
[327,10000254947,"محمد علي327","استاذ تعليم ابتدائي","إ -","العربية","جويدة الجموعي- النخلة","الرباح","حي النور","النخلة","مركز اجراء امتحان ش البكالوريا","","ثانوية الشهيد بن حمده علي  - النخلة"]
[328,10000254948,"محمد علي328","استاذ تعليم ابتدائي","إ -","العربية","جويدة الجموعي- النخلة","الرباح","حي النور","النخلة","مركز اجراء امتحان ش البكالوريا","","ثانوية الشهيد بن حمده علي  - النخلة"]
[329,10000254949,"محمد علي329","استاذ تعليم ابتدائي","إ -","العربية","جويدة الجموعي- النخلة","الرباح","حي النور","النخلة","مركز اجراء امتحان ش البكالوريا","","ثانوية الشهيد بن حمده علي  - النخلة"]
[330,10000254950,"محمد علي330","استاذ تعليم ابتدائي","إ -","العربية","جويدة الجموعي- النخلة","الرباح","حي النور","النخلة","مركز اجراء امتحان ش البكالوريا","","ثانوية الشهيد بن حمده علي  - النخلة"]
[331,10000254951,"محمد علي331","استاذ تعليم ابتدائي","إ -","العربية","جويدة الجموعي- النخلة","الرباح","حي النور","النخلة","مركز اجراء امتحان ش البكالوريا","","ثانوية الشهيد بن حمده علي  - النخلة"]
[332,10000254952,"محمد علي332","استاذ تعليم ابتدائي","إ -","العربية","جويدة الجموعي- النخلة","الرباح","حي النور","النخلة","مركز اجراء امتحان ش البكالوريا","","ثانوية الشهيد بن حمده علي  - النخلة"]
[333,10000254953,"محمد علي333","استاذ تعليم ابتدائي","إ -","العربية","جويدة الجموعي- النخلة","الرباح","حي النور","النخلة","مركز اجراء امتحان ش البكالوريا","","ثانوية الشهيد بن حمده علي  - النخلة"]
[334,10000254954,"محمد علي334","استاذ تعليم ابتدائي","إ -","العربية","جويدة الجموعي- النخلة","الرباح","حي النور","النخلة","مركز اجراء امتحان ش البكالوريا","","ثانوية الشهيد بن حمده علي  - النخلة"]
[335,10000254955,"محمد علي335","استاذ تعليم ابتدائي","إ -","العربية","جويدة الجموعي- النخلة","الرباح","حي النور","النخلة","مركز اجراء امتحان ش البكالوريا","","ثانوية الشهيد بن حمده علي  - النخلة"]
[336,10000254956,"محمد علي336","استاذ تعليم ابتدائي","إ -","العربية","جويدة الجموعي- النخلة","الرباح","حي النور","النخلة","مركز اجراء امتحان ش البكالوريا","","ثانوية الشهيد بن حمده علي  - النخلة"]
[337,10000254957,"محمد علي337","استاذ تعليم ابتدائي","إ -","العربية","جويدة الجموعي- النخلة","الرباح","حي النور","النخلة","مركز اجراء امتحان ش البكالوريا","","ثانوية الشهيد بن حمده علي  - النخلة"]
[338,10000254958,"محمد علي338","استاذ تعليم ابتدائي","إ -","العربية","جويدة الجموعي- النخلة","الرباح","حي النور","النخلة","مركز اجراء امتحان ش البكالوريا","","ثانوية الشهيد بن حمده علي  - النخلة"]
[339,10000254959,"محمد علي339","استاذ تعليم ابتدائي","إ -","العربية","جويدة الجموعي- النخلة","الرباح","حي النور","النخلة","مركز اجراء امتحان ش البكالوريا","","ثانوية الشهيد بن حمده علي  - النخلة"]
[340,10000254960,"محمد علي340","استاذ تعليم ابتدائي","إ -","العربية","جويدة الجموعي- النخلة","الرباح","حي النور","النخلة","مركز اجراء امتحان ش البكالوريا","","ثانوية الشهيد بن حمده علي  - النخلة"]
[341,10000254961,"محمد علي341","استاذ تعليم ابتدائي","إ -","العربية","جويدة الجموعي- النخلة","الرباح","حي النور","النخلة","مركز اجراء امتحان ش البكالوريا","","ثانوية الشهيد بن حمده علي  - النخلة"]
[342,10000254962,"محمد علي342","استاذ تعليم ابتدائي","إ -","العربية","جويدة الجموعي- النخلة","الرباح","حي النور","النخلة","مركز اجراء امتحان ش البكالوريا","","ثانوية الشهيد بن حمده علي  - النخلة"]
[343,10000254963,"محمد علي343","استاذ تعليم ابتدائي","إ -","العربية","جويدة الجموعي- النخلة","الرباح","حي النور","النخلة","مركز اجراء امتحان ش البكالوريا","","ثانوية الشهيد بن حمده علي  - النخلة"]
[344,10000254964,"محمد علي344","استاذ تعليم ابتدائي","إ -","العربية","جويدة الجموعي- النخلة","الرباح","حي النور","النخلة","مركز اجراء امتحان ش البكالوريا","","ثانوية الشهيد بن حمده علي  - النخلة"]
[345,10000254965,"محمد علي345","استاذ تعليم ابتدائي","إ -","العربية","جويدة الجموعي- النخلة","الرباح","حي النور","النخلة","مركز اجراء امتحان ش البكالوريا","","ثانوية الشهيد بن حمده علي  - النخلة"]
[346,10000254966,"محمد علي346","استاذ تعليم ابتدائي","إ -","العربية","جويدة الجموعي- النخلة","الرباح","حي النور","النخلة","مركز اجراء امتحان ش البكالوريا","","ثانوية الشهيد بن حمده علي  - النخلة"]
[347,10000254967,"محمد علي347","استاذ تعليم ابتدائي","إ -","العربية","جويدة الجموعي- النخلة","الرباح","حي النور","النخلة","مركز اجراء امتحان ش البكالوريا","","ثانوية الشهيد بن حمده علي  - النخلة"]
[348,10000254968,"محمد علي348","استاذ تعليم ابتدائي","إ -","العربية","جويدة الجموعي- النخلة","الرباح","حي النور","النخلة","مركز اجراء امتحان ش البكالوريا","","ثانوية الشهيد بن حمده علي  - النخلة"]
[349,10000254969,"محمد علي349","استاذ تعليم ابتدائي","إ -","العربية","جويدة الجموعي- النخلة","الرباح","حي النور","النخلة","مركز اجراء امتحان ش البكالوريا","","ثانوية الشهيد بن حمده علي  - النخلة"]
[350,10000254970,"محمد علي350","استاذ تعليم ابتدائي","إ -","العربية","جويدة الجموعي- النخلة","الرباح","حي النور","النخلة","مركز اجراء امتحان ش البكالوريا","","ثانوية الشهيد بن حمده علي  - النخلة"]
[351,10000254971,"محمد علي351","استاذ تعليم ابتدائي","إ -","العربية","جويدة الجموعي- النخلة","الرباح","حي النور","النخلة","مركز اجراء امتحان ش البكالوريا","","ثانوية الشهيد بن حمده علي  - النخلة"]
[352,10000254972,"محمد علي352","استاذ تعليم ابتدائي","إ -","العربية","جويدة الجموعي- النخلة","الرباح","حي النور","النخلة","مركز اجراء امتحان ش البكالوريا","","ثانوية الشهيد بن حمده علي  - النخلة"]
[353,10000254973,"محمد علي353","استاذ تعليم ابتدائي","إ -","العربية","جويدة الجموعي- النخلة","الرباح","حي النور","النخلة","مركز اجراء امتحان ش البكالوريا","","ثانوية الشهيد بن حمده علي  - النخلة"]
[354,10000254974,"محمد علي354","استاذ تعليم ابتدائي","إ -","العربية","جويدة الجموعي- النخلة","الرباح","حي النور","النخلة","مركز اجراء امتحان ش البكالوريا","","ثانوية الشهيد بن حمده علي  - النخلة"]
[355,10000254975,"محمد علي355","استاذ تعليم ابتدائي","إ -","العربية","جويدة الجموعي- النخلة","الرباح","حي النور","النخلة","مركز اجراء امتحان ش البكالوريا","","ثانوية الشهيد بن حمده علي  - النخلة"]
[356,10000254976,"محمد علي356","استاذ تعليم ابتدائي","إ -","العربية","جويدة الجموعي- النخلة","الرباح","حي النور","النخلة","مركز اجراء امتحان ش البكالوريا","","ثانوية الشهيد بن حمده علي  - النخلة"]
[357,10000254977,"محمد علي357","استاذ تعليم ابتدائي","إ -","العربية","جويدة الجموعي- النخلة","الرباح","حي النور","النخلة","مركز اجراء امتحان ش البكالوريا","","ثانوية الشهيد بن حمده علي  - النخلة"]
[358,10000254978,"محمد علي358","استاذ تعليم ابتدائي","إ -","العربية","جويدة الجموعي- النخلة","الرباح","حي النور","النخلة","مركز اجراء امتحان ش البكالوريا","","ثانوية الشهيد بن حمده علي  - النخلة"]
[359,10000254979,"محمد علي359","استاذ تعليم ابتدائي","إ -","العربية","جويدة الجموعي- النخلة","الرباح","حي النور","النخلة","مركز اجراء امتحان ش البكالوريا","","ثانوية الشهيد بن حمده علي  - النخلة"]
[360,10000254980,"محمد علي360","استاذ تعليم ابتدائي","إ -","العربية","جويدة الجموعي- النخلة","الرباح","حي النور","النخلة","مركز اجراء امتحان ش البكالوريا","","ثانوية الشهيد بن حمده علي  - النخلة"]
[361,10000254981,"محمد علي361","استاذ تعليم ابتدائي","إ -","العربية","جويدة الجموعي- النخلة","الرباح","حي النور","النخلة","مركز اجراء امتحان ش البكالوريا","","ثانوية الشهيد بن حمده علي  - النخلة"]
[362,10000254982,"محمد علي362","استاذ تعليم ابتدائي","إ -","العربية","جويدة الجموعي- النخلة","الرباح","حي النور","النخلة","مركز اجراء امتحان ش البكالوريا","","ثانوية الشهيد بن حمده علي  - النخلة"]
[363,10000254983,"محمد علي363","استاذ تعليم ابتدائي","إ -","العربية","جويدة الجموعي- النخلة","الرباح","حي النور","النخلة","مركز اجراء امتحان ش البكالوريا","","ثانوية الشهيد بن حمده علي  - النخلة"]
[364,10000254984,"محمد علي364","استاذ تعليم ابتدائي","إ -","العربية","جويدة الجموعي- النخلة","الرباح","حي النور","النخلة","مركز اجراء امتحان ش البكالوريا","","ثانوية الشهيد بن حمده علي  - النخلة"]
[365,10000254985,"محمد علي365","استاذ تعليم ابتدائي","إ -","العربية","جويدة الجموعي- النخلة","الرباح","حي النور","النخلة","مركز اجراء امتحان ش البكالوريا","","ثانوية الشهيد بن حمده علي  - النخلة"]
[366,10000254986,"محمد علي366","استاذ تعليم ابتدائي","إ -","العربية","جويدة الجموعي- النخلة","الرباح","حي النور","النخلة","مركز اجراء امتحان ش البكالوريا","","ثانوية الشهيد بن حمده علي  - النخلة"]
[367,10000254987,"محمد علي367","استاذ تعليم ابتدائي","إ -","العربية","جويدة الجموعي- النخلة","الرباح","حي النور","النخلة","مركز اجراء امتحان ش البكالوريا","","ثانوية الشهيد بن حمده علي  - النخلة"]
[368,10000254988,"محمد علي368","استاذ تعليم ابتدائي","إ -","العربية","جويدة الجموعي- النخلة","الرباح","حي النور","النخلة","مركز اجراء امتحان ش البكالوريا","","ثانوية الشهيد بن حمده علي  - النخلة"]
[369,10000254989,"محمد علي369","استاذ تعليم ابتدائي","إ -","العربية","جويدة الجموعي- النخلة","الرباح","حي النور","النخلة","مركز اجراء امتحان ش البكالوريا","","ثانوية الشهيد بن حمده علي  - النخلة"]
[370,10000254990,"محمد علي370","استاذ تعليم ابتدائي","إ -","العربية","جويدة الجموعي- النخلة","الرباح","حي النور","النخلة","مركز اجراء امتحان ش البكالوريا","","ثانوية الشهيد بن حمده علي  - النخلة"]
[371,10000254991,"محمد علي371","استاذ تعليم ابتدائي","إ -","العربية","جويدة الجموعي- النخلة","الرباح","حي النور","النخلة","مركز اجراء امتحان ش البكالوريا","","ثانوية الشهيد بن حمده علي  - النخلة"]
[372,10000254992,"محمد علي372","استاذ تعليم ابتدائي","إ -","العربية","جويدة الجموعي- النخلة","الرباح","حي النور","النخلة","مركز اجراء امتحان ش البكالوريا","","ثانوية الشهيد بن حمده علي  - النخلة"]
[373,10000254993,"محمد علي373","استاذ تعليم ابتدائي","إ -","العربية","جويدة الجموعي- النخلة","الرباح","حي النور","النخلة","مركز اجراء امتحان ش البكالوريا","","ثانوية الشهيد بن حمده علي  - النخلة"]
[374,10000254994,"محمد علي374","استاذ تعليم ابتدائي","إ -","العربية","جويدة الجموعي- النخلة","الرباح","حي النور","النخلة","مركز اجراء امتحان ش البكالوريا","","ثانوية الشهيد بن حمده علي  - النخلة"]
[375,10000254995,"محمد علي375","استاذ تعليم ابتدائي","إ -","العربية","جويدة الجموعي- النخلة","الرباح","حي النور","النخلة","مركز اجراء امتحان ش البكالوريا","","ثانوية الشهيد بن حمده علي  - النخلة"]
[376,10000254996,"محمد علي376","استاذ تعليم ابتدائي","إ -","العربية","جويدة الجموعي- النخلة","الرباح","حي النور","النخلة","مركز اجراء امتحان ش البكالوريا","","ثانوية الشهيد بن حمده علي  - النخلة"]
[377,10000254997,"محمد علي377","استاذ تعليم ابتدائي","إ -","العربية","جويدة الجموعي- النخلة","الرباح","حي النور","النخلة","مركز اجراء امتحان ش البكالوريا","","ثانوية الشهيد بن حمده علي  - النخلة"]
[378,10000254998,"محمد علي378","استاذ تعليم ابتدائي","إ -","العربية","جويدة الجموعي- النخلة","الرباح","حي النور","النخلة","مركز اجراء امتحان ش البكالوريا","","ثانوية الشهيد بن حمده علي  - النخلة"]
[379,10000254999,"محمد علي379","استاذ تعليم ابتدائي","إ -","العربية","جويدة الجموعي- النخلة","الرباح","حي النور","النخلة","مركز اجراء امتحان ش البكالوريا","","ثانوية الشهيد بن حمده علي  - النخلة"]
[380,10000255000,"محمد علي380","استاذ تعليم ابتدائي","إ -","العربية","جويدة الجموعي- النخلة","الرباح","حي النور","النخلة","مركز اجراء امتحان ش البكالوريا","","ثانوية الشهيد بن حمده علي  - النخلة"]
[381,10000255001,"محمد علي381","استاذ تعليم ابتدائي","إ -","العربية","جويدة الجموعي- النخلة","الرباح","حي النور","النخلة","مركز اجراء امتحان ش البكالوريا","","ثانوية الشهيد بن حمده علي  - النخلة"]
[382,10000255002,"محمد علي382","استاذ تعليم ابتدائي","إ -","العربية","جويدة الجموعي- النخلة","الرباح","حي النور","النخلة","مركز اجراء امتحان ش البكالوريا","","ثانوية الشهيد بن حمده علي  - النخلة"]
[383,10000255003,"محمد علي383","استاذ تعليم ابتدائي","إ -","العربية","جويدة الجموعي- النخلة","الرباح","حي النور","النخلة","مركز اجراء امتحان ش البكالوريا","","ثانوية الشهيد بن حمده علي  - النخلة"]
[384,10000255004,"محمد علي384","استاذ تعليم ابتدائي","إ -","العربية","جويدة الجموعي- النخلة","الرباح","حي النور","النخلة","مركز اجراء امتحان ش البكالوريا","","ثانوية الشهيد بن حمده علي  - النخلة"]
[385,10000255005,"محمد علي385","استاذ تعليم ابتدائي","إ -","العربية","جويدة الجموعي- النخلة","الرباح","حي النور","النخلة","مركز اجراء امتحان ش البكالوريا","","ثانوية الشهيد بن حمده علي  - النخلة"]
[386,10000255006,"محمد علي386","استاذ تعليم ابتدائي","إ -","العربية","جويدة الجموعي- النخلة","الرباح","حي النور","النخلة","مركز اجراء امتحان ش البكالوريا","","ثانوية الشهيد بن حمده علي  - النخلة"]
[387,10000255007,"محمد علي387","استاذ تعليم ابتدائي","إ -","العربية","جويدة الجموعي- النخلة","الرباح","حي النور","النخلة","مركز اجراء امتحان ش البكالوريا","","ثانوية الشهيد بن حمده علي  - النخلة"]
[388,10000255008,"محمد علي388","استاذ تعليم ابتدائي","إ -","العربية","جويدة الجموعي- النخلة","الرباح","حي النور","النخلة","مركز اجراء امتحان ش البكالوريا","","ثانوية الشهيد بن حمده علي  - النخلة"]
[389,10000255009,"محمد علي389","استاذ تعليم ابتدائي","إ -","العربية","جويدة الجموعي- النخلة","الرباح","حي النور","النخلة","مركز اجراء امتحان ش البكالوريا","","ثانوية الشهيد بن حمده علي  - النخلة"]
[390,10000255010,"محمد علي390","استاذ تعليم ابتدائي","إ -","العربية","جويدة الجموعي- النخلة","الرباح","حي النور","النخلة","مركز اجراء امتحان ش البكالوريا","","ثانوية الشهيد بن حمده علي  - النخلة"]
[391,10000255011,"محمد علي391","استاذ تعليم ابتدائي","إ -","العربية","جويدة الجموعي- النخلة","الرباح","حي النور","النخلة","مركز اجراء امتحان ش البكالوريا","","ثانوية الشهيد بن حمده علي  - النخلة"]
[392,10000255012,"محمد علي392","استاذ تعليم ابتدائي","إ -","العربية","جويدة الجموعي- النخلة","الرباح","حي النور","النخلة","مركز اجراء امتحان ش البكالوريا","","ثانوية الشهيد بن حمده علي  - النخلة"]
[393,10000255013,"محمد علي393","استاذ تعليم ابتدائي","إ -","العربية","جويدة الجموعي- النخلة","الرباح","حي النور","النخلة","مركز اجراء امتحان ش البكالوريا","","ثانوية الشهيد بن حمده علي  - النخلة"]
[394,10000255014,"محمد علي394","استاذ تعليم ابتدائي","إ -","العربية","جويدة الجموعي- النخلة","الرباح","حي النور","النخلة","مركز اجراء امتحان ش البكالوريا","","ثانوية الشهيد بن حمده علي  - النخلة"]
[395,10000255015,"محمد علي395","استاذ تعليم ابتدائي","إ -","العربية","جويدة الجموعي- النخلة","الرباح","حي النور","النخلة","مركز اجراء امتحان ش البكالوريا","","ثانوية الشهيد بن حمده علي  - النخلة"]
[396,10000255016,"محمد علي396","استاذ تعليم ابتدائي","إ -","العربية","جويدة الجموعي- النخلة","الرباح","حي النور","النخلة","مركز اجراء امتحان ش البكالوريا","","ثانوية الشهيد بن حمده علي  - النخلة"]
[397,10000255017,"محمد علي397","استاذ تعليم ابتدائي","إ -","العربية","جويدة الجموعي- النخلة","الرباح","حي النور","النخلة","مركز اجراء امتحان ش البكالوريا","","ثانوية الشهيد بن حمده علي  - النخلة"]
[398,10000255018,"محمد علي398","استاذ تعليم ابتدائي","إ -","العربية","جويدة الجموعي- النخلة","الرباح","حي النور","النخلة","مركز اجراء امتحان ش البكالوريا","","ثانوية الشهيد بن حمده علي  - النخلة"]
[399,10000255019,"محمد علي399","استاذ تعليم ابتدائي","إ -","العربية","جويدة الجموعي- النخلة","الرباح","حي النور","النخلة","مركز اجراء امتحان ش البكالوريا","","ثانوية الشهيد بن حمده علي  - النخلة"]
[400,10000255020,"محمد علي400","استاذ تعليم ابتدائي","إ -","العربية","جويدة الجموعي- النخلة","الرباح","حي النور","النخلة","مركز اجراء امتحان ش البكالوريا","","ثانوية الشهيد بن حمده علي  - النخلة"]
[401,10000255021,"محمد علي401","استاذ تعليم ابتدائي","إ -","العربية","جويدة الجموعي- النخلة","الرباح","حي النور","النخلة","مركز اجراء امتحان ش البكالوريا","","ثانوية الشهيد بن حمده علي  - النخلة"]
[402,10000255022,"محمد علي402","استاذ تعليم ابتدائي","إ -","العربية","جويدة الجموعي- النخلة","الرباح","حي النور","النخلة","مركز اجراء امتحان ش البكالوريا","","ثانوية الشهيد بن حمده علي  - النخلة"]
[403,10000255023,"محمد علي403","استاذ تعليم ابتدائي","إ -","العربية","جويدة الجموعي- النخلة","الرباح","حي النور","النخلة","مركز اجراء امتحان ش البكالوريا","","ثانوية الشهيد بن حمده علي  - النخلة"]
[404,10000255024,"محمد علي404","استاذ تعليم ابتدائي","إ -","العربية","جويدة الجموعي- النخلة","الرباح","حي النور","النخلة","مركز اجراء امتحان ش البكالوريا","","ثانوية الشهيد بن حمده علي  - النخلة"]
[405,10000255025,"محمد علي405","استاذ تعليم ابتدائي","إ -","العربية","جويدة الجموعي- النخلة","الرباح","حي النور","النخلة","مركز اجراء امتحان ش البكالوريا","","ثانوية الشهيد بن حمده علي  - النخلة"]
[406,10000255026,"محمد علي406","استاذ تعليم ابتدائي","إ -","العربية","جويدة الجموعي- النخلة","الرباح","حي النور","النخلة","مركز اجراء امتحان ش البكالوريا","","ثانوية الشهيد بن حمده علي  - النخلة"]
[407,10000255027,"محمد علي407","استاذ تعليم ابتدائي","إ -","العربية","جويدة الجموعي- النخلة","الرباح","حي النور","النخلة","مركز اجراء امتحان ش البكالوريا","","ثانوية الشهيد بن حمده علي  - النخلة"]
[408,10000255028,"محمد علي408","استاذ تعليم ابتدائي","إ -","العربية","جويدة الجموعي- النخلة","الرباح","حي النور","النخلة","مركز اجراء امتحان ش البكالوريا","","ثانوية الشهيد بن حمده علي  - النخلة"]
[409,10000255029,"محمد علي409","استاذ تعليم ابتدائي","إ -","العربية","جويدة الجموعي- النخلة","الرباح","حي النور","النخلة","مركز اجراء امتحان ش البكالوريا","","ثانوية الشهيد بن حمده علي  - النخلة"]
[410,10000255030,"محمد علي410","استاذ تعليم ابتدائي","إ -","العربية","جويدة الجموعي- النخلة","الرباح","حي النور","النخلة","مركز اجراء امتحان ش البكالوريا","","ثانوية الشهيد بن حمده علي  - النخلة"]
[411,10000255031,"محمد علي411","استاذ تعليم ابتدائي","إ -","العربية","جويدة الجموعي- النخلة","الرباح","حي النور","النخلة","مركز اجراء امتحان ش البكالوريا","","ثانوية الشهيد بن حمده علي  - النخلة"]
[412,10000255032,"محمد علي412","استاذ تعليم ابتدائي","إ -","العربية","جويدة الجموعي- النخلة","الرباح","حي النور","النخلة","مركز اجراء امتحان ش البكالوريا","","ثانوية الشهيد بن حمده علي  - النخلة"]
[413,10000255033,"محمد علي413","استاذ تعليم ابتدائي","إ -","العربية","جويدة الجموعي- النخلة","الرباح","حي النور","النخلة","مركز اجراء امتحان ش البكالوريا","","ثانوية الشهيد بن حمده علي  - النخلة"]
[414,10000255034,"محمد علي414","استاذ تعليم ابتدائي","إ -","العربية","جويدة الجموعي- النخلة","الرباح","حي النور","النخلة","مركز اجراء امتحان ش البكالوريا","","ثانوية الشهيد بن حمده علي  - النخلة"]
[415,10000255035,"محمد علي415","استاذ تعليم ابتدائي","إ -","العربية","جويدة الجموعي- النخلة","الرباح","حي النور","النخلة","مركز اجراء امتحان ش البكالوريا","","ثانوية الشهيد بن حمده علي  - النخلة"]
[416,10000255036,"محمد علي416","استاذ تعليم ابتدائي","إ -","العربية","جويدة الجموعي- النخلة","الرباح","حي النور","النخلة","مركز اجراء امتحان ش البكالوريا","","ثانوية الشهيد بن حمده علي  - النخلة"]
[417,10000255037,"محمد علي417","استاذ تعليم ابتدائي","إ -","العربية","جويدة الجموعي- النخلة","الرباح","حي النور","النخلة","مركز اجراء امتحان ش البكالوريا","","ثانوية الشهيد بن حمده علي  - النخلة"]
[418,10000255038,"محمد علي418","استاذ تعليم ابتدائي","إ -","العربية","جويدة الجموعي- النخلة","الرباح","حي النور","النخلة","مركز اجراء امتحان ش البكالوريا","","ثانوية الشهيد بن حمده علي  - النخلة"]
[419,10000255039,"محمد علي419","استاذ تعليم ابتدائي","إ -","العربية","جويدة الجموعي- النخلة","الرباح","حي النور","النخلة","مركز اجراء امتحان ش البكالوريا","","ثانوية الشهيد بن حمده علي  - النخلة"]
[420,10000255040,"محمد علي420","استاذ تعليم ابتدائي","إ -","العربية","جويدة الجموعي- النخلة","الرباح","حي النور","النخلة","مركز اجراء امتحان ش البكالوريا","","ثانوية الشهيد بن حمده علي  - النخلة"]
[421,10000255041,"محمد علي421","استاذ تعليم ابتدائي","إ -","العربية","جويدة الجموعي- النخلة","الرباح","حي النور","النخلة","مركز اجراء امتحان ش البكالوريا","","ثانوية الشهيد بن حمده علي  - النخلة"]
[422,10000255042,"محمد علي422","استاذ تعليم ابتدائي","إ -","العربية","جويدة الجموعي- النخلة","الرباح","حي النور","النخلة","مركز اجراء امتحان ش البكالوريا","","ثانوية الشهيد بن حمده علي  - النخلة"]
[423,10000255043,"محمد علي423","استاذ تعليم ابتدائي","إ -","العربية","جويدة الجموعي- النخلة","الرباح","حي النور","النخلة","مركز اجراء امتحان ش البكالوريا","","ثانوية الشهيد بن حمده علي  - النخلة"]
[424,10000255044,"محمد علي424","استاذ تعليم ابتدائي","إ -","العربية","جويدة الجموعي- النخلة","الرباح","حي النور","النخلة","مركز اجراء امتحان ش البكالوريا","","ثانوية الشهيد بن حمده علي  - النخلة"]
[425,10000255045,"محمد علي425","استاذ تعليم ابتدائي","إ -","العربية","جويدة الجموعي- النخلة","الرباح","حي النور","النخلة","مركز اجراء امتحان ش البكالوريا","","ثانوية الشهيد بن حمده علي  - النخلة"]
[426,10000255046,"محمد علي426","استاذ تعليم ابتدائي","إ -","العربية","جويدة الجموعي- النخلة","الرباح","حي النور","النخلة","مركز اجراء امتحان ش البكالوريا","","ثانوية الشهيد بن حمده علي  - النخلة"]
[427,10000255047,"محمد علي427","استاذ تعليم ابتدائي","إ -","العربية","جويدة الجموعي- النخلة","الرباح","حي النور","النخلة","مركز اجراء امتحان ش البكالوريا","","ثانوية الشهيد بن حمده علي  - النخلة"]
[428,10000255048,"محمد علي428","استاذ تعليم ابتدائي","إ -","العربية","جويدة الجموعي- النخلة","الرباح","حي النور","النخلة","مركز اجراء امتحان ش البكالوريا","","ثانوية الشهيد بن حمده علي  - النخلة"]
[429,10000255049,"محمد علي429","استاذ تعليم ابتدائي","إ -","العربية","جويدة الجموعي- النخلة","الرباح","حي النور","النخلة","مركز اجراء امتحان ش البكالوريا","","ثانوية الشهيد بن حمده علي  - النخلة"]
[430,10000255050,"محمد علي430","استاذ تعليم ابتدائي","إ -","العربية","جويدة الجموعي- النخلة","الرباح","حي النور","النخلة","مركز اجراء امتحان ش البكالوريا","","ثانوية الشهيد بن حمده علي  - النخلة"]
[431,10000255051,"محمد علي431","استاذ تعليم ابتدائي","إ -","العربية","جويدة الجموعي- النخلة","الرباح","حي النور","النخلة","مركز اجراء امتحان ش البكالوريا","","ثانوية الشهيد بن حمده علي  - النخلة"]
[432,10000255052,"محمد علي432","استاذ تعليم ابتدائي","إ -","العربية","جويدة الجموعي- النخلة","الرباح","حي النور","النخلة","مركز اجراء امتحان ش البكالوريا","","ثانوية الشهيد بن حمده علي  - النخلة"]
[433,10000255053,"محمد علي433","استاذ تعليم ابتدائي","إ -","العربية","جويدة الجموعي- النخلة","الرباح","حي النور","النخلة","مركز اجراء امتحان ش البكالوريا","","ثانوية الشهيد بن حمده علي  - النخلة"]
[434,10000255054,"محمد علي434","استاذ تعليم ابتدائي","إ -","العربية","جويدة الجموعي- النخلة","الرباح","حي النور","النخلة","مركز اجراء امتحان ش البكالوريا","","ثانوية الشهيد بن حمده علي  - النخلة"]
[435,10000255055,"محمد علي435","استاذ تعليم ابتدائي","إ -","العربية","جويدة الجموعي- النخلة","الرباح","حي النور","النخلة","مركز اجراء امتحان ش البكالوريا","","ثانوية الشهيد بن حمده علي  - النخلة"]
[436,10000255056,"محمد علي436","استاذ تعليم ابتدائي","إ -","العربية","جويدة الجموعي- النخلة","الرباح","حي النور","النخلة","مركز اجراء امتحان ش البكالوريا","","ثانوية الشهيد بن حمده علي  - النخلة"]
[437,10000255057,"محمد علي437","استاذ تعليم ابتدائي","إ -","العربية","جويدة الجموعي- النخلة","الرباح","حي النور","النخلة","مركز اجراء امتحان ش البكالوريا","","ثانوية الشهيد بن حمده علي  - النخلة"]
[438,10000255058,"محمد علي438","استاذ تعليم ابتدائي","إ -","العربية","جويدة الجموعي- النخلة","الرباح","حي النور","النخلة","مركز اجراء امتحان ش البكالوريا","","ثانوية الشهيد بن حمده علي  - النخلة"]
[439,10000255059,"محمد علي439","استاذ تعليم ابتدائي","إ -","العربية","جويدة الجموعي- النخلة","الرباح","حي النور","النخلة","مركز اجراء امتحان ش البكالوريا","","ثانوية الشهيد بن حمده علي  - النخلة"]
[440,10000255060,"محمد علي440","استاذ تعليم ابتدائي","إ -","العربية","جويدة الجموعي- النخلة","الرباح","حي النور","النخلة","مركز اجراء امتحان ش البكالوريا","","ثانوية الشهيد بن حمده علي  - النخلة"]
[441,10000255061,"محمد علي441","استاذ تعليم ابتدائي","إ -","العربية","جويدة الجموعي- النخلة","الرباح","حي النور","النخلة","مركز اجراء امتحان ش البكالوريا","","ثانوية الشهيد بن حمده علي  - النخلة"]
[442,10000255062,"محمد علي442","استاذ تعليم ابتدائي","إ -","العربية","جويدة الجموعي- النخلة","الرباح","حي النور","النخلة","مركز اجراء امتحان ش البكالوريا","","ثانوية الشهيد بن حمده علي  - النخلة"]
[443,10000255063,"محمد علي443","استاذ تعليم ابتدائي","إ -","العربية","جويدة الجموعي- النخلة","الرباح","حي النور","النخلة","مركز اجراء امتحان ش البكالوريا","","ثانوية الشهيد بن حمده علي  - النخلة"]
[444,10000255064,"محمد علي444","استاذ تعليم ابتدائي","إ -","العربية","جويدة الجموعي- النخلة","الرباح","حي النور","النخلة","مركز اجراء امتحان ش البكالوريا","","ثانوية الشهيد بن حمده علي  - النخلة"]
[445,10000255065,"محمد علي445","استاذ تعليم ابتدائي","إ -","العربية","جويدة الجموعي- النخلة","الرباح","حي النور","النخلة","مركز اجراء امتحان ش البكالوريا","","ثانوية الشهيد بن حمده علي  - النخلة"]
[446,10000255066,"محمد علي446","استاذ تعليم ابتدائي","إ -","العربية","جويدة الجموعي- النخلة","الرباح","حي النور","النخلة","مركز اجراء امتحان ش البكالوريا","","ثانوية الشهيد بن حمده علي  - النخلة"]
[447,10000255067,"محمد علي447","استاذ تعليم ابتدائي","إ -","العربية","جويدة الجموعي- النخلة","الرباح","حي النور","النخلة","مركز اجراء امتحان ش البكالوريا","","ثانوية الشهيد بن حمده علي  - النخلة"]
[448,10000255068,"محمد علي448","استاذ تعليم ابتدائي","إ -","العربية","جويدة الجموعي- النخلة","الرباح","حي النور","النخلة","مركز اجراء امتحان ش البكالوريا","","ثانوية الشهيد بن حمده علي  - النخلة"]
[449,10000255069,"محمد علي449","استاذ تعليم ابتدائي","إ -","العربية","جويدة الجموعي- النخلة","الرباح","حي النور","النخلة","مركز اجراء امتحان ش البكالوريا","","ثانوية الشهيد بن حمده علي  - النخلة"]
[450,10000255070,"محمد علي450","استاذ تعليم ابتدائي","إ -","العربية","جويدة الجموعي- النخلة","الرباح","حي النور","النخلة","مركز اجراء امتحان ش البكالوريا","","ثانوية الشهيد بن حمده علي  - النخلة"]
[451,10000255071,"محمد علي451","استاذ تعليم ابتدائي","إ -","العربية","جويدة الجموعي- النخلة","الرباح","حي النور","النخلة","مركز اجراء امتحان ش البكالوريا","","ثانوية الشهيد بن حمده علي  - النخلة"]
[452,10000255072,"محمد علي452","استاذ تعليم ابتدائي","إ -","العربية","جويدة الجموعي- النخلة","الرباح","حي النور","النخلة","مركز اجراء امتحان ش البكالوريا","","ثانوية الشهيد بن حمده علي  - النخلة"]
[453,10000255073,"محمد علي453","استاذ تعليم ابتدائي","إ -","العربية","جويدة الجموعي- النخلة","الرباح","حي النور","النخلة","مركز اجراء امتحان ش البكالوريا","","ثانوية الشهيد بن حمده علي  - النخلة"]
[454,10000255074,"محمد علي454","استاذ تعليم ابتدائي","إ -","العربية","جويدة الجموعي- النخلة","الرباح","حي النور","النخلة","مركز اجراء امتحان ش البكالوريا","","ثانوية الشهيد بن حمده علي  - النخلة"]
[455,10000255075,"محمد علي455","استاذ تعليم ابتدائي","إ -","العربية","جويدة الجموعي- النخلة","الرباح","حي النور","النخلة","مركز اجراء امتحان ش البكالوريا","","ثانوية الشهيد بن حمده علي  - النخلة"]
[456,10000255076,"محمد علي456","استاذ تعليم ابتدائي","إ -","العربية","جويدة الجموعي- النخلة","الرباح","حي النور","النخلة","مركز اجراء امتحان ش البكالوريا","","ثانوية الشهيد بن حمده علي  - النخلة"]
[457,10000255077,"محمد علي457","استاذ تعليم ابتدائي","إ -","العربية","جويدة الجموعي- النخلة","الرباح","حي النور","النخلة","مركز اجراء امتحان ش البكالوريا","","ثانوية الشهيد بن حمده علي  - النخلة"]
[458,10000255078,"محمد علي458","استاذ تعليم ابتدائي","إ -","العربية","جويدة الجموعي- النخلة","الرباح","حي النور","النخلة","مركز اجراء امتحان ش البكالوريا","","ثانوية الشهيد بن حمده علي  - النخلة"]
[459,10000255079,"محمد علي459","استاذ تعليم ابتدائي","إ -","العربية","جويدة الجموعي- النخلة","الرباح","حي النور","النخلة","مركز اجراء امتحان ش البكالوريا","","ثانوية الشهيد بن حمده علي  - النخلة"]
[460,10000255080,"محمد علي460","استاذ تعليم ابتدائي","إ -","العربية","جويدة الجموعي- النخلة","الرباح","حي النور","النخلة","مركز اجراء امتحان ش البكالوريا","","ثانوية الشهيد بن حمده علي  - النخلة"]
[461,10000255081,"محمد علي461","استاذ تعليم ابتدائي","إ -","العربية","جويدة الجموعي- النخلة","الرباح","حي النور","النخلة","مركز اجراء امتحان ش البكالوريا","","ثانوية الشهيد بن حمده علي  - النخلة"]
[462,10000255082,"محمد علي462","استاذ تعليم ابتدائي","إ -","العربية","جويدة الجموعي- النخلة","الرباح","حي النور","النخلة","مركز اجراء امتحان ش البكالوريا","","ثانوية الشهيد بن حمده علي  - النخلة"]
[463,10000255083,"محمد علي463","استاذ تعليم ابتدائي","إ -","العربية","جويدة الجموعي- النخلة","الرباح","حي النور","النخلة","مركز اجراء امتحان ش البكالوريا","","ثانوية الشهيد بن حمده علي  - النخلة"]
[464,10000255084,"محمد علي464","استاذ تعليم ابتدائي","إ -","العربية","جويدة الجموعي- النخلة","الرباح","حي النور","النخلة","مركز اجراء امتحان ش البكالوريا","","ثانوية الشهيد بن حمده علي  - النخلة"]
[465,10000255085,"محمد علي465","استاذ تعليم ابتدائي","إ -","العربية","جويدة الجموعي- النخلة","الرباح","حي النور","النخلة","مركز اجراء امتحان ش البكالوريا","","ثانوية الشهيد بن حمده علي  - النخلة"]
[466,10000255086,"محمد علي466","استاذ تعليم ابتدائي","إ -","العربية","جويدة الجموعي- النخلة","الرباح","حي النور","النخلة","مركز اجراء امتحان ش البكالوريا","","ثانوية الشهيد بن حمده علي  - النخلة"]
[467,10000255087,"محمد علي467","استاذ تعليم ابتدائي","إ -","العربية","جويدة الجموعي- النخلة","الرباح","حي النور","النخلة","مركز اجراء امتحان ش البكالوريا","","ثانوية الشهيد بن حمده علي  - النخلة"]
[468,10000255088,"محمد علي468","استاذ تعليم ابتدائي","إ -","العربية","جويدة الجموعي- النخلة","الرباح","حي النور","النخلة","مركز اجراء امتحان ش البكالوريا","","ثانوية الشهيد بن حمده علي  - النخلة"]
[469,10000255089,"محمد علي469","استاذ تعليم ابتدائي","إ -","العربية","جويدة الجموعي- النخلة","الرباح","حي النور","النخلة","مركز اجراء امتحان ش البكالوريا","","ثانوية الشهيد بن حمده علي  - النخلة"]
[470,10000255090,"محمد علي470","استاذ تعليم ابتدائي","إ -","العربية","جويدة الجموعي- النخلة","الرباح","حي النور","النخلة","مركز اجراء امتحان ش البكالوريا","","ثانوية الشهيد بن حمده علي  - النخلة"]
[471,10000255091,"محمد علي471","استاذ تعليم ابتدائي","إ -","العربية","جويدة الجموعي- النخلة","الرباح","حي النور","النخلة","مركز اجراء امتحان ش البكالوريا","","ثانوية الشهيد بن حمده علي  - النخلة"]
[472,10000255092,"محمد علي472","استاذ تعليم ابتدائي","إ -","العربية","جويدة الجموعي- النخلة","الرباح","حي النور","النخلة","مركز اجراء امتحان ش البكالوريا","","ثانوية الشهيد بن حمده علي  - النخلة"]
[473,10000255093,"محمد علي473","استاذ تعليم ابتدائي","إ -","العربية","جويدة الجموعي- النخلة","الرباح","حي النور","النخلة","مركز اجراء امتحان ش البكالوريا","","ثانوية الشهيد بن حمده علي  - النخلة"]
[474,10000255094,"محمد علي474","استاذ تعليم ابتدائي","إ -","العربية","جويدة الجموعي- النخلة","الرباح","حي النور","النخلة","مركز اجراء امتحان ش البكالوريا","","ثانوية الشهيد بن حمده علي  - النخلة"]
[475,10000255095,"محمد علي475","استاذ تعليم ابتدائي","إ -","العربية","جويدة الجموعي- النخلة","الرباح","حي النور","النخلة","مركز اجراء امتحان ش البكالوريا","","ثانوية الشهيد بن حمده علي  - النخلة"]
[476,10000255096,"محمد علي476","استاذ تعليم ابتدائي","إ -","العربية","جويدة الجموعي- النخلة","الرباح","حي النور","النخلة","مركز اجراء امتحان ش البكالوريا","","ثانوية الشهيد بن حمده علي  - النخلة"]
[477,10000255097,"محمد علي477","استاذ تعليم ابتدائي","إ -","العربية","جويدة الجموعي- النخلة","الرباح","حي النور","النخلة","مركز اجراء امتحان ش البكالوريا","","ثانوية الشهيد بن حمده علي  - النخلة"]
[478,10000255098,"محمد علي478","استاذ تعليم ابتدائي","إ -","العربية","جويدة الجموعي- النخلة","الرباح","حي النور","النخلة","مركز اجراء امتحان ش البكالوريا","","ثانوية الشهيد بن حمده علي  - النخلة"]
[479,10000255099,"محمد علي479","استاذ تعليم ابتدائي","إ -","العربية","جويدة الجموعي- النخلة","الرباح","حي النور","النخلة","مركز اجراء امتحان ش البكالوريا","","ثانوية الشهيد بن حمده علي  - النخلة"]
[480,10000255100,"محمد علي480","استاذ تعليم ابتدائي","إ -","العربية","جويدة الجموعي- النخلة","الرباح","حي النور","النخلة","مركز اجراء امتحان ش البكالوريا","","ثانوية الشهيد بن حمده علي  - النخلة"]
[481,10000255101,"محمد علي481","استاذ تعليم ابتدائي","إ -","العربية","جويدة الجموعي- النخلة","الرباح","حي النور","النخلة","مركز اجراء امتحان ش البكالوريا","","ثانوية الشهيد بن حمده علي  - النخلة"]
[482,10000255102,"محمد علي482","استاذ تعليم ابتدائي","إ -","العربية","جويدة الجموعي- النخلة","الرباح","حي النور","النخلة","مركز اجراء امتحان ش البكالوريا","","ثانوية الشهيد بن حمده علي  - النخلة"]
[483,10000255103,"محمد علي483","استاذ تعليم ابتدائي","إ -","العربية","جويدة الجموعي- النخلة","الرباح","حي النور","النخلة","مركز اجراء امتحان ش البكالوريا","","ثانوية الشهيد بن حمده علي  - النخلة"]
[484,10000255104,"محمد علي484","استاذ تعليم ابتدائي","إ -","العربية","جويدة الجموعي- النخلة","الرباح","حي النور","النخلة","مركز اجراء امتحان ش البكالوريا","","ثانوية الشهيد بن حمده علي  - النخلة"]
[485,10000255105,"محمد علي485","استاذ تعليم ابتدائي","إ -","العربية","جويدة الجموعي- النخلة","الرباح","حي النور","النخلة","مركز اجراء امتحان ش البكالوريا","","ثانوية الشهيد بن حمده علي  - النخلة"]
[486,10000255106,"محمد علي486","استاذ تعليم ابتدائي","إ -","العربية","جويدة الجموعي- النخلة","الرباح","حي النور","النخلة","مركز اجراء امتحان ش البكالوريا","","ثانوية الشهيد بن حمده علي  - النخلة"]
[487,10000255107,"محمد علي487","استاذ تعليم ابتدائي","إ -","العربية","جويدة الجموعي- النخلة","الرباح","حي النور","النخلة","مركز اجراء امتحان ش البكالوريا","","ثانوية الشهيد بن حمده علي  - النخلة"]
[488,10000255108,"محمد علي488","استاذ تعليم ابتدائي","إ -","العربية","جويدة الجموعي- النخلة","الرباح","حي النور","النخلة","مركز اجراء امتحان ش البكالوريا","","ثانوية الشهيد بن حمده علي  - النخلة"]
[489,10000255109,"محمد علي489","استاذ تعليم ابتدائي","إ -","العربية","جويدة الجموعي- النخلة","الرباح","حي النور","النخلة","مركز اجراء امتحان ش البكالوريا","","ثانوية الشهيد بن حمده علي  - النخلة"]
[490,10000255110,"محمد علي490","استاذ تعليم ابتدائي","إ -","العربية","جويدة الجموعي- النخلة","الرباح","حي النور","النخلة","مركز اجراء امتحان ش البكالوريا","","ثانوية الشهيد بن حمده علي  - النخلة"]
[491,10000255111,"محمد علي491","استاذ تعليم ابتدائي","إ -","العربية","جويدة الجموعي- النخلة","الرباح","حي النور","النخلة","مركز اجراء امتحان ش البكالوريا","","ثانوية الشهيد بن حمده علي  - النخلة"]
[492,10000255112,"محمد علي492","استاذ تعليم ابتدائي","إ -","العربية","جويدة الجموعي- النخلة","الرباح","حي النور","النخلة","مركز اجراء امتحان ش البكالوريا","","ثانوية الشهيد بن حمده علي  - النخلة"]
[493,10000255113,"محمد علي493","استاذ تعليم ابتدائي","إ -","العربية","جويدة الجموعي- النخلة","الرباح","حي النور","النخلة","مركز اجراء امتحان ش البكالوريا","","ثانوية الشهيد بن حمده علي  - النخلة"]
[494,10000255114,"محمد علي494","استاذ تعليم ابتدائي","إ -","العربية","جويدة الجموعي- النخلة","الرباح","حي النور","النخلة","مركز اجراء امتحان ش البكالوريا","","ثانوية الشهيد بن حمده علي  - النخلة"]
[495,10000255115,"محمد علي495","استاذ تعليم ابتدائي","إ -","العربية","جويدة الجموعي- النخلة","الرباح","حي النور","النخلة","مركز اجراء امتحان ش البكالوريا","","ثانوية الشهيد بن حمده علي  - النخلة"]
[496,10000255116,"محمد علي496","استاذ تعليم ابتدائي","إ -","العربية","جويدة الجموعي- النخلة","الرباح","حي النور","النخلة","مركز اجراء امتحان ش البكالوريا","","ثانوية الشهيد بن حمده علي  - النخلة"]
[497,10000255117,"محمد علي497","استاذ تعليم ابتدائي","إ -","العربية","جويدة الجموعي- النخلة","الرباح","حي النور","النخلة","مركز اجراء امتحان ش البكالوريا","","ثانوية الشهيد بن حمده علي  - النخلة"]
[498,10000255118,"محمد علي498","استاذ تعليم ابتدائي","إ -","العربية","جويدة الجموعي- النخلة","الرباح","حي النور","النخلة","مركز اجراء امتحان ش البكالوريا","","ثانوية الشهيد بن حمده علي  - النخلة"]
[499,10000255119,"محمد علي499","استاذ تعليم ابتدائي","إ -","العربية","جويدة الجموعي- النخلة","الرباح","حي النور","النخلة","مركز اجراء امتحان ش البكالوريا","","ثانوية الشهيد بن حمده علي  - النخلة"]
[500,10000255120,"محمد علي500","استاذ تعليم ابتدائي","إ -","العربية","جويدة الجموعي- النخلة","الرباح","حي النور","النخلة","مركز اجراء امتحان ش البكالوريا","","ثانوية الشهيد بن حمده علي  - النخلة"]
[501,10000255121,"محمد علي501","استاذ تعليم ابتدائي","إ -","العربية","جويدة الجموعي- النخلة","الرباح","حي النور","النخلة","مركز اجراء امتحان ش البكالوريا","","ثانوية الشهيد بن حمده علي  - النخلة"]
[502,10000255122,"محمد علي502","استاذ تعليم ابتدائي","إ -","العربية","جويدة الجموعي- النخلة","الرباح","حي النور","النخلة","مركز اجراء امتحان ش البكالوريا","","ثانوية الشهيد بن حمده علي  - النخلة"]
[503,10000255123,"محمد علي503","استاذ تعليم ابتدائي","إ -","العربية","جويدة الجموعي- النخلة","الرباح","حي النور","النخلة","مركز اجراء امتحان ش البكالوريا","","ثانوية الشهيد بن حمده علي  - النخلة"]
[504,10000255124,"محمد علي504","استاذ تعليم ابتدائي","إ -","العربية","جويدة الجموعي- النخلة","الرباح","حي النور","النخلة","مركز اجراء امتحان ش البكالوريا","","ثانوية الشهيد بن حمده علي  - النخلة"]
[505,10000255125,"محمد علي505","استاذ تعليم ابتدائي","إ -","العربية","جويدة الجموعي- النخلة","الرباح","حي النور","النخلة","مركز اجراء امتحان ش البكالوريا","","ثانوية الشهيد بن حمده علي  - النخلة"]
[506,10000255126,"محمد علي506","استاذ تعليم ابتدائي","إ -","العربية","جويدة الجموعي- النخلة","الرباح","حي النور","النخلة","مركز اجراء امتحان ش البكالوريا","","ثانوية الشهيد بن حمده علي  - النخلة"]
[507,10000255127,"محمد علي507","استاذ تعليم ابتدائي","إ -","العربية","جويدة الجموعي- النخلة","الرباح","حي النور","النخلة","مركز اجراء امتحان ش البكالوريا","","ثانوية الشهيد بن حمده علي  - النخلة"]
[508,10000255128,"محمد علي508","استاذ تعليم ابتدائي","إ -","العربية","جويدة الجموعي- النخلة","الرباح","حي النور","النخلة","مركز اجراء امتحان ش البكالوريا","","ثانوية الشهيد بن حمده علي  - النخلة"]
[509,10000255129,"محمد علي509","استاذ تعليم ابتدائي","إ -","العربية","جويدة الجموعي- النخلة","الرباح","حي النور","النخلة","مركز اجراء امتحان ش البكالوريا","","ثانوية الشهيد بن حمده علي  - النخلة"]
[510,10000255130,"محمد علي510","استاذ تعليم ابتدائي","إ -","العربية","جويدة الجموعي- النخلة","الرباح","حي النور","النخلة","مركز اجراء امتحان ش البكالوريا","","ثانوية الشهيد بن حمده علي  - النخلة"]
[511,10000255131,"محمد علي511","استاذ تعليم ابتدائي","إ -","العربية","جويدة الجموعي- النخلة","الرباح","حي النور","النخلة","مركز اجراء امتحان ش البكالوريا","","ثانوية الشهيد بن حمده علي  - النخلة"]
[512,10000255132,"محمد علي512","استاذ تعليم ابتدائي","إ -","العربية","جويدة الجموعي- النخلة","الرباح","حي النور","النخلة","مركز اجراء امتحان ش البكالوريا","","ثانوية الشهيد بن حمده علي  - النخلة"]
[513,10000255133,"محمد علي513","استاذ تعليم ابتدائي","إ -","العربية","جويدة الجموعي- النخلة","الرباح","حي النور","النخلة","مركز اجراء امتحان ش البكالوريا","","ثانوية الشهيد بن حمده علي  - النخلة"]
[514,10000255134,"محمد علي514","استاذ تعليم ابتدائي","إ -","العربية","جويدة الجموعي- النخلة","الرباح","حي النور","النخلة","مركز اجراء امتحان ش البكالوريا","","ثانوية الشهيد بن حمده علي  - النخلة"]
[515,10000255135,"محمد علي515","استاذ تعليم ابتدائي","إ -","العربية","جويدة الجموعي- النخلة","الرباح","حي النور","النخلة","مركز اجراء امتحان ش البكالوريا","","ثانوية الشهيد بن حمده علي  - النخلة"]
[516,10000255136,"محمد علي516","استاذ تعليم ابتدائي","إ -","العربية","جويدة الجموعي- النخلة","الرباح","حي النور","النخلة","مركز اجراء امتحان ش البكالوريا","","ثانوية الشهيد بن حمده علي  - النخلة"]
[517,10000255137,"محمد علي517","استاذ تعليم ابتدائي","إ -","العربية","جويدة الجموعي- النخلة","الرباح","حي النور","النخلة","مركز اجراء امتحان ش البكالوريا","","ثانوية الشهيد بن حمده علي  - النخلة"]
[518,10000255138,"محمد علي518","استاذ تعليم ابتدائي","إ -","العربية","جويدة الجموعي- النخلة","الرباح","حي النور","النخلة","مركز اجراء امتحان ش البكالوريا","","ثانوية الشهيد بن حمده علي  - النخلة"]
[519,10000255139,"محمد علي519","استاذ تعليم ابتدائي","إ -","العربية","جويدة الجموعي- النخلة","الرباح","حي النور","النخلة","مركز اجراء امتحان ش البكالوريا","","ثانوية الشهيد بن حمده علي  - النخلة"]
[520,10000255140,"محمد علي520","استاذ تعليم ابتدائي","إ -","العربية","جويدة الجموعي- النخلة","الرباح","حي النور","النخلة","مركز اجراء امتحان ش البكالوريا","","ثانوية الشهيد بن حمده علي  - النخلة"]
[521,10000255141,"محمد علي521","استاذ تعليم ابتدائي","إ -","العربية","جويدة الجموعي- النخلة","الرباح","حي النور","النخلة","مركز اجراء امتحان ش البكالوريا","","ثانوية الشهيد بن حمده علي  - النخلة"]
[522,10000255142,"محمد علي522","استاذ تعليم ابتدائي","إ -","العربية","جويدة الجموعي- النخلة","الرباح","حي النور","النخلة","مركز اجراء امتحان ش البكالوريا","","ثانوية الشهيد بن حمده علي  - النخلة"]
[523,10000255143,"محمد علي523","استاذ تعليم ابتدائي","إ -","العربية","جويدة الجموعي- النخلة","الرباح","حي النور","النخلة","مركز اجراء امتحان ش البكالوريا","","ثانوية الشهيد بن حمده علي  - النخلة"]
[524,10000255144,"محمد علي524","استاذ تعليم ابتدائي","إ -","العربية","جويدة الجموعي- النخلة","الرباح","حي النور","النخلة","مركز اجراء امتحان ش البكالوريا","","ثانوية الشهيد بن حمده علي  - النخلة"]
[525,10000255145,"محمد علي525","استاذ تعليم ابتدائي","إ -","العربية","جويدة الجموعي- النخلة","الرباح","حي النور","النخلة","مركز اجراء امتحان ش البكالوريا","","ثانوية الشهيد بن حمده علي  - النخلة"]
[526,10000255146,"محمد علي526","استاذ تعليم ابتدائي","إ -","العربية","جويدة الجموعي- النخلة","الرباح","حي النور","النخلة","مركز اجراء امتحان ش البكالوريا","","ثانوية الشهيد بن حمده علي  - النخلة"]
[527,10000255147,"محمد علي527","استاذ تعليم ابتدائي","إ -","العربية","جويدة الجموعي- النخلة","الرباح","حي النور","النخلة","مركز اجراء امتحان ش البكالوريا","","ثانوية الشهيد بن حمده علي  - النخلة"]
[528,10000255148,"محمد علي528","استاذ تعليم ابتدائي","إ -","العربية","جويدة الجموعي- النخلة","الرباح","حي النور","النخلة","مركز اجراء امتحان ش البكالوريا","","ثانوية الشهيد بن حمده علي  - النخلة"]
[529,10000255149,"محمد علي529","استاذ تعليم ابتدائي","إ -","العربية","جويدة الجموعي- النخلة","الرباح","حي النور","النخلة","مركز اجراء امتحان ش البكالوريا","","ثانوية الشهيد بن حمده علي  - النخلة"]
[530,10000255150,"محمد علي530","استاذ تعليم ابتدائي","إ -","العربية","جويدة الجموعي- النخلة","الرباح","حي النور","النخلة","مركز اجراء امتحان ش البكالوريا","","ثانوية الشهيد بن حمده علي  - النخلة"]
[531,10000255151,"محمد علي531","استاذ تعليم ابتدائي","إ -","العربية","جويدة الجموعي- النخلة","الرباح","حي النور","النخلة","مركز اجراء امتحان ش البكالوريا","","ثانوية الشهيد بن حمده علي  - النخلة"]
[532,10000255152,"محمد علي532","استاذ تعليم ابتدائي","إ -","العربية","جويدة الجموعي- النخلة","الرباح","حي النور","النخلة","مركز اجراء امتحان ش البكالوريا","","ثانوية الشهيد بن حمده علي  - النخلة"]
[533,10000255153,"محمد علي533","استاذ تعليم ابتدائي","إ -","العربية","جويدة الجموعي- النخلة","الرباح","حي النور","النخلة","مركز اجراء امتحان ش البكالوريا","","ثانوية الشهيد بن حمده علي  - النخلة"]
[534,10000255154,"محمد علي534","استاذ تعليم ابتدائي","إ -","العربية","جويدة الجموعي- النخلة","الرباح","حي النور","النخلة","مركز اجراء امتحان ش البكالوريا","","ثانوية الشهيد بن حمده علي  - النخلة"]
[535,10000255155,"محمد علي535","استاذ تعليم ابتدائي","إ -","العربية","جويدة الجموعي- النخلة","الرباح","حي النور","النخلة","مركز اجراء امتحان ش البكالوريا","","ثانوية الشهيد بن حمده علي  - النخلة"]
[536,10000255156,"محمد علي536","استاذ تعليم ابتدائي","إ -","العربية","جويدة الجموعي- النخلة","الرباح","حي النور","النخلة","مركز اجراء امتحان ش البكالوريا","","ثانوية الشهيد بن حمده علي  - النخلة"]
[537,10000255157,"محمد علي537","استاذ تعليم ابتدائي","إ -","العربية","جويدة الجموعي- النخلة","الرباح","حي النور","النخلة","مركز اجراء امتحان ش البكالوريا","","ثانوية الشهيد بن حمده علي  - النخلة"]
[538,10000255158,"محمد علي538","استاذ تعليم ابتدائي","إ -","العربية","جويدة الجموعي- النخلة","الرباح","حي النور","النخلة","مركز اجراء امتحان ش البكالوريا","","ثانوية الشهيد بن حمده علي  - النخلة"]
[539,10000255159,"محمد علي539","استاذ تعليم ابتدائي","إ -","العربية","جويدة الجموعي- النخلة","الرباح","حي النور","النخلة","مركز اجراء امتحان ش البكالوريا","","ثانوية الشهيد بن حمده علي  - النخلة"]
[540,10000255160,"محمد علي540","استاذ تعليم ابتدائي","إ -","العربية","جويدة الجموعي- النخلة","الرباح","حي النور","النخلة","مركز اجراء امتحان ش البكالوريا","","ثانوية الشهيد بن حمده علي  - النخلة"]
[541,10000255161,"محمد علي541","استاذ تعليم ابتدائي","إ -","العربية","جويدة الجموعي- النخلة","الرباح","حي النور","النخلة","مركز اجراء امتحان ش البكالوريا","","ثانوية الشهيد بن حمده علي  - النخلة"]
[542,10000255162,"محمد علي542","استاذ تعليم ابتدائي","إ -","العربية","جويدة الجموعي- النخلة","الرباح","حي النور","النخلة","مركز اجراء امتحان ش البكالوريا","","ثانوية الشهيد بن حمده علي  - النخلة"]
[543,10000255163,"محمد علي543","استاذ تعليم ابتدائي","إ -","العربية","جويدة الجموعي- النخلة","الرباح","حي النور","النخلة","مركز اجراء امتحان ش البكالوريا","","ثانوية الشهيد بن حمده علي  - النخلة"]
[544,10000255164,"محمد علي544","استاذ تعليم ابتدائي","إ -","العربية","جويدة الجموعي- النخلة","الرباح","حي النور","النخلة","مركز اجراء امتحان ش البكالوريا","","ثانوية الشهيد بن حمده علي  - النخلة"]
[545,10000255165,"محمد علي545","استاذ تعليم ابتدائي","إ -","العربية","جويدة الجموعي- النخلة","الرباح","حي النور","النخلة","مركز اجراء امتحان ش البكالوريا","","ثانوية الشهيد بن حمده علي  - النخلة"]
[546,10000255166,"محمد علي546","استاذ تعليم ابتدائي","إ -","العربية","جويدة الجموعي- النخلة","الرباح","حي النور","النخلة","مركز اجراء امتحان ش البكالوريا","","ثانوية الشهيد بن حمده علي  - النخلة"]
[547,10000255167,"محمد علي547","استاذ تعليم ابتدائي","إ -","العربية","جويدة الجموعي- النخلة","الرباح","حي النور","النخلة","مركز اجراء امتحان ش البكالوريا","","ثانوية الشهيد بن حمده علي  - النخلة"]
[548,10000255168,"محمد علي548","استاذ تعليم ابتدائي","إ -","العربية","جويدة الجموعي- النخلة","الرباح","حي النور","النخلة","مركز اجراء امتحان ش البكالوريا","","ثانوية الشهيد بن حمده علي  - النخلة"]
[549,10000255169,"محمد علي549","استاذ تعليم ابتدائي","إ -","العربية","جويدة الجموعي- النخلة","الرباح","حي النور","النخلة","مركز اجراء امتحان ش البكالوريا","","ثانوية الشهيد بن حمده علي  - النخلة"]
[550,10000255170,"محمد علي550","استاذ تعليم ابتدائي","إ -","العربية","جويدة الجموعي- النخلة","الرباح","حي النور","النخلة","مركز اجراء امتحان ش البكالوريا","","ثانوية الشهيد بن حمده علي  - النخلة"]
[551,10000255171,"محمد علي551","استاذ تعليم ابتدائي","إ -","العربية","جويدة الجموعي- النخلة","الرباح","حي النور","النخلة","مركز اجراء امتحان ش البكالوريا","","ثانوية الشهيد بن حمده علي  - النخلة"]
[552,10000255172,"محمد علي552","استاذ تعليم ابتدائي","إ -","العربية","جويدة الجموعي- النخلة","الرباح","حي النور","النخلة","مركز اجراء امتحان ش البكالوريا","","ثانوية الشهيد بن حمده علي  - النخلة"]
[553,10000255173,"محمد علي553","استاذ تعليم ابتدائي","إ -","العربية","جويدة الجموعي- النخلة","الرباح","حي النور","النخلة","مركز اجراء امتحان ش البكالوريا","","ثانوية الشهيد بن حمده علي  - النخلة"]
[554,10000255174,"محمد علي554","استاذ تعليم ابتدائي","إ -","العربية","جويدة الجموعي- النخلة","الرباح","حي النور","النخلة","مركز اجراء امتحان ش البكالوريا","","ثانوية الشهيد بن حمده علي  - النخلة"]
[555,10000255175,"محمد علي555","استاذ تعليم ابتدائي","إ -","العربية","جويدة الجموعي- النخلة","الرباح","حي النور","النخلة","مركز اجراء امتحان ش البكالوريا","","ثانوية الشهيد بن حمده علي  - النخلة"]
[556,10000255176,"محمد علي556","استاذ تعليم ابتدائي","إ -","العربية","جويدة الجموعي- النخلة","الرباح","حي النور","النخلة","مركز اجراء امتحان ش البكالوريا","","ثانوية الشهيد بن حمده علي  - النخلة"]
[557,10000255177,"محمد علي557","استاذ تعليم ابتدائي","إ -","العربية","جويدة الجموعي- النخلة","الرباح","حي النور","النخلة","مركز اجراء امتحان ش البكالوريا","","ثانوية الشهيد بن حمده علي  - النخلة"]
[558,10000255178,"محمد علي558","استاذ تعليم ابتدائي","إ -","العربية","جويدة الجموعي- النخلة","الرباح","حي النور","النخلة","مركز اجراء امتحان ش البكالوريا","","ثانوية الشهيد بن حمده علي  - النخلة"]
[559,10000255179,"محمد علي559","استاذ تعليم ابتدائي","إ -","العربية","جويدة الجموعي- النخلة","الرباح","حي النور","النخلة","مركز اجراء امتحان ش البكالوريا","","ثانوية الشهيد بن حمده علي  - النخلة"]
[560,10000255180,"محمد علي560","استاذ تعليم ابتدائي","إ -","العربية","جويدة الجموعي- النخلة","الرباح","حي النور","النخلة","مركز اجراء امتحان ش البكالوريا","","ثانوية الشهيد بن حمده علي  - النخلة"]
[561,10000255181,"محمد علي561","استاذ تعليم ابتدائي","إ -","العربية","جويدة الجموعي- النخلة","الرباح","حي النور","النخلة","مركز اجراء امتحان ش البكالوريا","","ثانوية الشهيد بن حمده علي  - النخلة"]
[562,10000255182,"محمد علي562","استاذ تعليم ابتدائي","إ -","العربية","جويدة الجموعي- النخلة","الرباح","حي النور","النخلة","مركز اجراء امتحان ش البكالوريا","","ثانوية الشهيد بن حمده علي  - النخلة"]
[563,10000255183,"محمد علي563","استاذ تعليم ابتدائي","إ -","العربية","جويدة الجموعي- النخلة","الرباح","حي النور","النخلة","مركز اجراء امتحان ش البكالوريا","","ثانوية الشهيد بن حمده علي  - النخلة"]
[564,10000255184,"محمد علي564","استاذ تعليم ابتدائي","إ -","العربية","جويدة الجموعي- النخلة","الرباح","حي النور","النخلة","مركز اجراء امتحان ش البكالوريا","","ثانوية الشهيد بن حمده علي  - النخلة"]
[565,10000255185,"محمد علي565","استاذ تعليم ابتدائي","إ -","العربية","جويدة الجموعي- النخلة","الرباح","حي النور","النخلة","مركز اجراء امتحان ش البكالوريا","","ثانوية الشهيد بن حمده علي  - النخلة"]
[566,10000255186,"محمد علي566","استاذ تعليم ابتدائي","إ -","العربية","جويدة الجموعي- النخلة","الرباح","حي النور","النخلة","مركز اجراء امتحان ش البكالوريا","","ثانوية الشهيد بن حمده علي  - النخلة"]
[567,10000255187,"محمد علي567","استاذ تعليم ابتدائي","إ -","العربية","جويدة الجموعي- النخلة","الرباح","حي النور","النخلة","مركز اجراء امتحان ش البكالوريا","","ثانوية الشهيد بن حمده علي  - النخلة"]
[568,10000255188,"محمد علي568","استاذ تعليم ابتدائي","إ -","العربية","جويدة الجموعي- النخلة","الرباح","حي النور","النخلة","مركز اجراء امتحان ش البكالوريا","","ثانوية الشهيد بن حمده علي  - النخلة"]
[569,10000255189,"محمد علي569","استاذ تعليم ابتدائي","إ -","العربية","جويدة الجموعي- النخلة","الرباح","حي النور","النخلة","مركز اجراء امتحان ش البكالوريا","","ثانوية الشهيد بن حمده علي  - النخلة"]
[570,10000255190,"محمد علي570","استاذ تعليم ابتدائي","إ -","العربية","جويدة الجموعي- النخلة","الرباح","حي النور","النخلة","مركز اجراء امتحان ش البكالوريا","","ثانوية الشهيد بن حمده علي  - النخلة"]
[571,10000255191,"محمد علي571","استاذ تعليم ابتدائي","إ -","العربية","جويدة الجموعي- النخلة","الرباح","حي النور","النخلة","مركز اجراء امتحان ش البكالوريا","","ثانوية الشهيد بن حمده علي  - النخلة"]
[572,10000255192,"محمد علي572","استاذ تعليم ابتدائي","إ -","العربية","جويدة الجموعي- النخلة","الرباح","حي النور","النخلة","مركز اجراء امتحان ش البكالوريا","","ثانوية الشهيد بن حمده علي  - النخلة"]
[573,10000255193,"محمد علي573","استاذ تعليم ابتدائي","إ -","العربية","جويدة الجموعي- النخلة","الرباح","حي النور","النخلة","مركز اجراء امتحان ش البكالوريا","","ثانوية الشهيد بن حمده علي  - النخلة"]
[574,10000255194,"محمد علي574","استاذ تعليم ابتدائي","إ -","العربية","جويدة الجموعي- النخلة","الرباح","حي النور","النخلة","مركز اجراء امتحان ش البكالوريا","","ثانوية الشهيد بن حمده علي  - النخلة"]
[575,10000255195,"محمد علي575","استاذ تعليم ابتدائي","إ -","العربية","جويدة الجموعي- النخلة","الرباح","حي النور","النخلة","مركز اجراء امتحان ش البكالوريا","","ثانوية الشهيد بن حمده علي  - النخلة"]
[576,10000255196,"محمد علي576","استاذ تعليم ابتدائي","إ -","العربية","جويدة الجموعي- النخلة","الرباح","حي النور","النخلة","مركز اجراء امتحان ش البكالوريا","","ثانوية الشهيد بن حمده علي  - النخلة"]
[577,10000255197,"محمد علي577","استاذ تعليم ابتدائي","إ -","العربية","جويدة الجموعي- النخلة","الرباح","حي النور","النخلة","مركز اجراء امتحان ش البكالوريا","","ثانوية الشهيد بن حمده علي  - النخلة"]
[578,10000255198,"محمد علي578","استاذ تعليم ابتدائي","إ -","العربية","جويدة الجموعي- النخلة","الرباح","حي النور","النخلة","مركز اجراء امتحان ش البكالوريا","","ثانوية الشهيد بن حمده علي  - النخلة"]
[579,10000255199,"محمد علي579","استاذ تعليم ابتدائي","إ -","العربية","جويدة الجموعي- النخلة","الرباح","حي النور","النخلة","مركز اجراء امتحان ش البكالوريا","","ثانوية الشهيد بن حمده علي  - النخلة"]
[580,10000255200,"محمد علي580","استاذ تعليم ابتدائي","إ -","العربية","جويدة الجموعي- النخلة","الرباح","حي النور","النخلة","مركز اجراء امتحان ش البكالوريا","","ثانوية الشهيد بن حمده علي  - النخلة"]
[581,10000255201,"محمد علي581","استاذ تعليم ابتدائي","إ -","العربية","جويدة الجموعي- النخلة","الرباح","حي النور","النخلة","مركز اجراء امتحان ش البكالوريا","","ثانوية الشهيد بن حمده علي  - النخلة"]
[582,10000255202,"محمد علي582","استاذ تعليم ابتدائي","إ -","العربية","جويدة الجموعي- النخلة","الرباح","حي النور","النخلة","مركز اجراء امتحان ش البكالوريا","","ثانوية الشهيد بن حمده علي  - النخلة"]
[583,10000255203,"محمد علي583","استاذ تعليم ابتدائي","إ -","العربية","جويدة الجموعي- النخلة","الرباح","حي النور","النخلة","مركز اجراء امتحان ش البكالوريا","","ثانوية الشهيد بن حمده علي  - النخلة"]
[584,10000255204,"محمد علي584","استاذ تعليم ابتدائي","إ -","العربية","جويدة الجموعي- النخلة","الرباح","حي النور","النخلة","مركز اجراء امتحان ش البكالوريا","","ثانوية الشهيد بن حمده علي  - النخلة"]
[585,10000255205,"محمد علي585","استاذ تعليم ابتدائي","إ -","العربية","جويدة الجموعي- النخلة","الرباح","حي النور","النخلة","مركز اجراء امتحان ش البكالوريا","","ثانوية الشهيد بن حمده علي  - النخلة"]
[586,10000255206,"محمد علي586","استاذ تعليم ابتدائي","إ -","العربية","جويدة الجموعي- النخلة","الرباح","حي النور","النخلة","مركز اجراء امتحان ش البكالوريا","","ثانوية الشهيد بن حمده علي  - النخلة"]
[587,10000255207,"محمد علي587","استاذ تعليم ابتدائي","إ -","العربية","جويدة الجموعي- النخلة","الرباح","حي النور","النخلة","مركز اجراء امتحان ش البكالوريا","","ثانوية الشهيد بن حمده علي  - النخلة"]
[588,10000255208,"محمد علي588","استاذ تعليم ابتدائي","إ -","العربية","جويدة الجموعي- النخلة","الرباح","حي النور","النخلة","مركز اجراء امتحان ش البكالوريا","","ثانوية الشهيد بن حمده علي  - النخلة"]
[589,10000255209,"محمد علي589","استاذ تعليم ابتدائي","إ -","العربية","جويدة الجموعي- النخلة","الرباح","حي النور","النخلة","مركز اجراء امتحان ش البكالوريا","","ثانوية الشهيد بن حمده علي  - النخلة"]
[590,10000255210,"محمد علي590","استاذ تعليم ابتدائي","إ -","العربية","جويدة الجموعي- النخلة","الرباح","حي النور","النخلة","مركز اجراء امتحان ش البكالوريا","","ثانوية الشهيد بن حمده علي  - النخلة"]
[591,10000255211,"محمد علي591","استاذ تعليم ابتدائي","إ -","العربية","جويدة الجموعي- النخلة","الرباح","حي النور","النخلة","مركز اجراء امتحان ش البكالوريا","","ثانوية الشهيد بن حمده علي  - النخلة"]
[592,10000255212,"محمد علي592","استاذ تعليم ابتدائي","إ -","العربية","جويدة الجموعي- النخلة","الرباح","حي النور","النخلة","مركز اجراء امتحان ش البكالوريا","","ثانوية الشهيد بن حمده علي  - النخلة"]
[593,10000255213,"محمد علي593","استاذ تعليم ابتدائي","إ -","العربية","جويدة الجموعي- النخلة","الرباح","حي النور","النخلة","مركز اجراء امتحان ش البكالوريا","","ثانوية الشهيد بن حمده علي  - النخلة"]
[594,10000255214,"محمد علي594","استاذ تعليم ابتدائي","إ -","العربية","جويدة الجموعي- النخلة","الرباح","حي النور","النخلة","مركز اجراء امتحان ش البكالوريا","","ثانوية الشهيد بن حمده علي  - النخلة"]
[595,10000255215,"محمد علي595","استاذ تعليم ابتدائي","إ -","العربية","جويدة الجموعي- النخلة","الرباح","حي النور","النخلة","مركز اجراء امتحان ش البكالوريا","","ثانوية الشهيد بن حمده علي  - النخلة"]
[596,10000255216,"محمد علي596","استاذ تعليم ابتدائي","إ -","العربية","جويدة الجموعي- النخلة","الرباح","حي النور","النخلة","مركز اجراء امتحان ش البكالوريا","","ثانوية الشهيد بن حمده علي  - النخلة"]
[597,10000255217,"محمد علي597","استاذ تعليم ابتدائي","إ -","العربية","جويدة الجموعي- النخلة","الرباح","حي النور","النخلة","مركز اجراء امتحان ش البكالوريا","","ثانوية الشهيد بن حمده علي  - النخلة"]
[598,10000255218,"محمد علي598","استاذ تعليم ابتدائي","إ -","العربية","جويدة الجموعي- النخلة","الرباح","حي النور","النخلة","مركز اجراء امتحان ش البكالوريا","","ثانوية الشهيد بن حمده علي  - النخلة"]
[599,10000255219,"محمد علي599","استاذ تعليم ابتدائي","إ -","العربية","جويدة الجموعي- النخلة","الرباح","حي النور","النخلة","مركز اجراء امتحان ش البكالوريا","","ثانوية الشهيد بن حمده علي  - النخلة"]
[600,10000255220,"محمد علي600","استاذ تعليم ابتدائي","إ -","العربية","جويدة الجموعي- النخلة","الرباح","حي النور","النخلة","مركز اجراء امتحان ش البكالوريا","","ثانوية الشهيد بن حمده علي  - النخلة"]
[601,10000255221,"محمد علي601","استاذ تعليم ابتدائي","إ -","العربية","جويدة الجموعي- النخلة","الرباح","حي النور","النخلة","مركز اجراء امتحان ش البكالوريا","","ثانوية الشهيد بن حمده علي  - النخلة"]
[602,10000255222,"محمد علي602","استاذ تعليم ابتدائي","إ -","العربية","جويدة الجموعي- النخلة","الرباح","حي النور","النخلة","مركز اجراء امتحان ش البكالوريا","","ثانوية الشهيد بن حمده علي  - النخلة"]
[603,10000255223,"محمد علي603","استاذ تعليم ابتدائي","إ -","العربية","جويدة الجموعي- النخلة","الرباح","حي النور","النخلة","مركز اجراء امتحان ش البكالوريا","","ثانوية الشهيد بن حمده علي  - النخلة"]
[604,10000255224,"محمد علي604","استاذ تعليم ابتدائي","إ -","العربية","جويدة الجموعي- النخلة","الرباح","حي النور","النخلة","مركز اجراء امتحان ش البكالوريا","","ثانوية الشهيد بن حمده علي  - النخلة"]
[605,10000255225,"محمد علي605","استاذ تعليم ابتدائي","إ -","العربية","جويدة الجموعي- النخلة","الرباح","حي النور","النخلة","مركز اجراء امتحان ش البكالوريا","","ثانوية الشهيد بن حمده علي  - النخلة"]
[606,10000255226,"محمد علي606","استاذ تعليم ابتدائي","إ -","العربية","جويدة الجموعي- النخلة","الرباح","حي النور","النخلة","مركز اجراء امتحان ش البكالوريا","","ثانوية الشهيد بن حمده علي  - النخلة"]
[607,10000255227,"محمد علي607","استاذ تعليم ابتدائي","إ -","العربية","جويدة الجموعي- النخلة","الرباح","حي النور","النخلة","مركز اجراء امتحان ش البكالوريا","","ثانوية الشهيد بن حمده علي  - النخلة"]
[608,10000255228,"محمد علي608","استاذ تعليم ابتدائي","إ -","العربية","جويدة الجموعي- النخلة","الرباح","حي النور","النخلة","مركز اجراء امتحان ش البكالوريا","","ثانوية الشهيد بن حمده علي  - النخلة"]
[609,10000255229,"محمد علي609","استاذ تعليم ابتدائي","إ -","العربية","جويدة الجموعي- النخلة","الرباح","حي النور","النخلة","مركز اجراء امتحان ش البكالوريا","","ثانوية الشهيد بن حمده علي  - النخلة"]
[610,10000255230,"محمد علي610","استاذ تعليم ابتدائي","إ -","العربية","جويدة الجموعي- النخلة","الرباح","حي النور","النخلة","مركز اجراء امتحان ش البكالوريا","","ثانوية الشهيد بن حمده علي  - النخلة"]
[611,10000255231,"محمد علي611","استاذ تعليم ابتدائي","إ -","العربية","جويدة الجموعي- النخلة","الرباح","حي النور","النخلة","مركز اجراء امتحان ش البكالوريا","","ثانوية الشهيد بن حمده علي  - النخلة"]
[612,10000255232,"محمد علي612","استاذ تعليم ابتدائي","إ -","العربية","جويدة الجموعي- النخلة","الرباح","حي النور","النخلة","مركز اجراء امتحان ش البكالوريا","","ثانوية الشهيد بن حمده علي  - النخلة"]
[613,10000255233,"محمد علي613","استاذ تعليم ابتدائي","إ -","العربية","جويدة الجموعي- النخلة","الرباح","حي النور","النخلة","مركز اجراء امتحان ش البكالوريا","","ثانوية الشهيد بن حمده علي  - النخلة"]
[614,10000255234,"محمد علي614","استاذ تعليم ابتدائي","إ -","العربية","جويدة الجموعي- النخلة","الرباح","حي النور","النخلة","مركز اجراء امتحان ش البكالوريا","","ثانوية الشهيد بن حمده علي  - النخلة"]
[615,10000255235,"محمد علي615","استاذ تعليم ابتدائي","إ -","العربية","جويدة الجموعي- النخلة","الرباح","حي النور","النخلة","مركز اجراء امتحان ش البكالوريا","","ثانوية الشهيد بن حمده علي  - النخلة"]
[616,10000255236,"محمد علي616","استاذ تعليم ابتدائي","إ -","العربية","جويدة الجموعي- النخلة","الرباح","حي النور","النخلة","مركز اجراء امتحان ش البكالوريا","","ثانوية الشهيد بن حمده علي  - النخلة"]
[617,10000255237,"محمد علي617","استاذ تعليم ابتدائي","إ -","العربية","جويدة الجموعي- النخلة","الرباح","حي النور","النخلة","مركز اجراء امتحان ش البكالوريا","","ثانوية الشهيد بن حمده علي  - النخلة"]
[618,10000255238,"محمد علي618","استاذ تعليم ابتدائي","إ -","العربية","جويدة الجموعي- النخلة","الرباح","حي النور","النخلة","مركز اجراء امتحان ش البكالوريا","","ثانوية الشهيد بن حمده علي  - النخلة"]
[619,10000255239,"محمد علي619","استاذ تعليم ابتدائي","إ -","العربية","جويدة الجموعي- النخلة","الرباح","حي النور","النخلة","مركز اجراء امتحان ش البكالوريا","","ثانوية الشهيد بن حمده علي  - النخلة"]
[620,10000255240,"محمد علي620","استاذ تعليم ابتدائي","إ -","العربية","جويدة الجموعي- النخلة","الرباح","حي النور","النخلة","مركز اجراء امتحان ش البكالوريا","","ثانوية الشهيد بن حمده علي  - النخلة"]
[621,10000255241,"محمد علي621","استاذ تعليم ابتدائي","إ -","العربية","جويدة الجموعي- النخلة","الرباح","حي النور","النخلة","مركز اجراء امتحان ش البكالوريا","","ثانوية الشهيد بن حمده علي  - النخلة"]
[622,10000255242,"محمد علي622","استاذ تعليم ابتدائي","إ -","العربية","جويدة الجموعي- النخلة","الرباح","حي النور","النخلة","مركز اجراء امتحان ش البكالوريا","","ثانوية الشهيد بن حمده علي  - النخلة"]
[623,10000255243,"محمد علي623","استاذ تعليم ابتدائي","إ -","العربية","جويدة الجموعي- النخلة","الرباح","حي النور","النخلة","مركز اجراء امتحان ش البكالوريا","","ثانوية الشهيد بن حمده علي  - النخلة"]
[624,10000255244,"محمد علي624","استاذ تعليم ابتدائي","إ -","العربية","جويدة الجموعي- النخلة","الرباح","حي النور","النخلة","مركز اجراء امتحان ش البكالوريا","","ثانوية الشهيد بن حمده علي  - النخلة"]
[625,10000255245,"محمد علي625","استاذ تعليم ابتدائي","إ -","العربية","جويدة الجموعي- النخلة","الرباح","حي النور","النخلة","مركز اجراء امتحان ش البكالوريا","","ثانوية الشهيد بن حمده علي  - النخلة"]
[626,10000255246,"محمد علي626","استاذ تعليم ابتدائي","إ -","العربية","جويدة الجموعي- النخلة","الرباح","حي النور","النخلة","مركز اجراء امتحان ش البكالوريا","","ثانوية الشهيد بن حمده علي  - النخلة"]
[627,10000255247,"محمد علي627","استاذ تعليم ابتدائي","إ -","العربية","جويدة الجموعي- النخلة","الرباح","حي النور","النخلة","مركز اجراء امتحان ش البكالوريا","","ثانوية الشهيد بن حمده علي  - النخلة"]
[628,10000255248,"محمد علي628","استاذ تعليم ابتدائي","إ -","العربية","جويدة الجموعي- النخلة","الرباح","حي النور","النخلة","مركز اجراء امتحان ش البكالوريا","","ثانوية الشهيد بن حمده علي  - النخلة"]
[629,10000255249,"محمد علي629","استاذ تعليم ابتدائي","إ -","العربية","جويدة الجموعي- النخلة","الرباح","حي النور","النخلة","مركز اجراء امتحان ش البكالوريا","","ثانوية الشهيد بن حمده علي  - النخلة"]
[630,10000255250,"محمد علي630","استاذ تعليم ابتدائي","إ -","العربية","جويدة الجموعي- النخلة","الرباح","حي النور","النخلة","مركز اجراء امتحان ش البكالوريا","","ثانوية الشهيد بن حمده علي  - النخلة"]
[631,10000255251,"محمد علي631","استاذ تعليم ابتدائي","إ -","العربية","جويدة الجموعي- النخلة","الرباح","حي النور","النخلة","مركز اجراء امتحان ش البكالوريا","","ثانوية الشهيد بن حمده علي  - النخلة"]
[632,10000255252,"محمد علي632","استاذ تعليم ابتدائي","إ -","العربية","جويدة الجموعي- النخلة","الرباح","حي النور","النخلة","مركز اجراء امتحان ش البكالوريا","","ثانوية الشهيد بن حمده علي  - النخلة"]
[633,10000255253,"محمد علي633","استاذ تعليم ابتدائي","إ -","العربية","جويدة الجموعي- النخلة","الرباح","حي النور","النخلة","مركز اجراء امتحان ش البكالوريا","","ثانوية الشهيد بن حمده علي  - النخلة"]
[634,10000255254,"محمد علي634","استاذ تعليم ابتدائي","إ -","العربية","جويدة الجموعي- النخلة","الرباح","حي النور","النخلة","مركز اجراء امتحان ش البكالوريا","","ثانوية الشهيد بن حمده علي  - النخلة"]
[635,10000255255,"محمد علي635","استاذ تعليم ابتدائي","إ -","العربية","جويدة الجموعي- النخلة","الرباح","حي النور","النخلة","مركز اجراء امتحان ش البكالوريا","","ثانوية الشهيد بن حمده علي  - النخلة"]
[636,10000255256,"محمد علي636","استاذ تعليم ابتدائي","إ -","العربية","جويدة الجموعي- النخلة","الرباح","حي النور","النخلة","مركز اجراء امتحان ش البكالوريا","","ثانوية الشهيد بن حمده علي  - النخلة"]
[637,10000255257,"محمد علي637","استاذ تعليم ابتدائي","إ -","العربية","جويدة الجموعي- النخلة","الرباح","حي النور","النخلة","مركز اجراء امتحان ش البكالوريا","","ثانوية الشهيد بن حمده علي  - النخلة"]
[638,10000255258,"محمد علي638","استاذ تعليم ابتدائي","إ -","العربية","جويدة الجموعي- النخلة","الرباح","حي النور","النخلة","مركز اجراء امتحان ش البكالوريا","","ثانوية الشهيد بن حمده علي  - النخلة"]
[639,10000255259,"محمد علي639","استاذ تعليم ابتدائي","إ -","العربية","جويدة الجموعي- النخلة","الرباح","حي النور","النخلة","مركز اجراء امتحان ش البكالوريا","","ثانوية الشهيد بن حمده علي  - النخلة"]
[640,10000255260,"محمد علي640","استاذ تعليم ابتدائي","إ -","العربية","جويدة الجموعي- النخلة","الرباح","حي النور","النخلة","مركز اجراء امتحان ش البكالوريا","","ثانوية الشهيد بن حمده علي  - النخلة"]
[641,10000255261,"محمد علي641","استاذ تعليم ابتدائي","إ -","العربية","جويدة الجموعي- النخلة","الرباح","حي النور","النخلة","مركز اجراء امتحان ش البكالوريا","","ثانوية الشهيد بن حمده علي  - النخلة"]
[642,10000255262,"محمد علي642","استاذ تعليم ابتدائي","إ -","العربية","جويدة الجموعي- النخلة","الرباح","حي النور","النخلة","مركز اجراء امتحان ش البكالوريا","","ثانوية الشهيد بن حمده علي  - النخلة"]
[643,10000255263,"محمد علي643","استاذ تعليم ابتدائي","إ -","العربية","جويدة الجموعي- النخلة","الرباح","حي النور","النخلة","مركز اجراء امتحان ش البكالوريا","","ثانوية الشهيد بن حمده علي  - النخلة"]
[644,10000255264,"محمد علي644","استاذ تعليم ابتدائي","إ -","العربية","جويدة الجموعي- النخلة","الرباح","حي النور","النخلة","مركز اجراء امتحان ش البكالوريا","","ثانوية الشهيد بن حمده علي  - النخلة"]
[645,10000255265,"محمد علي645","استاذ تعليم ابتدائي","إ -","العربية","جويدة الجموعي- النخلة","الرباح","حي النور","النخلة","مركز اجراء امتحان ش البكالوريا","","ثانوية الشهيد بن حمده علي  - النخلة"]
[646,10000255266,"محمد علي646","استاذ تعليم ابتدائي","إ -","العربية","جويدة الجموعي- النخلة","الرباح","حي النور","النخلة","مركز اجراء امتحان ش البكالوريا","","ثانوية الشهيد بن حمده علي  - النخلة"]
[647,10000255267,"محمد علي647","استاذ تعليم ابتدائي","إ -","العربية","جويدة الجموعي- النخلة","الرباح","حي النور","النخلة","مركز اجراء امتحان ش البكالوريا","","ثانوية الشهيد بن حمده علي  - النخلة"]
[648,10000255268,"محمد علي648","استاذ تعليم ابتدائي","إ -","العربية","جويدة الجموعي- النخلة","الرباح","حي النور","النخلة","مركز اجراء امتحان ش البكالوريا","","ثانوية الشهيد بن حمده علي  - النخلة"]
[649,10000255269,"محمد علي649","استاذ تعليم ابتدائي","إ -","العربية","جويدة الجموعي- النخلة","الرباح","حي النور","النخلة","مركز اجراء امتحان ش البكالوريا","","ثانوية الشهيد بن حمده علي  - النخلة"]
[650,10000255270,"محمد علي650","استاذ تعليم ابتدائي","إ -","العربية","جويدة الجموعي- النخلة","الرباح","حي النور","النخلة","مركز اجراء امتحان ش البكالوريا","","ثانوية الشهيد بن حمده علي  - النخلة"]
[651,10000255271,"محمد علي651","استاذ تعليم ابتدائي","إ -","العربية","جويدة الجموعي- النخلة","الرباح","حي النور","النخلة","مركز اجراء امتحان ش البكالوريا","","ثانوية الشهيد بن حمده علي  - النخلة"]
[652,10000255272,"محمد علي652","استاذ تعليم ابتدائي","إ -","العربية","جويدة الجموعي- النخلة","الرباح","حي النور","النخلة","مركز اجراء امتحان ش البكالوريا","","ثانوية الشهيد بن حمده علي  - النخلة"]
[653,10000255273,"محمد علي653","استاذ تعليم ابتدائي","إ -","العربية","جويدة الجموعي- النخلة","الرباح","حي النور","النخلة","مركز اجراء امتحان ش البكالوريا","","ثانوية الشهيد بن حمده علي  - النخلة"]
[654,10000255274,"محمد علي654","استاذ تعليم ابتدائي","إ -","العربية","جويدة الجموعي- النخلة","الرباح","حي النور","النخلة","مركز اجراء امتحان ش البكالوريا","","ثانوية الشهيد بن حمده علي  - النخلة"]
[655,10000255275,"محمد علي655","استاذ تعليم ابتدائي","إ -","العربية","جويدة الجموعي- النخلة","الرباح","حي النور","النخلة","مركز اجراء امتحان ش البكالوريا","","ثانوية الشهيد بن حمده علي  - النخلة"]
[656,10000255276,"محمد علي656","استاذ تعليم ابتدائي","إ -","العربية","جويدة الجموعي- النخلة","الرباح","حي النور","النخلة","مركز اجراء امتحان ش البكالوريا","","ثانوية الشهيد بن حمده علي  - النخلة"]

{"sheet":"حساب عدد الأيام","index":2,"n_rows":151,"n_cols":15,"rows_kept":151,"cut":false,"hidden":false,"merged":[[6,14,7,14],[6,9,6,10],[6,11,6,12],[150,0,150,12],[6,0,7,0],[6,3,6,4],[6,5,6,6],[6,7,6,8],[6,13,7,13],[4,9,4,10],[4,2,4,6],[6,1,7,1],[6,2,7,2],[0,4,0,7],[1,4,1,7]]}
[null,null,null,null,"وزارة التربية الوطنية"]
[null,null,null,null,"مديرية التربية لولاية الوادي"]
[]
[]
[null,"مـركـــــز الإمتحـــان:",{"$f":"'بيانات المركز.'!Q9","v":"ثانوية المجتهد - الوادي"},null,null,null,null,"رمــز المركـــز: ",null,{"$f":"'بيانات المركز.'!V7","v":39044},null,{"$f":"'بيانات المركز.'!D19","v":"جــــوان 2021"}]
[]
["الرقم","اللقب و الإسم","القاعة","اليوم الاول",null,"اليوم الثاني",null,"اليوم الثالث",null,"اليوم الرابع",null,"اليوم الخامس",null,"عدد الايام","%"]
[null,null,null,"صباحا","مساءا","صباحا","مساءا","صباحا","مساءا","صباحا","مساءا","صباحا","مساءا"]
[1,{"$f":"'توزيع الحراس'!B3","v":"محمد علي1"},{"$f":"'توزيع الحراس'!A3","v":1},{"$f":"COUNTIF('توزيع الحراس'!D$3:F$30,$C9)","v":0},{"$f":"COUNTIF('توزيع الحراس'!G$3:I$30,$C9)","v":0},{"$f":"COUNTIF('توزيع الحراس'!K$3:M$30,$C9)","v":0},{"$f":"COUNTIF('توزيع الحراس'!N$3:P$30,$C9)","v":0},{"$f":"COUNTIF('توزيع الحراس'!Q$3:S$30,$C9)","v":0},{"$f":"COUNTIF('توزيع الحراس'!T$3:V$30,$C9)","v":0},{"$f":"COUNTIF('توزيع الحراس'!W$3:Y$30,$C9)","v":0},{"$f":"COUNTIF('توزيع الحراس'!Z$3:AB$30,$C9)","v":0},{"$f":"COUNTIF('توزيع الحراس'!AC$3:AE$30,$C9)","v":0},{"$f":"COUNTIF('توزيع الحراس'!AF$3:AH$30,$C9)","v":0},{"$f":"SUM(D9:M9)","v":0},{"$f":"N9*0.5","v":0}]
[2,{"$f":"'توزيع الحراس'!B4","v":"محمد علي2"},{"$f":"'توزيع الحراس'!A4","v":2},{"$f":"COUNTIF('توزيع الحراس'!D$3:F$30,$C10)","v":0},{"$f":"COUNTIF('توزيع الحراس'!G$3:I$30,$C10)","v":0},{"$f":"COUNTIF('توزيع الحراس'!K$3:M$30,$C10)","v":0},{"$f":"COUNTIF('توزيع الحراس'!N$3:P$30,$C10)","v":0},{"$f":"COUNTIF('توزيع الحراس'!Q$3:S$30,$C10)","v":2},{"$f":"COUNTIF('توزيع الحراس'!T$3:V$30,$C10)","v":3},{"$f":"COUNTIF('توزيع الحراس'!W$3:Y$30,$C10)","v":3},{"$f":"COUNTIF('توزيع الحراس'!Z$3:AB$30,$C10)","v":3},{"$f":"COUNTIF('توزيع الحراس'!AC$3:AE$30,$C10)","v":0},{"$f":"COUNTIF('توزيع الحراس'!AF$3:AH$30,$C10)","v":0},11,5.5]
[3,{"$f":"'توزيع الحراس'!B5","v":"محمد علي3"},{"$f":"'توزيع الحراس'!A5","v":3},{"$f":"COUNTIF('توزيع الحراس'!D$3:F$30,$C11)","v":0},{"$f":"COUNTIF('توزيع الحراس'!G$3:I$30,$C11)","v":0},{"$f":"COUNTIF('توزيع الحراس'!K$3:M$30,$C11)","v":0},{"$f":"COUNTIF('توزيع الحراس'!N$3:P$30,$C11)","v":0},{"$f":"COUNTIF('توزيع الحراس'!Q$3:S$30,$C11)","v":1},{"$f":"COUNTIF('توزيع الحراس'!T$3:V$30,$C11)","v":0},{"$f":"COUNTIF('توزيع الحراس'!W$3:Y$30,$C11)","v":0},{"$f":"COUNTIF('توزيع الحراس'!Z$3:AB$30,$C11)","v":0},{"$f":"COUNTIF('توزيع الحراس'!AC$3:AE$30,$C11)","v":0},{"$f":"COUNTIF('توزيع الحراس'!AF$3:AH$30,$C11)","v":0},1,0.5]
[4,{"$f":"'توزيع الحراس'!B6","v":"محمد علي4"},{"$f":"'توزيع الحراس'!A6","v":4},{"$f":"COUNTIF('توزيع الحراس'!D$3:F$30,$C12)","v":0},{"$f":"COUNTIF('توزيع الحراس'!G$3:I$30,$C12)","v":0},{"$f":"COUNTIF('توزيع الحراس'!K$3:M$30,$C12)","v":0},{"$f":"COUNTIF('توزيع الحراس'!N$3:P$30,$C12)","v":0},{"$f":"COUNTIF('توزيع الحراس'!Q$3:S$30,$C12)","v":0},{"$f":"COUNTIF('توزيع الحراس'!T$3:V$30,$C12)","v":0},{"$f":"COUNTIF('توزيع الحراس'!W$3:Y$30,$C12)","v":0},{"$f":"COUNTIF('توزيع الحراس'!Z$3:AB$30,$C12)","v":0},{"$f":"COUNTIF('توزيع الحراس'!AC$3:AE$30,$C12)","v":0},{"$f":"COUNTIF('توزيع الحراس'!AF$3:AH$30,$C12)","v":0},0,0]
[5,{"$f":"'توزيع الحراس'!B7","v":"محمد علي5"},{"$f":"'توزيع الحراس'!A7","v":5},{"$f":"COUNTIF('توزيع الحراس'!D$3:F$30,$C13)","v":0},{"$f":"COUNTIF('توزيع الحراس'!G$3:I$30,$C13)","v":0},{"$f":"COUNTIF('توزيع الحراس'!K$3:M$30,$C13)","v":0},{"$f":"COUNTIF('توزيع الحراس'!N$3:P$30,$C13)","v":0},{"$f":"COUNTIF('توزيع الحراس'!Q$3:S$30,$C13)","v":0},{"$f":"COUNTIF('توزيع الحراس'!T$3:V$30,$C13)","v":0},{"$f":"COUNTIF('توزيع الحراس'!W$3:Y$30,$C13)","v":0},{"$f":"COUNTIF('توزيع الحراس'!Z$3:AB$30,$C13)","v":0},{"$f":"COUNTIF('توزيع الحراس'!AC$3:AE$30,$C13)","v":1},{"$f":"COUNTIF('توزيع الحراس'!AF$3:AH$30,$C13)","v":2},3,1.5]
[6,{"$f":"'توزيع الحراس'!B8","v":"محمد علي6"},{"$f":"'توزيع الحراس'!A8","v":6},{"$f":"COUNTIF('توزيع الحراس'!D$3:F$30,$C14)","v":0},{"$f":"COUNTIF('توزيع الحراس'!G$3:I$30,$C14)","v":0},{"$f":"COUNTIF('توزيع الحراس'!K$3:M$30,$C14)","v":0},{"$f":"COUNTIF('توزيع الحراس'!N$3:P$30,$C14)","v":0},{"$f":"COUNTIF('توزيع الحراس'!Q$3:S$30,$C14)","v":0},{"$f":"COUNTIF('توزيع الحراس'!T$3:V$30,$C14)","v":0},{"$f":"COUNTIF('توزيع الحراس'!W$3:Y$30,$C14)","v":0},{"$f":"COUNTIF('توزيع الحراس'!Z$3:AB$30,$C14)","v":0},{"$f":"COUNTIF('توزيع الحراس'!AC$3:AE$30,$C14)","v":0},{"$f":"COUNTIF('توزيع الحراس'!AF$3:AH$30,$C14)","v":0},0,0]
[7,{"$f":"'توزيع الحراس'!B9","v":"محمد علي7"},{"$f":"'توزيع الحراس'!A9","v":7},{"$f":"COUNTIF('توزيع الحراس'!D$3:F$30,$C15)","v":0},{"$f":"COUNTIF('توزيع الحراس'!G$3:I$30,$C15)","v":0},{"$f":"COUNTIF('توزيع الحراس'!K$3:M$30,$C15)","v":0},{"$f":"COUNTIF('توزيع الحراس'!N$3:P$30,$C15)","v":0},{"$f":"COUNTIF('توزيع الحراس'!Q$3:S$30,$C15)","v":0},{"$f":"COUNTIF('توزيع الحراس'!T$3:V$30,$C15)","v":0},{"$f":"COUNTIF('توزيع الحراس'!W$3:Y$30,$C15)","v":0},{"$f":"COUNTIF('توزيع الحراس'!Z$3:AB$30,$C15)","v":0},{"$f":"COUNTIF('توزيع الحراس'!AC$3:AE$30,$C15)","v":0},{"$f":"COUNTIF('توزيع الحراس'!AF$3:AH$30,$C15)","v":1},1,0.5]
[8,{"$f":"'توزيع الحراس'!B10","v":"محمد علي8"},{"$f":"'توزيع الحراس'!A10","v":8},{"$f":"COUNTIF('توزيع الحراس'!D$3:F$30,$C16)","v":0},{"$f":"COUNTIF('توزيع الحراس'!G$3:I$30,$C16)","v":0},{"$f":"COUNTIF('توزيع الحراس'!K$3:M$30,$C16)","v":0},{"$f":"COUNTIF('توزيع الحراس'!N$3:P$30,$C16)","v":0},{"$f":"COUNTIF('توزيع الحراس'!Q$3:S$30,$C16)","v":0},{"$f":"COUNTIF('توزيع الحراس'!T$3:V$30,$C16)","v":0},{"$f":"COUNTIF('توزيع الحراس'!W$3:Y$30,$C16)","v":0},{"$f":"COUNTIF('توزيع الحراس'!Z$3:AB$30,$C16)","v":0},{"$f":"COUNTIF('توزيع الحراس'!AC$3:AE$30,$C16)","v":2},{"$f":"COUNTIF('توزيع الحراس'!AF$3:AH$30,$C16)","v":0},2,1]
[9,{"$f":"'توزيع الحراس'!B11","v":"محمد علي9"},{"$f":"'توزيع الحراس'!A11","v":9},{"$f":"COUNTIF('توزيع الحراس'!D$3:F$30,$C17)","v":0},{"$f":"COUNTIF('توزيع الحراس'!G$3:I$30,$C17)","v":0},{"$f":"COUNTIF('توزيع الحراس'!K$3:M$30,$C17)","v":0},{"$f":"COUNTIF('توزيع الحراس'!N$3:P$30,$C17)","v":0},{"$f":"COUNTIF('توزيع الحراس'!Q$3:S$30,$C17)","v":0},{"$f":"COUNTIF('توزيع الحراس'!T$3:V$30,$C17)","v":0},{"$f":"COUNTIF('توزيع الحراس'!W$3:Y$30,$C17)","v":0},{"$f":"COUNTIF('توزيع الحراس'!Z$3:AB$30,$C17)","v":0},{"$f":"COUNTIF('توزيع الحراس'!AC$3:AE$30,$C17)","v":0},{"$f":"COUNTIF('توزيع الحراس'!AF$3:AH$30,$C17)","v":0},0,0]
[10,{"$f":"'توزيع الحراس'!B12","v":"محمد علي10"},{"$f":"'توزيع الحراس'!A12","v":10},{"$f":"COUNTIF('توزيع الحراس'!D$3:F$30,$C18)","v":1},{"$f":"COUNTIF('توزيع الحراس'!G$3:I$30,$C18)","v":0},{"$f":"COUNTIF('توزيع الحراس'!K$3:M$30,$C18)","v":0},{"$f":"COUNTIF('توزيع الحراس'!N$3:P$30,$C18)","v":0},{"$f":"COUNTIF('توزيع الحراس'!Q$3:S$30,$C18)","v":0},{"$f":"COUNTIF('توزيع الحراس'!T$3:V$30,$C18)","v":0},{"$f":"COUNTIF('توزيع الحراس'!W$3:Y$30,$C18)","v":0},{"$f":"COUNTIF('توزيع الحراس'!Z$3:AB$30,$C18)","v":0},{"$f":"COUNTIF('توزيع الحراس'!AC$3:AE$30,$C18)","v":0},{"$f":"COUNTIF('توزيع الحراس'!AF$3:AH$30,$C18)","v":0},1,0.5]
[11,{"$f":"'توزيع الحراس'!B13","v":"محمد علي11"},{"$f":"'توزيع الحراس'!A13","v":11},{"$f":"COUNTIF('توزيع الحراس'!D$3:F$30,$C19)","v":0},{"$f":"COUNTIF('توزيع الحراس'!G$3:I$30,$C19)","v":0},{"$f":"COUNTIF('توزيع الحراس'!K$3:M$30,$C19)","v":0},{"$f":"COUNTIF('توزيع الحراس'!N$3:P$30,$C19)","v":0},{"$f":"COUNTIF('توزيع الحراس'!Q$3:S$30,$C19)","v":0},{"$f":"COUNTIF('توزيع الحراس'!T$3:V$30,$C19)","v":0},{"$f":"COUNTIF('توزيع الحراس'!W$3:Y$30,$C19)","v":0},{"$f":"COUNTIF('توزيع الحراس'!Z$3:AB$30,$C19)","v":0},{"$f":"COUNTIF('توزيع الحراس'!AC$3:AE$30,$C19)","v":0},{"$f":"COUNTIF('توزيع الحراس'!AF$3:AH$30,$C19)","v":0},0,{"$f":"N19*0.5","v":0}]
[12,{"$f":"'توزيع الحراس'!B14","v":"محمد علي12"},{"$f":"'توزيع الحراس'!A14","v":12},{"$f":"COUNTIF('توزيع الحراس'!D$3:F$30,$C20)","v":1},{"$f":"COUNTIF('توزيع الحراس'!G$3:I$30,$C20)","v":0},{"$f":"COUNTIF('توزيع الحراس'!K$3:M$30,$C20)","v":0},{"$f":"COUNTIF('توزيع الحراس'!N$3:P$30,$C20)","v":0},{"$f":"COUNTIF('توزيع الحراس'!Q$3:S$30,$C20)","v":0},{"$f":"COUNTIF('توزيع الحراس'!T$3:V$30,$C20)","v":0},{"$f":"COUNTIF('توزيع الحراس'!W$3:Y$30,$C20)","v":0},{"$f":"COUNTIF('توزيع الحراس'!Z$3:AB$30,$C20)","v":0},{"$f":"COUNTIF('توزيع الحراس'!AC$3:AE$30,$C20)","v":0},{"$f":"COUNTIF('توزيع الحراس'!AF$3:AH$30,$C20)","v":0},1,0.5]
[13,{"$f":"'توزيع الحراس'!B15","v":"محمد علي13"},{"$f":"'توزيع الحراس'!A15","v":13},{"$f":"COUNTIF('توزيع الحراس'!D$3:F$30,$C21)","v":0},{"$f":"COUNTIF('توزيع الحراس'!G$3:I$30,$C21)","v":0},{"$f":"COUNTIF('توزيع الحراس'!K$3:M$30,$C21)","v":0},{"$f":"COUNTIF('توزيع الحراس'!N$3:P$30,$C21)","v":0},{"$f":"COUNTIF('توزيع الحراس'!Q$3:S$30,$C21)","v":0},{"$f":"COUNTIF('توزيع الحراس'!T$3:V$30,$C21)","v":0},{"$f":"COUNTIF('توزيع الحراس'!W$3:Y$30,$C21)","v":0},{"$f":"COUNTIF('توزيع الحراس'!Z$3:AB$30,$C21)","v":0},{"$f":"COUNTIF('توزيع الحراس'!AC$3:AE$30,$C21)","v":0},{"$f":"COUNTIF('توزيع الحراس'!AF$3:AH$30,$C21)","v":0},0,0]
[14,{"$f":"'توزيع الحراس'!B16","v":"محمد علي14"},{"$f":"'توزيع الحراس'!A16","v":14},{"$f":"COUNTIF('توزيع الحراس'!D$3:F$30,$C22)","v":0},{"$f":"COUNTIF('توزيع الحراس'!G$3:I$30,$C22)","v":0},{"$f":"COUNTIF('توزيع الحراس'!K$3:M$30,$C22)","v":0},{"$f":"COUNTIF('توزيع الحراس'!N$3:P$30,$C22)","v":0},{"$f":"COUNTIF('توزيع الحراس'!Q$3:S$30,$C22)","v":0},{"$f":"COUNTIF('توزيع الحراس'!T$3:V$30,$C22)","v":0},{"$f":"COUNTIF('توزيع الحراس'!W$3:Y$30,$C22)","v":0},{"$f":"COUNTIF('توزيع الحراس'!Z$3:AB$30,$C22)","v":0},{"$f":"COUNTIF('توزيع الحراس'!AC$3:AE$30,$C22)","v":0},{"$f":"COUNTIF('توزيع الحراس'!AF$3:AH$30,$C22)","v":0},0,0]
[15,{"$f":"'توزيع الحراس'!B17","v":"محمد علي15"},{"$f":"'توزيع الحراس'!A17","v":15},{"$f":"COUNTIF('توزيع الحراس'!D$3:F$30,$C23)","v":1},{"$f":"COUNTIF('توزيع الحراس'!G$3:I$30,$C23)","v":0},{"$f":"COUNTIF('توزيع الحراس'!K$3:M$30,$C23)","v":0},{"$f":"COUNTIF('توزيع الحراس'!N$3:P$30,$C23)","v":0},{"$f":"COUNTIF('توزيع الحراس'!Q$3:S$30,$C23)","v":0},{"$f":"COUNTIF('توزيع الحراس'!T$3:V$30,$C23)","v":0},{"$f":"COUNTIF('توزيع الحراس'!W$3:Y$30,$C23)","v":0},{"$f":"COUNTIF('توزيع الحراس'!Z$3:AB$30,$C23)","v":0},{"$f":"COUNTIF('توزيع الحراس'!AC$3:AE$30,$C23)","v":0},{"$f":"COUNTIF('توزيع الحراس'!AF$3:AH$30,$C23)","v":0},1,0.5]
[16,{"$f":"'توزيع الحراس'!B18","v":"محمد علي16"},{"$f":"'توزيع الحراس'!A18","v":16},{"$f":"COUNTIF('توزيع الحراس'!D$3:F$30,$C24)","v":0},{"$f":"COUNTIF('توزيع الحراس'!G$3:I$30,$C24)","v":0},{"$f":"COUNTIF('توزيع الحراس'!K$3:M$30,$C24)","v":0},{"$f":"COUNTIF('توزيع الحراس'!N$3:P$30,$C24)","v":0},{"$f":"COUNTIF('توزيع الحراس'!Q$3:S$30,$C24)","v":0},{"$f":"COUNTIF('توزيع الحراس'!T$3:V$30,$C24)","v":0},{"$f":"COUNTIF('توزيع الحراس'!W$3:Y$30,$C24)","v":0},{"$f":"COUNTIF('توزيع الحراس'!Z$3:AB$30,$C24)","v":0},{"$f":"COUNTIF('توزيع الحراس'!AC$3:AE$30,$C24)","v":0},{"$f":"COUNTIF('توزيع الحراس'!AF$3:AH$30,$C24)","v":0},0,0]
[17,{"$f":"'توزيع الحراس'!B19","v":"محمد علي17"},{"$f":"'توزيع الحراس'!A19","v":17},{"$f":"COUNTIF('توزيع الحراس'!D$3:F$30,$C25)","v":0},{"$f":"COUNTIF('توزيع الحراس'!G$3:I$30,$C25)","v":0},{"$f":"COUNTIF('توزيع الحراس'!K$3:M$30,$C25)","v":0},{"$f":"COUNTIF('توزيع الحراس'!N$3:P$30,$C25)","v":0},{"$f":"COUNTIF('توزيع الحراس'!Q$3:S$30,$C25)","v":0},{"$f":"COUNTIF('توزيع الحراس'!T$3:V$30,$C25)","v":0},{"$f":"COUNTIF('توزيع الحراس'!W$3:Y$30,$C25)","v":0},{"$f":"COUNTIF('توزيع الحراس'!Z$3:AB$30,$C25)","v":0},{"$f":"COUNTIF('توزيع الحراس'!AC$3:AE$30,$C25)","v":0},{"$f":"COUNTIF('توزيع الحراس'!AF$3:AH$30,$C25)","v":0},0,0]
[18,{"$f":"'توزيع الحراس'!B20","v":"محمد علي18"},{"$f":"'توزيع الحراس'!A20","v":18},{"$f":"COUNTIF('توزيع الحراس'!D$3:F$30,$C26)","v":0},{"$f":"COUNTIF('توزيع الحراس'!G$3:I$30,$C26)","v":0},{"$f":"COUNTIF('توزيع الحراس'!K$3:M$30,$C26)","v":0},{"$f":"COUNTIF('توزيع الحراس'!N$3:P$30,$C26)","v":0},{"$f":"COUNTIF('توزيع الحراس'!Q$3:S$30,$C26)","v":0},{"$f":"COUNTIF('توزيع الحراس'!T$3:V$30,$C26)","v":0},{"$f":"COUNTIF('توزيع الحراس'!W$3:Y$30,$C26)","v":0},{"$f":"COUNTIF('توزيع الحراس'!Z$3:AB$30,$C26)","v":0},{"$f":"COUNTIF('توزيع الحراس'!AC$3:AE$30,$C26)","v":0},{"$f":"COUNTIF('توزيع الحراس'!AF$3:AH$30,$C26)","v":0},0,0]
[19,{"$f":"'توزيع الحراس'!B21","v":"محمد علي19"},{"$f":"'توزيع الحراس'!A21","v":19},{"$f":"COUNTIF('توزيع الحراس'!D$3:F$30,$C27)","v":0},{"$f":"COUNTIF('توزيع الحراس'!G$3:I$30,$C27)","v":0},{"$f":"COUNTIF('توزيع الحراس'!K$3:M$30,$C27)","v":0},{"$f":"COUNTIF('توزيع الحراس'!N$3:P$30,$C27)","v":0},{"$f":"COUNTIF('توزيع الحراس'!Q$3:S$30,$C27)","v":0},{"$f":"COUNTIF('توزيع الحراس'!T$3:V$30,$C27)","v":0},{"$f":"COUNTIF('توزيع الحراس'!W$3:Y$30,$C27)","v":0},{"$f":"COUNTIF('توزيع الحراس'!Z$3:AB$30,$C27)","v":0},{"$f":"COUNTIF('توزيع الحراس'!AC$3:AE$30,$C27)","v":0},{"$f":"COUNTIF('توزيع الحراس'!AF$3:AH$30,$C27)","v":0},0,0]
[20,{"$f":"'توزيع الحراس'!B22","v":"محمد علي20"},{"$f":"'توزيع الحراس'!A22","v":20},{"$f":"COUNTIF('توزيع الحراس'!D$3:F$30,$C28)","v":0},{"$f":"COUNTIF('توزيع الحراس'!G$3:I$30,$C28)","v":0},{"$f":"COUNTIF('توزيع الحراس'!K$3:M$30,$C28)","v":0},{"$f":"COUNTIF('توزيع الحراس'!N$3:P$30,$C28)","v":0},{"$f":"COUNTIF('توزيع الحراس'!Q$3:S$30,$C28)","v":0},{"$f":"COUNTIF('توزيع الحراس'!T$3:V$30,$C28)","v":0},{"$f":"COUNTIF('توزيع الحراس'!W$3:Y$30,$C28)","v":0},{"$f":"COUNTIF('توزيع الحراس'!Z$3:AB$30,$C28)","v":0},{"$f":"COUNTIF('توزيع الحراس'!AC$3:AE$30,$C28)","v":0},{"$f":"COUNTIF('توزيع الحراس'!AF$3:AH$30,$C28)","v":0},0,0]
[21,{"$f":"'توزيع الحراس'!B23","v":"محمد علي21"},{"$f":"'توزيع الحراس'!A23","v":21},{"$f":"COUNTIF('توزيع الحراس'!D$3:F$30,$C29)","v":0},{"$f":"COUNTIF('توزيع الحراس'!G$3:I$30,$C29)","v":0},{"$f":"COUNTIF('توزيع الحراس'!K$3:M$30,$C29)","v":0},{"$f":"COUNTIF('توزيع الحراس'!N$3:P$30,$C29)","v":0},{"$f":"COUNTIF('توزيع الحراس'!Q$3:S$30,$C29)","v":0},{"$f":"COUNTIF('توزيع الحراس'!T$3:V$30,$C29)","v":0},{"$f":"COUNTIF('توزيع الحراس'!W$3:Y$30,$C29)","v":0},{"$f":"COUNTIF('توزيع الحراس'!Z$3:AB$30,$C29)","v":0},{"$f":"COUNTIF('توزيع الحراس'!AC$3:AE$30,$C29)","v":0},{"$f":"COUNTIF('توزيع الحراس'!AF$3:AH$30,$C29)","v":0},0,0]
[22,{"$f":"'توزيع الحراس'!B24","v":"محمد علي22"},{"$f":"'توزيع الحراس'!A24","v":22},{"$f":"COUNTIF('توزيع الحراس'!D$3:F$30,$C30)","v":0},{"$f":"COUNTIF('توزيع الحراس'!G$3:I$30,$C30)","v":0},{"$f":"COUNTIF('توزيع الحراس'!K$3:M$30,$C30)","v":0},{"$f":"COUNTIF('توزيع الحراس'!N$3:P$30,$C30)","v":0},{"$f":"COUNTIF('توزيع الحراس'!Q$3:S$30,$C30)","v":0},{"$f":"COUNTIF('توزيع الحراس'!T$3:V$30,$C30)","v":0},{"$f":"COUNTIF('توزيع الحراس'!W$3:Y$30,$C30)","v":0},{"$f":"COUNTIF('توزيع الحراس'!Z$3:AB$30,$C30)","v":0},{"$f":"COUNTIF('توزيع الحراس'!AC$3:AE$30,$C30)","v":0},{"$f":"COUNTIF('توزيع الحراس'!AF$3:AH$30,$C30)","v":0},0,0]
[23,{"$f":"'توزيع الحراس'!B25","v":"محمد علي23"},{"$f":"'توزيع الحراس'!A25","v":23},{"$f":"COUNTIF('توزيع الحراس'!D$3:F$30,$C31)","v":0},{"$f":"COUNTIF('توزيع الحراس'!G$3:I$30,$C31)","v":0},{"$f":"COUNTIF('توزيع الحراس'!K$3:M$30,$C31)","v":0},{"$f":"COUNTIF('توزيع الحراس'!N$3:P$30,$C31)","v":0},{"$f":"COUNTIF('توزيع الحراس'!Q$3:S$30,$C31)","v":0},{"$f":"COUNTIF('توزيع الحراس'!T$3:V$30,$C31)","v":0},{"$f":"COUNTIF('توزيع الحراس'!W$3:Y$30,$C31)","v":0},{"$f":"COUNTIF('توزيع الحراس'!Z$3:AB$30,$C31)","v":0},{"$f":"COUNTIF('توزيع الحراس'!AC$3:AE$30,$C31)","v":0},{"$f":"COUNTIF('توزيع الحراس'!AF$3:AH$30,$C31)","v":0},0,0]
[24,{"$f":"'توزيع الحراس'!B26","v":"محمد علي24"},{"$f":"'توزيع الحراس'!A26","v":24},{"$f":"COUNTIF('توزيع الحراس'!D$3:F$30,$C32)","v":0},{"$f":"COUNTIF('توزيع الحراس'!G$3:I$30,$C32)","v":0},{"$f":"COUNTIF('توزيع الحراس'!K$3:M$30,$C32)","v":0},{"$f":"COUNTIF('توزيع الحراس'!N$3:P$30,$C32)","v":0},{"$f":"COUNTIF('توزيع الحراس'!Q$3:S$30,$C32)","v":0},{"$f":"COUNTIF('توزيع الحراس'!T$3:V$30,$C32)","v":0},{"$f":"COUNTIF('توزيع الحراس'!W$3:Y$30,$C32)","v":0},{"$f":"COUNTIF('توزيع الحراس'!Z$3:AB$30,$C32)","v":0},{"$f":"COUNTIF('توزيع الحراس'!AC$3:AE$30,$C32)","v":0},{"$f":"COUNTIF('توزيع الحراس'!AF$3:AH$30,$C32)","v":0},0,0]
[25,{"$f":"'توزيع الحراس'!B27","v":"محمد علي25"},{"$f":"'توزيع الحراس'!A27","v":25},{"$f":"COUNTIF('توزيع الحراس'!D$3:F$30,$C33)","v":0},{"$f":"COUNTIF('توزيع الحراس'!G$3:I$30,$C33)","v":0},{"$f":"COUNTIF('توزيع الحراس'!K$3:M$30,$C33)","v":0},{"$f":"COUNTIF('توزيع الحراس'!N$3:P$30,$C33)","v":0},{"$f":"COUNTIF('توزيع الحراس'!Q$3:S$30,$C33)","v":0},{"$f":"COUNTIF('توزيع الحراس'!T$3:V$30,$C33)","v":0},{"$f":"COUNTIF('توزيع الحراس'!W$3:Y$30,$C33)","v":0},{"$f":"COUNTIF('توزيع الحراس'!Z$3:AB$30,$C33)","v":0},{"$f":"COUNTIF('توزيع الحراس'!AC$3:AE$30,$C33)","v":0},{"$f":"COUNTIF('توزيع الحراس'!AF$3:AH$30,$C33)","v":0},0,0]
[26,{"$f":"'توزيع الحراس'!B28","v":"محمد علي26"},{"$f":"'توزيع الحراس'!A28","v":26},{"$f":"COUNTIF('توزيع الحراس'!D$3:F$30,$C34)","v":0},{"$f":"COUNTIF('توزيع الحراس'!G$3:I$30,$C34)","v":0},{"$f":"COUNTIF('توزيع الحراس'!K$3:M$30,$C34)","v":0},{"$f":"COUNTIF('توزيع الحراس'!N$3:P$30,$C34)","v":0},{"$f":"COUNTIF('توزيع الحراس'!Q$3:S$30,$C34)","v":0},{"$f":"COUNTIF('توزيع الحراس'!T$3:V$30,$C34)","v":0},{"$f":"COUNTIF('توزيع الحراس'!W$3:Y$30,$C34)","v":0},{"$f":"COUNTIF('توزيع الحراس'!Z$3:AB$30,$C34)","v":0},{"$f":"COUNTIF('توزيع الحراس'!AC$3:AE$30,$C34)","v":0},{"$f":"COUNTIF('توزيع الحراس'!AF$3:AH$30,$C34)","v":0},0,0]
[27,{"$f":"'توزيع الحراس'!B29","v":"محمد علي27"},{"$f":"'توزيع الحراس'!A29","v":27},{"$f":"COUNTIF('توزيع الحراس'!D$3:F$30,$C35)","v":0},{"$f":"COUNTIF('توزيع الحراس'!G$3:I$30,$C35)","v":0},{"$f":"COUNTIF('توزيع الحراس'!K$3:M$30,$C35)","v":0},{"$f":"COUNTIF('توزيع الحراس'!N$3:P$30,$C35)","v":0},{"$f":"COUNTIF('توزيع الحراس'!Q$3:S$30,$C35)","v":0},{"$f":"COUNTIF('توزيع الحراس'!T$3:V$30,$C35)","v":0},{"$f":"COUNTIF('توزيع الحراس'!W$3:Y$30,$C35)","v":0},{"$f":"COUNTIF('توزيع الحراس'!Z$3:AB$30,$C35)","v":0},{"$f":"COUNTIF('توزيع الحراس'!AC$3:AE$30,$C35)","v":0},{"$f":"COUNTIF('توزيع الحراس'!AF$3:AH$30,$C35)","v":0},0,0]
[28,{"$f":"'توزيع الحراس'!B30","v":"محمد علي28"},{"$f":"'توزيع الحراس'!A30","v":28},{"$f":"COUNTIF('توزيع الحراس'!D$3:F$30,$C36)","v":0},{"$f":"COUNTIF('توزيع الحراس'!G$3:I$30,$C36)","v":0},{"$f":"COUNTIF('توزيع الحراس'!K$3:M$30,$C36)","v":0},{"$f":"COUNTIF('توزيع الحراس'!N$3:P$30,$C36)","v":0},{"$f":"COUNTIF('توزيع الحراس'!Q$3:S$30,$C36)","v":0},{"$f":"COUNTIF('توزيع الحراس'!T$3:V$30,$C36)","v":0},{"$f":"COUNTIF('توزيع الحراس'!W$3:Y$30,$C36)","v":0},{"$f":"COUNTIF('توزيع الحراس'!Z$3:AB$30,$C36)","v":0},{"$f":"COUNTIF('توزيع الحراس'!AC$3:AE$30,$C36)","v":0},{"$f":"COUNTIF('توزيع الحراس'!AF$3:AH$30,$C36)","v":0},0,0]
[29,{"$f":"'توزيع الحراس'!B31","v":"محمد علي29"},{"$f":"'توزيع الحراس'!A31","v":29},{"$f":"COUNTIF('توزيع الحراس'!D$3:F$30,$C37)","v":0},{"$f":"COUNTIF('توزيع الحراس'!G$3:I$30,$C37)","v":0},{"$f":"COUNTIF('توزيع الحراس'!K$3:M$30,$C37)","v":0},{"$f":"COUNTIF('توزيع الحراس'!N$3:P$30,$C37)","v":0},{"$f":"COUNTIF('توزيع الحراس'!Q$3:S$30,$C37)","v":0},{"$f":"COUNTIF('توزيع الحراس'!T$3:V$30,$C37)","v":0},{"$f":"COUNTIF('توزيع الحراس'!W$3:Y$30,$C37)","v":0},{"$f":"COUNTIF('توزيع الحراس'!Z$3:AB$30,$C37)","v":0},{"$f":"COUNTIF('توزيع الحراس'!AC$3:AE$30,$C37)","v":0},{"$f":"COUNTIF('توزيع الحراس'!AF$3:AH$30,$C37)","v":0},0,0]
[30,{"$f":"'توزيع الحراس'!B32","v":"محمد علي30"},{"$f":"'توزيع الحراس'!A32","v":30},{"$f":"COUNTIF('توزيع الحراس'!D$3:F$30,$C38)","v":0},{"$f":"COUNTIF('توزيع الحراس'!G$3:I$30,$C38)","v":0},{"$f":"COUNTIF('توزيع الحراس'!K$3:M$30,$C38)","v":0},{"$f":"COUNTIF('توزيع الحراس'!N$3:P$30,$C38)","v":0},{"$f":"COUNTIF('توزيع الحراس'!Q$3:S$30,$C38)","v":0},{"$f":"COUNTIF('توزيع الحراس'!T$3:V$30,$C38)","v":0},{"$f":"COUNTIF('توزيع الحراس'!W$3:Y$30,$C38)","v":0},{"$f":"COUNTIF('توزيع الحراس'!Z$3:AB$30,$C38)","v":0},{"$f":"COUNTIF('توزيع الحراس'!AC$3:AE$30,$C38)","v":0},{"$f":"COUNTIF('توزيع الحراس'!AF$3:AH$30,$C38)","v":0},0,0]
[31,{"$f":"'توزيع الحراس'!B33","v":"محمد علي31"},{"$f":"'توزيع الحراس'!A33","v":31},{"$f":"COUNTIF('توزيع الحراس'!D$3:F$30,$C39)","v":0},{"$f":"COUNTIF('توزيع الحراس'!G$3:I$30,$C39)","v":0},{"$f":"COUNTIF('توزيع الحراس'!K$3:M$30,$C39)","v":0},{"$f":"COUNTIF('توزيع الحراس'!N$3:P$30,$C39)","v":0},{"$f":"COUNTIF('توزيع الحراس'!Q$3:S$30,$C39)","v":0},{"$f":"COUNTIF('توزيع الحراس'!T$3:V$30,$C39)","v":0},{"$f":"COUNTIF('توزيع الحراس'!W$3:Y$30,$C39)","v":0},{"$f":"COUNTIF('توزيع الحراس'!Z$3:AB$30,$C39)","v":0},{"$f":"COUNTIF('توزيع الحراس'!AC$3:AE$30,$C39)","v":0},{"$f":"COUNTIF('توزيع الحراس'!AF$3:AH$30,$C39)","v":0},0,0]
[32,{"$f":"'توزيع الحراس'!B34","v":"محمد علي32"},{"$f":"'توزيع الحراس'!A34","v":32},{"$f":"COUNTIF('توزيع الحراس'!D$3:F$30,$C40)","v":0},{"$f":"COUNTIF('توزيع الحراس'!G$3:I$30,$C40)","v":0},{"$f":"COUNTIF('توزيع الحراس'!K$3:M$30,$C40)","v":0},{"$f":"COUNTIF('توزيع الحراس'!N$3:P$30,$C40)","v":0},{"$f":"COUNTIF('توزيع الحراس'!Q$3:S$30,$C40)","v":0},{"$f":"COUNTIF('توزيع الحراس'!T$3:V$30,$C40)","v":0},{"$f":"COUNTIF('توزيع الحراس'!W$3:Y$30,$C40)","v":0},{"$f":"COUNTIF('توزيع الحراس'!Z$3:AB$30,$C40)","v":0},{"$f":"COUNTIF('توزيع الحراس'!AC$3:AE$30,$C40)","v":0},{"$f":"COUNTIF('توزيع الحراس'!AF$3:AH$30,$C40)","v":0},0,0]
[33,{"$f":"'توزيع الحراس'!B35","v":"محمد علي33"},{"$f":"'توزيع الحراس'!A35","v":33},{"$f":"COUNTIF('توزيع الحراس'!D$3:F$30,$C41)","v":0},{"$f":"COUNTIF('توزيع الحراس'!G$3:I$30,$C41)","v":0},{"$f":"COUNTIF('توزيع الحراس'!K$3:M$30,$C41)","v":0},{"$f":"COUNTIF('توزيع الحراس'!N$3:P$30,$C41)","v":0},{"$f":"COUNTIF('توزيع الحراس'!Q$3:S$30,$C41)","v":0},{"$f":"COUNTIF('توزيع الحراس'!T$3:V$30,$C41)","v":0},{"$f":"COUNTIF('توزيع الحراس'!W$3:Y$30,$C41)","v":0},{"$f":"COUNTIF('توزيع الحراس'!Z$3:AB$30,$C41)","v":0},{"$f":"COUNTIF('توزيع الحراس'!AC$3:AE$30,$C41)","v":0},{"$f":"COUNTIF('توزيع الحراس'!AF$3:AH$30,$C41)","v":0},{"$f":"SUM(D41:M41)","v":0},0]
[34,{"$f":"'توزيع الحراس'!B36","v":"محمد علي34"},{"$f":"'توزيع الحراس'!A36","v":34},{"$f":"COUNTIF('توزيع الحراس'!D$3:F$30,$C42)","v":0},{"$f":"COUNTIF('توزيع الحراس'!G$3:I$30,$C42)","v":0},{"$f":"COUNTIF('توزيع الحراس'!K$3:M$30,$C42)","v":0},{"$f":"COUNTIF('توزيع الحراس'!N$3:P$30,$C42)","v":0},{"$f":"COUNTIF('توزيع الحراس'!Q$3:S$30,$C42)","v":0},{"$f":"COUNTIF('توزيع الحراس'!T$3:V$30,$C42)","v":0},{"$f":"COUNTIF('توزيع الحراس'!W$3:Y$30,$C42)","v":0},{"$f":"COUNTIF('توزيع الحراس'!Z$3:AB$30,$C42)","v":0},{"$f":"COUNTIF('توزيع الحراس'!AC$3:AE$30,$C42)","v":0},{"$f":"COUNTIF('توزيع الحراس'!AF$3:AH$30,$C42)","v":0},0,0]
[35,{"$f":"'توزيع الحراس'!B37","v":"محمد علي35"},{"$f":"'توزيع الحراس'!A37","v":35},{"$f":"COUNTIF('توزيع الحراس'!D$3:F$30,$C43)","v":0},{"$f":"COUNTIF('توزيع الحراس'!G$3:I$30,$C43)","v":0},{"$f":"COUNTIF('توزيع الحراس'!K$3:M$30,$C43)","v":0},{"$f":"COUNTIF('توزيع الحراس'!N$3:P$30,$C43)","v":0},{"$f":"COUNTIF('توزيع الحراس'!Q$3:S$30,$C43)","v":0},{"$f":"COUNTIF('توزيع الحراس'!T$3:V$30,$C43)","v":0},{"$f":"COUNTIF('توزيع الحراس'!W$3:Y$30,$C43)","v":0},{"$f":"COUNTIF('توزيع الحراس'!Z$3:AB$30,$C43)","v":0},{"$f":"COUNTIF('توزيع الحراس'!AC$3:AE$30,$C43)","v":0},{"$f":"COUNTIF('توزيع الحراس'!AF$3:AH$30,$C43)","v":0},0,0]
[36,{"$f":"'توزيع الحراس'!B38","v":"محمد علي36"},{"$f":"'توزيع الحراس'!A38","v":36},{"$f":"COUNTIF('توزيع الحراس'!D$3:F$30,$C44)","v":0},{"$f":"COUNTIF('توزيع الحراس'!G$3:I$30,$C44)","v":0},{"$f":"COUNTIF('توزيع الحراس'!K$3:M$30,$C44)","v":0},{"$f":"COUNTIF('توزيع الحراس'!N$3:P$30,$C44)","v":0},{"$f":"COUNTIF('توزيع الحراس'!Q$3:S$30,$C44)","v":0},{"$f":"COUNTIF('توزيع الحراس'!T$3:V$30,$C44)","v":0},{"$f":"COUNTIF('توزيع الحراس'!W$3:Y$30,$C44)","v":0},{"$f":"COUNTIF('توزيع الحراس'!Z$3:AB$30,$C44)","v":0},{"$f":"COUNTIF('توزيع الحراس'!AC$3:AE$30,$C44)","v":0},{"$f":"COUNTIF('توزيع الحراس'!AF$3:AH$30,$C44)","v":0},0,0]
[37,{"$f":"'توزيع الحراس'!B39","v":"محمد علي37"},{"$f":"'توزيع الحراس'!A39","v":37},{"$f":"COUNTIF('توزيع الحراس'!D$3:F$30,$C45)","v":0},{"$f":"COUNTIF('توزيع الحراس'!G$3:I$30,$C45)","v":0},{"$f":"COUNTIF('توزيع الحراس'!K$3:M$30,$C45)","v":0},{"$f":"COUNTIF('توزيع الحراس'!N$3:P$30,$C45)","v":0},{"$f":"COUNTIF('توزيع الحراس'!Q$3:S$30,$C45)","v":0},{"$f":"COUNTIF('توزيع الحراس'!T$3:V$30,$C45)","v":0},{"$f":"COUNTIF('توزيع الحراس'!W$3:Y$30,$C45)","v":0},{"$f":"COUNTIF('توزيع الحراس'!Z$3:AB$30,$C45)","v":0},{"$f":"COUNTIF('توزيع الحراس'!AC$3:AE$30,$C45)","v":0},{"$f":"COUNTIF('توزيع الحراس'!AF$3:AH$30,$C45)","v":0},0,0]
[38,{"$f":"'توزيع الحراس'!B40","v":"محمد علي38"},{"$f":"'توزيع الحراس'!A40","v":38},{"$f":"COUNTIF('توزيع الحراس'!D$3:F$30,$C46)","v":0},{"$f":"COUNTIF('توزيع الحراس'!G$3:I$30,$C46)","v":0},{"$f":"COUNTIF('توزيع الحراس'!K$3:M$30,$C46)","v":0},{"$f":"COUNTIF('توزيع الحراس'!N$3:P$30,$C46)","v":0},{"$f":"COUNTIF('توزيع الحراس'!Q$3:S$30,$C46)","v":0},{"$f":"COUNTIF('توزيع الحراس'!T$3:V$30,$C46)","v":0},{"$f":"COUNTIF('توزيع الحراس'!W$3:Y$30,$C46)","v":0},{"$f":"COUNTIF('توزيع الحراس'!Z$3:AB$30,$C46)","v":0},{"$f":"COUNTIF('توزيع الحراس'!AC$3:AE$30,$C46)","v":0},{"$f":"COUNTIF('توزيع الحراس'!AF$3:AH$30,$C46)","v":0},0,0]
[39,{"$f":"'توزيع الحراس'!B41","v":"محمد علي39"},{"$f":"'توزيع الحراس'!A41","v":39},{"$f":"COUNTIF('توزيع الحراس'!D$3:F$30,$C47)","v":0},{"$f":"COUNTIF('توزيع الحراس'!G$3:I$30,$C47)","v":0},{"$f":"COUNTIF('توزيع الحراس'!K$3:M$30,$C47)","v":0},{"$f":"COUNTIF('توزيع الحراس'!N$3:P$30,$C47)","v":0},{"$f":"COUNTIF('توزيع الحراس'!Q$3:S$30,$C47)","v":0},{"$f":"COUNTIF('توزيع الحراس'!T$3:V$30,$C47)","v":0},{"$f":"COUNTIF('توزيع الحراس'!W$3:Y$30,$C47)","v":0},{"$f":"COUNTIF('توزيع الحراس'!Z$3:AB$30,$C47)","v":0},{"$f":"COUNTIF('توزيع الحراس'!AC$3:AE$30,$C47)","v":0},{"$f":"COUNTIF('توزيع الحراس'!AF$3:AH$30,$C47)","v":0},0,0]
[40,{"$f":"'توزيع الحراس'!B42","v":"محمد علي40"},{"$f":"'توزيع الحراس'!A42","v":40},{"$f":"COUNTIF('توزيع الحراس'!D$3:F$30,$C48)","v":0},{"$f":"COUNTIF('توزيع الحراس'!G$3:I$30,$C48)","v":0},{"$f":"COUNTIF('توزيع الحراس'!K$3:M$30,$C48)","v":0},{"$f":"COUNTIF('توزيع الحراس'!N$3:P$30,$C48)","v":0},{"$f":"COUNTIF('توزيع الحراس'!Q$3:S$30,$C48)","v":0},{"$f":"COUNTIF('توزيع الحراس'!T$3:V$30,$C48)","v":0},{"$f":"COUNTIF('توزيع الحراس'!W$3:Y$30,$C48)","v":0},{"$f":"COUNTIF('توزيع الحراس'!Z$3:AB$30,$C48)","v":0},{"$f":"COUNTIF('توزيع الحراس'!AC$3:AE$30,$C48)","v":0},{"$f":"COUNTIF('توزيع الحراس'!AF$3:AH$30,$C48)","v":0},0,0]
[41,{"$f":"'توزيع الحراس'!B43","v":"محمد علي41"},{"$f":"'توزيع الحراس'!A43","v":41},{"$f":"COUNTIF('توزيع الحراس'!D$3:F$30,$C49)","v":0},{"$f":"COUNTIF('توزيع الحراس'!G$3:I$30,$C49)","v":0},{"$f":"COUNTIF('توزيع الحراس'!K$3:M$30,$C49)","v":0},{"$f":"COUNTIF('توزيع الحراس'!N$3:P$30,$C49)","v":0},{"$f":"COUNTIF('توزيع الحراس'!Q$3:S$30,$C49)","v":0},{"$f":"COUNTIF('توزيع الحراس'!T$3:V$30,$C49)","v":0},{"$f":"COUNTIF('توزيع الحراس'!W$3:Y$30,$C49)","v":0},{"$f":"COUNTIF('توزيع الحراس'!Z$3:AB$30,$C49)","v":0},{"$f":"COUNTIF('توزيع الحراس'!AC$3:AE$30,$C49)","v":0},{"$f":"COUNTIF('توزيع الحراس'!AF$3:AH$30,$C49)","v":0},0,0]
[42,{"$f":"'توزيع الحراس'!B44","v":"محمد علي42"},{"$f":"'توزيع الحراس'!A44","v":42},{"$f":"COUNTIF('توزيع الحراس'!D$3:F$30,$C50)","v":0},{"$f":"COUNTIF('توزيع الحراس'!G$3:I$30,$C50)","v":0},{"$f":"COUNTIF('توزيع الحراس'!K$3:M$30,$C50)","v":0},{"$f":"COUNTIF('توزيع الحراس'!N$3:P$30,$C50)","v":0},{"$f":"COUNTIF('توزيع الحراس'!Q$3:S$30,$C50)","v":0},{"$f":"COUNTIF('توزيع الحراس'!T$3:V$30,$C50)","v":0},{"$f":"COUNTIF('توزيع الحراس'!W$3:Y$30,$C50)","v":0},{"$f":"COUNTIF('توزيع الحراس'!Z$3:AB$30,$C50)","v":0},{"$f":"COUNTIF('توزيع الحراس'!AC$3:AE$30,$C50)","v":0},{"$f":"COUNTIF('توزيع الحراس'!AF$3:AH$30,$C50)","v":0},0,0]
[43,{"$f":"'توزيع الحراس'!B45","v":"محمد علي43"},{"$f":"'توزيع الحراس'!A45","v":43},{"$f":"COUNTIF('توزيع الحراس'!D$3:F$30,$C51)","v":0},{"$f":"COUNTIF('توزيع الحراس'!G$3:I$30,$C51)","v":0},{"$f":"COUNTIF('توزيع الحراس'!K$3:M$30,$C51)","v":0},{"$f":"COUNTIF('توزيع الحراس'!N$3:P$30,$C51)","v":0},{"$f":"COUNTIF('توزيع الحراس'!Q$3:S$30,$C51)","v":0},{"$f":"COUNTIF('توزيع الحراس'!T$3:V$30,$C51)","v":0},{"$f":"COUNTIF('توزيع الحراس'!W$3:Y$30,$C51)","v":0},{"$f":"COUNTIF('توزيع الحراس'!Z$3:AB$30,$C51)","v":0},{"$f":"COUNTIF('توزيع الحراس'!AC$3:AE$30,$C51)","v":0},{"$f":"COUNTIF('توزيع الحراس'!AF$3:AH$30,$C51)","v":0},0,0]
[44,{"$f":"'توزيع الحراس'!B46","v":"محمد علي44"},{"$f":"'توزيع الحراس'!A46","v":44},{"$f":"COUNTIF('توزيع الحراس'!D$3:F$30,$C52)","v":0},{"$f":"COUNTIF('توزيع الحراس'!G$3:I$30,$C52)","v":0},{"$f":"COUNTIF('توزيع الحراس'!K$3:M$30,$C52)","v":0},{"$f":"COUNTIF('توزيع الحراس'!N$3:P$30,$C52)","v":0},{"$f":"COUNTIF('توزيع الحراس'!Q$3:S$30,$C52)","v":0},{"$f":"COUNTIF('توزيع الحراس'!T$3:V$30,$C52)","v":0},{"$f":"COUNTIF('توزيع الحراس'!W$3:Y$30,$C52)","v":0},{"$f":"COUNTIF('توزيع الحراس'!Z$3:AB$30,$C52)","v":0},{"$f":"COUNTIF('توزيع الحراس'!AC$3:AE$30,$C52)","v":0},{"$f":"COUNTIF('توزيع الحراس'!AF$3:AH$30,$C52)","v":0},0,0]
[45,{"$f":"'توزيع الحراس'!B47","v":"محمد علي45"},{"$f":"'توزيع الحراس'!A47","v":45},{"$f":"COUNTIF('توزيع الحراس'!D$3:F$30,$C53)","v":0},{"$f":"COUNTIF('توزيع الحراس'!G$3:I$30,$C53)","v":0},{"$f":"COUNTIF('توزيع الحراس'!K$3:M$30,$C53)","v":0},{"$f":"COUNTIF('توزيع الحراس'!N$3:P$30,$C53)","v":0},{"$f":"COUNTIF('توزيع الحراس'!Q$3:S$30,$C53)","v":0},{"$f":"COUNTIF('توزيع الحراس'!T$3:V$30,$C53)","v":0},{"$f":"COUNTIF('توزيع الحراس'!W$3:Y$30,$C53)","v":0},{"$f":"COUNTIF('توزيع الحراس'!Z$3:AB$30,$C53)","v":0},{"$f":"COUNTIF('توزيع الحراس'!AC$3:AE$30,$C53)","v":0},{"$f":"COUNTIF('توزيع الحراس'!AF$3:AH$30,$C53)","v":0},0,0]
[46,{"$f":"'توزيع الحراس'!B48","v":"محمد علي46"},{"$f":"'توزيع الحراس'!A48","v":46},{"$f":"COUNTIF('توزيع الحراس'!D$3:F$30,$C54)","v":0},{"$f":"COUNTIF('توزيع الحراس'!G$3:I$30,$C54)","v":0},{"$f":"COUNTIF('توزيع الحراس'!K$3:M$30,$C54)","v":0},{"$f":"COUNTIF('توزيع الحراس'!N$3:P$30,$C54)","v":0},{"$f":"COUNTIF('توزيع الحراس'!Q$3:S$30,$C54)","v":0},{"$f":"COUNTIF('توزيع الحراس'!T$3:V$30,$C54)","v":0},{"$f":"COUNTIF('توزيع الحراس'!W$3:Y$30,$C54)","v":0},{"$f":"COUNTIF('توزيع الحراس'!Z$3:AB$30,$C54)","v":0},{"$f":"COUNTIF('توزيع الحراس'!AC$3:AE$30,$C54)","v":0},{"$f":"COUNTIF('توزيع الحراس'!AF$3:AH$30,$C54)","v":0},0,0]
[47,{"$f":"'توزيع الحراس'!B49","v":"محمد علي47"},{"$f":"'توزيع الحراس'!A49","v":47},{"$f":"COUNTIF('توزيع الحراس'!D$3:F$30,$C55)","v":0},{"$f":"COUNTIF('توزيع الحراس'!G$3:I$30,$C55)","v":0},{"$f":"COUNTIF('توزيع الحراس'!K$3:M$30,$C55)","v":0},{"$f":"COUNTIF('توزيع الحراس'!N$3:P$30,$C55)","v":0},{"$f":"COUNTIF('توزيع الحراس'!Q$3:S$30,$C55)","v":0},{"$f":"COUNTIF('توزيع الحراس'!T$3:V$30,$C55)","v":0},{"$f":"COUNTIF('توزيع الحراس'!W$3:Y$30,$C55)","v":0},{"$f":"COUNTIF('توزيع الحراس'!Z$3:AB$30,$C55)","v":0},{"$f":"COUNTIF('توزيع الحراس'!AC$3:AE$30,$C55)","v":0},{"$f":"COUNTIF('توزيع الحراس'!AF$3:AH$30,$C55)","v":0},0,0]
[48,{"$f":"'توزيع الحراس'!B50","v":"محمد علي48"},{"$f":"'توزيع الحراس'!A50","v":48},{"$f":"COUNTIF('توزيع الحراس'!D$3:F$30,$C56)","v":0},{"$f":"COUNTIF('توزيع الحراس'!G$3:I$30,$C56)","v":0},{"$f":"COUNTIF('توزيع الحراس'!K$3:M$30,$C56)","v":0},{"$f":"COUNTIF('توزيع الحراس'!N$3:P$30,$C56)","v":0},{"$f":"COUNTIF('توزيع الحراس'!Q$3:S$30,$C56)","v":0},{"$f":"COUNTIF('توزيع الحراس'!T$3:V$30,$C56)","v":0},{"$f":"COUNTIF('توزيع الحراس'!W$3:Y$30,$C56)","v":0},{"$f":"COUNTIF('توزيع الحراس'!Z$3:AB$30,$C56)","v":0},{"$f":"COUNTIF('توزيع الحراس'!AC$3:AE$30,$C56)","v":0},{"$f":"COUNTIF('توزيع الحراس'!AF$3:AH$30,$C56)","v":0},0,0]
[49,{"$f":"'توزيع الحراس'!B51","v":"محمد علي49"},{"$f":"'توزيع الحراس'!A51","v":49},{"$f":"COUNTIF('توزيع الحراس'!D$3:F$30,$C57)","v":0},{"$f":"COUNTIF('توزيع الحراس'!G$3:I$30,$C57)","v":0},{"$f":"COUNTIF('توزيع الحراس'!K$3:M$30,$C57)","v":0},{"$f":"COUNTIF('توزيع الحراس'!N$3:P$30,$C57)","v":0},{"$f":"COUNTIF('توزيع الحراس'!Q$3:S$30,$C57)","v":0},{"$f":"COUNTIF('توزيع الحراس'!T$3:V$30,$C57)","v":0},{"$f":"COUNTIF('توزيع الحراس'!W$3:Y$30,$C57)","v":0},{"$f":"COUNTIF('توزيع الحراس'!Z$3:AB$30,$C57)","v":0},{"$f":"COUNTIF('توزيع الحراس'!AC$3:AE$30,$C57)","v":0},{"$f":"COUNTIF('توزيع الحراس'!AF$3:AH$30,$C57)","v":0},0,0]
[50,{"$f":"'توزيع الحراس'!B52","v":"محمد علي50"},{"$f":"'توزيع الحراس'!A52","v":50},{"$f":"COUNTIF('توزيع الحراس'!D$3:F$30,$C58)","v":0},{"$f":"COUNTIF('توزيع الحراس'!G$3:I$30,$C58)","v":0},{"$f":"COUNTIF('توزيع الحراس'!K$3:M$30,$C58)","v":0},{"$f":"COUNTIF('توزيع الحراس'!N$3:P$30,$C58)","v":0},{"$f":"COUNTIF('توزيع الحراس'!Q$3:S$30,$C58)","v":0},{"$f":"COUNTIF('توزيع الحراس'!T$3:V$30,$C58)","v":0},{"$f":"COUNTIF('توزيع الحراس'!W$3:Y$30,$C58)","v":0},{"$f":"COUNTIF('توزيع الحراس'!Z$3:AB$30,$C58)","v":0},{"$f":"COUNTIF('توزيع الحراس'!AC$3:AE$30,$C58)","v":0},{"$f":"COUNTIF('توزيع الحراس'!AF$3:AH$30,$C58)","v":0},0,0]
[51,{"$f":"'توزيع الحراس'!B53","v":"محمد علي51"},{"$f":"'توزيع الحراس'!A53","v":51},{"$f":"COUNTIF('توزيع الحراس'!D$3:F$30,$C59)","v":0},{"$f":"COUNTIF('توزيع الحراس'!G$3:I$30,$C59)","v":0},{"$f":"COUNTIF('توزيع الحراس'!K$3:M$30,$C59)","v":0},{"$f":"COUNTIF('توزيع الحراس'!N$3:P$30,$C59)","v":0},{"$f":"COUNTIF('توزيع الحراس'!Q$3:S$30,$C59)","v":0},{"$f":"COUNTIF('توزيع الحراس'!T$3:V$30,$C59)","v":0},{"$f":"COUNTIF('توزيع الحراس'!W$3:Y$30,$C59)","v":0},{"$f":"COUNTIF('توزيع الحراس'!Z$3:AB$30,$C59)","v":0},{"$f":"COUNTIF('توزيع الحراس'!AC$3:AE$30,$C59)","v":0},{"$f":"COUNTIF('توزيع الحراس'!AF$3:AH$30,$C59)","v":0},0,0]
[52,{"$f":"'توزيع الحراس'!B54","v":"محمد علي52"},{"$f":"'توزيع الحراس'!A54","v":52},{"$f":"COUNTIF('توزيع الحراس'!D$3:F$30,$C60)","v":0},{"$f":"COUNTIF('توزيع الحراس'!G$3:I$30,$C60)","v":0},{"$f":"COUNTIF('توزيع الحراس'!K$3:M$30,$C60)","v":0},{"$f":"COUNTIF('توزيع الحراس'!N$3:P$30,$C60)","v":0},{"$f":"COUNTIF('توزيع الحراس'!Q$3:S$30,$C60)","v":0},{"$f":"COUNTIF('توزيع الحراس'!T$3:V$30,$C60)","v":0},{"$f":"COUNTIF('توزيع الحراس'!W$3:Y$30,$C60)","v":0},{"$f":"COUNTIF('توزيع الحراس'!Z$3:AB$30,$C60)","v":0},{"$f":"COUNTIF('توزيع الحراس'!AC$3:AE$30,$C60)","v":0},{"$f":"COUNTIF('توزيع الحراس'!AF$3:AH$30,$C60)","v":0},0,0]
[53,{"$f":"'توزيع الحراس'!B55","v":"محمد علي53"},{"$f":"'توزيع الحراس'!A55","v":53},{"$f":"COUNTIF('توزيع الحراس'!D$3:F$30,$C61)","v":0},{"$f":"COUNTIF('توزيع الحراس'!G$3:I$30,$C61)","v":0},{"$f":"COUNTIF('توزيع الحراس'!K$3:M$30,$C61)","v":0},{"$f":"COUNTIF('توزيع الحراس'!N$3:P$30,$C61)","v":0},{"$f":"COUNTIF('توزيع الحراس'!Q$3:S$30,$C61)","v":0},{"$f":"COUNTIF('توزيع الحراس'!T$3:V$30,$C61)","v":0},{"$f":"COUNTIF('توزيع الحراس'!W$3:Y$30,$C61)","v":0},{"$f":"COUNTIF('توزيع الحراس'!Z$3:AB$30,$C61)","v":0},{"$f":"COUNTIF('توزيع الحراس'!AC$3:AE$30,$C61)","v":0},{"$f":"COUNTIF('توزيع الحراس'!AF$3:AH$30,$C61)","v":0},0,0]
[54,{"$f":"'توزيع الحراس'!B56","v":"محمد علي54"},{"$f":"'توزيع الحراس'!A56","v":54},{"$f":"COUNTIF('توزيع الحراس'!D$3:F$30,$C62)","v":0},{"$f":"COUNTIF('توزيع الحراس'!G$3:I$30,$C62)","v":0},{"$f":"COUNTIF('توزيع الحراس'!K$3:M$30,$C62)","v":0},{"$f":"COUNTIF('توزيع الحراس'!N$3:P$30,$C62)","v":0},{"$f":"COUNTIF('توزيع الحراس'!Q$3:S$30,$C62)","v":0},{"$f":"COUNTIF('توزيع الحراس'!T$3:V$30,$C62)","v":0},{"$f":"COUNTIF('توزيع الحراس'!W$3:Y$30,$C62)","v":0},{"$f":"COUNTIF('توزيع الحراس'!Z$3:AB$30,$C62)","v":0},{"$f":"COUNTIF('توزيع الحراس'!AC$3:AE$30,$C62)","v":0},{"$f":"COUNTIF('توزيع الحراس'!AF$3:AH$30,$C62)","v":0},0,0]
[55,{"$f":"'توزيع الحراس'!B57","v":"محمد علي55"},{"$f":"'توزيع الحراس'!A57","v":55},{"$f":"COUNTIF('توزيع الحراس'!D$3:F$30,$C63)","v":0},{"$f":"COUNTIF('توزيع الحراس'!G$3:I$30,$C63)","v":0},{"$f":"COUNTIF('توزيع الحراس'!K$3:M$30,$C63)","v":0},{"$f":"COUNTIF('توزيع الحراس'!N$3:P$30,$C63)","v":0},{"$f":"COUNTIF('توزيع الحراس'!Q$3:S$30,$C63)","v":0},{"$f":"COUNTIF('توزيع الحراس'!T$3:V$30,$C63)","v":0},{"$f":"COUNTIF('توزيع الحراس'!W$3:Y$30,$C63)","v":0},{"$f":"COUNTIF('توزيع الحراس'!Z$3:AB$30,$C63)","v":0},{"$f":"COUNTIF('توزيع الحراس'!AC$3:AE$30,$C63)","v":0},{"$f":"COUNTIF('توزيع الحراس'!AF$3:AH$30,$C63)","v":0},0,0]
[56,{"$f":"'توزيع الحراس'!B58","v":"محمد علي56"},{"$f":"'توزيع الحراس'!A58","v":56},{"$f":"COUNTIF('توزيع الحراس'!D$3:F$30,$C64)","v":0},{"$f":"COUNTIF('توزيع الحراس'!G$3:I$30,$C64)","v":0},{"$f":"COUNTIF('توزيع الحراس'!K$3:M$30,$C64)","v":0},{"$f":"COUNTIF('توزيع الحراس'!N$3:P$30,$C64)","v":0},{"$f":"COUNTIF('توزيع الحراس'!Q$3:S$30,$C64)","v":0},{"$f":"COUNTIF('توزيع الحراس'!T$3:V$30,$C64)","v":0},{"$f":"COUNTIF('توزيع الحراس'!W$3:Y$30,$C64)","v":0},{"$f":"COUNTIF('توزيع الحراس'!Z$3:AB$30,$C64)","v":0},{"$f":"COUNTIF('توزيع الحراس'!AC$3:AE$30,$C64)","v":0},{"$f":"COUNTIF('توزيع الحراس'!AF$3:AH$30,$C64)","v":0},0,0]
[57,{"$f":"'توزيع الحراس'!B59","v":"محمد علي57"},{"$f":"'توزيع الحراس'!A59","v":57},{"$f":"COUNTIF('توزيع الحراس'!D$3:F$30,$C65)","v":0},{"$f":"COUNTIF('توزيع الحراس'!G$3:I$30,$C65)","v":0},{"$f":"COUNTIF('توزيع الحراس'!K$3:M$30,$C65)","v":0},{"$f":"COUNTIF('توزيع الحراس'!N$3:P$30,$C65)","v":0},{"$f":"COUNTIF('توزيع الحراس'!Q$3:S$30,$C65)","v":0},{"$f":"COUNTIF('توزيع الحراس'!T$3:V$30,$C65)","v":0},{"$f":"COUNTIF('توزيع الحراس'!W$3:Y$30,$C65)","v":0},{"$f":"COUNTIF('توزيع الحراس'!Z$3:AB$30,$C65)","v":0},{"$f":"COUNTIF('توزيع الحراس'!AC$3:AE$30,$C65)","v":0},{"$f":"COUNTIF('توزيع الحراس'!AF$3:AH$30,$C65)","v":0},0,0]
[58,{"$f":"'توزيع الحراس'!B60","v":"محمد علي58"},{"$f":"'توزيع الحراس'!A60","v":58},{"$f":"COUNTIF('توزيع الحراس'!D$3:F$30,$C66)","v":0},{"$f":"COUNTIF('توزيع الحراس'!G$3:I$30,$C66)","v":0},{"$f":"COUNTIF('توزيع الحراس'!K$3:M$30,$C66)","v":0},{"$f":"COUNTIF('توزيع الحراس'!N$3:P$30,$C66)","v":0},{"$f":"COUNTIF('توزيع الحراس'!Q$3:S$30,$C66)","v":0},{"$f":"COUNTIF('توزيع الحراس'!T$3:V$30,$C66)","v":0},{"$f":"COUNTIF('توزيع الحراس'!W$3:Y$30,$C66)","v":0},{"$f":"COUNTIF('توزيع الحراس'!Z$3:AB$30,$C66)","v":0},{"$f":"COUNTIF('توزيع الحراس'!AC$3:AE$30,$C66)","v":0},{"$f":"COUNTIF('توزيع الحراس'!AF$3:AH$30,$C66)","v":0},0,0]
[59,{"$f":"'توزيع الحراس'!B61","v":"محمد علي59"},{"$f":"'توزيع الحراس'!A61","v":59},{"$f":"COUNTIF('توزيع الحراس'!D$3:F$30,$C67)","v":0},{"$f":"COUNTIF('توزيع الحراس'!G$3:I$30,$C67)","v":0},{"$f":"COUNTIF('توزيع الحراس'!K$3:M$30,$C67)","v":0},{"$f":"COUNTIF('توزيع الحراس'!N$3:P$30,$C67)","v":0},{"$f":"COUNTIF('توزيع الحراس'!Q$3:S$30,$C67)","v":0},{"$f":"COUNTIF('توزيع الحراس'!T$3:V$30,$C67)","v":0},{"$f":"COUNTIF('توزيع الحراس'!W$3:Y$30,$C67)","v":0},{"$f":"COUNTIF('توزيع الحراس'!Z$3:AB$30,$C67)","v":0},{"$f":"COUNTIF('توزيع الحراس'!AC$3:AE$30,$C67)","v":0},{"$f":"COUNTIF('توزيع الحراس'!AF$3:AH$30,$C67)","v":0},0,0]
[60,{"$f":"'توزيع الحراس'!B62","v":"محمد علي60"},{"$f":"'توزيع الحراس'!A62","v":60},{"$f":"COUNTIF('توزيع الحراس'!D$3:F$30,$C68)","v":0},{"$f":"COUNTIF('توزيع الحراس'!G$3:I$30,$C68)","v":0},{"$f":"COUNTIF('توزيع الحراس'!K$3:M$30,$C68)","v":0},{"$f":"COUNTIF('توزيع الحراس'!N$3:P$30,$C68)","v":0},{"$f":"COUNTIF('توزيع الحراس'!Q$3:S$30,$C68)","v":0},{"$f":"COUNTIF('توزيع الحراس'!T$3:V$30,$C68)","v":0},{"$f":"COUNTIF('توزيع الحراس'!W$3:Y$30,$C68)","v":0},{"$f":"COUNTIF('توزيع الحراس'!Z$3:AB$30,$C68)","v":0},{"$f":"COUNTIF('توزيع الحراس'!AC$3:AE$30,$C68)","v":0},{"$f":"COUNTIF('توزيع الحراس'!AF$3:AH$30,$C68)","v":0},0,0]
[61,{"$f":"'توزيع الحراس'!B63","v":"محمد علي61"},{"$f":"'توزيع الحراس'!A63","v":61},{"$f":"COUNTIF('توزيع الحراس'!D$3:F$30,$C69)","v":0},{"$f":"COUNTIF('توزيع الحراس'!G$3:I$30,$C69)","v":0},{"$f":"COUNTIF('توزيع الحراس'!K$3:M$30,$C69)","v":0},{"$f":"COUNTIF('توزيع الحراس'!N$3:P$30,$C69)","v":0},{"$f":"COUNTIF('توزيع الحراس'!Q$3:S$30,$C69)","v":0},{"$f":"COUNTIF('توزيع الحراس'!T$3:V$30,$C69)","v":0},{"$f":"COUNTIF('توزيع الحراس'!W$3:Y$30,$C69)","v":0},{"$f":"COUNTIF('توزيع الحراس'!Z$3:AB$30,$C69)","v":0},{"$f":"COUNTIF('توزيع الحراس'!AC$3:AE$30,$C69)","v":0},{"$f":"COUNTIF('توزيع الحراس'!AF$3:AH$30,$C69)","v":0},0,0]
[62,{"$f":"'توزيع الحراس'!B64","v":"محمد علي62"},{"$f":"'توزيع الحراس'!A64","v":62},{"$f":"COUNTIF('توزيع الحراس'!D$3:F$30,$C70)","v":0},{"$f":"COUNTIF('توزيع الحراس'!G$3:I$30,$C70)","v":0},{"$f":"COUNTIF('توزيع الحراس'!K$3:M$30,$C70)","v":0},{"$f":"COUNTIF('توزيع الحراس'!N$3:P$30,$C70)","v":0},{"$f":"COUNTIF('توزيع الحراس'!Q$3:S$30,$C70)","v":0},{"$f":"COUNTIF('توزيع الحراس'!T$3:V$30,$C70)","v":0},{"$f":"COUNTIF('توزيع الحراس'!W$3:Y$30,$C70)","v":0},{"$f":"COUNTIF('توزيع الحراس'!Z$3:AB$30,$C70)","v":0},{"$f":"COUNTIF('توزيع الحراس'!AC$3:AE$30,$C70)","v":0},{"$f":"COUNTIF('توزيع الحراس'!AF$3:AH$30,$C70)","v":0},0,0]
[63,{"$f":"'توزيع الحراس'!B65","v":"محمد علي63"},{"$f":"'توزيع الحراس'!A65","v":63},{"$f":"COUNTIF('توزيع الحراس'!D$3:F$30,$C71)","v":0},{"$f":"COUNTIF('توزيع الحراس'!G$3:I$30,$C71)","v":0},{"$f":"COUNTIF('توزيع الحراس'!K$3:M$30,$C71)","v":0},{"$f":"COUNTIF('توزيع الحراس'!N$3:P$30,$C71)","v":0},{"$f":"COUNTIF('توزيع الحراس'!Q$3:S$30,$C71)","v":0},{"$f":"COUNTIF('توزيع الحراس'!T$3:V$30,$C71)","v":0},{"$f":"COUNTIF('توزيع الحراس'!W$3:Y$30,$C71)","v":0},{"$f":"COUNTIF('توزيع الحراس'!Z$3:AB$30,$C71)","v":0},{"$f":"COUNTIF('توزيع الحراس'!AC$3:AE$30,$C71)","v":0},{"$f":"COUNTIF('توزيع الحراس'!AF$3:AH$30,$C71)","v":0},0,0]
[64,{"$f":"'توزيع الحراس'!B66","v":"محمد علي64"},{"$f":"'توزيع الحراس'!A66","v":64},{"$f":"COUNTIF('توزيع الحراس'!D$3:F$30,$C72)","v":0},{"$f":"COUNTIF('توزيع الحراس'!G$3:I$30,$C72)","v":0},{"$f":"COUNTIF('توزيع الحراس'!K$3:M$30,$C72)","v":0},{"$f":"COUNTIF('توزيع الحراس'!N$3:P$30,$C72)","v":0},{"$f":"COUNTIF('توزيع الحراس'!Q$3:S$30,$C72)","v":0},{"$f":"COUNTIF('توزيع الحراس'!T$3:V$30,$C72)","v":0},{"$f":"COUNTIF('توزيع الحراس'!W$3:Y$30,$C72)","v":0},{"$f":"COUNTIF('توزيع الحراس'!Z$3:AB$30,$C72)","v":0},{"$f":"COUNTIF('توزيع الحراس'!AC$3:AE$30,$C72)","v":0},{"$f":"COUNTIF('توزيع الحراس'!AF$3:AH$30,$C72)","v":0},0,0]
[65,{"$f":"'توزيع الحراس'!B67","v":"محمد علي65"},{"$f":"'توزيع الحراس'!A67","v":65},{"$f":"COUNTIF('توزيع الحراس'!D$3:F$30,$C73)","v":0},{"$f":"COUNTIF('توزيع الحراس'!G$3:I$30,$C73)","v":0},{"$f":"COUNTIF('توزيع الحراس'!K$3:M$30,$C73)","v":0},{"$f":"COUNTIF('توزيع الحراس'!N$3:P$30,$C73)","v":0},{"$f":"COUNTIF('توزيع الحراس'!Q$3:S$30,$C73)","v":0},{"$f":"COUNTIF('توزيع الحراس'!T$3:V$30,$C73)","v":0},{"$f":"COUNTIF('توزيع الحراس'!W$3:Y$30,$C73)","v":0},{"$f":"COUNTIF('توزيع الحراس'!Z$3:AB$30,$C73)","v":0},{"$f":"COUNTIF('توزيع الحراس'!AC$3:AE$30,$C73)","v":0},{"$f":"COUNTIF('توزيع الحراس'!AF$3:AH$30,$C73)","v":0},{"$f":"SUM(D73:M73)","v":0},{"$f":"N73*0.5","v":0}]
[66,{"$f":"'توزيع الحراس'!B68","v":"محمد علي66"},{"$f":"'توزيع الحراس'!A68","v":66},{"$f":"COUNTIF('توزيع الحراس'!D$3:F$30,$C74)","v":0},{"$f":"COUNTIF('توزيع الحراس'!G$3:I$30,$C74)","v":0},{"$f":"COUNTIF('توزيع الحراس'!K$3:M$30,$C74)","v":0},{"$f":"COUNTIF('توزيع الحراس'!N$3:P$30,$C74)","v":0},{"$f":"COUNTIF('توزيع الحراس'!Q$3:S$30,$C74)","v":0},{"$f":"COUNTIF('توزيع الحراس'!T$3:V$30,$C74)","v":0},{"$f":"COUNTIF('توزيع الحراس'!W$3:Y$30,$C74)","v":0},{"$f":"COUNTIF('توزيع الحراس'!Z$3:AB$30,$C74)","v":0},{"$f":"COUNTIF('توزيع الحراس'!AC$3:AE$30,$C74)","v":0},{"$f":"COUNTIF('توزيع الحراس'!AF$3:AH$30,$C74)","v":0},0,0]
[67,{"$f":"'توزيع الحراس'!B69","v":"محمد علي67"},{"$f":"'توزيع الحراس'!A69","v":67},{"$f":"COUNTIF('توزيع الحراس'!D$3:F$30,$C75)","v":0},{"$f":"COUNTIF('توزيع الحراس'!G$3:I$30,$C75)","v":0},{"$f":"COUNTIF('توزيع الحراس'!K$3:M$30,$C75)","v":0},{"$f":"COUNTIF('توزيع الحراس'!N$3:P$30,$C75)","v":0},{"$f":"COUNTIF('توزيع الحراس'!Q$3:S$30,$C75)","v":0},{"$f":"COUNTIF('توزيع الحراس'!T$3:V$30,$C75)","v":0},{"$f":"COUNTIF('توزيع الحراس'!W$3:Y$30,$C75)","v":0},{"$f":"COUNTIF('توزيع الحراس'!Z$3:AB$30,$C75)","v":0},{"$f":"COUNTIF('توزيع الحراس'!AC$3:AE$30,$C75)","v":0},{"$f":"COUNTIF('توزيع الحراس'!AF$3:AH$30,$C75)","v":0},0,0]
[68,{"$f":"'توزيع الحراس'!B70","v":"محمد علي68"},{"$f":"'توزيع الحراس'!A70","v":68},{"$f":"COUNTIF('توزيع الحراس'!D$3:F$30,$C76)","v":0},{"$f":"COUNTIF('توزيع الحراس'!G$3:I$30,$C76)","v":0},{"$f":"COUNTIF('توزيع الحراس'!K$3:M$30,$C76)","v":0},{"$f":"COUNTIF('توزيع الحراس'!N$3:P$30,$C76)","v":0},{"$f":"COUNTIF('توزيع الحراس'!Q$3:S$30,$C76)","v":0},{"$f":"COUNTIF('توزيع الحراس'!T$3:V$30,$C76)","v":0},{"$f":"COUNTIF('توزيع الحراس'!W$3:Y$30,$C76)","v":0},{"$f":"COUNTIF('توزيع الحراس'!Z$3:AB$30,$C76)","v":0},{"$f":"COUNTIF('توزيع الحراس'!AC$3:AE$30,$C76)","v":0},{"$f":"COUNTIF('توزيع الحراس'!AF$3:AH$30,$C76)","v":0},0,0]
[69,{"$f":"'توزيع الحراس'!B71","v":"محمد علي69"},{"$f":"'توزيع الحراس'!A71","v":69},{"$f":"COUNTIF('توزيع الحراس'!D$3:F$30,$C77)","v":0},{"$f":"COUNTIF('توزيع الحراس'!G$3:I$30,$C77)","v":0},{"$f":"COUNTIF('توزيع الحراس'!K$3:M$30,$C77)","v":0},{"$f":"COUNTIF('توزيع الحراس'!N$3:P$30,$C77)","v":0},{"$f":"COUNTIF('توزيع الحراس'!Q$3:S$30,$C77)","v":0},{"$f":"COUNTIF('توزيع الحراس'!T$3:V$30,$C77)","v":0},{"$f":"COUNTIF('توزيع الحراس'!W$3:Y$30,$C77)","v":0},{"$f":"COUNTIF('توزيع الحراس'!Z$3:AB$30,$C77)","v":0},{"$f":"COUNTIF('توزيع الحراس'!AC$3:AE$30,$C77)","v":0},{"$f":"COUNTIF('توزيع الحراس'!AF$3:AH$30,$C77)","v":0},0,0]
[70,{"$f":"'توزيع الحراس'!B72","v":"محمد علي70"},{"$f":"'توزيع الحراس'!A72","v":70},{"$f":"COUNTIF('توزيع الحراس'!D$3:F$30,$C78)","v":0},{"$f":"COUNTIF('توزيع الحراس'!G$3:I$30,$C78)","v":0},{"$f":"COUNTIF('توزيع الحراس'!K$3:M$30,$C78)","v":0},{"$f":"COUNTIF('توزيع الحراس'!N$3:P$30,$C78)","v":0},{"$f":"COUNTIF('توزيع الحراس'!Q$3:S$30,$C78)","v":0},{"$f":"COUNTIF('توزيع الحراس'!T$3:V$30,$C78)","v":0},{"$f":"COUNTIF('توزيع الحراس'!W$3:Y$30,$C78)","v":0},{"$f":"COUNTIF('توزيع الحراس'!Z$3:AB$30,$C78)","v":0},{"$f":"COUNTIF('توزيع الحراس'!AC$3:AE$30,$C78)","v":0},{"$f":"COUNTIF('توزيع الحراس'!AF$3:AH$30,$C78)","v":0},0,0]
[71,{"$f":"'توزيع الحراس'!B73","v":"محمد علي71"},{"$f":"'توزيع الحراس'!A73","v":71},{"$f":"COUNTIF('توزيع الحراس'!D$3:F$30,$C79)","v":0},{"$f":"COUNTIF('توزيع الحراس'!G$3:I$30,$C79)","v":0},{"$f":"COUNTIF('توزيع الحراس'!K$3:M$30,$C79)","v":0},{"$f":"COUNTIF('توزيع الحراس'!N$3:P$30,$C79)","v":0},{"$f":"COUNTIF('توزيع الحراس'!Q$3:S$30,$C79)","v":0},{"$f":"COUNTIF('توزيع الحراس'!T$3:V$30,$C79)","v":0},{"$f":"COUNTIF('توزيع الحراس'!W$3:Y$30,$C79)","v":0},{"$f":"COUNTIF('توزيع الحراس'!Z$3:AB$30,$C79)","v":0},{"$f":"COUNTIF('توزيع الحراس'!AC$3:AE$30,$C79)","v":0},{"$f":"COUNTIF('توزيع الحراس'!AF$3:AH$30,$C79)","v":0},0,0]
[72,{"$f":"'توزيع الحراس'!B74","v":"محمد علي72"},{"$f":"'توزيع الحراس'!A74","v":72},{"$f":"COUNTIF('توزيع الحراس'!D$3:F$30,$C80)","v":0},{"$f":"COUNTIF('توزيع الحراس'!G$3:I$30,$C80)","v":0},{"$f":"COUNTIF('توزيع الحراس'!K$3:M$30,$C80)","v":0},{"$f":"COUNTIF('توزيع الحراس'!N$3:P$30,$C80)","v":0},{"$f":"COUNTIF('توزيع الحراس'!Q$3:S$30,$C80)","v":0},{"$f":"COUNTIF('توزيع الحراس'!T$3:V$30,$C80)","v":0},{"$f":"COUNTIF('توزيع الحراس'!W$3:Y$30,$C80)","v":0},{"$f":"COUNTIF('توزيع الحراس'!Z$3:AB$30,$C80)","v":0},{"$f":"COUNTIF('توزيع الحراس'!AC$3:AE$30,$C80)","v":0},{"$f":"COUNTIF('توزيع الحراس'!AF$3:AH$30,$C80)","v":0},0,0]
[73,{"$f":"'توزيع الحراس'!B75","v":"محمد علي73"},{"$f":"'توزيع الحراس'!A75","v":73},{"$f":"COUNTIF('توزيع الحراس'!D$3:F$30,$C81)","v":0},{"$f":"COUNTIF('توزيع الحراس'!G$3:I$30,$C81)","v":0},{"$f":"COUNTIF('توزيع الحراس'!K$3:M$30,$C81)","v":0},{"$f":"COUNTIF('توزيع الحراس'!N$3:P$30,$C81)","v":0},{"$f":"COUNTIF('توزيع الحراس'!Q$3:S$30,$C81)","v":0},{"$f":"COUNTIF('توزيع الحراس'!T$3:V$30,$C81)","v":0},{"$f":"COUNTIF('توزيع الحراس'!W$3:Y$30,$C81)","v":0},{"$f":"COUNTIF('توزيع الحراس'!Z$3:AB$30,$C81)","v":0},{"$f":"COUNTIF('توزيع الحراس'!AC$3:AE$30,$C81)","v":0},{"$f":"COUNTIF('توزيع الحراس'!AF$3:AH$30,$C81)","v":0},0,0]
[74,{"$f":"'توزيع الحراس'!B76","v":"محمد علي74"},{"$f":"'توزيع الحراس'!A76","v":74},{"$f":"COUNTIF('توزيع الحراس'!D$3:F$30,$C82)","v":0},{"$f":"COUNTIF('توزيع الحراس'!G$3:I$30,$C82)","v":0},{"$f":"COUNTIF('توزيع الحراس'!K$3:M$30,$C82)","v":0},{"$f":"COUNTIF('توزيع الحراس'!N$3:P$30,$C82)","v":0},{"$f":"COUNTIF('توزيع الحراس'!Q$3:S$30,$C82)","v":0},{"$f":"COUNTIF('توزيع الحراس'!T$3:V$30,$C82)","v":0},{"$f":"COUNTIF('توزيع الحراس'!W$3:Y$30,$C82)","v":0},{"$f":"COUNTIF('توزيع الحراس'!Z$3:AB$30,$C82)","v":0},{"$f":"COUNTIF('توزيع الحراس'!AC$3:AE$30,$C82)","v":0},{"$f":"COUNTIF('توزيع الحراس'!AF$3:AH$30,$C82)","v":0},0,0]
[75,{"$f":"'توزيع الحراس'!B77","v":"محمد علي75"},{"$f":"'توزيع الحراس'!A77","v":75},{"$f":"COUNTIF('توزيع الحراس'!D$3:F$30,$C83)","v":0},{"$f":"COUNTIF('توزيع الحراس'!G$3:I$30,$C83)","v":0},{"$f":"COUNTIF('توزيع الحراس'!K$3:M$30,$C83)","v":0},{"$f":"COUNTIF('توزيع الحراس'!N$3:P$30,$C83)","v":0},{"$f":"COUNTIF('توزيع الحراس'!Q$3:S$30,$C83)","v":0},{"$f":"COUNTIF('توزيع الحراس'!T$3:V$30,$C83)","v":0},{"$f":"COUNTIF('توزيع الحراس'!W$3:Y$30,$C83)","v":0},{"$f":"COUNTIF('توزيع الحراس'!Z$3:AB$30,$C83)","v":0},{"$f":"COUNTIF('توزيع الحراس'!AC$3:AE$30,$C83)","v":0},{"$f":"COUNTIF('توزيع الحراس'!AF$3:AH$30,$C83)","v":0},0,0]
[76,{"$f":"'توزيع الحراس'!B78","v":"محمد علي76"},{"$f":"'توزيع الحراس'!A78","v":76},{"$f":"COUNTIF('توزيع الحراس'!D$3:F$30,$C84)","v":0},{"$f":"COUNTIF('توزيع الحراس'!G$3:I$30,$C84)","v":0},{"$f":"COUNTIF('توزيع الحراس'!K$3:M$30,$C84)","v":0},{"$f":"COUNTIF('توزيع الحراس'!N$3:P$30,$C84)","v":0},{"$f":"COUNTIF('توزيع الحراس'!Q$3:S$30,$C84)","v":0},{"$f":"COUNTIF('توزيع الحراس'!T$3:V$30,$C84)","v":0},{"$f":"COUNTIF('توزيع الحراس'!W$3:Y$30,$C84)","v":0},{"$f":"COUNTIF('توزيع الحراس'!Z$3:AB$30,$C84)","v":0},{"$f":"COUNTIF('توزيع الحراس'!AC$3:AE$30,$C84)","v":0},{"$f":"COUNTIF('توزيع الحراس'!AF$3:AH$30,$C84)","v":0},0,0]
[77,{"$f":"'توزيع الحراس'!B79","v":"محمد علي77"},{"$f":"'توزيع الحراس'!A79","v":77},{"$f":"COUNTIF('توزيع الحراس'!D$3:F$30,$C85)","v":0},{"$f":"COUNTIF('توزيع الحراس'!G$3:I$30,$C85)","v":0},{"$f":"COUNTIF('توزيع الحراس'!K$3:M$30,$C85)","v":0},{"$f":"COUNTIF('توزيع الحراس'!N$3:P$30,$C85)","v":0},{"$f":"COUNTIF('توزيع الحراس'!Q$3:S$30,$C85)","v":0},{"$f":"COUNTIF('توزيع الحراس'!T$3:V$30,$C85)","v":0},{"$f":"COUNTIF('توزيع الحراس'!W$3:Y$30,$C85)","v":0},{"$f":"COUNTIF('توزيع الحراس'!Z$3:AB$30,$C85)","v":0},{"$f":"COUNTIF('توزيع الحراس'!AC$3:AE$30,$C85)","v":0},{"$f":"COUNTIF('توزيع الحراس'!AF$3:AH$30,$C85)","v":0},0,0]
[78,{"$f":"'توزيع الحراس'!B80","v":"محمد علي78"},{"$f":"'توزيع الحراس'!A80","v":78},{"$f":"COUNTIF('توزيع الحراس'!D$3:F$30,$C86)","v":0},{"$f":"COUNTIF('توزيع الحراس'!G$3:I$30,$C86)","v":0},{"$f":"COUNTIF('توزيع الحراس'!K$3:M$30,$C86)","v":0},{"$f":"COUNTIF('توزيع الحراس'!N$3:P$30,$C86)","v":0},{"$f":"COUNTIF('توزيع الحراس'!Q$3:S$30,$C86)","v":0},{"$f":"COUNTIF('توزيع الحراس'!T$3:V$30,$C86)","v":0},{"$f":"COUNTIF('توزيع الحراس'!W$3:Y$30,$C86)","v":0},{"$f":"COUNTIF('توزيع الحراس'!Z$3:AB$30,$C86)","v":0},{"$f":"COUNTIF('توزيع الحراس'!AC$3:AE$30,$C86)","v":0},{"$f":"COUNTIF('توزيع الحراس'!AF$3:AH$30,$C86)","v":0},0,0]
[79,{"$f":"'توزيع الحراس'!B81","v":"محمد علي79"},{"$f":"'توزيع الحراس'!A81","v":79},{"$f":"COUNTIF('توزيع الحراس'!D$3:F$30,$C87)","v":0},{"$f":"COUNTIF('توزيع الحراس'!G$3:I$30,$C87)","v":0},{"$f":"COUNTIF('توزيع الحراس'!K$3:M$30,$C87)","v":0},{"$f":"COUNTIF('توزيع الحراس'!N$3:P$30,$C87)","v":0},{"$f":"COUNTIF('توزيع الحراس'!Q$3:S$30,$C87)","v":0},{"$f":"COUNTIF('توزيع الحراس'!T$3:V$30,$C87)","v":0},{"$f":"COUNTIF('توزيع الحراس'!W$3:Y$30,$C87)","v":0},{"$f":"COUNTIF('توزيع الحراس'!Z$3:AB$30,$C87)","v":0},{"$f":"COUNTIF('توزيع الحراس'!AC$3:AE$30,$C87)","v":0},{"$f":"COUNTIF('توزيع الحراس'!AF$3:AH$30,$C87)","v":0},0,0]
[80,{"$f":"'توزيع الحراس'!B82","v":"محمد علي80"},{"$f":"'توزيع الحراس'!A82","v":80},{"$f":"COUNTIF('توزيع الحراس'!D$3:F$30,$C88)","v":0},{"$f":"COUNTIF('توزيع الحراس'!G$3:I$30,$C88)","v":0},{"$f":"COUNTIF('توزيع الحراس'!K$3:M$30,$C88)","v":0},{"$f":"COUNTIF('توزيع الحراس'!N$3:P$30,$C88)","v":0},{"$f":"COUNTIF('توزيع الحراس'!Q$3:S$30,$C88)","v":0},{"$f":"COUNTIF('توزيع الحراس'!T$3:V$30,$C88)","v":0},{"$f":"COUNTIF('توزيع الحراس'!W$3:Y$30,$C88)","v":0},{"$f":"COUNTIF('توزيع الحراس'!Z$3:AB$30,$C88)","v":0},{"$f":"COUNTIF('توزيع الحراس'!AC$3:AE$30,$C88)","v":0},{"$f":"COUNTIF('توزيع الحراس'!AF$3:AH$30,$C88)","v":0},0,0]
[81,{"$f":"'توزيع الحراس'!B83","v":"محمد علي81"},{"$f":"'توزيع الحراس'!A83","v":81},{"$f":"COUNTIF('توزيع الحراس'!D$3:F$30,$C89)","v":0},{"$f":"COUNTIF('توزيع الحراس'!G$3:I$30,$C89)","v":0},{"$f":"COUNTIF('توزيع الحراس'!K$3:M$30,$C89)","v":0},{"$f":"COUNTIF('توزيع الحراس'!N$3:P$30,$C89)","v":0},{"$f":"COUNTIF('توزيع الحراس'!Q$3:S$30,$C89)","v":0},{"$f":"COUNTIF('توزيع الحراس'!T$3:V$30,$C89)","v":0},{"$f":"COUNTIF('توزيع الحراس'!W$3:Y$30,$C89)","v":0},{"$f":"COUNTIF('توزيع الحراس'!Z$3:AB$30,$C89)","v":0},{"$f":"COUNTIF('توزيع الحراس'!AC$3:AE$30,$C89)","v":0},{"$f":"COUNTIF('توزيع الحراس'!AF$3:AH$30,$C89)","v":0},0,0]
[82,{"$f":"'توزيع الحراس'!B84","v":"محمد علي82"},{"$f":"'توزيع الحراس'!A84","v":82},{"$f":"COUNTIF('توزيع الحراس'!D$3:F$30,$C90)","v":0},{"$f":"COUNTIF('توزيع الحراس'!G$3:I$30,$C90)","v":0},{"$f":"COUNTIF('توزيع الحراس'!K$3:M$30,$C90)","v":0},{"$f":"COUNTIF('توزيع الحراس'!N$3:P$30,$C90)","v":0},{"$f":"COUNTIF('توزيع الحراس'!Q$3:S$30,$C90)","v":0},{"$f":"COUNTIF('توزيع الحراس'!T$3:V$30,$C90)","v":0},{"$f":"COUNTIF('توزيع الحراس'!W$3:Y$30,$C90)","v":0},{"$f":"COUNTIF('توزيع الحراس'!Z$3:AB$30,$C90)","v":0},{"$f":"COUNTIF('توزيع الحراس'!AC$3:AE$30,$C90)","v":0},{"$f":"COUNTIF('توزيع الحراس'!AF$3:AH$30,$C90)","v":0},0,0]
[83,{"$f":"'توزيع الحراس'!B85","v":"محمد علي83"},{"$f":"'توزيع الحراس'!A85","v":83},{"$f":"COUNTIF('توزيع الحراس'!D$3:F$30,$C91)","v":0},{"$f":"COUNTIF('توزيع الحراس'!G$3:I$30,$C91)","v":0},{"$f":"COUNTIF('توزيع الحراس'!K$3:M$30,$C91)","v":0},{"$f":"COUNTIF('توزيع الحراس'!N$3:P$30,$C91)","v":0},{"$f":"COUNTIF('توزيع الحراس'!Q$3:S$30,$C91)","v":0},{"$f":"COUNTIF('توزيع الحراس'!T$3:V$30,$C91)","v":0},{"$f":"COUNTIF('توزيع الحراس'!W$3:Y$30,$C91)","v":0},{"$f":"COUNTIF('توزيع الحراس'!Z$3:AB$30,$C91)","v":0},{"$f":"COUNTIF('توزيع الحراس'!AC$3:AE$30,$C91)","v":0},{"$f":"COUNTIF('توزيع الحراس'!AF$3:AH$30,$C91)","v":0},0,0]
[84,{"$f":"'توزيع الحراس'!B86","v":"محمد علي84"},{"$f":"'توزيع الحراس'!A86","v":84},{"$f":"COUNTIF('توزيع الحراس'!D$3:F$30,$C92)","v":0},{"$f":"COUNTIF('توزيع الحراس'!G$3:I$30,$C92)","v":0},{"$f":"COUNTIF('توزيع الحراس'!K$3:M$30,$C92)","v":0},{"$f":"COUNTIF('توزيع الحراس'!N$3:P$30,$C92)","v":0},{"$f":"COUNTIF('توزيع الحراس'!Q$3:S$30,$C92)","v":0},{"$f":"COUNTIF('توزيع الحراس'!T$3:V$30,$C92)","v":0},{"$f":"COUNTIF('توزيع الحراس'!W$3:Y$30,$C92)","v":0},{"$f":"COUNTIF('توزيع الحراس'!Z$3:AB$30,$C92)","v":0},{"$f":"COUNTIF('توزيع الحراس'!AC$3:AE$30,$C92)","v":0},{"$f":"COUNTIF('توزيع الحراس'!AF$3:AH$30,$C92)","v":0},0,0]
[85,{"$f":"'توزيع الحراس'!B87","v":"محمد علي85"},{"$f":"'توزيع الحراس'!A87","v":85},{"$f":"COUNTIF('توزيع الحراس'!D$3:F$30,$C93)","v":0},{"$f":"COUNTIF('توزيع الحراس'!G$3:I$30,$C93)","v":0},{"$f":"COUNTIF('توزيع الحراس'!K$3:M$30,$C93)","v":0},{"$f":"COUNTIF('توزيع الحراس'!N$3:P$30,$C93)","v":0},{"$f":"COUNTIF('توزيع الحراس'!Q$3:S$30,$C93)","v":0},{"$f":"COUNTIF('توزيع الحراس'!T$3:V$30,$C93)","v":0},{"$f":"COUNTIF('توزيع الحراس'!W$3:Y$30,$C93)","v":0},{"$f":"COUNTIF('توزيع الحراس'!Z$3:AB$30,$C93)","v":0},{"$f":"COUNTIF('توزيع الحراس'!AC$3:AE$30,$C93)","v":0},{"$f":"COUNTIF('توزيع الحراس'!AF$3:AH$30,$C93)","v":0},0,0]
[86,{"$f":"'توزيع الحراس'!B88","v":"محمد علي86"},{"$f":"'توزيع الحراس'!A88","v":86},{"$f":"COUNTIF('توزيع الحراس'!D$3:F$30,$C94)","v":0},{"$f":"COUNTIF('توزيع الحراس'!G$3:I$30,$C94)","v":0},{"$f":"COUNTIF('توزيع الحراس'!K$3:M$30,$C94)","v":0},{"$f":"COUNTIF('توزيع الحراس'!N$3:P$30,$C94)","v":0},{"$f":"COUNTIF('توزيع الحراس'!Q$3:S$30,$C94)","v":0},{"$f":"COUNTIF('توزيع الحراس'!T$3:V$30,$C94)","v":0},{"$f":"COUNTIF('توزيع الحراس'!W$3:Y$30,$C94)","v":0},{"$f":"COUNTIF('توزيع الحراس'!Z$3:AB$30,$C94)","v":0},{"$f":"COUNTIF('توزيع الحراس'!AC$3:AE$30,$C94)","v":0},{"$f":"COUNTIF('توزيع الحراس'!AF$3:AH$30,$C94)","v":0},0,0]
[87,{"$f":"'توزيع الحراس'!B89","v":"محمد علي87"},{"$f":"'توزيع الحراس'!A89","v":87},{"$f":"COUNTIF('توزيع الحراس'!D$3:F$30,$C95)","v":0},{"$f":"COUNTIF('توزيع الحراس'!G$3:I$30,$C95)","v":0},{"$f":"COUNTIF('توزيع الحراس'!K$3:M$30,$C95)","v":0},{"$f":"COUNTIF('توزيع الحراس'!N$3:P$30,$C95)","v":0},{"$f":"COUNTIF('توزيع الحراس'!Q$3:S$30,$C95)","v":0},{"$f":"COUNTIF('توزيع الحراس'!T$3:V$30,$C95)","v":0},{"$f":"COUNTIF('توزيع الحراس'!W$3:Y$30,$C95)","v":0},{"$f":"COUNTIF('توزيع الحراس'!Z$3:AB$30,$C95)","v":0},{"$f":"COUNTIF('توزيع الحراس'!AC$3:AE$30,$C95)","v":0},{"$f":"COUNTIF('توزيع الحراس'!AF$3:AH$30,$C95)","v":0},0,0]
[88,{"$f":"'توزيع الحراس'!B90","v":"محمد علي88"},{"$f":"'توزيع الحراس'!A90","v":88},{"$f":"COUNTIF('توزيع الحراس'!D$3:F$30,$C96)","v":0},{"$f":"COUNTIF('توزيع الحراس'!G$3:I$30,$C96)","v":0},{"$f":"COUNTIF('توزيع الحراس'!K$3:M$30,$C96)","v":0},{"$f":"COUNTIF('توزيع الحراس'!N$3:P$30,$C96)","v":0},{"$f":"COUNTIF('توزيع الحراس'!Q$3:S$30,$C96)","v":0},{"$f":"COUNTIF('توزيع الحراس'!T$3:V$30,$C96)","v":0},{"$f":"COUNTIF('توزيع الحراس'!W$3:Y$30,$C96)","v":0},{"$f":"COUNTIF('توزيع الحراس'!Z$3:AB$30,$C96)","v":0},{"$f":"COUNTIF('توزيع الحراس'!AC$3:AE$30,$C96)","v":0},{"$f":"COUNTIF('توزيع الحراس'!AF$3:AH$30,$C96)","v":0},0,0]
[89,{"$f":"'توزيع الحراس'!B91","v":"محمد علي89"},{"$f":"'توزيع الحراس'!A91","v":89},{"$f":"COUNTIF('توزيع الحراس'!D$3:F$30,$C97)","v":0},{"$f":"COUNTIF('توزيع الحراس'!G$3:I$30,$C97)","v":0},{"$f":"COUNTIF('توزيع الحراس'!K$3:M$30,$C97)","v":0},{"$f":"COUNTIF('توزيع الحراس'!N$3:P$30,$C97)","v":0},{"$f":"COUNTIF('توزيع الحراس'!Q$3:S$30,$C97)","v":0},{"$f":"COUNTIF('توزيع الحراس'!T$3:V$30,$C97)","v":0},{"$f":"COUNTIF('توزيع الحراس'!W$3:Y$30,$C97)","v":0},{"$f":"COUNTIF('توزيع الحراس'!Z$3:AB$30,$C97)","v":0},{"$f":"COUNTIF('توزيع الحراس'!AC$3:AE$30,$C97)","v":0},{"$f":"COUNTIF('توزيع الحراس'!AF$3:AH$30,$C97)","v":0},0,0]
[90,{"$f":"'توزيع الحراس'!B92","v":"محمد علي90"},{"$f":"'توزيع الحراس'!A92","v":90},{"$f":"COUNTIF('توزيع الحراس'!D$3:F$30,$C98)","v":0},{"$f":"COUNTIF('توزيع الحراس'!G$3:I$30,$C98)","v":0},{"$f":"COUNTIF('توزيع الحراس'!K$3:M$30,$C98)","v":0},{"$f":"COUNTIF('توزيع الحراس'!N$3:P$30,$C98)","v":0},{"$f":"COUNTIF('توزيع الحراس'!Q$3:S$30,$C98)","v":0},{"$f":"COUNTIF('توزيع الحراس'!T$3:V$30,$C98)","v":0},{"$f":"COUNTIF('توزيع الحراس'!W$3:Y$30,$C98)","v":0},{"$f":"COUNTIF('توزيع الحراس'!Z$3:AB$30,$C98)","v":0},{"$f":"COUNTIF('توزيع الحراس'!AC$3:AE$30,$C98)","v":0},{"$f":"COUNTIF('توزيع الحراس'!AF$3:AH$30,$C98)","v":0},0,0]
[91,{"$f":"'توزيع الحراس'!B93","v":"محمد علي91"},{"$f":"'توزيع الحراس'!A93","v":91},{"$f":"COUNTIF('توزيع الحراس'!D$3:F$30,$C99)","v":0},{"$f":"COUNTIF('توزيع الحراس'!G$3:I$30,$C99)","v":0},{"$f":"COUNTIF('توزيع الحراس'!K$3:M$30,$C99)","v":0},{"$f":"COUNTIF('توزيع الحراس'!N$3:P$30,$C99)","v":0},{"$f":"COUNTIF('توزيع الحراس'!Q$3:S$30,$C99)","v":0},{"$f":"COUNTIF('توزيع الحراس'!T$3:V$30,$C99)","v":0},{"$f":"COUNTIF('توزيع الحراس'!W$3:Y$30,$C99)","v":0},{"$f":"COUNTIF('توزيع الحراس'!Z$3:AB$30,$C99)","v":0},{"$f":"COUNTIF('توزيع الحراس'!AC$3:AE$30,$C99)","v":0},{"$f":"COUNTIF('توزيع الحراس'!AF$3:AH$30,$C99)","v":0},0,0]
[92,{"$f":"'توزيع الحراس'!B94","v":"محمد علي92"},{"$f":"'توزيع الحراس'!A94","v":92},{"$f":"COUNTIF('توزيع الحراس'!D$3:F$30,$C100)","v":0},{"$f":"COUNTIF('توزيع الحراس'!G$3:I$30,$C100)","v":0},{"$f":"COUNTIF('توزيع الحراس'!K$3:M$30,$C100)","v":0},{"$f":"COUNTIF('توزيع الحراس'!N$3:P$30,$C100)","v":0},{"$f":"COUNTIF('توزيع الحراس'!Q$3:S$30,$C100)","v":0},{"$f":"COUNTIF('توزيع الحراس'!T$3:V$30,$C100)","v":0},{"$f":"COUNTIF('توزيع الحراس'!W$3:Y$30,$C100)","v":0},{"$f":"COUNTIF('توزيع الحراس'!Z$3:AB$30,$C100)","v":0},{"$f":"COUNTIF('توزيع الحراس'!AC$3:AE$30,$C100)","v":0},{"$f":"COUNTIF('توزيع الحراس'!AF$3:AH$30,$C100)","v":0},0,0]
[93,{"$f":"'توزيع الحراس'!B95","v":"محمد علي93"},{"$f":"'توزيع الحراس'!A95","v":93},{"$f":"COUNTIF('توزيع الحراس'!D$3:F$30,$C101)","v":0},{"$f":"COUNTIF('توزيع الحراس'!G$3:I$30,$C101)","v":0},{"$f":"COUNTIF('توزيع الحراس'!K$3:M$30,$C101)","v":0},{"$f":"COUNTIF('توزيع الحراس'!N$3:P$30,$C101)","v":0},{"$f":"COUNTIF('توزيع الحراس'!Q$3:S$30,$C101)","v":0},{"$f":"COUNTIF('توزيع الحراس'!T$3:V$30,$C101)","v":0},{"$f":"COUNTIF('توزيع الحراس'!W$3:Y$30,$C101)","v":0},{"$f":"COUNTIF('توزيع الحراس'!Z$3:AB$30,$C101)","v":0},{"$f":"COUNTIF('توزيع الحراس'!AC$3:AE$30,$C101)","v":0},{"$f":"COUNTIF('توزيع الحراس'!AF$3:AH$30,$C101)","v":0},0,0]
[94,{"$f":"'توزيع الحراس'!B96","v":"محمد علي94"},{"$f":"'توزيع الحراس'!A96","v":94},{"$f":"COUNTIF('توزيع الحراس'!D$3:F$30,$C102)","v":0},{"$f":"COUNTIF('توزيع الحراس'!G$3:I$30,$C102)","v":0},{"$f":"COUNTIF('توزيع الحراس'!K$3:M$30,$C102)","v":0},{"$f":"COUNTIF('توزيع الحراس'!N$3:P$30,$C102)","v":0},{"$f":"COUNTIF('توزيع الحراس'!Q$3:S$30,$C102)","v":0},{"$f":"COUNTIF('توزيع الحراس'!T$3:V$30,$C102)","v":0},{"$f":"COUNTIF('توزيع الحراس'!W$3:Y$30,$C102)","v":0},{"$f":"COUNTIF('توزيع الحراس'!Z$3:AB$30,$C102)","v":0},{"$f":"COUNTIF('توزيع الحراس'!AC$3:AE$30,$C102)","v":0},{"$f":"COUNTIF('توزيع الحراس'!AF$3:AH$30,$C102)","v":0},0,0]
[95,{"$f":"'توزيع الحراس'!B97","v":"محمد علي95"},{"$f":"'توزيع الحراس'!A97","v":95},{"$f":"COUNTIF('توزيع الحراس'!D$3:F$30,$C103)","v":0},{"$f":"COUNTIF('توزيع الحراس'!G$3:I$30,$C103)","v":0},{"$f":"COUNTIF('توزيع الحراس'!K$3:M$30,$C103)","v":0},{"$f":"COUNTIF('توزيع الحراس'!N$3:P$30,$C103)","v":0},{"$f":"COUNTIF('توزيع الحراس'!Q$3:S$30,$C103)","v":0},{"$f":"COUNTIF('توزيع الحراس'!T$3:V$30,$C103)","v":0},{"$f":"COUNTIF('توزيع الحراس'!W$3:Y$30,$C103)","v":0},{"$f":"COUNTIF('توزيع الحراس'!Z$3:AB$30,$C103)","v":0},{"$f":"COUNTIF('توزيع الحراس'!AC$3:AE$30,$C103)","v":0},{"$f":"COUNTIF('توزيع الحراس'!AF$3:AH$30,$C103)","v":0},0,0]
[96,{"$f":"'توزيع الحراس'!B98","v":"محمد علي96"},{"$f":"'توزيع الحراس'!A98","v":96},{"$f":"COUNTIF('توزيع الحراس'!D$3:F$30,$C104)","v":0},{"$f":"COUNTIF('توزيع الحراس'!G$3:I$30,$C104)","v":0},{"$f":"COUNTIF('توزيع الحراس'!K$3:M$30,$C104)","v":0},{"$f":"COUNTIF('توزيع الحراس'!N$3:P$30,$C104)","v":0},{"$f":"COUNTIF('توزيع الحراس'!Q$3:S$30,$C104)","v":0},{"$f":"COUNTIF('توزيع الحراس'!T$3:V$30,$C104)","v":0},{"$f":"COUNTIF('توزيع الحراس'!W$3:Y$30,$C104)","v":0},{"$f":"COUNTIF('توزيع الحراس'!Z$3:AB$30,$C104)","v":0},{"$f":"COUNTIF('توزيع الحراس'!AC$3:AE$30,$C104)","v":0},{"$f":"COUNTIF('توزيع الحراس'!AF$3:AH$30,$C104)","v":0},0,0]
[97,{"$f":"'توزيع الحراس'!B99","v":"محمد علي97"},{"$f":"'توزيع الحراس'!A99","v":97},{"$f":"COUNTIF('توزيع الحراس'!D$3:F$30,$C105)","v":0},{"$f":"COUNTIF('توزيع الحراس'!G$3:I$30,$C105)","v":0},{"$f":"COUNTIF('توزيع الحراس'!K$3:M$30,$C105)","v":0},{"$f":"COUNTIF('توزيع الحراس'!N$3:P$30,$C105)","v":0},{"$f":"COUNTIF('توزيع الحراس'!Q$3:S$30,$C105)","v":0},{"$f":"COUNTIF('توزيع الحراس'!T$3:V$30,$C105)","v":0},{"$f":"COUNTIF('توزيع الحراس'!W$3:Y$30,$C105)","v":0},{"$f":"COUNTIF('توزيع الحراس'!Z$3:AB$30,$C105)","v":0},{"$f":"COUNTIF('توزيع الحراس'!AC$3:AE$30,$C105)","v":0},{"$f":"COUNTIF('توزيع الحراس'!AF$3:AH$30,$C105)","v":0},0,0]
[98,{"$f":"'توزيع الحراس'!B100","v":"محمد علي98"},{"$f":"'توزيع الحراس'!A100","v":98},{"$f":"COUNTIF('توزيع الحراس'!D$3:F$30,$C106)","v":0},{"$f":"COUNTIF('توزيع الحراس'!G$3:I$30,$C106)","v":0},{"$f":"COUNTIF('توزيع الحراس'!K$3:M$30,$C106)","v":0},{"$f":"COUNTIF('توزيع الحراس'!N$3:P$30,$C106)","v":0},{"$f":"COUNTIF('توزيع الحراس'!Q$3:S$30,$C106)","v":0},{"$f":"COUNTIF('توزيع الحراس'!T$3:V$30,$C106)","v":0},{"$f":"COUNTIF('توزيع الحراس'!W$3:Y$30,$C106)","v":0},{"$f":"COUNTIF('توزيع الحراس'!Z$3:AB$30,$C106)","v":0},{"$f":"COUNTIF('توزيع الحراس'!AC$3:AE$30,$C106)","v":0},{"$f":"COUNTIF('توزيع الحراس'!AF$3:AH$30,$C106)","v":0},0,0]
[99,{"$f":"'توزيع الحراس'!B101","v":"محمد علي99"},{"$f":"'توزيع الحراس'!A101","v":99},{"$f":"COUNTIF('توزيع الحراس'!D$3:F$30,$C107)","v":0},{"$f":"COUNTIF('توزيع الحراس'!G$3:I$30,$C107)","v":0},{"$f":"COUNTIF('توزيع الحراس'!K$3:M$30,$C107)","v":0},{"$f":"COUNTIF('توزيع الحراس'!N$3:P$30,$C107)","v":0},{"$f":"COUNTIF('توزيع الحراس'!Q$3:S$30,$C107)","v":0},{"$f":"COUNTIF('توزيع الحراس'!T$3:V$30,$C107)","v":0},{"$f":"COUNTIF('توزيع الحراس'!W$3:Y$30,$C107)","v":0},{"$f":"COUNTIF('توزيع الحراس'!Z$3:AB$30,$C107)","v":0},{"$f":"COUNTIF('توزيع الحراس'!AC$3:AE$30,$C107)","v":0},{"$f":"COUNTIF('توزيع الحراس'!AF$3:AH$30,$C107)","v":0},0,0]
[100,{"$f":"'توزيع الحراس'!B102","v":"محمد علي100"},{"$f":"'توزيع الحراس'!A102","v":100},{"$f":"COUNTIF('توزيع الحراس'!D$3:F$30,$C108)","v":0},{"$f":"COUNTIF('توزيع الحراس'!G$3:I$30,$C108)","v":0},{"$f":"COUNTIF('توزيع الحراس'!K$3:M$30,$C108)","v":0},{"$f":"COUNTIF('توزيع الحراس'!N$3:P$30,$C108)","v":0},{"$f":"COUNTIF('توزيع الحراس'!Q$3:S$30,$C108)","v":0},{"$f":"COUNTIF('توزيع الحراس'!T$3:V$30,$C108)","v":0},{"$f":"COUNTIF('توزيع الحراس'!W$3:Y$30,$C108)","v":0},{"$f":"COUNTIF('توزيع الحراس'!Z$3:AB$30,$C108)","v":0},{"$f":"COUNTIF('توزيع الحراس'!AC$3:AE$30,$C108)","v":0},{"$f":"COUNTIF('توزيع الحراس'!AF$3:AH$30,$C108)","v":0},0,0]
[101,{"$f":"'توزيع الحراس'!B103","v":"محمد علي101"},{"$f":"'توزيع الحراس'!A103","v":101},{"$f":"COUNTIF('توزيع الحراس'!D$3:F$30,$C109)","v":0},{"$f":"COUNTIF('توزيع الحراس'!G$3:I$30,$C109)","v":0},{"$f":"COUNTIF('توزيع الحراس'!K$3:M$30,$C109)","v":0},{"$f":"COUNTIF('توزيع الحراس'!N$3:P$30,$C109)","v":0},{"$f":"COUNTIF('توزيع الحراس'!Q$3:S$30,$C109)","v":0},{"$f":"COUNTIF('توزيع الحراس'!T$3:V$30,$C109)","v":0},{"$f":"COUNTIF('توزيع الحراس'!W$3:Y$30,$C109)","v":0},{"$f":"COUNTIF('توزيع الحراس'!Z$3:AB$30,$C109)","v":0},{"$f":"COUNTIF('توزيع الحراس'!AC$3:AE$30,$C109)","v":0},{"$f":"COUNTIF('توزيع الحراس'!AF$3:AH$30,$C109)","v":0},0,0]
[102,{"$f":"'توزيع الحراس'!B104","v":"محمد علي102"},{"$f":"'توزيع الحراس'!A104","v":102},{"$f":"COUNTIF('توزيع الحراس'!D$3:F$30,$C110)","v":0},{"$f":"COUNTIF('توزيع الحراس'!G$3:I$30,$C110)","v":0},{"$f":"COUNTIF('توزيع الحراس'!K$3:M$30,$C110)","v":0},{"$f":"COUNTIF('توزيع الحراس'!N$3:P$30,$C110)","v":0},{"$f":"COUNTIF('توزيع الحراس'!Q$3:S$30,$C110)","v":0},{"$f":"COUNTIF('توزيع الحراس'!T$3:V$30,$C110)","v":0},{"$f":"COUNTIF('توزيع الحراس'!W$3:Y$30,$C110)","v":0},{"$f":"COUNTIF('توزيع الحراس'!Z$3:AB$30,$C110)","v":0},{"$f":"COUNTIF('توزيع الحراس'!AC$3:AE$30,$C110)","v":0},{"$f":"COUNTIF('توزيع الحراس'!AF$3:AH$30,$C110)","v":0},0,0]
[103,{"$f":"'توزيع الحراس'!B105","v":"محمد علي103"},{"$f":"'توزيع الحراس'!A105","v":103},{"$f":"COUNTIF('توزيع الحراس'!D$3:F$30,$C111)","v":0},{"$f":"COUNTIF('توزيع الحراس'!G$3:I$30,$C111)","v":0},{"$f":"COUNTIF('توزيع الحراس'!K$3:M$30,$C111)","v":0},{"$f":"COUNTIF('توزيع الحراس'!N$3:P$30,$C111)","v":0},{"$f":"COUNTIF('توزيع الحراس'!Q$3:S$30,$C111)","v":0},{"$f":"COUNTIF('توزيع الحراس'!T$3:V$30,$C111)","v":0},{"$f":"COUNTIF('توزيع الحراس'!W$3:Y$30,$C111)","v":0},{"$f":"COUNTIF('توزيع الحراس'!Z$3:AB$30,$C111)","v":0},{"$f":"COUNTIF('توزيع الحراس'!AC$3:AE$30,$C111)","v":0},{"$f":"COUNTIF('توزيع الحراس'!AF$3:AH$30,$C111)","v":0},0,0]
[104,{"$f":"'توزيع الحراس'!B106","v":"محمد علي104"},{"$f":"'توزيع الحراس'!A106","v":104},{"$f":"COUNTIF('توزيع الحراس'!D$3:F$30,$C112)","v":0},{"$f":"COUNTIF('توزيع الحراس'!G$3:I$30,$C112)","v":0},{"$f":"COUNTIF('توزيع الحراس'!K$3:M$30,$C112)","v":0},{"$f":"COUNTIF('توزيع الحراس'!N$3:P$30,$C112)","v":0},{"$f":"COUNTIF('توزيع الحراس'!Q$3:S$30,$C112)","v":0},{"$f":"COUNTIF('توزيع الحراس'!T$3:V$30,$C112)","v":0},{"$f":"COUNTIF('توزيع الحراس'!W$3:Y$30,$C112)","v":0},{"$f":"COUNTIF('توزيع الحراس'!Z$3:AB$30,$C112)","v":0},{"$f":"COUNTIF('توزيع الحراس'!AC$3:AE$30,$C112)","v":0},{"$f":"COUNTIF('توزيع الحراس'!AF$3:AH$30,$C112)","v":0},0,0]
[105,{"$f":"'توزيع الحراس'!B107","v":"محمد علي105"},{"$f":"'توزيع الحراس'!A107","v":105},{"$f":"COUNTIF('توزيع الحراس'!D$3:F$30,$C113)","v":0},{"$f":"COUNTIF('توزيع الحراس'!G$3:I$30,$C113)","v":0},{"$f":"COUNTIF('توزيع الحراس'!K$3:M$30,$C113)","v":0},{"$f":"COUNTIF('توزيع الحراس'!N$3:P$30,$C113)","v":0},{"$f":"COUNTIF('توزيع الحراس'!Q$3:S$30,$C113)","v":0},{"$f":"COUNTIF('توزيع الحراس'!T$3:V$30,$C113)","v":0},{"$f":"COUNTIF('توزيع الحراس'!W$3:Y$30,$C113)","v":0},{"$f":"COUNTIF('توزيع الحراس'!Z$3:AB$30,$C113)","v":0},{"$f":"COUNTIF('توزيع الحراس'!AC$3:AE$30,$C113)","v":0},{"$f":"COUNTIF('توزيع الحراس'!AF$3:AH$30,$C113)","v":0},0,0]
[106,{"$f":"'توزيع الحراس'!B108","v":"محمد علي106"},{"$f":"'توزيع الحراس'!A108","v":106},{"$f":"COUNTIF('توزيع الحراس'!D$3:F$30,$C114)","v":0},{"$f":"COUNTIF('توزيع الحراس'!G$3:I$30,$C114)","v":0},{"$f":"COUNTIF('توزيع الحراس'!K$3:M$30,$C114)","v":0},{"$f":"COUNTIF('توزيع الحراس'!N$3:P$30,$C114)","v":0},{"$f":"COUNTIF('توزيع الحراس'!Q$3:S$30,$C114)","v":0},{"$f":"COUNTIF('توزيع الحراس'!T$3:V$30,$C114)","v":0},{"$f":"COUNTIF('توزيع الحراس'!W$3:Y$30,$C114)","v":0},{"$f":"COUNTIF('توزيع الحراس'!Z$3:AB$30,$C114)","v":0},{"$f":"COUNTIF('توزيع الحراس'!AC$3:AE$30,$C114)","v":0},{"$f":"COUNTIF('توزيع الحراس'!AF$3:AH$30,$C114)","v":0},0,0]
[107,{"$f":"'توزيع الحراس'!B109","v":"محمد علي107"},{"$f":"'توزيع الحراس'!A109","v":107},{"$f":"COUNTIF('توزيع الحراس'!D$3:F$30,$C115)","v":0},{"$f":"COUNTIF('توزيع الحراس'!G$3:I$30,$C115)","v":0},{"$f":"COUNTIF('توزيع الحراس'!K$3:M$30,$C115)","v":0},{"$f":"COUNTIF('توزيع الحراس'!N$3:P$30,$C115)","v":0},{"$f":"COUNTIF('توزيع الحراس'!Q$3:S$30,$C115)","v":0},{"$f":"COUNTIF('توزيع الحراس'!T$3:V$30,$C115)","v":0},{"$f":"COUNTIF('توزيع الحراس'!W$3:Y$30,$C115)","v":0},{"$f":"COUNTIF('توزيع الحراس'!Z$3:AB$30,$C115)","v":0},{"$f":"COUNTIF('توزيع الحراس'!AC$3:AE$30,$C115)","v":0},{"$f":"COUNTIF('توزيع الحراس'!AF$3:AH$30,$C115)","v":0},0,0]
[108,{"$f":"'توزيع الحراس'!B110","v":"محمد علي108"},{"$f":"'توزيع الحراس'!A110","v":108},{"$f":"COUNTIF('توزيع الحراس'!D$3:F$30,$C116)","v":0},{"$f":"COUNTIF('توزيع الحراس'!G$3:I$30,$C116)","v":0},{"$f":"COUNTIF('توزيع الحراس'!K$3:M$30,$C116)","v":0},{"$f":"COUNTIF('توزيع الحراس'!N$3:P$30,$C116)","v":0},{"$f":"COUNTIF('توزيع الحراس'!Q$3:S$30,$C116)","v":0},{"$f":"COUNTIF('توزيع الحراس'!T$3:V$30,$C116)","v":0},{"$f":"COUNTIF('توزيع الحراس'!W$3:Y$30,$C116)","v":0},{"$f":"COUNTIF('توزيع الحراس'!Z$3:AB$30,$C116)","v":0},{"$f":"COUNTIF('توزيع الحراس'!AC$3:AE$30,$C116)","v":0},{"$f":"COUNTIF('توزيع الحراس'!AF$3:AH$30,$C116)","v":0},0,0]
[109,{"$f":"'توزيع الحراس'!B111","v":"محمد علي109"},{"$f":"'توزيع الحراس'!A111","v":109},{"$f":"COUNTIF('توزيع الحراس'!D$3:F$30,$C117)","v":0},{"$f":"COUNTIF('توزيع الحراس'!G$3:I$30,$C117)","v":0},{"$f":"COUNTIF('توزيع الحراس'!K$3:M$30,$C117)","v":0},{"$f":"COUNTIF('توزيع الحراس'!N$3:P$30,$C117)","v":0},{"$f":"COUNTIF('توزيع الحراس'!Q$3:S$30,$C117)","v":0},{"$f":"COUNTIF('توزيع الحراس'!T$3:V$30,$C117)","v":0},{"$f":"COUNTIF('توزيع الحراس'!W$3:Y$30,$C117)","v":0},{"$f":"COUNTIF('توزيع الحراس'!Z$3:AB$30,$C117)","v":0},{"$f":"COUNTIF('توزيع الحراس'!AC$3:AE$30,$C117)","v":0},{"$f":"COUNTIF('توزيع الحراس'!AF$3:AH$30,$C117)","v":0},0,0]
[110,{"$f":"'توزيع الحراس'!B112","v":"محمد علي110"},{"$f":"'توزيع الحراس'!A112","v":110},{"$f":"COUNTIF('توزيع الحراس'!D$3:F$30,$C118)","v":0},{"$f":"COUNTIF('توزيع الحراس'!G$3:I$30,$C118)","v":0},{"$f":"COUNTIF('توزيع الحراس'!K$3:M$30,$C118)","v":0},{"$f":"COUNTIF('توزيع الحراس'!N$3:P$30,$C118)","v":0},{"$f":"COUNTIF('توزيع الحراس'!Q$3:S$30,$C118)","v":0},{"$f":"COUNTIF('توزيع الحراس'!T$3:V$30,$C118)","v":0},{"$f":"COUNTIF('توزيع الحراس'!W$3:Y$30,$C118)","v":0},{"$f":"COUNTIF('توزيع الحراس'!Z$3:AB$30,$C118)","v":0},{"$f":"COUNTIF('توزيع الحراس'!AC$3:AE$30,$C118)","v":0},{"$f":"COUNTIF('توزيع الحراس'!AF$3:AH$30,$C118)","v":0},0,0]
[111,{"$f":"'توزيع الحراس'!B113","v":"محمد علي111"},{"$f":"'توزيع الحراس'!A113","v":111},{"$f":"COUNTIF('توزيع الحراس'!D$3:F$30,$C119)","v":0},{"$f":"COUNTIF('توزيع الحراس'!G$3:I$30,$C119)","v":0},{"$f":"COUNTIF('توزيع الحراس'!K$3:M$30,$C119)","v":0},{"$f":"COUNTIF('توزيع الحراس'!N$3:P$30,$C119)","v":0},{"$f":"COUNTIF('توزيع الحراس'!Q$3:S$30,$C119)","v":0},{"$f":"COUNTIF('توزيع الحراس'!T$3:V$30,$C119)","v":0},{"$f":"COUNTIF('توزيع الحراس'!W$3:Y$30,$C119)","v":0},{"$f":"COUNTIF('توزيع الحراس'!Z$3:AB$30,$C119)","v":0},{"$f":"COUNTIF('توزيع الحراس'!AC$3:AE$30,$C119)","v":0},{"$f":"COUNTIF('توزيع الحراس'!AF$3:AH$30,$C119)","v":0},0,0]
[112,{"$f":"'توزيع الحراس'!B114","v":"محمد علي112"},{"$f":"'توزيع الحراس'!A114","v":112},{"$f":"COUNTIF('توزيع الحراس'!D$3:F$30,$C120)","v":0},{"$f":"COUNTIF('توزيع الحراس'!G$3:I$30,$C120)","v":0},{"$f":"COUNTIF('توزيع الحراس'!K$3:M$30,$C120)","v":0},{"$f":"COUNTIF('توزيع الحراس'!N$3:P$30,$C120)","v":0},{"$f":"COUNTIF('توزيع الحراس'!Q$3:S$30,$C120)","v":0},{"$f":"COUNTIF('توزيع الحراس'!T$3:V$30,$C120)","v":0},{"$f":"COUNTIF('توزيع الحراس'!W$3:Y$30,$C120)","v":0},{"$f":"COUNTIF('توزيع الحراس'!Z$3:AB$30,$C120)","v":0},{"$f":"COUNTIF('توزيع الحراس'!AC$3:AE$30,$C120)","v":0},{"$f":"COUNTIF('توزيع الحراس'!AF$3:AH$30,$C120)","v":0},0,0]
[113,{"$f":"'توزيع الحراس'!B115","v":"محمد علي113"},{"$f":"'توزيع الحراس'!A115","v":113},{"$f":"COUNTIF('توزيع الحراس'!D$3:F$30,$C121)","v":0},{"$f":"COUNTIF('توزيع الحراس'!G$3:I$30,$C121)","v":0},{"$f":"COUNTIF('توزيع الحراس'!K$3:M$30,$C121)","v":0},{"$f":"COUNTIF('توزيع الحراس'!N$3:P$30,$C121)","v":0},{"$f":"COUNTIF('توزيع الحراس'!Q$3:S$30,$C121)","v":0},{"$f":"COUNTIF('توزيع الحراس'!T$3:V$30,$C121)","v":0},{"$f":"COUNTIF('توزيع الحراس'!W$3:Y$30,$C121)","v":0},{"$f":"COUNTIF('توزيع الحراس'!Z$3:AB$30,$C121)","v":0},{"$f":"COUNTIF('توزيع الحراس'!AC$3:AE$30,$C121)","v":0},{"$f":"COUNTIF('توزيع الحراس'!AF$3:AH$30,$C121)","v":0},0,0]
[114,{"$f":"'توزيع الحراس'!B116","v":"محمد علي114"},{"$f":"'توزيع الحراس'!A116","v":114},{"$f":"COUNTIF('توزيع الحراس'!D$3:F$30,$C122)","v":0},{"$f":"COUNTIF('توزيع الحراس'!G$3:I$30,$C122)","v":0},{"$f":"COUNTIF('توزيع الحراس'!K$3:M$30,$C122)","v":0},{"$f":"COUNTIF('توزيع الحراس'!N$3:P$30,$C122)","v":0},{"$f":"COUNTIF('توزيع الحراس'!Q$3:S$30,$C122)","v":0},{"$f":"COUNTIF('توزيع الحراس'!T$3:V$30,$C122)","v":0},{"$f":"COUNTIF('توزيع الحراس'!W$3:Y$30,$C122)","v":0},{"$f":"COUNTIF('توزيع الحراس'!Z$3:AB$30,$C122)","v":0},{"$f":"COUNTIF('توزيع الحراس'!AC$3:AE$30,$C122)","v":0},{"$f":"COUNTIF('توزيع الحراس'!AF$3:AH$30,$C122)","v":0},0,0]
[115,{"$f":"'توزيع الحراس'!B117","v":"محمد علي115"},{"$f":"'توزيع الحراس'!A117","v":115},{"$f":"COUNTIF('توزيع الحراس'!D$3:F$30,$C123)","v":0},{"$f":"COUNTIF('توزيع الحراس'!G$3:I$30,$C123)","v":0},{"$f":"COUNTIF('توزيع الحراس'!K$3:M$30,$C123)","v":0},{"$f":"COUNTIF('توزيع الحراس'!N$3:P$30,$C123)","v":0},{"$f":"COUNTIF('توزيع الحراس'!Q$3:S$30,$C123)","v":0},{"$f":"COUNTIF('توزيع الحراس'!T$3:V$30,$C123)","v":0},{"$f":"COUNTIF('توزيع الحراس'!W$3:Y$30,$C123)","v":0},{"$f":"COUNTIF('توزيع الحراس'!Z$3:AB$30,$C123)","v":0},{"$f":"COUNTIF('توزيع الحراس'!AC$3:AE$30,$C123)","v":0},{"$f":"COUNTIF('توزيع الحراس'!AF$3:AH$30,$C123)","v":0},0,0]
[116,{"$f":"'توزيع الحراس'!B118","v":"محمد علي116"},{"$f":"'توزيع الحراس'!A118","v":116},{"$f":"COUNTIF('توزيع الحراس'!D$3:F$30,$C124)","v":0},{"$f":"COUNTIF('توزيع الحراس'!G$3:I$30,$C124)","v":0},{"$f":"COUNTIF('توزيع الحراس'!K$3:M$30,$C124)","v":0},{"$f":"COUNTIF('توزيع الحراس'!N$3:P$30,$C124)","v":0},{"$f":"COUNTIF('توزيع الحراس'!Q$3:S$30,$C124)","v":0},{"$f":"COUNTIF('توزيع الحراس'!T$3:V$30,$C124)","v":0},{"$f":"COUNTIF('توزيع الحراس'!W$3:Y$30,$C124)","v":0},{"$f":"COUNTIF('توزيع الحراس'!Z$3:AB$30,$C124)","v":0},{"$f":"COUNTIF('توزيع الحراس'!AC$3:AE$30,$C124)","v":0},{"$f":"COUNTIF('توزيع الحراس'!AF$3:AH$30,$C124)","v":0},0,0]
[117,{"$f":"'توزيع الحراس'!B119","v":"محمد علي117"},{"$f":"'توزيع الحراس'!A119","v":117},{"$f":"COUNTIF('توزيع الحراس'!D$3:F$30,$C125)","v":0},{"$f":"COUNTIF('توزيع الحراس'!G$3:I$30,$C125)","v":0},{"$f":"COUNTIF('توزيع الحراس'!K$3:M$30,$C125)","v":0},{"$f":"COUNTIF('توزيع الحراس'!N$3:P$30,$C125)","v":0},{"$f":"COUNTIF('توزيع الحراس'!Q$3:S$30,$C125)","v":0},{"$f":"COUNTIF('توزيع الحراس'!T$3:V$30,$C125)","v":0},{"$f":"COUNTIF('توزيع الحراس'!W$3:Y$30,$C125)","v":0},{"$f":"COUNTIF('توزيع الحراس'!Z$3:AB$30,$C125)","v":0},{"$f":"COUNTIF('توزيع الحراس'!AC$3:AE$30,$C125)","v":0},{"$f":"COUNTIF('توزيع الحراس'!AF$3:AH$30,$C125)","v":0},0,0]
[118,{"$f":"'توزيع الحراس'!B120","v":"محمد علي118"},{"$f":"'توزيع الحراس'!A120","v":118},{"$f":"COUNTIF('توزيع الحراس'!D$3:F$30,$C126)","v":0},{"$f":"COUNTIF('توزيع الحراس'!G$3:I$30,$C126)","v":0},{"$f":"COUNTIF('توزيع الحراس'!K$3:M$30,$C126)","v":0},{"$f":"COUNTIF('توزيع الحراس'!N$3:P$30,$C126)","v":0},{"$f":"COUNTIF('توزيع الحراس'!Q$3:S$30,$C126)","v":0},{"$f":"COUNTIF('توزيع الحراس'!T$3:V$30,$C126)","v":0},{"$f":"COUNTIF('توزيع الحراس'!W$3:Y$30,$C126)","v":0},{"$f":"COUNTIF('توزيع الحراس'!Z$3:AB$30,$C126)","v":0},{"$f":"COUNTIF('توزيع الحراس'!AC$3:AE$30,$C126)","v":0},{"$f":"COUNTIF('توزيع الحراس'!AF$3:AH$30,$C126)","v":0},0,0]
[119,{"$f":"'توزيع الحراس'!B121","v":"محمد علي119"},{"$f":"'توزيع الحراس'!A121","v":119},{"$f":"COUNTIF('توزيع الحراس'!D$3:F$30,$C127)","v":0},{"$f":"COUNTIF('توزيع الحراس'!G$3:I$30,$C127)","v":0},{"$f":"COUNTIF('توزيع الحراس'!K$3:M$30,$C127)","v":0},{"$f":"COUNTIF('توزيع الحراس'!N$3:P$30,$C127)","v":0},{"$f":"COUNTIF('توزيع الحراس'!Q$3:S$30,$C127)","v":0},{"$f":"COUNTIF('توزيع الحراس'!T$3:V$30,$C127)","v":0},{"$f":"COUNTIF('توزيع الحراس'!W$3:Y$30,$C127)","v":0},{"$f":"COUNTIF('توزيع الحراس'!Z$3:AB$30,$C127)","v":0},{"$f":"COUNTIF('توزيع الحراس'!AC$3:AE$30,$C127)","v":0},{"$f":"COUNTIF('توزيع الحراس'!AF$3:AH$30,$C127)","v":0},0,0]
[120,{"$f":"'توزيع الحراس'!B122","v":"محمد علي120"},{"$f":"'توزيع الحراس'!A122","v":120},{"$f":"COUNTIF('توزيع الحراس'!D$3:F$30,$C128)","v":0},{"$f":"COUNTIF('توزيع الحراس'!G$3:I$30,$C128)","v":0},{"$f":"COUNTIF('توزيع الحراس'!K$3:M$30,$C128)","v":0},{"$f":"COUNTIF('توزيع الحراس'!N$3:P$30,$C128)","v":0},{"$f":"COUNTIF('توزيع الحراس'!Q$3:S$30,$C128)","v":0},{"$f":"COUNTIF('توزيع الحراس'!T$3:V$30,$C128)","v":0},{"$f":"COUNTIF('توزيع الحراس'!W$3:Y$30,$C128)","v":0},{"$f":"COUNTIF('توزيع الحراس'!Z$3:AB$30,$C128)","v":0},{"$f":"COUNTIF('توزيع الحراس'!AC$3:AE$30,$C128)","v":0},{"$f":"COUNTIF('توزيع الحراس'!AF$3:AH$30,$C128)","v":0},0,0]
[121,{"$f":"'توزيع الحراس'!B123","v":"محمد علي121"},{"$f":"'توزيع الحراس'!A123","v":121},{"$f":"COUNTIF('توزيع الحراس'!D$3:F$30,$C129)","v":0},{"$f":"COUNTIF('توزيع الحراس'!G$3:I$30,$C129)","v":0},{"$f":"COUNTIF('توزيع الحراس'!K$3:M$30,$C129)","v":0},{"$f":"COUNTIF('توزيع الحراس'!N$3:P$30,$C129)","v":0},{"$f":"COUNTIF('توزيع الحراس'!Q$3:S$30,$C129)","v":0},{"$f":"COUNTIF('توزيع الحراس'!T$3:V$30,$C129)","v":0},{"$f":"COUNTIF('توزيع الحراس'!W$3:Y$30,$C129)","v":0},{"$f":"COUNTIF('توزيع الحراس'!Z$3:AB$30,$C129)","v":0},{"$f":"COUNTIF('توزيع الحراس'!AC$3:AE$30,$C129)","v":0},{"$f":"COUNTIF('توزيع الحراس'!AF$3:AH$30,$C129)","v":0},0,0]
[122,{"$f":"'توزيع الحراس'!B124","v":"محمد علي122"},{"$f":"'توزيع الحراس'!A124","v":122},{"$f":"COUNTIF('توزيع الحراس'!D$3:F$30,$C130)","v":0},{"$f":"COUNTIF('توزيع الحراس'!G$3:I$30,$C130)","v":0},{"$f":"COUNTIF('توزيع الحراس'!K$3:M$30,$C130)","v":0},{"$f":"COUNTIF('توزيع الحراس'!N$3:P$30,$C130)","v":0},{"$f":"COUNTIF('توزيع الحراس'!Q$3:S$30,$C130)","v":0},{"$f":"COUNTIF('توزيع الحراس'!T$3:V$30,$C130)","v":0},{"$f":"COUNTIF('توزيع الحراس'!W$3:Y$30,$C130)","v":0},{"$f":"COUNTIF('توزيع الحراس'!Z$3:AB$30,$C130)","v":0},{"$f":"COUNTIF('توزيع الحراس'!AC$3:AE$30,$C130)","v":0},{"$f":"COUNTIF('توزيع الحراس'!AF$3:AH$30,$C130)","v":0},0,0]
[123,{"$f":"'توزيع الحراس'!B125","v":"محمد علي123"},{"$f":"'توزيع الحراس'!A125","v":123},{"$f":"COUNTIF('توزيع الحراس'!D$3:F$30,$C131)","v":0},{"$f":"COUNTIF('توزيع الحراس'!G$3:I$30,$C131)","v":0},{"$f":"COUNTIF('توزيع الحراس'!K$3:M$30,$C131)","v":0},{"$f":"COUNTIF('توزيع الحراس'!N$3:P$30,$C131)","v":0},{"$f":"COUNTIF('توزيع الحراس'!Q$3:S$30,$C131)","v":0},{"$f":"COUNTIF('توزيع الحراس'!T$3:V$30,$C131)","v":0},{"$f":"COUNTIF('توزيع الحراس'!W$3:Y$30,$C131)","v":0},{"$f":"COUNTIF('توزيع الحراس'!Z$3:AB$30,$C131)","v":0},{"$f":"COUNTIF('توزيع الحراس'!AC$3:AE$30,$C131)","v":0},{"$f":"COUNTIF('توزيع الحراس'!AF$3:AH$30,$C131)","v":0},0,0]
[124,{"$f":"'توزيع الحراس'!B126","v":"محمد علي124"},{"$f":"'توزيع الحراس'!A126","v":124},{"$f":"COUNTIF('توزيع الحراس'!D$3:F$30,$C132)","v":0},{"$f":"COUNTIF('توزيع الحراس'!G$3:I$30,$C132)","v":0},{"$f":"COUNTIF('توزيع الحراس'!K$3:M$30,$C132)","v":0},{"$f":"COUNTIF('توزيع الحراس'!N$3:P$30,$C132)","v":0},{"$f":"COUNTIF('توزيع الحراس'!Q$3:S$30,$C132)","v":0},{"$f":"COUNTIF('توزيع الحراس'!T$3:V$30,$C132)","v":0},{"$f":"COUNTIF('توزيع الحراس'!W$3:Y$30,$C132)","v":0},{"$f":"COUNTIF('توزيع الحراس'!Z$3:AB$30,$C132)","v":0},{"$f":"COUNTIF('توزيع الحراس'!AC$3:AE$30,$C132)","v":0},{"$f":"COUNTIF('توزيع الحراس'!AF$3:AH$30,$C132)","v":0},0,0]
[125,{"$f":"'توزيع الحراس'!B127","v":"محمد علي125"},{"$f":"'توزيع الحراس'!A127","v":125},{"$f":"COUNTIF('توزيع الحراس'!D$3:F$30,$C133)","v":0},{"$f":"COUNTIF('توزيع الحراس'!G$3:I$30,$C133)","v":0},{"$f":"COUNTIF('توزيع الحراس'!K$3:M$30,$C133)","v":0},{"$f":"COUNTIF('توزيع الحراس'!N$3:P$30,$C133)","v":0},{"$f":"COUNTIF('توزيع الحراس'!Q$3:S$30,$C133)","v":0},{"$f":"COUNTIF('توزيع الحراس'!T$3:V$30,$C133)","v":0},{"$f":"COUNTIF('توزيع الحراس'!W$3:Y$30,$C133)","v":0},{"$f":"COUNTIF('توزيع الحراس'!Z$3:AB$30,$C133)","v":0},{"$f":"COUNTIF('توزيع الحراس'!AC$3:AE$30,$C133)","v":0},{"$f":"COUNTIF('توزيع الحراس'!AF$3:AH$30,$C133)","v":0},0,0]
[126,{"$f":"'توزيع الحراس'!B128","v":"محمد علي126"},{"$f":"'توزيع الحراس'!A128","v":126},{"$f":"COUNTIF('توزيع الحراس'!D$3:F$30,$C134)","v":0},{"$f":"COUNTIF('توزيع الحراس'!G$3:I$30,$C134)","v":0},{"$f":"COUNTIF('توزيع الحراس'!K$3:M$30,$C134)","v":0},{"$f":"COUNTIF('توزيع الحراس'!N$3:P$30,$C134)","v":0},{"$f":"COUNTIF('توزيع الحراس'!Q$3:S$30,$C134)","v":0},{"$f":"COUNTIF('توزيع الحراس'!T$3:V$30,$C134)","v":0},{"$f":"COUNTIF('توزيع الحراس'!W$3:Y$30,$C134)","v":0},{"$f":"COUNTIF('توزيع الحراس'!Z$3:AB$30,$C134)","v":0},{"$f":"COUNTIF('توزيع الحراس'!AC$3:AE$30,$C134)","v":0},{"$f":"COUNTIF('توزيع الحراس'!AF$3:AH$30,$C134)","v":0},0,0]
[127,{"$f":"'توزيع الحراس'!B129","v":"محمد علي127"},{"$f":"'توزيع الحراس'!A129","v":127},{"$f":"COUNTIF('توزيع الحراس'!D$3:F$30,$C135)","v":0},{"$f":"COUNTIF('توزيع الحراس'!G$3:I$30,$C135)","v":0},{"$f":"COUNTIF('توزيع الحراس'!K$3:M$30,$C135)","v":0},{"$f":"COUNTIF('توزيع الحراس'!N$3:P$30,$C135)","v":0},{"$f":"COUNTIF('توزيع الحراس'!Q$3:S$30,$C135)","v":0},{"$f":"COUNTIF('توزيع الحراس'!T$3:V$30,$C135)","v":0},{"$f":"COUNTIF('توزيع الحراس'!W$3:Y$30,$C135)","v":0},{"$f":"COUNTIF('توزيع الحراس'!Z$3:AB$30,$C135)","v":0},{"$f":"COUNTIF('توزيع الحراس'!AC$3:AE$30,$C135)","v":0},{"$f":"COUNTIF('توزيع الحراس'!AF$3:AH$30,$C135)","v":0},0,0]
[128,{"$f":"'توزيع الحراس'!B130","v":"محمد علي128"},{"$f":"'توزيع الحراس'!A130","v":128},{"$f":"COUNTIF('توزيع الحراس'!D$3:F$30,$C136)","v":0},{"$f":"COUNTIF('توزيع الحراس'!G$3:I$30,$C136)","v":0},{"$f":"COUNTIF('توزيع الحراس'!K$3:M$30,$C136)","v":0},{"$f":"COUNTIF('توزيع الحراس'!N$3:P$30,$C136)","v":0},{"$f":"COUNTIF('توزيع الحراس'!Q$3:S$30,$C136)","v":0},{"$f":"COUNTIF('توزيع الحراس'!T$3:V$30,$C136)","v":0},{"$f":"COUNTIF('توزيع الحراس'!W$3:Y$30,$C136)","v":0},{"$f":"COUNTIF('توزيع الحراس'!Z$3:AB$30,$C136)","v":0},{"$f":"COUNTIF('توزيع الحراس'!AC$3:AE$30,$C136)","v":0},{"$f":"COUNTIF('توزيع الحراس'!AF$3:AH$30,$C136)","v":0},0,0]
[129,{"$f":"'توزيع الحراس'!B131","v":"محمد علي129"},{"$f":"'توزيع الحراس'!A131","v":129},{"$f":"COUNTIF('توزيع الحراس'!D$3:F$30,$C137)","v":0},{"$f":"COUNTIF('توزيع الحراس'!G$3:I$30,$C137)","v":0},{"$f":"COUNTIF('توزيع الحراس'!K$3:M$30,$C137)","v":0},{"$f":"COUNTIF('توزيع الحراس'!N$3:P$30,$C137)","v":0},{"$f":"COUNTIF('توزيع الحراس'!Q$3:S$30,$C137)","v":0},{"$f":"COUNTIF('توزيع الحراس'!T$3:V$30,$C137)","v":0},{"$f":"COUNTIF('توزيع الحراس'!W$3:Y$30,$C137)","v":0},{"$f":"COUNTIF('توزيع الحراس'!Z$3:AB$30,$C137)","v":0},{"$f":"COUNTIF('توزيع الحراس'!AC$3:AE$30,$C137)","v":0},{"$f":"COUNTIF('توزيع الحراس'!AF$3:AH$30,$C137)","v":0},{"$f":"SUM(D137:M137)","v":0},{"$f":"N137*0.5","v":0}]
[130,{"$f":"'توزيع الحراس'!B132","v":"محمد علي130"},{"$f":"'توزيع الحراس'!A132","v":130},{"$f":"COUNTIF('توزيع الحراس'!D$3:F$30,$C138)","v":0},{"$f":"COUNTIF('توزيع الحراس'!G$3:I$30,$C138)","v":0},{"$f":"COUNTIF('توزيع الحراس'!K$3:M$30,$C138)","v":0},{"$f":"COUNTIF('توزيع الحراس'!N$3:P$30,$C138)","v":0},{"$f":"COUNTIF('توزيع الحراس'!Q$3:S$30,$C138)","v":0},{"$f":"COUNTIF('توزيع الحراس'!T$3:V$30,$C138)","v":0},{"$f":"COUNTIF('توزيع الحراس'!W$3:Y$30,$C138)","v":0},{"$f":"COUNTIF('توزيع الحراس'!Z$3:AB$30,$C138)","v":0},{"$f":"COUNTIF('توزيع الحراس'!AC$3:AE$30,$C138)","v":0},{"$f":"COUNTIF('توزيع الحراس'!AF$3:AH$30,$C138)","v":0},0,0]
[131,{"$f":"'توزيع الحراس'!B133","v":"محمد علي131"},{"$f":"'توزيع الحراس'!A133","v":131},{"$f":"COUNTIF('توزيع الحراس'!D$3:F$30,$C139)","v":0},{"$f":"COUNTIF('توزيع الحراس'!G$3:I$30,$C139)","v":0},{"$f":"COUNTIF('توزيع الحراس'!K$3:M$30,$C139)","v":0},{"$f":"COUNTIF('توزيع الحراس'!N$3:P$30,$C139)","v":0},{"$f":"COUNTIF('توزيع الحراس'!Q$3:S$30,$C139)","v":0},{"$f":"COUNTIF('توزيع الحراس'!T$3:V$30,$C139)","v":0},{"$f":"COUNTIF('توزيع الحراس'!W$3:Y$30,$C139)","v":0},{"$f":"COUNTIF('توزيع الحراس'!Z$3:AB$30,$C139)","v":0},{"$f":"COUNTIF('توزيع الحراس'!AC$3:AE$30,$C139)","v":0},{"$f":"COUNTIF('توزيع الحراس'!AF$3:AH$30,$C139)","v":0},0,0]
[132,{"$f":"'توزيع الحراس'!B134","v":"محمد علي132"},{"$f":"'توزيع الحراس'!A134","v":132},{"$f":"COUNTIF('توزيع الحراس'!D$3:F$30,$C140)","v":0},{"$f":"COUNTIF('توزيع الحراس'!G$3:I$30,$C140)","v":0},{"$f":"COUNTIF('توزيع الحراس'!K$3:M$30,$C140)","v":0},{"$f":"COUNTIF('توزيع الحراس'!N$3:P$30,$C140)","v":0},{"$f":"COUNTIF('توزيع الحراس'!Q$3:S$30,$C140)","v":0},{"$f":"COUNTIF('توزيع الحراس'!T$3:V$30,$C140)","v":0},{"$f":"COUNTIF('توزيع الحراس'!W$3:Y$30,$C140)","v":0},{"$f":"COUNTIF('توزيع الحراس'!Z$3:AB$30,$C140)","v":0},{"$f":"COUNTIF('توزيع الحراس'!AC$3:AE$30,$C140)","v":0},{"$f":"COUNTIF('توزيع الحراس'!AF$3:AH$30,$C140)","v":0},0,0]
[133,{"$f":"'توزيع الحراس'!B135","v":"محمد علي133"},{"$f":"'توزيع الحراس'!A135","v":133},{"$f":"COUNTIF('توزيع الحراس'!D$3:F$30,$C141)","v":0},{"$f":"COUNTIF('توزيع الحراس'!G$3:I$30,$C141)","v":0},{"$f":"COUNTIF('توزيع الحراس'!K$3:M$30,$C141)","v":0},{"$f":"COUNTIF('توزيع الحراس'!N$3:P$30,$C141)","v":0},{"$f":"COUNTIF('توزيع الحراس'!Q$3:S$30,$C141)","v":0},{"$f":"COUNTIF('توزيع الحراس'!T$3:V$30,$C141)","v":0},{"$f":"COUNTIF('توزيع الحراس'!W$3:Y$30,$C141)","v":0},{"$f":"COUNTIF('توزيع الحراس'!Z$3:AB$30,$C141)","v":0},{"$f":"COUNTIF('توزيع الحراس'!AC$3:AE$30,$C141)","v":0},{"$f":"COUNTIF('توزيع الحراس'!AF$3:AH$30,$C141)","v":0},0,0]
[134,{"$f":"'توزيع الحراس'!B136","v":"محمد علي134"},{"$f":"'توزيع الحراس'!A136","v":134},{"$f":"COUNTIF('توزيع الحراس'!D$3:F$30,$C142)","v":0},{"$f":"COUNTIF('توزيع الحراس'!G$3:I$30,$C142)","v":0},{"$f":"COUNTIF('توزيع الحراس'!K$3:M$30,$C142)","v":0},{"$f":"COUNTIF('توزيع الحراس'!N$3:P$30,$C142)","v":0},{"$f":"COUNTIF('توزيع الحراس'!Q$3:S$30,$C142)","v":0},{"$f":"COUNTIF('توزيع الحراس'!T$3:V$30,$C142)","v":0},{"$f":"COUNTIF('توزيع الحراس'!W$3:Y$30,$C142)","v":0},{"$f":"COUNTIF('توزيع الحراس'!Z$3:AB$30,$C142)","v":0},{"$f":"COUNTIF('توزيع الحراس'!AC$3:AE$30,$C142)","v":0},{"$f":"COUNTIF('توزيع الحراس'!AF$3:AH$30,$C142)","v":0},0,0]
[135,{"$f":"'توزيع الحراس'!B137","v":"محمد علي135"},{"$f":"'توزيع الحراس'!A137","v":135},{"$f":"COUNTIF('توزيع الحراس'!D$3:F$30,$C143)","v":0},{"$f":"COUNTIF('توزيع الحراس'!G$3:I$30,$C143)","v":0},{"$f":"COUNTIF('توزيع الحراس'!K$3:M$30,$C143)","v":0},{"$f":"COUNTIF('توزيع الحراس'!N$3:P$30,$C143)","v":0},{"$f":"COUNTIF('توزيع الحراس'!Q$3:S$30,$C143)","v":0},{"$f":"COUNTIF('توزيع الحراس'!T$3:V$30,$C143)","v":0},{"$f":"COUNTIF('توزيع الحراس'!W$3:Y$30,$C143)","v":0},{"$f":"COUNTIF('توزيع الحراس'!Z$3:AB$30,$C143)","v":0},{"$f":"COUNTIF('توزيع الحراس'!AC$3:AE$30,$C143)","v":0},{"$f":"COUNTIF('توزيع الحراس'!AF$3:AH$30,$C143)","v":0},0,0]
[136,{"$f":"'توزيع الحراس'!B138","v":"محمد علي136"},{"$f":"'توزيع الحراس'!A138","v":136},{"$f":"COUNTIF('توزيع الحراس'!D$3:F$30,$C144)","v":0},{"$f":"COUNTIF('توزيع الحراس'!G$3:I$30,$C144)","v":0},{"$f":"COUNTIF('توزيع الحراس'!K$3:M$30,$C144)","v":0},{"$f":"COUNTIF('توزيع الحراس'!N$3:P$30,$C144)","v":0},{"$f":"COUNTIF('توزيع الحراس'!Q$3:S$30,$C144)","v":0},{"$f":"COUNTIF('توزيع الحراس'!T$3:V$30,$C144)","v":0},{"$f":"COUNTIF('توزيع الحراس'!W$3:Y$30,$C144)","v":0},{"$f":"COUNTIF('توزيع الحراس'!Z$3:AB$30,$C144)","v":0},{"$f":"COUNTIF('توزيع الحراس'!AC$3:AE$30,$C144)","v":0},{"$f":"COUNTIF('توزيع الحراس'!AF$3:AH$30,$C144)","v":0},0,0]
[137,{"$f":"'توزيع الحراس'!B139","v":"محمد علي137"},{"$f":"'توزيع الحراس'!A139","v":137},{"$f":"COUNTIF('توزيع الحراس'!D$3:F$30,$C145)","v":0},{"$f":"COUNTIF('توزيع الحراس'!G$3:I$30,$C145)","v":0},{"$f":"COUNTIF('توزيع الحراس'!K$3:M$30,$C145)","v":0},{"$f":"COUNTIF('توزيع الحراس'!N$3:P$30,$C145)","v":0},{"$f":"COUNTIF('توزيع الحراس'!Q$3:S$30,$C145)","v":0},{"$f":"COUNTIF('توزيع الحراس'!T$3:V$30,$C145)","v":0},{"$f":"COUNTIF('توزيع الحراس'!W$3:Y$30,$C145)","v":0},{"$f":"COUNTIF('توزيع الحراس'!Z$3:AB$30,$C145)","v":0},{"$f":"COUNTIF('توزيع الحراس'!AC$3:AE$30,$C145)","v":0},{"$f":"COUNTIF('توزيع الحراس'!AF$3:AH$30,$C145)","v":0},0,0]
[138,{"$f":"'توزيع الحراس'!B140","v":"محمد علي138"},{"$f":"'توزيع الحراس'!A140","v":138},{"$f":"COUNTIF('توزيع الحراس'!D$3:F$30,$C146)","v":0},{"$f":"COUNTIF('توزيع الحراس'!G$3:I$30,$C146)","v":0},{"$f":"COUNTIF('توزيع الحراس'!K$3:M$30,$C146)","v":0},{"$f":"COUNTIF('توزيع الحراس'!N$3:P$30,$C146)","v":0},{"$f":"COUNTIF('توزيع الحراس'!Q$3:S$30,$C146)","v":0},{"$f":"COUNTIF('توزيع الحراس'!T$3:V$30,$C146)","v":0},{"$f":"COUNTIF('توزيع الحراس'!W$3:Y$30,$C146)","v":0},{"$f":"COUNTIF('توزيع الحراس'!Z$3:AB$30,$C146)","v":0},{"$f":"COUNTIF('توزيع الحراس'!AC$3:AE$30,$C146)","v":0},{"$f":"COUNTIF('توزيع الحراس'!AF$3:AH$30,$C146)","v":0},0,0]
[139,{"$f":"'توزيع الحراس'!B141","v":"محمد علي139"},{"$f":"'توزيع الحراس'!A141","v":139},{"$f":"COUNTIF('توزيع الحراس'!D$3:F$30,$C147)","v":0},{"$f":"COUNTIF('توزيع الحراس'!G$3:I$30,$C147)","v":0},{"$f":"COUNTIF('توزيع الحراس'!K$3:M$30,$C147)","v":0},{"$f":"COUNTIF('توزيع الحراس'!N$3:P$30,$C147)","v":0},{"$f":"COUNTIF('توزيع الحراس'!Q$3:S$30,$C147)","v":0},{"$f":"COUNTIF('توزيع الحراس'!T$3:V$30,$C147)","v":0},{"$f":"COUNTIF('توزيع الحراس'!W$3:Y$30,$C147)","v":0},{"$f":"COUNTIF('توزيع الحراس'!Z$3:AB$30,$C147)","v":0},{"$f":"COUNTIF('توزيع الحراس'!AC$3:AE$30,$C147)","v":0},{"$f":"COUNTIF('توزيع الحراس'!AF$3:AH$30,$C147)","v":0},0,0]
[140,{"$f":"'توزيع الحراس'!B142","v":"محمد علي140"},{"$f":"'توزيع الحراس'!A142","v":140},{"$f":"COUNTIF('توزيع الحراس'!D$3:F$30,$C148)","v":0},{"$f":"COUNTIF('توزيع الحراس'!G$3:I$30,$C148)","v":0},{"$f":"COUNTIF('توزيع الحراس'!K$3:M$30,$C148)","v":0},{"$f":"COUNTIF('توزيع الحراس'!N$3:P$30,$C148)","v":0},{"$f":"COUNTIF('توزيع الحراس'!Q$3:S$30,$C148)","v":0},{"$f":"COUNTIF('توزيع الحراس'!T$3:V$30,$C148)","v":0},{"$f":"COUNTIF('توزيع الحراس'!W$3:Y$30,$C148)","v":0},{"$f":"COUNTIF('توزيع الحراس'!Z$3:AB$30,$C148)","v":0},{"$f":"COUNTIF('توزيع الحراس'!AC$3:AE$30,$C148)","v":0},{"$f":"COUNTIF('توزيع الحراس'!AF$3:AH$30,$C148)","v":0},0,0]
[141,{"$f":"'توزيع الحراس'!B143","v":"محمد علي141"},{"$f":"'توزيع الحراس'!A143","v":141},{"$f":"COUNTIF('توزيع الحراس'!D$3:F$30,$C149)","v":0},{"$f":"COUNTIF('توزيع الحراس'!G$3:I$30,$C149)","v":0},{"$f":"COUNTIF('توزيع الحراس'!K$3:M$30,$C149)","v":0},{"$f":"COUNTIF('توزيع الحراس'!N$3:P$30,$C149)","v":0},{"$f":"COUNTIF('توزيع الحراس'!Q$3:S$30,$C149)","v":0},{"$f":"COUNTIF('توزيع الحراس'!T$3:V$30,$C149)","v":0},{"$f":"COUNTIF('توزيع الحراس'!W$3:Y$30,$C149)","v":0},{"$f":"COUNTIF('توزيع الحراس'!Z$3:AB$30,$C149)","v":0},{"$f":"COUNTIF('توزيع الحراس'!AC$3:AE$30,$C149)","v":0},{"$f":"COUNTIF('توزيع الحراس'!AF$3:AH$30,$C149)","v":0},0,0]
[142,{"$f":"'توزيع الحراس'!B144","v":"محمد علي142"},{"$f":"'توزيع الحراس'!A144","v":142},{"$f":"COUNTIF('توزيع الحراس'!D$3:F$30,$C150)","v":0},{"$f":"COUNTIF('توزيع الحراس'!G$3:I$30,$C150)","v":0},{"$f":"COUNTIF('توزيع الحراس'!K$3:M$30,$C150)","v":0},{"$f":"COUNTIF('توزيع الحراس'!N$3:P$30,$C150)","v":0},{"$f":"COUNTIF('توزيع الحراس'!Q$3:S$30,$C150)","v":0},{"$f":"COUNTIF('توزيع الحراس'!T$3:V$30,$C150)","v":0},{"$f":"COUNTIF('توزيع الحراس'!W$3:Y$30,$C150)","v":0},{"$f":"COUNTIF('توزيع الحراس'!Z$3:AB$30,$C150)","v":0},{"$f":"COUNTIF('توزيع الحراس'!AC$3:AE$30,$C150)","v":0},{"$f":"COUNTIF('توزيع الحراس'!AF$3:AH$30,$C150)","v":0},0,{"$f":"N150*0.5","v":0}]
["المجمـــــــــــــــــــــــــــــــــــــــــــــــــــــــــــــــــــــــوع",null,null,null,null,null,null,null,null,null,null,null,null,{"$f":"SUM(N9:N150)","v":21},{"$f":"N151*0.5","v":10.5}]

{"sheet":"توزيع الحراس","index":3,"n_rows":252,"n_cols":37,"rows_kept":252,"cut":false,"hidden":false,"merged":[[32,2,42,2],[1,28,1,30],[1,31,1,33],[0,28,0,33],[32,3,32,5],[32,6,32,8],[32,10,32,12],[32,13,32,15],[32,16,32,18],[32,19,32,21],[32,22,32,24],[32,25,32,27],[32,28,32,30],[32,31,32,33],[0,22,0,27],[1,22,1,24],[1,25,1,27],[1,3,1,5],[1,6,1,8],[0,3,0,8],[0,10,0,15],[1,10,1,12],[1,13,1,15],[0,16,0,21],[1,16,1,18],[1,19,1,21]]}
[null,null,"أيام الامتحان             ","اليوم الأول",null,null,null,null,null,null,"اليوم الثاني",null,null,null,null,null,"اليوم الثالث",null,null,null,null,null,"اليوم الرابع",null,null,null,null,null,"اليوم الخامس"]
["الرقم"," لقب وإسم الحارس","القاعات","صباحا",null,null,"مساءً",null,null,null,"صباحا",null,null,"مساءً",null,null,"صباحا",null,null,"مساءً",null,null,"صباحا",null,null,"مساءً",null,null,"صباحا",null,null,"مساءً"]
[{"$f":"prof!A2","v":1},{"$f":"prof!C2","v":"محمد علي1"},1,15,12,10,null,null,null,null,null,null,null,null,null,null,3,2,2,2,2,2,2,2,2,2,2,2,8,8,5,7,5,5]
[{"$f":"prof!A3","v":2},{"$f":"prof!C3","v":"محمد علي2"},2,null,null,null,null,null,null,null,null,null,null,null,null,null,null,null,null,null,null,null,null,null,null,null,null,null,null,null,null,null,null,null,null,null,{"$f":"IF(C2:C32=G2,ROW(),\"\")","v":""}]
[{"$f":"prof!A4","v":3},{"$f":"prof!C4","v":"محمد علي3"},3]
[{"$f":"prof!A5","v":4},{"$f":"prof!C5","v":"محمد علي4"},4]
[{"$f":"prof!A6","v":5},{"$f":"prof!C6","v":"محمد علي5"},5]
[{"$f":"prof!A7","v":6},{"$f":"prof!C7","v":"محمد علي6"},6]
[{"$f":"prof!A8","v":7},{"$f":"prof!C8","v":"محمد علي7"},7]
[{"$f":"prof!A9","v":8},{"$f":"prof!C9","v":"محمد علي8"},8]
[{"$f":"prof!A10","v":9},{"$f":"prof!C10","v":"محمد علي9"},9]
[{"$f":"prof!A11","v":10},{"$f":"prof!C11","v":"محمد علي10"},10]
[{"$f":"prof!A12","v":11},{"$f":"prof!C12","v":"محمد علي11"},11]
[{"$f":"prof!A13","v":12},{"$f":"prof!C13","v":"محمد علي12"},12]
[{"$f":"prof!A14","v":13},{"$f":"prof!C14","v":"محمد علي13"},13]
[{"$f":"prof!A15","v":14},{"$f":"prof!C15","v":"محمد علي14"},14]
[{"$f":"prof!A16","v":15},{"$f":"prof!C16","v":"محمد علي15"},15]
[{"$f":"prof!A17","v":16},{"$f":"prof!C17","v":"محمد علي16"},16]
[{"$f":"prof!A18","v":17},{"$f":"prof!C18","v":"محمد علي17"},17]
[{"$f":"prof!A19","v":18},{"$f":"prof!C19","v":"محمد علي18"},18]
[{"$f":"prof!A20","v":19},{"$f":"prof!C20","v":"محمد علي19"},19]
[{"$f":"prof!A21","v":20},{"$f":"prof!C21","v":"محمد علي20"},20]
[{"$f":"prof!A22","v":21},{"$f":"prof!C22","v":"محمد علي21"},21]
[{"$f":"prof!A23","v":22},{"$f":"prof!C23","v":"محمد علي22"},22]
[{"$f":"prof!A24","v":23},{"$f":"prof!C24","v":"محمد علي23"},23]
[{"$f":"prof!A25","v":24},{"$f":"prof!C25","v":"محمد علي24"},24]
[{"$f":"prof!A26","v":25},{"$f":"prof!C26","v":"محمد علي25"},25]
[{"$f":"prof!A27","v":26},{"$f":"prof!C27","v":"محمد علي26"},26]
[{"$f":"prof!A28","v":27},{"$f":"prof!C28","v":"محمد علي27"},27]
[{"$f":"prof!A29","v":28},{"$f":"prof!C29","v":"محمد علي28"},28]
[{"$f":"prof!A30","v":29},{"$f":"prof!C30","v":"محمد علي29"},29]
[{"$f":"prof!A31","v":30},{"$f":"prof!C31","v":"محمد علي30"},30]
[{"$f":"prof!A32","v":31},{"$f":"prof!C32","v":"محمد علي31"},"الحـــراس الاحتياطيــون","صباحا",null,null,"مساءً",null,null,null,"صباحا",null,null,"مساءً",null,null,"صباحا",null,null,"مساءً",null,null,"صباحا",null,null,"مساءً",null,null,"صباحا",null,null,"مساءً"]
[{"$f":"prof!A33","v":32},{"$f":"prof!C33","v":"محمد علي32"},null,1,2,3,2,2,2]
[{"$f":"prof!A34","v":33},{"$f":"prof!C34","v":"محمد علي33"},null,1,1,1,2,2,2]
[{"$f":"prof!A35","v":34},{"$f":"prof!C35","v":"محمد علي34"},null,1,1,1,2,2,2]
[{"$f":"prof!A36","v":35},{"$f":"prof!C36","v":"محمد علي35"},null,1,1,1,2,2,2]
[{"$f":"prof!A37","v":36},{"$f":"prof!C37","v":"محمد علي36"},null,1,1,1,2,2,2]
[{"$f":"prof!A38","v":37},{"$f":"prof!C38","v":"محمد علي37"},null,1,1,1,2,2,2]
[{"$f":"prof!A39","v":38},{"$f":"prof!C39","v":"محمد علي38"},null,1,1,1,2,2,2]
[{"$f":"prof!A40","v":39},{"$f":"prof!C40","v":"محمد علي39"},null,1,1,1,2,2,2]
[{"$f":"prof!A41","v":40},{"$f":"prof!C41","v":"محمد علي40"},null,1,1,1,2,2,2]
[{"$f":"prof!A42","v":41},{"$f":"prof!C42","v":"محمد علي41"},null,1,1,1,2,2,2]
[{"$f":"prof!A43","v":42},{"$f":"prof!C43","v":"محمد علي42"}]
[{"$f":"prof!A44","v":43},{"$f":"prof!C44","v":"محمد علي43"}]
[{"$f":"prof!A45","v":44},{"$f":"prof!C45","v":"محمد علي44"}]
[{"$f":"prof!A46","v":45},{"$f":"prof!C46","v":"محمد علي45"}]
[{"$f":"prof!A47","v":46},{"$f":"prof!C47","v":"محمد علي46"}]
[{"$f":"prof!A48","v":47},{"$f":"prof!C48","v":"محمد علي47"}]
[{"$f":"prof!A49","v":48},{"$f":"prof!C49","v":"محمد علي48"}]
[{"$f":"prof!A50","v":49},{"$f":"prof!C50","v":"محمد علي49"}]
[{"$f":"prof!A51","v":50},{"$f":"prof!C51","v":"محمد علي50"}]
[{"$f":"prof!A52","v":51},{"$f":"prof!C52","v":"محمد علي51"}]
[{"$f":"prof!A53","v":52},{"$f":"prof!C53","v":"محمد علي52"}]
[{"$f":"prof!A54","v":53},{"$f":"prof!C54","v":"محمد علي53"}]
[{"$f":"prof!A55","v":54},{"$f":"prof!C55","v":"محمد علي54"}]
[{"$f":"prof!A56","v":55},{"$f":"prof!C56","v":"محمد علي55"}]
[{"$f":"prof!A57","v":56},{"$f":"prof!C57","v":"محمد علي56"}]
[{"$f":"prof!A58","v":57},{"$f":"prof!C58","v":"محمد علي57"}]
[{"$f":"prof!A59","v":58},{"$f":"prof!C59","v":"محمد علي58"}]
[{"$f":"prof!A60","v":59},{"$f":"prof!C60","v":"محمد علي59"}]
[{"$f":"prof!A61","v":60},{"$f":"prof!C61","v":"محمد علي60"}]
[{"$f":"prof!A62","v":61},{"$f":"prof!C62","v":"محمد علي61"}]
[{"$f":"prof!A63","v":62},{"$f":"prof!C63","v":"محمد علي62"}]
[{"$f":"prof!A64","v":63},{"$f":"prof!C64","v":"محمد علي63"}]
[{"$f":"prof!A65","v":64},{"$f":"prof!C65","v":"محمد علي64"}]
[{"$f":"prof!A66","v":65},{"$f":"prof!C66","v":"محمد علي65"}]
[{"$f":"prof!A67","v":66},{"$f":"prof!C67","v":"محمد علي66"}]
[{"$f":"prof!A68","v":67},{"$f":"prof!C68","v":"محمد علي67"}]
[{"$f":"prof!A69","v":68},{"$f":"prof!C69","v":"محمد علي68"}]
[{"$f":"prof!A70","v":69},{"$f":"prof!C70","v":"محمد علي69"}]
[{"$f":"prof!A71","v":70},{"$f":"prof!C71","v":"محمد علي70"}]
[{"$f":"prof!A72","v":71},{"$f":"prof!C72","v":"محمد علي71"}]
[{"$f":"prof!A73","v":72},{"$f":"prof!C73","v":"محمد علي72"}]
[{"$f":"prof!A74","v":73},{"$f":"prof!C74","v":"محمد علي73"}]
[{"$f":"prof!A75","v":74},{"$f":"prof!C75","v":"محمد علي74"}]
[{"$f":"prof!A76","v":75},{"$f":"prof!C76","v":"محمد علي75"}]
[{"$f":"prof!A77","v":76},{"$f":"prof!C77","v":"محمد علي76"}]
[{"$f":"prof!A78","v":77},{"$f":"prof!C78","v":"محمد علي77"}]
[{"$f":"prof!A79","v":78},{"$f":"prof!C79","v":"محمد علي78"}]
[{"$f":"prof!A80","v":79},{"$f":"prof!C80","v":"محمد علي79"}]
[{"$f":"prof!A81","v":80},{"$f":"prof!C81","v":"محمد علي80"}]
[{"$f":"prof!A82","v":81},{"$f":"prof!C82","v":"محمد علي81"}]
[{"$f":"prof!A83","v":82},{"$f":"prof!C83","v":"محمد علي82"}]
[{"$f":"prof!A84","v":83},{"$f":"prof!C84","v":"محمد علي83"}]
[{"$f":"prof!A85","v":84},{"$f":"prof!C85","v":"محمد علي84"}]
[{"$f":"prof!A86","v":85},{"$f":"prof!C86","v":"محمد علي85"}]
[{"$f":"prof!A87","v":86},{"$f":"prof!C87","v":"محمد علي86"}]
[{"$f":"prof!A88","v":87},{"$f":"prof!C88","v":"محمد علي87"}]
[{"$f":"prof!A89","v":88},{"$f":"prof!C89","v":"محمد علي88"}]
[{"$f":"prof!A90","v":89},{"$f":"prof!C90","v":"محمد علي89"}]
[{"$f":"prof!A91","v":90},{"$f":"prof!C91","v":"محمد علي90"}]
[{"$f":"prof!A92","v":91},{"$f":"prof!C92","v":"محمد علي91"}]
[{"$f":"prof!A93","v":92},{"$f":"prof!C93","v":"محمد علي92"}]
[{"$f":"prof!A94","v":93},{"$f":"prof!C94","v":"محمد علي93"}]
[{"$f":"prof!A95","v":94},{"$f":"prof!C95","v":"محمد علي94"}]
[{"$f":"prof!A96","v":95},{"$f":"prof!C96","v":"محمد علي95"}]
[{"$f":"prof!A97","v":96},{"$f":"prof!C97","v":"محمد علي96"}]
[{"$f":"prof!A98","v":97},{"$f":"prof!C98","v":"محمد علي97"}]
[{"$f":"prof!A99","v":98},{"$f":"prof!C99","v":"محمد علي98"}]
[{"$f":"prof!A100","v":99},{"$f":"prof!C100","v":"محمد علي99"}]
[{"$f":"prof!A101","v":100},{"$f":"prof!C101","v":"محمد علي100"}]
[{"$f":"prof!A102","v":101},{"$f":"prof!C102","v":"محمد علي101"}]
[{"$f":"prof!A103","v":102},{"$f":"prof!C103","v":"محمد علي102"}]
[{"$f":"prof!A104","v":103},{"$f":"prof!C104","v":"محمد علي103"}]
[{"$f":"prof!A105","v":104},{"$f":"prof!C105","v":"محمد علي104"}]
[{"$f":"prof!A106","v":105},{"$f":"prof!C106","v":"محمد علي105"}]
[{"$f":"prof!A107","v":106},{"$f":"prof!C107","v":"محمد علي106"}]
[{"$f":"prof!A108","v":107},{"$f":"prof!C108","v":"محمد علي107"}]
[{"$f":"prof!A109","v":108},{"$f":"prof!C109","v":"محمد علي108"}]
[{"$f":"prof!A110","v":109},{"$f":"prof!C110","v":"محمد علي109"}]
[{"$f":"prof!A111","v":110},{"$f":"prof!C111","v":"محمد علي110"}]
[{"$f":"prof!A112","v":111},{"$f":"prof!C112","v":"محمد علي111"}]
[{"$f":"prof!A113","v":112},{"$f":"prof!C113","v":"محمد علي112"}]
[{"$f":"prof!A114","v":113},{"$f":"prof!C114","v":"محمد علي113"}]
[{"$f":"prof!A115","v":114},{"$f":"prof!C115","v":"محمد علي114"}]
[{"$f":"prof!A116","v":115},{"$f":"prof!C116","v":"محمد علي115"}]
[{"$f":"prof!A117","v":116},{"$f":"prof!C117","v":"محمد علي116"}]
[{"$f":"prof!A118","v":117},{"$f":"prof!C118","v":"محمد علي117"}]
[{"$f":"prof!A119","v":118},{"$f":"prof!C119","v":"محمد علي118"}]
[{"$f":"prof!A120","v":119},{"$f":"prof!C120","v":"محمد علي119"}]
[{"$f":"prof!A121","v":120},{"$f":"prof!C121","v":"محمد علي120"}]
[{"$f":"prof!A122","v":121},{"$f":"prof!C122","v":"محمد علي121"}]
[{"$f":"prof!A123","v":122},{"$f":"prof!C123","v":"محمد علي122"}]
[{"$f":"prof!A124","v":123},{"$f":"prof!C124","v":"محمد علي123"}]
[{"$f":"prof!A125","v":124},{"$f":"prof!C125","v":"محمد علي124"}]
[{"$f":"prof!A126","v":125},{"$f":"prof!C126","v":"محمد علي125"}]
[{"$f":"prof!A127","v":126},{"$f":"prof!C127","v":"محمد علي126"}]
[{"$f":"prof!A128","v":127},{"$f":"prof!C128","v":"محمد علي127"}]
[{"$f":"prof!A129","v":128},{"$f":"prof!C129","v":"محمد علي128"}]
[{"$f":"prof!A130","v":129},{"$f":"prof!C130","v":"محمد علي129"}]
[{"$f":"prof!A131","v":130},{"$f":"prof!C131","v":"محمد علي130"}]
[{"$f":"prof!A132","v":131},{"$f":"prof!C132","v":"محمد علي131"}]
[{"$f":"prof!A133","v":132},{"$f":"prof!C133","v":"محمد علي132"}]
[{"$f":"prof!A134","v":133},{"$f":"prof!C134","v":"محمد علي133"}]
[{"$f":"prof!A135","v":134},{"$f":"prof!C135","v":"محمد علي134"}]
[{"$f":"prof!A136","v":135},{"$f":"prof!C136","v":"محمد علي135"}]
[{"$f":"prof!A137","v":136},{"$f":"prof!C137","v":"محمد علي136"}]
[{"$f":"prof!A138","v":137},{"$f":"prof!C138","v":"محمد علي137"}]
[{"$f":"prof!A139","v":138},{"$f":"prof!C139","v":"محمد علي138"}]
[{"$f":"prof!A140","v":139},{"$f":"prof!C140","v":"محمد علي139"}]
[{"$f":"prof!A141","v":140},{"$f":"prof!C141","v":"محمد علي140"}]
[{"$f":"prof!A142","v":141},{"$f":"prof!C142","v":"محمد علي141"}]
[{"$f":"prof!A143","v":142},{"$f":"prof!C143","v":"محمد علي142"}]
[{"$f":"prof!A144","v":143},{"$f":"prof!C144","v":"محمد علي143"}]
[{"$f":"prof!A145","v":144},{"$f":"prof!C145","v":"محمد علي144"}]
[{"$f":"prof!A146","v":145},{"$f":"prof!C146","v":"محمد علي145"}]
[{"$f":"prof!A147","v":146},{"$f":"prof!C147","v":"محمد علي146"}]
[{"$f":"prof!A148","v":147},{"$f":"prof!C148","v":"محمد علي147"}]
[{"$f":"prof!A149","v":148},{"$f":"prof!C149","v":"محمد علي148"}]
[{"$f":"prof!A150","v":149},{"$f":"prof!C150","v":"محمد علي149"}]
[{"$f":"prof!A151","v":150},{"$f":"prof!C151","v":"محمد علي150"}]
[{"$f":"prof!A152","v":151},{"$f":"prof!C152","v":"محمد علي151"}]
[{"$f":"prof!A153","v":152},{"$f":"prof!C153","v":"محمد علي152"}]
[{"$f":"prof!A154","v":153},{"$f":"prof!C154","v":"محمد علي153"}]
[{"$f":"prof!A155","v":154},{"$f":"prof!C155","v":"محمد علي154"}]
[{"$f":"prof!A156","v":155},{"$f":"prof!C156","v":"محمد علي155"}]
[{"$f":"prof!A157","v":156},{"$f":"prof!C157","v":"محمد علي156"}]
[{"$f":"prof!A158","v":157},{"$f":"prof!C158","v":"محمد علي157"}]
[{"$f":"prof!A159","v":158},{"$f":"prof!C159","v":"محمد علي158"}]
[{"$f":"prof!A160","v":159},{"$f":"prof!C160","v":"محمد علي159"}]
[{"$f":"prof!A161","v":160},{"$f":"prof!C161","v":"محمد علي160"}]
[{"$f":"prof!A162","v":161},{"$f":"prof!C162","v":"محمد علي161"}]
[{"$f":"prof!A163","v":162},{"$f":"prof!C163","v":"محمد علي162"}]
[{"$f":"prof!A164","v":163},{"$f":"prof!C164","v":"محمد علي163"}]
[{"$f":"prof!A165","v":164},{"$f":"prof!C165","v":"محمد علي164"}]
[{"$f":"prof!A166","v":165},{"$f":"prof!C166","v":"محمد علي165"}]
[{"$f":"prof!A167","v":166},{"$f":"prof!C167","v":"محمد علي166"}]
[{"$f":"prof!A168","v":167},{"$f":"prof!C168","v":"محمد علي167"}]
[{"$f":"prof!A169","v":168},{"$f":"prof!C169","v":"محمد علي168"}]
[{"$f":"prof!A170","v":169},{"$f":"prof!C170","v":"محمد علي169"}]
[{"$f":"prof!A171","v":170},{"$f":"prof!C171","v":"محمد علي170"}]
[{"$f":"prof!A172","v":171},{"$f":"prof!C172","v":"محمد علي171"}]
[{"$f":"prof!A173","v":172},{"$f":"prof!C173","v":"محمد علي172"}]
[{"$f":"prof!A174","v":173},{"$f":"prof!C174","v":"محمد علي173"}]
[{"$f":"prof!A175","v":174},{"$f":"prof!C175","v":"محمد علي174"}]
[{"$f":"prof!A176","v":175},{"$f":"prof!C176","v":"محمد علي175"}]
[{"$f":"prof!A177","v":176},{"$f":"prof!C177","v":"محمد علي176"}]
[{"$f":"prof!A178","v":177},{"$f":"prof!C178","v":"محمد علي177"}]
[{"$f":"prof!A179","v":178},{"$f":"prof!C179","v":"محمد علي178"}]
[{"$f":"prof!A180","v":179},{"$f":"prof!C180","v":"محمد علي179"}]
[{"$f":"prof!A181","v":180},{"$f":"prof!C181","v":"محمد علي180"}]
[{"$f":"prof!A182","v":181},{"$f":"prof!C182","v":"محمد علي181"}]
[{"$f":"prof!A183","v":182},{"$f":"prof!C183","v":"محمد علي182"}]
[{"$f":"prof!A184","v":183},{"$f":"prof!C184","v":"محمد علي183"}]
[{"$f":"prof!A185","v":184},{"$f":"prof!C185","v":"محمد علي184"}]
[{"$f":"prof!A186","v":185},{"$f":"prof!C186","v":"محمد علي185"}]
[{"$f":"prof!A187","v":186},{"$f":"prof!C187","v":"محمد علي186"}]
[{"$f":"prof!A188","v":187},{"$f":"prof!C188","v":"محمد علي187"}]
[{"$f":"prof!A189","v":188},{"$f":"prof!C189","v":"محمد علي188"}]
[{"$f":"prof!A190","v":189},{"$f":"prof!C190","v":"محمد علي189"}]
[{"$f":"prof!A191","v":190},{"$f":"prof!C191","v":"محمد علي190"}]
[{"$f":"prof!A192","v":191},{"$f":"prof!C192","v":"محمد علي191"}]
[{"$f":"prof!A193","v":192},{"$f":"prof!C193","v":"محمد علي192"}]
[{"$f":"prof!A194","v":193},{"$f":"prof!C194","v":"محمد علي193"}]
[{"$f":"prof!A195","v":194},{"$f":"prof!C195","v":"محمد علي194"}]
[{"$f":"prof!A196","v":195},{"$f":"prof!C196","v":"محمد علي195"}]
[{"$f":"prof!A197","v":196},{"$f":"prof!C197","v":"محمد علي196"}]
[{"$f":"prof!A198","v":197},{"$f":"prof!C198","v":"محمد علي197"}]
[{"$f":"prof!A199","v":198},{"$f":"prof!C199","v":"محمد علي198"}]
[{"$f":"prof!A200","v":199},{"$f":"prof!C200","v":"محمد علي199"}]
[{"$f":"prof!A201","v":200},{"$f":"prof!C201","v":"محمد علي200"}]
[{"$f":"prof!A202","v":201},{"$f":"prof!C202","v":"محمد علي201"}]
[{"$f":"prof!A203","v":202},{"$f":"prof!C203","v":"محمد علي202"}]
[{"$f":"prof!A204","v":203},{"$f":"prof!C204","v":"محمد علي203"}]
[{"$f":"prof!A205","v":204},{"$f":"prof!C205","v":"محمد علي204"}]
[{"$f":"prof!A206","v":205},{"$f":"prof!C206","v":"محمد علي205"}]
[{"$f":"prof!A207","v":206},{"$f":"prof!C207","v":"محمد علي206"}]
[{"$f":"prof!A208","v":207},{"$f":"prof!C208","v":"محمد علي207"}]
[{"$f":"prof!A209","v":208},{"$f":"prof!C209","v":"محمد علي208"}]
[{"$f":"prof!A210","v":209},{"$f":"prof!C210","v":"محمد علي209"}]
[{"$f":"prof!A211","v":210},{"$f":"prof!C211","v":"محمد علي210"}]
[{"$f":"prof!A212","v":211},{"$f":"prof!C212","v":"محمد علي211"}]
[{"$f":"prof!A213","v":212},{"$f":"prof!C213","v":"محمد علي212"}]
[{"$f":"prof!A214","v":213},{"$f":"prof!C214","v":"محمد علي213"}]
[{"$f":"prof!A215","v":214},{"$f":"prof!C215","v":"محمد علي214"}]
[{"$f":"prof!A216","v":215},{"$f":"prof!C216","v":"محمد علي215"}]
[{"$f":"prof!A217","v":216},{"$f":"prof!C217","v":"محمد علي216"}]
[{"$f":"prof!A218","v":217},{"$f":"prof!C218","v":"محمد علي217"}]
[{"$f":"prof!A219","v":218},{"$f":"prof!C219","v":"محمد علي218"}]
[{"$f":"prof!A220","v":219},{"$f":"prof!C220","v":"محمد علي219"}]
[{"$f":"prof!A221","v":220},{"$f":"prof!C221","v":"محمد علي220"}]
[{"$f":"prof!A222","v":221},{"$f":"prof!C222","v":"محمد علي221"}]
[{"$f":"prof!A223","v":222},{"$f":"prof!C223","v":"محمد علي222"}]
[{"$f":"prof!A224","v":223},{"$f":"prof!C224","v":"محمد علي223"}]
[{"$f":"prof!A225","v":224},{"$f":"prof!C225","v":"محمد علي224"}]
[{"$f":"prof!A226","v":225},{"$f":"prof!C226","v":"محمد علي225"}]
[{"$f":"prof!A227","v":226},{"$f":"prof!C227","v":"محمد علي226"}]
[{"$f":"prof!A228","v":227},{"$f":"prof!C228","v":"محمد علي227"}]
[{"$f":"prof!A229","v":228},{"$f":"prof!C229","v":"محمد علي228"}]
[{"$f":"prof!A230","v":229},{"$f":"prof!C230","v":"محمد علي229"}]
[{"$f":"prof!A231","v":230},{"$f":"prof!C231","v":"محمد علي230"}]
[{"$f":"prof!A232","v":231},{"$f":"prof!C232","v":"محمد علي231"}]
[{"$f":"prof!A233","v":232},{"$f":"prof!C233","v":"محمد علي232"}]
[{"$f":"prof!A234","v":233},{"$f":"prof!C234","v":"محمد علي233"}]
[{"$f":"prof!A235","v":234},{"$f":"prof!C235","v":"محمد علي234"}]
[{"$f":"prof!A236","v":235},{"$f":"prof!C236","v":"محمد علي235"}]
[{"$f":"prof!A237","v":236},{"$f":"prof!C237","v":"محمد علي236"}]
[{"$f":"prof!A238","v":237},{"$f":"prof!C238","v":"محمد علي237"}]
[{"$f":"prof!A239","v":238},{"$f":"prof!C239","v":"محمد علي238"}]
[{"$f":"prof!A240","v":239},{"$f":"prof!C240","v":"محمد علي239"}]
[{"$f":"prof!A241","v":240},{"$f":"prof!C241","v":"محمد علي240"}]
[{"$f":"prof!A242","v":241},{"$f":"prof!C242","v":"محمد علي241"}]
[{"$f":"prof!A243","v":242},{"$f":"prof!C243","v":"محمد علي242"}]
[{"$f":"prof!A244","v":243},{"$f":"prof!C244","v":"محمد علي243"}]
[{"$f":"prof!A245","v":244},{"$f":"prof!C245","v":"محمد علي244"}]
[{"$f":"prof!A246","v":245},{"$f":"prof!C246","v":"محمد علي245"}]
[{"$f":"prof!A247","v":246},{"$f":"prof!C247","v":"محمد علي246"}]
[{"$f":"prof!A248","v":247},{"$f":"prof!C248","v":"محمد علي247"}]
[{"$f":"prof!A249","v":248},{"$f":"prof!C249","v":"محمد علي248"}]
[{"$f":"prof!A250","v":249},{"$f":"prof!C250","v":"محمد علي249"}]
[{"$f":"prof!A251","v":250},{"$f":"prof!C251","v":"محمد علي250"}]

{"sheet":"أيام الحراسة","index":4,"n_rows":83,"n_cols":20,"rows_kept":83,"cut":false,"hidden":false,"merged":[[82,10,82,13],[74,1,74,5],[74,6,74,9],[74,10,74,13],[69,1,69,5],[69,6,69,9],[69,10,69,13],[70,1,70,5],[70,6,70,9],[70,10,70,13],[73,1,73,5],[73,6,73,9],[73,10,73,13],[71,1,71,5],[71,6,71,9],[71,10,71,13],[72,1,72,5],[72,6,72,9],[72,10,72,13],[76,0,80,1],[67,1,67,5],[67,6,67,9],[67,10,67,13],[68,1,68,5],[68,6,68,9],[68,10,68,13],[65,1,65,5],[65,6,65,9],[65,10,65,13],[66,1,66,5],[66,6,66,9],[66,10,66,13],[63,1,63,5],[63,6,63,9],[63,10,63,13],[64,1,64,5],[64,6,64,9],[64,10,64,13],[61,1,61,5],[61,6,61,9],[61,10,61,13],[62,1,62,5],[62,6,62,9],[62,10,62,13],[59,1,59,5],[59,6,59,9],[59,10,59,13],[60,1,60,5],[60,6,60,9],[60,10,60,13],[57,1,57,5],[57,6,57,9],[57,10,57,13],[58,1,58,5],[58,6,58,9],[58,10,58,13],[55,1,55,5],[55,6,55,9],[55,10,55,13],[56,1,56,5],[56,6,56,9],[56,10,56,13],[53,1,53,5],[53,6,53,9],[53,10,53,13],[54,1,54,5],[54,6,54,9],[54,10,54,13],[51,0,51,2],[51,3,51,4],[51,6,51,8],[51,11,51,13],[42,0,42,12],[43,0,43,12],[44,0,44,6],[44,8,44,12],[46,0,46,1],[46,2,46,6],[46,8,46,10],[46,11,46,12],[40,10,40,13],[21,10,21,13],[22,10,22,13],[25,10,25,13],[26,10,26,13],[27,10,27,13],[24,10,24,13],[23,10,23,13],[47,4,47,9],[47,11,47,12],[28,10,28,13],[29,10,29,13],[31,10,31,13],[32,10,32,13],[28,6,28,9],[21,1,21,5],[22,1,22,5],[23,6,23,9],[23,1,23,5],[30,10,30,13],[32,1,32,5],[31,1,31,5],[31,6,31,9],[25,1,25,5],[1,0,1,12],[2,8,2,12],[4,8,4,10],[15,6,15,9],[12,1,12,5],[13,1,13,5],[14,1,14,5],[15,1,15,5],[5,11,5,12],[4,11,4,12],[4,0,4,1],[4,2,4,6],[5,4,5,9],[12,6,12,9],[13,6,13,9],[14,6,14,9],[2,0,2,6],[20,10,20,13],[9,11,9,13],[14,10,14,13],[15,10,15,13],[12,10,12,13],[9,0,9,2],[9,3,9,4],[11,10,11,13],[11,6,11,9],[11,1,11,5],[13,10,13,13],[16,10,16,13],[17,10,17,13],[18,10,18,13],[19,10,19,13],[20,1,20,5],[16,6,16,9],[17,6,17,9],[18,6,18,9],[20,6,20,9],[9,6,9,8],[34,0,38,1],[27,6,27,9],[17,1,17,5],[19,1,19,5],[19,6,19,9],[21,6,21,9],[22,6,22,9],[16,1,16,5],[18,1,18,5],[30,1,30,5],[30,6,30,9],[29,6,29,9],[32,6,32,9],[26,1,26,5],[27,1,27,5],[28,1,28,5],[29,1,29,5],[24,1,24,5],[24,6,24,9],[25,6,25,9],[26,6,26,9]]}
["الجمهوريــة الجزائريــة الديمقراطيــة الشعبيــة"]
["وزارة التربيــة الوطنيـة"]
["مديريــة التربيـــة لولايـــة الــــوادي",null,null,null,null,null,null,null,"الديوان الوطني للامتحانات والمسابقات"]
[]
["مركـز الإجــراء: ",null,{"$f":"'بيانات المركز.'!Q9","v":"ثانوية المجتهد - الوادي"},null,null,null,null,null,"رمز المركز:  ",null,null,{"$f":"'بيانات المركز.'!V7","v":39044}]
[null,null,null,null,{"$f":"'بيانات المركز.'!G13","v":"إمتحــان شهـادة البكالـــوريا"},null,null,null,null,null," دورة:",{"$f":"'بيانات المركز.'!D19","v":"جــــوان 2021"}]
[]
[]
[]
["التاريــــخ:",null,null,{"$f":"TODAY()","v":"2021-07-09"},null,null,"اليــــوم الأول",null,null,null,"الفتـــرة:","صباحيـــــة",null,null,null,null,null,null,"صباحيـــــة","اليــــوم الأول"]
[null,null,null,null,null,null,null,null,null,null,null,null,null,null,null,null,null,null,"مسائيـــــة","اليــــوم الثانــي"]
["القاعة","الحـــــارس الأول",null,null,null,null,"الحـــــارس الثانـــي",null,null,null,"الحـــارس الثالـــث",null,null,null,null,null,null,null,null,"اليــــوم الثالــث"]
[1,{"$f":"IFERROR(VLOOKUP(OFFSET('توزيع الحراس'!$A$1,MATCH($A13,'توزيع الحراس'!$C:$C,0)-1,MATCH($G$10,'توزيع الحراس'!$1:$1,0)+IF($L$10=\"صباحيـــــة\",0,3)+COUNTA($B$12:B$12)-2),prof,1,FALSE),\"\")","v":15},null,null,null,null,{"$f":"IFERROR(VLOOKUP(OFFSET('توزيع الحراس'!$A$1,MATCH($A13,'توزيع الحراس'!$C:$C,0)-1,MATCH($G$10,'توزيع الحراس'!$1:$1,0)+IF($L$10=\"صباحيـــــة\",0,3)+COUNTA($B$12:J$12)-2),prof,1,FALSE),\"\")","v":12},null,null,null,{"$f":"IFERROR(VLOOKUP(OFFSET('توزيع الحراس'!$A$1,MATCH($A13,'توزيع الحراس'!$C:$C,0)-1,MATCH($G$10,'توزيع الحراس'!$1:$1,0)+IF($L$10=\"صباحيـــــة\",0,3)+COUNTA($B$12:N$12)-2),prof,1,FALSE),\"\")","v":10},null,null,null,null,null,null,null,null,"اليــــوم الرابــع"]
[2,{"$f":"IFERROR(VLOOKUP(OFFSET('توزيع الحراس'!$A$1,MATCH($A14,'توزيع الحراس'!$C:$C,0)-1,MATCH($G$10,'توزيع الحراس'!$1:$1,0)+IF($L$10=\"صباحيـــــة\",0,3)+COUNTA($B$12:B$12)-2),prof,1,FALSE),\"\")","v":""},null,null,null,null,{"$f":"IFERROR(VLOOKUP(OFFSET('توزيع الحراس'!$A$1,MATCH($A14,'توزيع الحراس'!$C:$C,0)-1,MATCH($G$10,'توزيع الحراس'!$1:$1,0)+IF($L$10=\"صباحيـــــة\",0,3)+COUNTA($B$12:J$12)-2),prof,1,FALSE),\"\")","v":""},null,null,null,{"$f":"IFERROR(VLOOKUP(OFFSET('توزيع الحراس'!$A$1,MATCH($A14,'توزيع الحراس'!$C:$C,0)-1,MATCH($G$10,'توزيع الحراس'!$1:$1,0)+IF($L$10=\"صباحيـــــة\",0,3)+COUNTA($B$12:N$12)-2),prof,1,FALSE),\"\")","v":""},null,null,null,null,null,null,null,null,"اليــــوم الخامــس"]
[3,{"$f":"IFERROR(VLOOKUP(OFFSET('توزيع الحراس'!$A$1,MATCH($A15,'توزيع الحراس'!$C:$C,0)-1,MATCH($G$10,'توزيع الحراس'!$1:$1,0)+IF($L$10=\"صباحيـــــة\",0,3)+COUNTA($B$12:B$12)-2),prof,1,FALSE),\"\")","v":""},null,null,null,null,{"$f":"IFERROR(VLOOKUP(OFFSET('توزيع الحراس'!$A$1,MATCH($A15,'توزيع الحراس'!$C:$C,0)-1,MATCH($G$10,'توزيع الحراس'!$1:$1,0)+IF($L$10=\"صباحيـــــة\",0,3)+COUNTA($B$12:J$12)-2),prof,1,FALSE),\"\")","v":""},null,null,null,{"$f":"IFERROR(VLOOKUP(OFFSET('توزيع الحراس'!$A$1,MATCH($A15,'توزيع الحراس'!$C:$C,0)-1,MATCH($G$10,'توزيع الحراس'!$1:$1,0)+IF($L$10=\"صباحيـــــة\",0,3)+COUNTA($B$12:N$12)-2),prof,1,FALSE),\"\")","v":""}]
[4,{"$f":"IFERROR(VLOOKUP(OFFSET('توزيع الحراس'!$A$1,MATCH($A16,'توزيع الحراس'!$C:$C,0)-1,MATCH($G$10,'توزيع الحراس'!$1:$1,0)+IF($L$10=\"صباحيـــــة\",0,3)+COUNTA($B$12:B$12)-2),prof,1,FALSE),\"\")","v":""},null,null,null,null,{"$f":"IFERROR(VLOOKUP(OFFSET('توزيع الحراس'!$A$1,MATCH($A16,'توزيع الحراس'!$C:$C,0)-1,MATCH($G$10,'توزيع الحراس'!$1:$1,0)+IF($L$10=\"صباحيـــــة\",0,3)+COUNTA($B$12:J$12)-2),prof,1,FALSE),\"\")","v":""},null,null,null,{"$f":"IFERROR(VLOOKUP(OFFSET('توزيع الحراس'!$A$1,MATCH($A16,'توزيع الحراس'!$C:$C,0)-1,MATCH($G$10,'توزيع الحراس'!$1:$1,0)+IF($L$10=\"صباحيـــــة\",0,3)+COUNTA($B$12:N$12)-2),prof,1,FALSE),\"\")","v":""}]
[5,{"$f":"IFERROR(VLOOKUP(OFFSET('توزيع الحراس'!$A$1,MATCH($A17,'توزيع الحراس'!$C:$C,0)-1,MATCH($G$10,'توزيع الحراس'!$1:$1,0)+IF($L$10=\"صباحيـــــة\",0,3)+COUNTA($B$12:B$12)-2),prof,1,FALSE),\"\")","v":""},null,null,null,null,{"$f":"IFERROR(VLOOKUP(OFFSET('توزيع الحراس'!$A$1,MATCH($A17,'توزيع الحراس'!$C:$C,0)-1,MATCH($G$10,'توزيع الحراس'!$1:$1,0)+IF($L$10=\"صباحيـــــة\",0,3)+COUNTA($B$12:J$12)-2),prof,1,FALSE),\"\")","v":""},null,null,null,{"$f":"IFERROR(VLOOKUP(OFFSET('توزيع الحراس'!$A$1,MATCH($A17,'توزيع الحراس'!$C:$C,0)-1,MATCH($G$10,'توزيع الحراس'!$1:$1,0)+IF($L$10=\"صباحيـــــة\",0,3)+COUNTA($B$12:N$12)-2),prof,1,FALSE),\"\")","v":""}]
[6,{"$f":"IFERROR(VLOOKUP(OFFSET('توزيع الحراس'!$A$1,MATCH($A18,'توزيع الحراس'!$C:$C,0)-1,MATCH($G$10,'توزيع الحراس'!$1:$1,0)+IF($L$10=\"صباحيـــــة\",0,3)+COUNTA($B$12:B$12)-2),prof,1,FALSE),\"\")","v":""},null,null,null,null,{"$f":"IFERROR(VLOOKUP(OFFSET('توزيع الحراس'!$A$1,MATCH($A18,'توزيع الحراس'!$C:$C,0)-1,MATCH($G$10,'توزيع الحراس'!$1:$1,0)+IF($L$10=\"صباحيـــــة\",0,3)+COUNTA($B$12:J$12)-2),prof,1,FALSE),\"\")","v":""},null,null,null,{"$f":"IFERROR(VLOOKUP(OFFSET('توزيع الحراس'!$A$1,MATCH($A18,'توزيع الحراس'!$C:$C,0)-1,MATCH($G$10,'توزيع الحراس'!$1:$1,0)+IF($L$10=\"صباحيـــــة\",0,3)+COUNTA($B$12:N$12)-2),prof,1,FALSE),\"\")","v":""}]
[7,{"$f":"IFERROR(VLOOKUP(OFFSET('توزيع الحراس'!$A$1,MATCH($A19,'توزيع الحراس'!$C:$C,0)-1,MATCH($G$10,'توزيع الحراس'!$1:$1,0)+IF($L$10=\"صباحيـــــة\",0,3)+COUNTA($B$12:B$12)-2),prof,1,FALSE),\"\")","v":""},null,null,null,null,{"$f":"IFERROR(VLOOKUP(OFFSET('توزيع الحراس'!$A$1,MATCH($A19,'توزيع الحراس'!$C:$C,0)-1,MATCH($G$10,'توزيع الحراس'!$1:$1,0)+IF($L$10=\"صباحيـــــة\",0,3)+COUNTA($B$12:J$12)-2),prof,1,FALSE),\"\")","v":""},null,null,null,{"$f":"IFERROR(VLOOKUP(OFFSET('توزيع الحراس'!$A$1,MATCH($A19,'توزيع الحراس'!$C:$C,0)-1,MATCH($G$10,'توزيع الحراس'!$1:$1,0)+IF($L$10=\"صباحيـــــة\",0,3)+COUNTA($B$12:N$12)-2),prof,1,FALSE),\"\")","v":""}]
[8,{"$f":"IFERROR(VLOOKUP(OFFSET('توزيع الحراس'!$A$1,MATCH($A20,'توزيع الحراس'!$C:$C,0)-1,MATCH($G$10,'توزيع الحراس'!$1:$1,0)+IF($L$10=\"صباحيـــــة\",0,3)+COUNTA($B$12:B$12)-2),prof,1,FALSE),\"\")","v":""},null,null,null,null,{"$f":"IFERROR(VLOOKUP(OFFSET('توزيع الحراس'!$A$1,MATCH($A20,'توزيع الحراس'!$C:$C,0)-1,MATCH($G$10,'توزيع الحراس'!$1:$1,0)+IF($L$10=\"صباحيـــــة\",0,3)+COUNTA($B$12:J$12)-2),prof,1,FALSE),\"\")","v":""},null,null,null,{"$f":"IFERROR(VLOOKUP(OFFSET('توزيع الحراس'!$A$1,MATCH($A20,'توزيع الحراس'!$C:$C,0)-1,MATCH($G$10,'توزيع الحراس'!$1:$1,0)+IF($L$10=\"صباحيـــــة\",0,3)+COUNTA($B$12:N$12)-2),prof,1,FALSE),\"\")","v":""}]
[9,{"$f":"IFERROR(VLOOKUP(OFFSET('توزيع الحراس'!$A$1,MATCH($A21,'توزيع الحراس'!$C:$C,0)-1,MATCH($G$10,'توزيع الحراس'!$1:$1,0)+IF($L$10=\"صباحيـــــة\",0,3)+COUNTA($B$12:B$12)-2),prof,1,FALSE),\"\")","v":""},null,null,null,null,{"$f":"IFERROR(VLOOKUP(OFFSET('توزيع الحراس'!$A$1,MATCH($A21,'توزيع الحراس'!$C:$C,0)-1,MATCH($G$10,'توزيع الحراس'!$1:$1,0)+IF($L$10=\"صباحيـــــة\",0,3)+COUNTA($B$12:J$12)-2),prof,1,FALSE),\"\")","v":""},null,null,null,{"$f":"IFERROR(VLOOKUP(OFFSET('توزيع الحراس'!$A$1,MATCH($A21,'توزيع الحراس'!$C:$C,0)-1,MATCH($G$10,'توزيع الحراس'!$1:$1,0)+IF($L$10=\"صباحيـــــة\",0,3)+COUNTA($B$12:N$12)-2),prof,1,FALSE),\"\")","v":""}]
[10,{"$f":"IFERROR(VLOOKUP(OFFSET('توزيع الحراس'!$A$1,MATCH($A22,'توزيع الحراس'!$C:$C,0)-1,MATCH($G$10,'توزيع الحراس'!$1:$1,0)+IF($L$10=\"صباحيـــــة\",0,3)+COUNTA($B$12:B$12)-2),prof,1,FALSE),\"\")","v":""},null,null,null,null,{"$f":"IFERROR(VLOOKUP(OFFSET('توزيع الحراس'!$A$1,MATCH($A22,'توزيع الحراس'!$C:$C,0)-1,MATCH($G$10,'توزيع الحراس'!$1:$1,0)+IF($L$10=\"صباحيـــــة\",0,3)+COUNTA($B$12:J$12)-2),prof,1,FALSE),\"\")","v":""},null,null,null,{"$f":"IFERROR(VLOOKUP(OFFSET('توزيع الحراس'!$A$1,MATCH($A22,'توزيع الحراس'!$C:$C,0)-1,MATCH($G$10,'توزيع الحراس'!$1:$1,0)+IF($L$10=\"صباحيـــــة\",0,3)+COUNTA($B$12:N$12)-2),prof,1,FALSE),\"\")","v":""}]
[11,{"$f":"IFERROR(VLOOKUP(OFFSET('توزيع الحراس'!$A$1,MATCH($A23,'توزيع الحراس'!$C:$C,0)-1,MATCH($G$10,'توزيع الحراس'!$1:$1,0)+IF($L$10=\"صباحيـــــة\",0,3)+COUNTA($B$12:B$12)-2),prof,1,FALSE),\"\")","v":""},null,null,null,null,{"$f":"IFERROR(VLOOKUP(OFFSET('توزيع الحراس'!$A$1,MATCH($A23,'توزيع الحراس'!$C:$C,0)-1,MATCH($G$10,'توزيع الحراس'!$1:$1,0)+IF($L$10=\"صباحيـــــة\",0,3)+COUNTA($B$12:J$12)-2),prof,1,FALSE),\"\")","v":""},null,null,null,{"$f":"IFERROR(VLOOKUP(OFFSET('توزيع الحراس'!$A$1,MATCH($A23,'توزيع الحراس'!$C:$C,0)-1,MATCH($G$10,'توزيع الحراس'!$1:$1,0)+IF($L$10=\"صباحيـــــة\",0,3)+COUNTA($B$12:N$12)-2),prof,1,FALSE),\"\")","v":""}]
[12,{"$f":"IFERROR(VLOOKUP(OFFSET('توزيع الحراس'!$A$1,MATCH($A24,'توزيع الحراس'!$C:$C,0)-1,MATCH($G$10,'توزيع الحراس'!$1:$1,0)+IF($L$10=\"صباحيـــــة\",0,3)+COUNTA($B$12:B$12)-2),prof,1,FALSE),\"\")","v":""},null,null,null,null,{"$f":"IFERROR(VLOOKUP(OFFSET('توزيع الحراس'!$A$1,MATCH($A24,'توزيع الحراس'!$C:$C,0)-1,MATCH($G$10,'توزيع الحراس'!$1:$1,0)+IF($L$10=\"صباحيـــــة\",0,3)+COUNTA($B$12:J$12)-2),prof,1,FALSE),\"\")","v":""},null,null,null,{"$f":"IFERROR(VLOOKUP(OFFSET('توزيع الحراس'!$A$1,MATCH($A24,'توزيع الحراس'!$C:$C,0)-1,MATCH($G$10,'توزيع الحراس'!$1:$1,0)+IF($L$10=\"صباحيـــــة\",0,3)+COUNTA($B$12:N$12)-2),prof,1,FALSE),\"\")","v":""}]
[13,{"$f":"IFERROR(VLOOKUP(OFFSET('توزيع الحراس'!$A$1,MATCH($A25,'توزيع الحراس'!$C:$C,0)-1,MATCH($G$10,'توزيع الحراس'!$1:$1,0)+IF($L$10=\"صباحيـــــة\",0,3)+COUNTA($B$12:B$12)-2),prof,1,FALSE),\"\")","v":""},null,null,null,null,{"$f":"IFERROR(VLOOKUP(OFFSET('توزيع الحراس'!$A$1,MATCH($A25,'توزيع الحراس'!$C:$C,0)-1,MATCH($G$10,'توزيع الحراس'!$1:$1,0)+IF($L$10=\"صباحيـــــة\",0,3)+COUNTA($B$12:J$12)-2),prof,1,FALSE),\"\")","v":""},null,null,null,{"$f":"IFERROR(VLOOKUP(OFFSET('توزيع الحراس'!$A$1,MATCH($A25,'توزيع الحراس'!$C:$C,0)-1,MATCH($G$10,'توزيع الحراس'!$1:$1,0)+IF($L$10=\"صباحيـــــة\",0,3)+COUNTA($B$12:N$12)-2),prof,1,FALSE),\"\")","v":""}]
[14,{"$f":"IFERROR(VLOOKUP(OFFSET('توزيع الحراس'!$A$1,MATCH($A26,'توزيع الحراس'!$C:$C,0)-1,MATCH($G$10,'توزيع الحراس'!$1:$1,0)+IF($L$10=\"صباحيـــــة\",0,3)+COUNTA($B$12:B$12)-2),prof,1,FALSE),\"\")","v":""},null,null,null,null,{"$f":"IFERROR(VLOOKUP(OFFSET('توزيع الحراس'!$A$1,MATCH($A26,'توزيع الحراس'!$C:$C,0)-1,MATCH($G$10,'توزيع الحراس'!$1:$1,0)+IF($L$10=\"صباحيـــــة\",0,3)+COUNTA($B$12:J$12)-2),prof,1,FALSE),\"\")","v":""},null,null,null,{"$f":"IFERROR(VLOOKUP(OFFSET('توزيع الحراس'!$A$1,MATCH($A26,'توزيع الحراس'!$C:$C,0)-1,MATCH($G$10,'توزيع الحراس'!$1:$1,0)+IF($L$10=\"صباحيـــــة\",0,3)+COUNTA($B$12:N$12)-2),prof,1,FALSE),\"\")","v":""}]
[15,{"$f":"IFERROR(VLOOKUP(OFFSET('توزيع الحراس'!$A$1,MATCH($A27,'توزيع الحراس'!$C:$C,0)-1,MATCH($G$10,'توزيع الحراس'!$1:$1,0)+IF($L$10=\"صباحيـــــة\",0,3)+COUNTA($B$12:B$12)-2),prof,1,FALSE),\"\")","v":""},null,null,null,null,{"$f":"IFERROR(VLOOKUP(OFFSET('توزيع الحراس'!$A$1,MATCH($A27,'توزيع الحراس'!$C:$C,0)-1,MATCH($G$10,'توزيع الحراس'!$1:$1,0)+IF($L$10=\"صباحيـــــة\",0,3)+COUNTA($B$12:J$12)-2),prof,1,FALSE),\"\")","v":""},null,null,null,{"$f":"IFERROR(VLOOKUP(OFFSET('توزيع الحراس'!$A$1,MATCH($A27,'توزيع الحراس'!$C:$C,0)-1,MATCH($G$10,'توزيع الحراس'!$1:$1,0)+IF($L$10=\"صباحيـــــة\",0,3)+COUNTA($B$12:N$12)-2),prof,1,FALSE),\"\")","v":""}]
[16,{"$f":"IFERROR(VLOOKUP(OFFSET('توزيع الحراس'!$A$1,MATCH($A28,'توزيع الحراس'!$C:$C,0)-1,MATCH($G$10,'توزيع الحراس'!$1:$1,0)+IF($L$10=\"صباحيـــــة\",0,3)+COUNTA($B$12:B$12)-2),prof,1,FALSE),\"\")","v":""},null,null,null,null,{"$f":"IFERROR(VLOOKUP(OFFSET('توزيع الحراس'!$A$1,MATCH($A28,'توزيع الحراس'!$C:$C,0)-1,MATCH($G$10,'توزيع الحراس'!$1:$1,0)+IF($L$10=\"صباحيـــــة\",0,3)+COUNTA($B$12:J$12)-2),prof,1,FALSE),\"\")","v":""},null,null,null,{"$f":"IFERROR(VLOOKUP(OFFSET('توزيع الحراس'!$A$1,MATCH($A28,'توزيع الحراس'!$C:$C,0)-1,MATCH($G$10,'توزيع الحراس'!$1:$1,0)+IF($L$10=\"صباحيـــــة\",0,3)+COUNTA($B$12:N$12)-2),prof,1,FALSE),\"\")","v":""}]
[17,{"$f":"IFERROR(VLOOKUP(OFFSET('توزيع الحراس'!$A$1,MATCH($A29,'توزيع الحراس'!$C:$C,0)-1,MATCH($G$10,'توزيع الحراس'!$1:$1,0)+IF($L$10=\"صباحيـــــة\",0,3)+COUNTA($B$12:B$12)-2),prof,1,FALSE),\"\")","v":""},null,null,null,null,{"$f":"IFERROR(VLOOKUP(OFFSET('توزيع الحراس'!$A$1,MATCH($A29,'توزيع الحراس'!$C:$C,0)-1,MATCH($G$10,'توزيع الحراس'!$1:$1,0)+IF($L$10=\"صباحيـــــة\",0,3)+COUNTA($B$12:J$12)-2),prof,1,FALSE),\"\")","v":""},null,null,null,{"$f":"IFERROR(VLOOKUP(OFFSET('توزيع الحراس'!$A$1,MATCH($A29,'توزيع الحراس'!$C:$C,0)-1,MATCH($G$10,'توزيع الحراس'!$1:$1,0)+IF($L$10=\"صباحيـــــة\",0,3)+COUNTA($B$12:N$12)-2),prof,1,FALSE),\"\")","v":""}]
[18,{"$f":"IFERROR(VLOOKUP(OFFSET('توزيع الحراس'!$A$1,MATCH($A30,'توزيع الحراس'!$C:$C,0)-1,MATCH($G$10,'توزيع الحراس'!$1:$1,0)+IF($L$10=\"صباحيـــــة\",0,3)+COUNTA($B$12:B$12)-2),prof,1,FALSE),\"\")","v":""},null,null,null,null,{"$f":"IFERROR(VLOOKUP(OFFSET('توزيع الحراس'!$A$1,MATCH($A30,'توزيع الحراس'!$C:$C,0)-1,MATCH($G$10,'توزيع الحراس'!$1:$1,0)+IF($L$10=\"صباحيـــــة\",0,3)+COUNTA($B$12:J$12)-2),prof,1,FALSE),\"\")","v":""},null,null,null,{"$f":"IFERROR(VLOOKUP(OFFSET('توزيع الحراس'!$A$1,MATCH($A30,'توزيع الحراس'!$C:$C,0)-1,MATCH($G$10,'توزيع الحراس'!$1:$1,0)+IF($L$10=\"صباحيـــــة\",0,3)+COUNTA($B$12:N$12)-2),prof,1,FALSE),\"\")","v":""}]
[19,{"$f":"IFERROR(VLOOKUP(OFFSET('توزيع الحراس'!$A$1,MATCH($A31,'توزيع الحراس'!$C:$C,0)-1,MATCH($G$10,'توزيع الحراس'!$1:$1,0)+IF($L$10=\"صباحيـــــة\",0,3)+COUNTA($B$12:B$12)-2),prof,1,FALSE),\"\")","v":""},null,null,null,null,{"$f":"IFERROR(VLOOKUP(OFFSET('توزيع الحراس'!$A$1,MATCH($A31,'توزيع الحراس'!$C:$C,0)-1,MATCH($G$10,'توزيع الحراس'!$1:$1,0)+IF($L$10=\"صباحيـــــة\",0,3)+COUNTA($B$12:J$12)-2),prof,1,FALSE),\"\")","v":""},null,null,null,{"$f":"IFERROR(VLOOKUP(OFFSET('توزيع الحراس'!$A$1,MATCH($A31,'توزيع الحراس'!$C:$C,0)-1,MATCH($G$10,'توزيع الحراس'!$1:$1,0)+IF($L$10=\"صباحيـــــة\",0,3)+COUNTA($B$12:N$12)-2),prof,1,FALSE),\"\")","v":""}]
[20,{"$f":"IFERROR(VLOOKUP(OFFSET('توزيع الحراس'!$A$1,MATCH($A32,'توزيع الحراس'!$C:$C,0)-1,MATCH($G$10,'توزيع الحراس'!$1:$1,0)+IF($L$10=\"صباحيـــــة\",0,3)+COUNTA($B$12:B$12)-2),prof,1,FALSE),\"\")","v":""},null,null,null,null,{"$f":"IFERROR(VLOOKUP(OFFSET('توزيع الحراس'!$A$1,MATCH($A32,'توزيع الحراس'!$C:$C,0)-1,MATCH($G$10,'توزيع الحراس'!$1:$1,0)+IF($L$10=\"صباحيـــــة\",0,3)+COUNTA($B$12:J$12)-2),prof,1,FALSE),\"\")","v":""},null,null,null,{"$f":"IFERROR(VLOOKUP(OFFSET('توزيع الحراس'!$A$1,MATCH($A32,'توزيع الحراس'!$C:$C,0)-1,MATCH($G$10,'توزيع الحراس'!$1:$1,0)+IF($L$10=\"صباحيـــــة\",0,3)+COUNTA($B$12:N$12)-2),prof,1,FALSE),\"\")","v":""}]
[21,{"$f":"IFERROR(VLOOKUP(OFFSET('توزيع الحراس'!$A$1,MATCH($A33,'توزيع الحراس'!$C:$C,0)-1,MATCH($G$10,'توزيع الحراس'!$1:$1,0)+IF($L$10=\"صباحيـــــة\",0,3)+COUNTA($B$12:B$12)-2),prof,1,FALSE),\"\")","v":""},null,null,null,null,{"$f":"IFERROR(VLOOKUP(OFFSET('توزيع الحراس'!$A$1,MATCH($A33,'توزيع الحراس'!$C:$C,0)-1,MATCH($G$10,'توزيع الحراس'!$1:$1,0)+IF($L$10=\"صباحيـــــة\",0,3)+COUNTA($B$12:J$12)-2),prof,1,FALSE),\"\")","v":""},null,null,null,{"$f":"IFERROR(VLOOKUP(OFFSET('توزيع الحراس'!$A$1,MATCH($A33,'توزيع الحراس'!$C:$C,0)-1,MATCH($G$10,'توزيع الحراس'!$1:$1,0)+IF($L$10=\"صباحيـــــة\",0,3)+COUNTA($B$12:N$12)-2),prof,1,FALSE),\"\")","v":""}]
[]
["الحـــراس الاحتياطيــون:",null,null,1,2,3,4,5,6,7,8,9,10]
[null,null,null,null,1,2,3,4,5,6,7,8,9]
[null,null,null,{"$f":"IFERROR(VLOOKUP(OFFSET('توزيع الحراس'!$A$33,D$35,MATCH($G$10,'توزيع الحراس'!$1:$1,0)+IF($L$10=\"صباحيـــــة\",0,3)+ROW($A1)-2),prof,1,FALSE),\"\")","v":1},{"$f":"IFERROR(VLOOKUP(OFFSET('توزيع الحراس'!$A$33,E$35,MATCH($G$10,'توزيع الحراس'!$1:$1,0)+IF($L$10=\"صباحيـــــة\",0,3)+ROW($A1)-2),prof,1,FALSE),\"\")","v":1},{"$f":"IFERROR(VLOOKUP(OFFSET('توزيع الحراس'!$A$33,F$35,MATCH($G$10,'توزيع الحراس'!$1:$1,0)+IF($L$10=\"صباحيـــــة\",0,3)+ROW($A1)-2),prof,1,FALSE),\"\")","v":1},{"$f":"IFERROR(VLOOKUP(OFFSET('توزيع الحراس'!$A$33,G$35,MATCH($G$10,'توزيع الحراس'!$1:$1,0)+IF($L$10=\"صباحيـــــة\",0,3)+ROW($A1)-2),prof,1,FALSE),\"\")","v":1},{"$f":"IFERROR(VLOOKUP(OFFSET('توزيع الحراس'!$A$33,H$35,MATCH($G$10,'توزيع الحراس'!$1:$1,0)+IF($L$10=\"صباحيـــــة\",0,3)+ROW($A1)-2),prof,1,FALSE),\"\")","v":1},{"$f":"IFERROR(VLOOKUP(OFFSET('توزيع الحراس'!$A$33,I$35,MATCH($G$10,'توزيع الحراس'!$1:$1,0)+IF($L$10=\"صباحيـــــة\",0,3)+ROW($A1)-2),prof,1,FALSE),\"\")","v":1},{"$f":"IFERROR(VLOOKUP(OFFSET('توزيع الحراس'!$A$33,J$35,MATCH($G$10,'توزيع الحراس'!$1:$1,0)+IF($L$10=\"صباحيـــــة\",0,3)+ROW($A1)-2),prof,1,FALSE),\"\")","v":1},{"$f":"IFERROR(VLOOKUP(OFFSET('توزيع الحراس'!$A$33,K$35,MATCH($G$10,'توزيع الحراس'!$1:$1,0)+IF($L$10=\"صباحيـــــة\",0,3)+ROW($A1)-2),prof,1,FALSE),\"\")","v":1},{"$f":"IFERROR(VLOOKUP(OFFSET('توزيع الحراس'!$A$33,L$35,MATCH($G$10,'توزيع الحراس'!$1:$1,0)+IF($L$10=\"صباحيـــــة\",0,3)+ROW($A1)-2),prof,1,FALSE),\"\")","v":1},{"$f":"IFERROR(VLOOKUP(OFFSET('توزيع الحراس'!$A$33,M$35,MATCH($G$10,'توزيع الحراس'!$1:$1,0)+IF($L$10=\"صباحيـــــة\",0,3)+ROW($A1)-2),prof,1,FALSE),\"\")","v":1}]
[null,null,null,{"$f":"IFERROR(VLOOKUP(OFFSET('توزيع الحراس'!$A$33,D$35,MATCH($G$10,'توزيع الحراس'!$1:$1,0)+IF($L$10=\"صباحيـــــة\",0,3)+ROW($A2)-2),prof,1,FALSE),\"\")","v":2},{"$f":"IFERROR(VLOOKUP(OFFSET('توزيع الحراس'!$A$33,E$35,MATCH($G$10,'توزيع الحراس'!$1:$1,0)+IF($L$10=\"صباحيـــــة\",0,3)+ROW($A2)-2),prof,1,FALSE),\"\")","v":1},{"$f":"IFERROR(VLOOKUP(OFFSET('توزيع الحراس'!$A$33,F$35,MATCH($G$10,'توزيع الحراس'!$1:$1,0)+IF($L$10=\"صباحيـــــة\",0,3)+ROW($A2)-2),prof,1,FALSE),\"\")","v":1},{"$f":"IFERROR(VLOOKUP(OFFSET('توزيع الحراس'!$A$33,G$35,MATCH($G$10,'توزيع الحراس'!$1:$1,0)+IF($L$10=\"صباحيـــــة\",0,3)+ROW($A2)-2),prof,1,FALSE),\"\")","v":1},{"$f":"IFERROR(VLOOKUP(OFFSET('توزيع الحراس'!$A$33,H$35,MATCH($G$10,'توزيع الحراس'!$1:$1,0)+IF($L$10=\"صباحيـــــة\",0,3)+ROW($A2)-2),prof,1,FALSE),\"\")","v":1},{"$f":"IFERROR(VLOOKUP(OFFSET('توزيع الحراس'!$A$33,I$35,MATCH($G$10,'توزيع الحراس'!$1:$1,0)+IF($L$10=\"صباحيـــــة\",0,3)+ROW($A2)-2),prof,1,FALSE),\"\")","v":1},{"$f":"IFERROR(VLOOKUP(OFFSET('توزيع الحراس'!$A$33,J$35,MATCH($G$10,'توزيع الحراس'!$1:$1,0)+IF($L$10=\"صباحيـــــة\",0,3)+ROW($A2)-2),prof,1,FALSE),\"\")","v":1},{"$f":"IFERROR(VLOOKUP(OFFSET('توزيع الحراس'!$A$33,K$35,MATCH($G$10,'توزيع الحراس'!$1:$1,0)+IF($L$10=\"صباحيـــــة\",0,3)+ROW($A2)-2),prof,1,FALSE),\"\")","v":1},{"$f":"IFERROR(VLOOKUP(OFFSET('توزيع الحراس'!$A$33,L$35,MATCH($G$10,'توزيع الحراس'!$1:$1,0)+IF($L$10=\"صباحيـــــة\",0,3)+ROW($A2)-2),prof,1,FALSE),\"\")","v":1},{"$f":"IFERROR(VLOOKUP(OFFSET('توزيع الحراس'!$A$33,M$35,MATCH($G$10,'توزيع الحراس'!$1:$1,0)+IF($L$10=\"صباحيـــــة\",0,3)+ROW($A2)-2),prof,1,FALSE),\"\")","v":1}]
[null,null,null,{"$f":"IFERROR(VLOOKUP(OFFSET('توزيع الحراس'!$A$33,D$35,MATCH($G$10,'توزيع الحراس'!$1:$1,0)+IF($L$10=\"صباحيـــــة\",0,3)+ROW($A3)-2),prof,1,FALSE),\"\")","v":3},{"$f":"IFERROR(VLOOKUP(OFFSET('توزيع الحراس'!$A$33,E$35,MATCH($G$10,'توزيع الحراس'!$1:$1,0)+IF($L$10=\"صباحيـــــة\",0,3)+ROW($A3)-2),prof,1,FALSE),\"\")","v":1},{"$f":"IFERROR(VLOOKUP(OFFSET('توزيع الحراس'!$A$33,F$35,MATCH($G$10,'توزيع الحراس'!$1:$1,0)+IF($L$10=\"صباحيـــــة\",0,3)+ROW($A3)-2),prof,1,FALSE),\"\")","v":1},{"$f":"IFERROR(VLOOKUP(OFFSET('توزيع الحراس'!$A$33,G$35,MATCH($G$10,'توزيع الحراس'!$1:$1,0)+IF($L$10=\"صباحيـــــة\",0,3)+ROW($A3)-2),prof,1,FALSE),\"\")","v":1},{"$f":"IFERROR(VLOOKUP(OFFSET('توزيع الحراس'!$A$33,H$35,MATCH($G$10,'توزيع الحراس'!$1:$1,0)+IF($L$10=\"صباحيـــــة\",0,3)+ROW($A3)-2),prof,1,FALSE),\"\")","v":1},{"$f":"IFERROR(VLOOKUP(OFFSET('توزيع الحراس'!$A$33,I$35,MATCH($G$10,'توزيع الحراس'!$1:$1,0)+IF($L$10=\"صباحيـــــة\",0,3)+ROW($A3)-2),prof,1,FALSE),\"\")","v":1},{"$f":"IFERROR(VLOOKUP(OFFSET('توزيع الحراس'!$A$33,J$35,MATCH($G$10,'توزيع الحراس'!$1:$1,0)+IF($L$10=\"صباحيـــــة\",0,3)+ROW($A3)-2),prof,1,FALSE),\"\")","v":1},{"$f":"IFERROR(VLOOKUP(OFFSET('توزيع الحراس'!$A$33,K$35,MATCH($G$10,'توزيع الحراس'!$1:$1,0)+IF($L$10=\"صباحيـــــة\",0,3)+ROW($A3)-2),prof,1,FALSE),\"\")","v":1},{"$f":"IFERROR(VLOOKUP(OFFSET('توزيع الحراس'!$A$33,L$35,MATCH($G$10,'توزيع الحراس'!$1:$1,0)+IF($L$10=\"صباحيـــــة\",0,3)+ROW($A3)-2),prof,1,FALSE),\"\")","v":1},{"$f":"IFERROR(VLOOKUP(OFFSET('توزيع الحراس'!$A$33,M$35,MATCH($G$10,'توزيع الحراس'!$1:$1,0)+IF($L$10=\"صباحيـــــة\",0,3)+ROW($A3)-2),prof,1,FALSE),\"\")","v":1}]
[]
[null,null,null,null,null,null,null,null,null,null,{"$f":"'بيانات المركز.'!V11","v":"مصطفى مصطفى"}]
[]
["الجمهوريــة الجزائريــة الديمقراطيــة الشعبيــة"]
["وزارة التربيــة الوطنيـة"]
["مديريــة التربيـــة لولايـــة الــــوادي",null,null,null,null,null,null,null,"الديوان الوطني للامتحانات والمسابقات"]
[]
["مركـز الإجــراء: ",null,{"$f":"'بيانات المركز.'!Q9","v":"ثانوية المجتهد - الوادي"},null,null,null,null,null,"رمز المركز:  ",null,null,{"$f":"'بيانات المركز.'!V7","v":39044}]
[null,null,null,null,{"$f":"'بيانات المركز.'!G13","v":"إمتحــان شهـادة البكالـــوريا"},null,null,null,null,null," دورة:",{"$f":"'بيانات المركز.'!D19","v":"جــــوان 2021"}]
[]
[]
[]
["التاريــــخ:",null,null,{"$f":"TODAY()","v":"2021-07-09"},null,null,{"$f":"G10","v":"اليــــوم الأول"},null,null,null,"الفتـــرة:",{"$f":"L10","v":"صباحيـــــة"}]
[]
["القاعة","الحـــــارس الأول",null,null,null,null,"الحـــــارس الثانـــي",null,null,null,"الحـــارس الثالـــث"]
[1,{"$f":"IFERROR(VLOOKUP(OFFSET('توزيع الحراس'!$A$1,MATCH($A55,'توزيع الحراس'!$C:$C,0)-1,MATCH($G$10,'توزيع الحراس'!$1:$1,0)+IF($L$10=\"صباحيـــــة\",0,3)+COUNTA($B$12:B$12)-2),prof,3,FALSE),\"\")","v":"محمد علي15"},null,null,null,null,{"$f":"IFERROR(VLOOKUP(OFFSET('توزيع الحراس'!$A$1,MATCH($A55,'توزيع الحراس'!$C:$C,0)-1,MATCH($G$10,'توزيع الحراس'!$1:$1,0)+IF($L$10=\"صباحيـــــة\",0,3)+COUNTA($B$12:J$12)-2),prof,3,FALSE),\"\")","v":"محمد علي12"},null,null,null,{"$f":"IFERROR(VLOOKUP(OFFSET('توزيع الحراس'!$A$1,MATCH($A55,'توزيع الحراس'!$C:$C,0)-1,MATCH($G$10,'توزيع الحراس'!$1:$1,0)+IF($L$10=\"صباحيـــــة\",0,3)+COUNTA($B$12:N$12)-2),prof,3,FALSE),\"\")","v":"محمد علي10"}]
[2,{"$f":"IFERROR(VLOOKUP(OFFSET('توزيع الحراس'!$A$1,MATCH($A56,'توزيع الحراس'!$C:$C,0)-1,MATCH($G$10,'توزيع الحراس'!$1:$1,0)+IF($L$10=\"صباحيـــــة\",0,3)+COUNTA($B$12:B$12)-2),prof,3,FALSE),\"\")","v":""},null,null,null,null,{"$f":"IFERROR(VLOOKUP(OFFSET('توزيع الحراس'!$A$1,MATCH($A56,'توزيع الحراس'!$C:$C,0)-1,MATCH($G$10,'توزيع الحراس'!$1:$1,0)+IF($L$10=\"صباحيـــــة\",0,3)+COUNTA($B$12:J$12)-2),prof,3,FALSE),\"\")","v":""},null,null,null,{"$f":"IFERROR(VLOOKUP(OFFSET('توزيع الحراس'!$A$1,MATCH($A56,'توزيع الحراس'!$C:$C,0)-1,MATCH($G$10,'توزيع الحراس'!$1:$1,0)+IF($L$10=\"صباحيـــــة\",0,3)+COUNTA($B$12:N$12)-2),prof,3,FALSE),\"\")","v":""}]
[3,{"$f":"IFERROR(VLOOKUP(OFFSET('توزيع الحراس'!$A$1,MATCH($A57,'توزيع الحراس'!$C:$C,0)-1,MATCH($G$10,'توزيع الحراس'!$1:$1,0)+IF($L$10=\"صباحيـــــة\",0,3)+COUNTA($B$12:B$12)-2),prof,3,FALSE),\"\")","v":""},null,null,null,null,{"$f":"IFERROR(VLOOKUP(OFFSET('توزيع الحراس'!$A$1,MATCH($A57,'توزيع الحراس'!$C:$C,0)-1,MATCH($G$10,'توزيع الحراس'!$1:$1,0)+IF($L$10=\"صباحيـــــة\",0,3)+COUNTA($B$12:J$12)-2),prof,3,FALSE),\"\")","v":""},null,null,null,{"$f":"IFERROR(VLOOKUP(OFFSET('توزيع الحراس'!$A$1,MATCH($A57,'توزيع الحراس'!$C:$C,0)-1,MATCH($G$10,'توزيع الحراس'!$1:$1,0)+IF($L$10=\"صباحيـــــة\",0,3)+COUNTA($B$12:N$12)-2),prof,3,FALSE),\"\")","v":""}]
[4,{"$f":"IFERROR(VLOOKUP(OFFSET('توزيع الحراس'!$A$1,MATCH($A58,'توزيع الحراس'!$C:$C,0)-1,MATCH($G$10,'توزيع الحراس'!$1:$1,0)+IF($L$10=\"صباحيـــــة\",0,3)+COUNTA($B$12:B$12)-2),prof,3,FALSE),\"\")","v":""},null,null,null,null,{"$f":"IFERROR(VLOOKUP(OFFSET('توزيع الحراس'!$A$1,MATCH($A58,'توزيع الحراس'!$C:$C,0)-1,MATCH($G$10,'توزيع الحراس'!$1:$1,0)+IF($L$10=\"صباحيـــــة\",0,3)+COUNTA($B$12:J$12)-2),prof,3,FALSE),\"\")","v":""},null,null,null,{"$f":"IFERROR(VLOOKUP(OFFSET('توزيع الحراس'!$A$1,MATCH($A58,'توزيع الحراس'!$C:$C,0)-1,MATCH($G$10,'توزيع الحراس'!$1:$1,0)+IF($L$10=\"صباحيـــــة\",0,3)+COUNTA($B$12:N$12)-2),prof,3,FALSE),\"\")","v":""}]
[5,{"$f":"IFERROR(VLOOKUP(OFFSET('توزيع الحراس'!$A$1,MATCH($A59,'توزيع الحراس'!$C:$C,0)-1,MATCH($G$10,'توزيع الحراس'!$1:$1,0)+IF($L$10=\"صباحيـــــة\",0,3)+COUNTA($B$12:B$12)-2),prof,3,FALSE),\"\")","v":""},null,null,null,null,{"$f":"IFERROR(VLOOKUP(OFFSET('توزيع الحراس'!$A$1,MATCH($A59,'توزيع الحراس'!$C:$C,0)-1,MATCH($G$10,'توزيع الحراس'!$1:$1,0)+IF($L$10=\"صباحيـــــة\",0,3)+COUNTA($B$12:J$12)-2),prof,3,FALSE),\"\")","v":""},null,null,null,{"$f":"IFERROR(VLOOKUP(OFFSET('توزيع الحراس'!$A$1,MATCH($A59,'توزيع الحراس'!$C:$C,0)-1,MATCH($G$10,'توزيع الحراس'!$1:$1,0)+IF($L$10=\"صباحيـــــة\",0,3)+COUNTA($B$12:N$12)-2),prof,3,FALSE),\"\")","v":""}]
[6,{"$f":"IFERROR(VLOOKUP(OFFSET('توزيع الحراس'!$A$1,MATCH($A60,'توزيع الحراس'!$C:$C,0)-1,MATCH($G$10,'توزيع الحراس'!$1:$1,0)+IF($L$10=\"صباحيـــــة\",0,3)+COUNTA($B$12:B$12)-2),prof,3,FALSE),\"\")","v":""},null,null,null,null,{"$f":"IFERROR(VLOOKUP(OFFSET('توزيع الحراس'!$A$1,MATCH($A60,'توزيع الحراس'!$C:$C,0)-1,MATCH($G$10,'توزيع الحراس'!$1:$1,0)+IF($L$10=\"صباحيـــــة\",0,3)+COUNTA($B$12:J$12)-2),prof,3,FALSE),\"\")","v":""},null,null,null,{"$f":"IFERROR(VLOOKUP(OFFSET('توزيع الحراس'!$A$1,MATCH($A60,'توزيع الحراس'!$C:$C,0)-1,MATCH($G$10,'توزيع الحراس'!$1:$1,0)+IF($L$10=\"صباحيـــــة\",0,3)+COUNTA($B$12:N$12)-2),prof,3,FALSE),\"\")","v":""}]
[7,{"$f":"IFERROR(VLOOKUP(OFFSET('توزيع الحراس'!$A$1,MATCH($A61,'توزيع الحراس'!$C:$C,0)-1,MATCH($G$10,'توزيع الحراس'!$1:$1,0)+IF($L$10=\"صباحيـــــة\",0,3)+COUNTA($B$12:B$12)-2),prof,3,FALSE),\"\")","v":""},null,null,null,null,{"$f":"IFERROR(VLOOKUP(OFFSET('توزيع الحراس'!$A$1,MATCH($A61,'توزيع الحراس'!$C:$C,0)-1,MATCH($G$10,'توزيع الحراس'!$1:$1,0)+IF($L$10=\"صباحيـــــة\",0,3)+COUNTA($B$12:J$12)-2),prof,3,FALSE),\"\")","v":""},null,null,null,{"$f":"IFERROR(VLOOKUP(OFFSET('توزيع الحراس'!$A$1,MATCH($A61,'توزيع الحراس'!$C:$C,0)-1,MATCH($G$10,'توزيع الحراس'!$1:$1,0)+IF($L$10=\"صباحيـــــة\",0,3)+COUNTA($B$12:N$12)-2),prof,3,FALSE),\"\")","v":""}]
[8,{"$f":"IFERROR(VLOOKUP(OFFSET('توزيع الحراس'!$A$1,MATCH($A62,'توزيع الحراس'!$C:$C,0)-1,MATCH($G$10,'توزيع الحراس'!$1:$1,0)+IF($L$10=\"صباحيـــــة\",0,3)+COUNTA($B$12:B$12)-2),prof,3,FALSE),\"\")","v":""},null,null,null,null,{"$f":"IFERROR(VLOOKUP(OFFSET('توزيع الحراس'!$A$1,MATCH($A62,'توزيع الحراس'!$C:$C,0)-1,MATCH($G$10,'توزيع الحراس'!$1:$1,0)+IF($L$10=\"صباحيـــــة\",0,3)+COUNTA($B$12:J$12)-2),prof,3,FALSE),\"\")","v":""},null,null,null,{"$f":"IFERROR(VLOOKUP(OFFSET('توزيع الحراس'!$A$1,MATCH($A62,'توزيع الحراس'!$C:$C,0)-1,MATCH($G$10,'توزيع الحراس'!$1:$1,0)+IF($L$10=\"صباحيـــــة\",0,3)+COUNTA($B$12:N$12)-2),prof,3,FALSE),\"\")","v":""}]
[9,{"$f":"IFERROR(VLOOKUP(OFFSET('توزيع الحراس'!$A$1,MATCH($A63,'توزيع الحراس'!$C:$C,0)-1,MATCH($G$10,'توزيع الحراس'!$1:$1,0)+IF($L$10=\"صباحيـــــة\",0,3)+COUNTA($B$12:B$12)-2),prof,3,FALSE),\"\")","v":""},null,null,null,null,{"$f":"IFERROR(VLOOKUP(OFFSET('توزيع الحراس'!$A$1,MATCH($A63,'توزيع الحراس'!$C:$C,0)-1,MATCH($G$10,'توزيع الحراس'!$1:$1,0)+IF($L$10=\"صباحيـــــة\",0,3)+COUNTA($B$12:J$12)-2),prof,3,FALSE),\"\")","v":""},null,null,null,{"$f":"IFERROR(VLOOKUP(OFFSET('توزيع الحراس'!$A$1,MATCH($A63,'توزيع الحراس'!$C:$C,0)-1,MATCH($G$10,'توزيع الحراس'!$1:$1,0)+IF($L$10=\"صباحيـــــة\",0,3)+COUNTA($B$12:N$12)-2),prof,3,FALSE),\"\")","v":""}]
[10,{"$f":"IFERROR(VLOOKUP(OFFSET('توزيع الحراس'!$A$1,MATCH($A64,'توزيع الحراس'!$C:$C,0)-1,MATCH($G$10,'توزيع الحراس'!$1:$1,0)+IF($L$10=\"صباحيـــــة\",0,3)+COUNTA($B$12:B$12)-2),prof,3,FALSE),\"\")","v":""},null,null,null,null,{"$f":"IFERROR(VLOOKUP(OFFSET('توزيع الحراس'!$A$1,MATCH($A64,'توزيع الحراس'!$C:$C,0)-1,MATCH($G$10,'توزيع الحراس'!$1:$1,0)+IF($L$10=\"صباحيـــــة\",0,3)+COUNTA($B$12:J$12)-2),prof,3,FALSE),\"\")","v":""},null,null,null,{"$f":"IFERROR(VLOOKUP(OFFSET('توزيع الحراس'!$A$1,MATCH($A64,'توزيع الحراس'!$C:$C,0)-1,MATCH($G$10,'توزيع الحراس'!$1:$1,0)+IF($L$10=\"صباحيـــــة\",0,3)+COUNTA($B$12:N$12)-2),prof,3,FALSE),\"\")","v":""}]
[11,{"$f":"IFERROR(VLOOKUP(OFFSET('توزيع الحراس'!$A$1,MATCH($A65,'توزيع الحراس'!$C:$C,0)-1,MATCH($G$10,'توزيع الحراس'!$1:$1,0)+IF($L$10=\"صباحيـــــة\",0,3)+COUNTA($B$12:B$12)-2),prof,3,FALSE),\"\")","v":""},null,null,null,null,{"$f":"IFERROR(VLOOKUP(OFFSET('توزيع الحراس'!$A$1,MATCH($A65,'توزيع الحراس'!$C:$C,0)-1,MATCH($G$10,'توزيع الحراس'!$1:$1,0)+IF($L$10=\"صباحيـــــة\",0,3)+COUNTA($B$12:J$12)-2),prof,3,FALSE),\"\")","v":""},null,null,null,{"$f":"IFERROR(VLOOKUP(OFFSET('توزيع الحراس'!$A$1,MATCH($A65,'توزيع الحراس'!$C:$C,0)-1,MATCH($G$10,'توزيع الحراس'!$1:$1,0)+IF($L$10=\"صباحيـــــة\",0,3)+COUNTA($B$12:N$12)-2),prof,3,FALSE),\"\")","v":""}]
[12,{"$f":"IFERROR(VLOOKUP(OFFSET('توزيع الحراس'!$A$1,MATCH($A66,'توزيع الحراس'!$C:$C,0)-1,MATCH($G$10,'توزيع الحراس'!$1:$1,0)+IF($L$10=\"صباحيـــــة\",0,3)+COUNTA($B$12:B$12)-2),prof,3,FALSE),\"\")","v":""},null,null,null,null,{"$f":"IFERROR(VLOOKUP(OFFSET('توزيع الحراس'!$A$1,MATCH($A66,'توزيع الحراس'!$C:$C,0)-1,MATCH($G$10,'توزيع الحراس'!$1:$1,0)+IF($L$10=\"صباحيـــــة\",0,3)+COUNTA($B$12:J$12)-2),prof,3,FALSE),\"\")","v":""},null,null,null,{"$f":"IFERROR(VLOOKUP(OFFSET('توزيع الحراس'!$A$1,MATCH($A66,'توزيع الحراس'!$C:$C,0)-1,MATCH($G$10,'توزيع الحراس'!$1:$1,0)+IF($L$10=\"صباحيـــــة\",0,3)+COUNTA($B$12:N$12)-2),prof,3,FALSE),\"\")","v":""}]
[13,{"$f":"IFERROR(VLOOKUP(OFFSET('توزيع الحراس'!$A$1,MATCH($A67,'توزيع الحراس'!$C:$C,0)-1,MATCH($G$10,'توزيع الحراس'!$1:$1,0)+IF($L$10=\"صباحيـــــة\",0,3)+COUNTA($B$12:B$12)-2),prof,3,FALSE),\"\")","v":""},null,null,null,null,{"$f":"IFERROR(VLOOKUP(OFFSET('توزيع الحراس'!$A$1,MATCH($A67,'توزيع الحراس'!$C:$C,0)-1,MATCH($G$10,'توزيع الحراس'!$1:$1,0)+IF($L$10=\"صباحيـــــة\",0,3)+COUNTA($B$12:J$12)-2),prof,3,FALSE),\"\")","v":""},null,null,null,{"$f":"IFERROR(VLOOKUP(OFFSET('توزيع الحراس'!$A$1,MATCH($A67,'توزيع الحراس'!$C:$C,0)-1,MATCH($G$10,'توزيع الحراس'!$1:$1,0)+IF($L$10=\"صباحيـــــة\",0,3)+COUNTA($B$12:N$12)-2),prof,3,FALSE),\"\")","v":""}]
[14,{"$f":"IFERROR(VLOOKUP(OFFSET('توزيع الحراس'!$A$1,MATCH($A68,'توزيع الحراس'!$C:$C,0)-1,MATCH($G$10,'توزيع الحراس'!$1:$1,0)+IF($L$10=\"صباحيـــــة\",0,3)+COUNTA($B$12:B$12)-2),prof,3,FALSE),\"\")","v":""},null,null,null,null,{"$f":"IFERROR(VLOOKUP(OFFSET('توزيع الحراس'!$A$1,MATCH($A68,'توزيع الحراس'!$C:$C,0)-1,MATCH($G$10,'توزيع الحراس'!$1:$1,0)+IF($L$10=\"صباحيـــــة\",0,3)+COUNTA($B$12:J$12)-2),prof,3,FALSE),\"\")","v":""},null,null,null,{"$f":"IFERROR(VLOOKUP(OFFSET('توزيع الحراس'!$A$1,MATCH($A68,'توزيع الحراس'!$C:$C,0)-1,MATCH($G$10,'توزيع الحراس'!$1:$1,0)+IF($L$10=\"صباحيـــــة\",0,3)+COUNTA($B$12:N$12)-2),prof,3,FALSE),\"\")","v":""}]
[15,{"$f":"IFERROR(VLOOKUP(OFFSET('توزيع الحراس'!$A$1,MATCH($A69,'توزيع الحراس'!$C:$C,0)-1,MATCH($G$10,'توزيع الحراس'!$1:$1,0)+IF($L$10=\"صباحيـــــة\",0,3)+COUNTA($B$12:B$12)-2),prof,3,FALSE),\"\")","v":""},null,null,null,null,{"$f":"IFERROR(VLOOKUP(OFFSET('توزيع الحراس'!$A$1,MATCH($A69,'توزيع الحراس'!$C:$C,0)-1,MATCH($G$10,'توزيع الحراس'!$1:$1,0)+IF($L$10=\"صباحيـــــة\",0,3)+COUNTA($B$12:J$12)-2),prof,3,FALSE),\"\")","v":""},null,null,null,{"$f":"IFERROR(VLOOKUP(OFFSET('توزيع الحراس'!$A$1,MATCH($A69,'توزيع الحراس'!$C:$C,0)-1,MATCH($G$10,'توزيع الحراس'!$1:$1,0)+IF($L$10=\"صباحيـــــة\",0,3)+COUNTA($B$12:N$12)-2),prof,3,FALSE),\"\")","v":""}]
[16,{"$f":"IFERROR(VLOOKUP(OFFSET('توزيع الحراس'!$A$1,MATCH($A70,'توزيع الحراس'!$C:$C,0)-1,MATCH($G$10,'توزيع الحراس'!$1:$1,0)+IF($L$10=\"صباحيـــــة\",0,3)+COUNTA($B$12:B$12)-2),prof,3,FALSE),\"\")","v":""},null,null,null,null,{"$f":"IFERROR(VLOOKUP(OFFSET('توزيع الحراس'!$A$1,MATCH($A70,'توزيع الحراس'!$C:$C,0)-1,MATCH($G$10,'توزيع الحراس'!$1:$1,0)+IF($L$10=\"صباحيـــــة\",0,3)+COUNTA($B$12:J$12)-2),prof,3,FALSE),\"\")","v":""},null,null,null,{"$f":"IFERROR(VLOOKUP(OFFSET('توزيع الحراس'!$A$1,MATCH($A70,'توزيع الحراس'!$C:$C,0)-1,MATCH($G$10,'توزيع الحراس'!$1:$1,0)+IF($L$10=\"صباحيـــــة\",0,3)+COUNTA($B$12:N$12)-2),prof,3,FALSE),\"\")","v":""}]
[17,{"$f":"IFERROR(VLOOKUP(OFFSET('توزيع الحراس'!$A$1,MATCH($A71,'توزيع الحراس'!$C:$C,0)-1,MATCH($G$10,'توزيع الحراس'!$1:$1,0)+IF($L$10=\"صباحيـــــة\",0,3)+COUNTA($B$12:B$12)-2),prof,3,FALSE),\"\")","v":""},null,null,null,null,{"$f":"IFERROR(VLOOKUP(OFFSET('توزيع الحراس'!$A$1,MATCH($A71,'توزيع الحراس'!$C:$C,0)-1,MATCH($G$10,'توزيع الحراس'!$1:$1,0)+IF($L$10=\"صباحيـــــة\",0,3)+COUNTA($B$12:J$12)-2),prof,3,FALSE),\"\")","v":""},null,null,null,{"$f":"IFERROR(VLOOKUP(OFFSET('توزيع الحراس'!$A$1,MATCH($A71,'توزيع الحراس'!$C:$C,0)-1,MATCH($G$10,'توزيع الحراس'!$1:$1,0)+IF($L$10=\"صباحيـــــة\",0,3)+COUNTA($B$12:N$12)-2),prof,3,FALSE),\"\")","v":""}]
[18,{"$f":"IFERROR(VLOOKUP(OFFSET('توزيع الحراس'!$A$1,MATCH($A72,'توزيع الحراس'!$C:$C,0)-1,MATCH($G$10,'توزيع الحراس'!$1:$1,0)+IF($L$10=\"صباحيـــــة\",0,3)+COUNTA($B$12:B$12)-2),prof,3,FALSE),\"\")","v":""},null,null,null,null,{"$f":"IFERROR(VLOOKUP(OFFSET('توزيع الحراس'!$A$1,MATCH($A72,'توزيع الحراس'!$C:$C,0)-1,MATCH($G$10,'توزيع الحراس'!$1:$1,0)+IF($L$10=\"صباحيـــــة\",0,3)+COUNTA($B$12:J$12)-2),prof,3,FALSE),\"\")","v":""},null,null,null,{"$f":"IFERROR(VLOOKUP(OFFSET('توزيع الحراس'!$A$1,MATCH($A72,'توزيع الحراس'!$C:$C,0)-1,MATCH($G$10,'توزيع الحراس'!$1:$1,0)+IF($L$10=\"صباحيـــــة\",0,3)+COUNTA($B$12:N$12)-2),prof,3,FALSE),\"\")","v":""}]
[19,{"$f":"IFERROR(VLOOKUP(OFFSET('توزيع الحراس'!$A$1,MATCH($A73,'توزيع الحراس'!$C:$C,0)-1,MATCH($G$10,'توزيع الحراس'!$1:$1,0)+IF($L$10=\"صباحيـــــة\",0,3)+COUNTA($B$12:B$12)-2),prof,3,FALSE),\"\")","v":""},null,null,null,null,{"$f":"IFERROR(VLOOKUP(OFFSET('توزيع الحراس'!$A$1,MATCH($A73,'توزيع الحراس'!$C:$C,0)-1,MATCH($G$10,'توزيع الحراس'!$1:$1,0)+IF($L$10=\"صباحيـــــة\",0,3)+COUNTA($B$12:J$12)-2),prof,3,FALSE),\"\")","v":""},null,null,null,{"$f":"IFERROR(VLOOKUP(OFFSET('توزيع الحراس'!$A$1,MATCH($A73,'توزيع الحراس'!$C:$C,0)-1,MATCH($G$10,'توزيع الحراس'!$1:$1,0)+IF($L$10=\"صباحيـــــة\",0,3)+COUNTA($B$12:N$12)-2),prof,3,FALSE),\"\")","v":""}]
[20,{"$f":"IFERROR(VLOOKUP(OFFSET('توزيع الحراس'!$A$1,MATCH($A74,'توزيع الحراس'!$C:$C,0)-1,MATCH($G$10,'توزيع الحراس'!$1:$1,0)+IF($L$10=\"صباحيـــــة\",0,3)+COUNTA($B$12:B$12)-2),prof,3,FALSE),\"\")","v":""},null,null,null,null,{"$f":"IFERROR(VLOOKUP(OFFSET('توزيع الحراس'!$A$1,MATCH($A74,'توزيع الحراس'!$C:$C,0)-1,MATCH($G$10,'توزيع الحراس'!$1:$1,0)+IF($L$10=\"صباحيـــــة\",0,3)+COUNTA($B$12:J$12)-2),prof,3,FALSE),\"\")","v":""},null,null,null,{"$f":"IFERROR(VLOOKUP(OFFSET('توزيع الحراس'!$A$1,MATCH($A74,'توزيع الحراس'!$C:$C,0)-1,MATCH($G$10,'توزيع الحراس'!$1:$1,0)+IF($L$10=\"صباحيـــــة\",0,3)+COUNTA($B$12:N$12)-2),prof,3,FALSE),\"\")","v":""}]
[21,{"$f":"IFERROR(VLOOKUP(OFFSET('توزيع الحراس'!$A$1,MATCH($A75,'توزيع الحراس'!$C:$C,0)-1,MATCH($G$10,'توزيع الحراس'!$1:$1,0)+IF($L$10=\"صباحيـــــة\",0,3)+COUNTA($B$12:B$12)-2),prof,3,FALSE),\"\")","v":""},null,null,null,null,{"$f":"IFERROR(VLOOKUP(OFFSET('توزيع الحراس'!$A$1,MATCH($A75,'توزيع الحراس'!$C:$C,0)-1,MATCH($G$10,'توزيع الحراس'!$1:$1,0)+IF($L$10=\"صباحيـــــة\",0,3)+COUNTA($B$12:J$12)-2),prof,3,FALSE),\"\")","v":""},null,null,null,{"$f":"IFERROR(VLOOKUP(OFFSET('توزيع الحراس'!$A$1,MATCH($A75,'توزيع الحراس'!$C:$C,0)-1,MATCH($G$10,'توزيع الحراس'!$1:$1,0)+IF($L$10=\"صباحيـــــة\",0,3)+COUNTA($B$12:N$12)-2),prof,3,FALSE),\"\")","v":""}]
[]
["الحـــراس الاحتياطيــون:",null,null,1,2,3,4,5,6,7,8,9,10]
[null,null,null,null,1,2,3,4,5,6,7,8,9]
[null,null,null,{"$f":"IFERROR(VLOOKUP(OFFSET('توزيع الحراس'!$A$33,D$35,MATCH($G$10,'توزيع الحراس'!$1:$1,0)+IF($L$10=\"صباحيـــــة\",0,3)+ROW($A1)-2),prof,3,FALSE),\"\")","v":"محمد علي1"},{"$f":"IFERROR(VLOOKUP(OFFSET('توزيع الحراس'!$A$33,E$35,MATCH($G$10,'توزيع الحراس'!$1:$1,0)+IF($L$10=\"صباحيـــــة\",0,3)+ROW($A1)-2),prof,3,FALSE),\"\")","v":"محمد علي1"},{"$f":"IFERROR(VLOOKUP(OFFSET('توزيع الحراس'!$A$33,F$35,MATCH($G$10,'توزيع الحراس'!$1:$1,0)+IF($L$10=\"صباحيـــــة\",0,3)+ROW($A1)-2),prof,3,FALSE),\"\")","v":"محمد علي1"},{"$f":"IFERROR(VLOOKUP(OFFSET('توزيع الحراس'!$A$33,G$35,MATCH($G$10,'توزيع الحراس'!$1:$1,0)+IF($L$10=\"صباحيـــــة\",0,3)+ROW($A1)-2),prof,3,FALSE),\"\")","v":"محمد علي1"},{"$f":"IFERROR(VLOOKUP(OFFSET('توزيع الحراس'!$A$33,H$35,MATCH($G$10,'توزيع الحراس'!$1:$1,0)+IF($L$10=\"صباحيـــــة\",0,3)+ROW($A1)-2),prof,3,FALSE),\"\")","v":"محمد علي1"},{"$f":"IFERROR(VLOOKUP(OFFSET('توزيع الحراس'!$A$33,I$35,MATCH($G$10,'توزيع الحراس'!$1:$1,0)+IF($L$10=\"صباحيـــــة\",0,3)+ROW($A1)-2),prof,3,FALSE),\"\")","v":"محمد علي1"},{"$f":"IFERROR(VLOOKUP(OFFSET('توزيع الحراس'!$A$33,J$35,MATCH($G$10,'توزيع الحراس'!$1:$1,0)+IF($L$10=\"صباحيـــــة\",0,3)+ROW($A1)-2),prof,3,FALSE),\"\")","v":"محمد علي1"},{"$f":"IFERROR(VLOOKUP(OFFSET('توزيع الحراس'!$A$33,K$35,MATCH($G$10,'توزيع الحراس'!$1:$1,0)+IF($L$10=\"صباحيـــــة\",0,3)+ROW($A1)-2),prof,3,FALSE),\"\")","v":"محمد علي1"},{"$f":"IFERROR(VLOOKUP(OFFSET('توزيع الحراس'!$A$33,L$35,MATCH($G$10,'توزيع الحراس'!$1:$1,0)+IF($L$10=\"صباحيـــــة\",0,3)+ROW($A1)-2),prof,3,FALSE),\"\")","v":"محمد علي1"},{"$f":"IFERROR(VLOOKUP(OFFSET('توزيع الحراس'!$A$33,M$35,MATCH($G$10,'توزيع الحراس'!$1:$1,0)+IF($L$10=\"صباحيـــــة\",0,3)+ROW($A1)-2),prof,3,FALSE),\"\")","v":"محمد علي1"}]
[null,null,null,{"$f":"IFERROR(VLOOKUP(OFFSET('توزيع الحراس'!$A$33,D$35,MATCH($G$10,'توزيع الحراس'!$1:$1,0)+IF($L$10=\"صباحيـــــة\",0,3)+ROW($A2)-2),prof,3,FALSE),\"\")","v":"محمد علي2"},{"$f":"IFERROR(VLOOKUP(OFFSET('توزيع الحراس'!$A$33,E$35,MATCH($G$10,'توزيع الحراس'!$1:$1,0)+IF($L$10=\"صباحيـــــة\",0,3)+ROW($A2)-2),prof,3,FALSE),\"\")","v":"محمد علي1"},{"$f":"IFERROR(VLOOKUP(OFFSET('توزيع الحراس'!$A$33,F$35,MATCH($G$10,'توزيع الحراس'!$1:$1,0)+IF($L$10=\"صباحيـــــة\",0,3)+ROW($A2)-2),prof,3,FALSE),\"\")","v":"محمد علي1"},{"$f":"IFERROR(VLOOKUP(OFFSET('توزيع الحراس'!$A$33,G$35,MATCH($G$10,'توزيع الحراس'!$1:$1,0)+IF($L$10=\"صباحيـــــة\",0,3)+ROW($A2)-2),prof,3,FALSE),\"\")","v":"محمد علي1"},{"$f":"IFERROR(VLOOKUP(OFFSET('توزيع الحراس'!$A$33,H$35,MATCH($G$10,'توزيع الحراس'!$1:$1,0)+IF($L$10=\"صباحيـــــة\",0,3)+ROW($A2)-2),prof,3,FALSE),\"\")","v":"محمد علي1"},{"$f":"IFERROR(VLOOKUP(OFFSET('توزيع الحراس'!$A$33,I$35,MATCH($G$10,'توزيع الحراس'!$1:$1,0)+IF($L$10=\"صباحيـــــة\",0,3)+ROW($A2)-2),prof,3,FALSE),\"\")","v":"محمد علي1"},{"$f":"IFERROR(VLOOKUP(OFFSET('توزيع الحراس'!$A$33,J$35,MATCH($G$10,'توزيع الحراس'!$1:$1,0)+IF($L$10=\"صباحيـــــة\",0,3)+ROW($A2)-2),prof,3,FALSE),\"\")","v":"محمد علي1"},{"$f":"IFERROR(VLOOKUP(OFFSET('توزيع الحراس'!$A$33,K$35,MATCH($G$10,'توزيع الحراس'!$1:$1,0)+IF($L$10=\"صباحيـــــة\",0,3)+ROW($A2)-2),prof,3,FALSE),\"\")","v":"محمد علي1"},{"$f":"IFERROR(VLOOKUP(OFFSET('توزيع الحراس'!$A$33,L$35,MATCH($G$10,'توزيع الحراس'!$1:$1,0)+IF($L$10=\"صباحيـــــة\",0,3)+ROW($A2)-2),prof,3,FALSE),\"\")","v":"محمد علي1"},{"$f":"IFERROR(VLOOKUP(OFFSET('توزيع الحراس'!$A$33,M$35,MATCH($G$10,'توزيع الحراس'!$1:$1,0)+IF($L$10=\"صباحيـــــة\",0,3)+ROW($A2)-2),prof,3,FALSE),\"\")","v":"محمد علي1"}]
[null,null,null,{"$f":"IFERROR(VLOOKUP(OFFSET('توزيع الحراس'!$A$33,D$35,MATCH($G$10,'توزيع الحراس'!$1:$1,0)+IF($L$10=\"صباحيـــــة\",0,3)+ROW($A3)-2),prof,3,FALSE),\"\")","v":"محمد علي3"},{"$f":"IFERROR(VLOOKUP(OFFSET('توزيع الحراس'!$A$33,E$35,MATCH($G$10,'توزيع الحراس'!$1:$1,0)+IF($L$10=\"صباحيـــــة\",0,3)+ROW($A3)-2),prof,3,FALSE),\"\")","v":"محمد علي1"},{"$f":"IFERROR(VLOOKUP(OFFSET('توزيع الحراس'!$A$33,F$35,MATCH($G$10,'توزيع الحراس'!$1:$1,0)+IF($L$10=\"صباحيـــــة\",0,3)+ROW($A3)-2),prof,3,FALSE),\"\")","v":"محمد علي1"},{"$f":"IFERROR(VLOOKUP(OFFSET('توزيع الحراس'!$A$33,G$35,MATCH($G$10,'توزيع الحراس'!$1:$1,0)+IF($L$10=\"صباحيـــــة\",0,3)+ROW($A3)-2),prof,3,FALSE),\"\")","v":"محمد علي1"},{"$f":"IFERROR(VLOOKUP(OFFSET('توزيع الحراس'!$A$33,H$35,MATCH($G$10,'توزيع الحراس'!$1:$1,0)+IF($L$10=\"صباحيـــــة\",0,3)+ROW($A3)-2),prof,3,FALSE),\"\")","v":"محمد علي1"},{"$f":"IFERROR(VLOOKUP(OFFSET('توزيع الحراس'!$A$33,I$35,MATCH($G$10,'توزيع الحراس'!$1:$1,0)+IF($L$10=\"صباحيـــــة\",0,3)+ROW($A3)-2),prof,3,FALSE),\"\")","v":"محمد علي1"},{"$f":"IFERROR(VLOOKUP(OFFSET('توزيع الحراس'!$A$33,J$35,MATCH($G$10,'توزيع الحراس'!$1:$1,0)+IF($L$10=\"صباحيـــــة\",0,3)+ROW($A3)-2),prof,3,FALSE),\"\")","v":"محمد علي1"},{"$f":"IFERROR(VLOOKUP(OFFSET('توزيع الحراس'!$A$33,K$35,MATCH($G$10,'توزيع الحراس'!$1:$1,0)+IF($L$10=\"صباحيـــــة\",0,3)+ROW($A3)-2),prof,3,FALSE),\"\")","v":"محمد علي1"},{"$f":"IFERROR(VLOOKUP(OFFSET('توزيع الحراس'!$A$33,L$35,MATCH($G$10,'توزيع الحراس'!$1:$1,0)+IF($L$10=\"صباحيـــــة\",0,3)+ROW($A3)-2),prof,3,FALSE),\"\")","v":"محمد علي1"},{"$f":"IFERROR(VLOOKUP(OFFSET('توزيع الحراس'!$A$33,M$35,MATCH($G$10,'توزيع الحراس'!$1:$1,0)+IF($L$10=\"صباحيـــــة\",0,3)+ROW($A3)-2),prof,3,FALSE),\"\")","v":"محمد علي1"}]
[]
[null,null,null,null,null,null,null,null,null,null,{"$f":"K41","v":"مصطفى مصطفى"}]